Workbook

Sheet BrewReport
A1: Bryggeri: | D1: =IF(Data!E2="","",Data!E2) -> Wolfhound Brewery
A2: Bryg navn:
A3: Bryg nr.: | F3: Type: | K3: =IF($G$3="","",CONCATENATE(VLOOKUP($G$3,Typer!$C$4:$P$128,2,FALSE),VLOOKUP($G$3,Typer!$C$4:$P$128,3,FALSE))) ->  | L3: Dato:
A4: Typiske data: | D4: EBC | E4: =IF($G$3="","",CONCATENATE(VLOOKUP($G$3,Typer!$C$4:$P$128,10,FALSE)," - ",VLOOKUP($G$3,Typer!$C$4:$P$128,11,FALSE))) ->  | F4: OG | G4: =IF($G$3="","",CONCATENATE(VLOOKUP($G$3,Typer!$C$3:$T$128,4,FALSE)," - ",VLOOKUP($G$3,Typer!$C$3:$T$128,5,FALSE))) ->  | I4: ABV % | J4: =IF($G$3="","",CONCATENATE(VLOOKUP($G$3,Typer!$C$3:$T$128,8,FALSE)," - ",VLOOKUP($G$3,Typer!$C$3:$T$128,9,FALSE))) ->  | K4: IBU | L4: =IFERROR(IF($G$3="","",CONCATENATE(VLOOKUP($G$3,Typer!$C$4:$P$128,12,FALSE)," - ",VLOOKUP($G$3,Typer!$C$4:$P$128,13,FALSE))),"") ->  | N4: RBR | O4: =IFERROR(IF($G$3="","",VLOOKUP($G$3,Typer!$C$4:$P$128,14,FALSE)),"") -> 
A6: Dette brygs data: | E6: =IF(Data!G26=0,"",Data!G26) -> 4 | F6: OG | G6: =IF(D19=0,"",IF(D53="",IF(M3="",Data!I26,D51),IF(M3="",Data!I26,D53))) -> 1002 | I6: ABV % | J6: =IF(D58="",IF(Data!I29="","",Data!I29),D58) ->  | K6: IBU | L6: =IF(Data!I59=0,"",Data!I59) ->  | N6: RBR | O6: =IF(AND(L54="",L55=""),"",IF(D55="",IF(L6="","",(Data!I59/(G6-1000)*(1+((MAX(Data!G29:G30)/100)-0.7655)))),(Data!I59/(G6-1000)*(1+((D56/100)-0.7655))))) -> 
A7: Ingredienser | E7: fra: | F7: Hjemmebryggeren | I7: Mæskning
A8: Malttype | B8: DP | C8: EBC | D8: Vægt | E8: Enhed | I8: Proces | L8: Temp. | M8: Tid | O8: Starttider (tt:mm)
B9: =IF(A9="","",(VLOOKUP(A9,Malt!$A$3:$E$85,5,FALSE)*D9)) ->  | C9: =IF(A9="","",VLOOKUP(A9,Malt!$A$3:$C$85,3,FALSE)) ->  | E9: =IF(D9=0,"","kg") ->  | L9: °C | M9: =IFERROR(((O22-O9)*1440),"Fejl") -> 124 | N9: =IF(M9=0,"","min") -> min | O9: 01:00:00
B10: =IF(A10="","",(VLOOKUP(A10,Malt!$A$3:$E$85,5,FALSE)*D10)) ->  | C10: =IF(A10="","",VLOOKUP(A10,Malt!$A$3:$C$85,3,FALSE)) ->  | I10: Syre pause | N10: =IF(M10=0,"","min") ->  | O10: =IFERROR(IF($O$9<>"",IF(AND(M10>0),$O$9+TIME(,(L10-14)*Data!$E$7,),""),""),"Fejl i indtast") -> 
B11: =IF(A11="","",(VLOOKUP(A11,Malt!$A$3:$E$85,5,FALSE)*D11)) ->  | C11: =IF(A11="","",VLOOKUP(A11,Malt!$A$3:$C$85,3,FALSE)) ->  | I11: Syre / proteinpause | O11: =IFERROR(IF($O$9<>"",IF(AND(M10>0,M11>0),O10+TIME(,M10,)+TIME(,(L11-L10)*Data!$E$7,),IF(M11>0,$O$9+TIME(,(L11-14)*Data!$E$7,),"")),""),"Fejl i indtast") -> 
B12: =IF(A12="","",(VLOOKUP(A12,Malt!$A$3:$E$85,5,FALSE)*D12)) ->  | C12: =IF(A12="","",VLOOKUP(A12,Malt!$A$3:$C$85,3,FALSE)) ->  | I12: Proteinpause ( 57°C ) | O12: =IFERROR(IF($O$9<>"",IF(AND(M11>0,M12>0),O11+TIME(,M11,)+TIME(,(L12-L11)*Data!$E$7,),IF(AND(M10>0,M12>0),O10+TIME(,M10,)+TIME(,(L12-L10)*Data!$E$7,),IF(M12>0,$O$9+TIME(,(L12-14)*Data!$E$7,),""))),""),"Fejl i indtast") -> 
B13: =IF(A13="","",(VLOOKUP(A13,Malt!$A$3:$E$85,5,FALSE)*D13)) ->  | C13: =IF(A13="","",VLOOKUP(A13,Malt!$A$3:$C$85,3,FALSE)) ->  | I13: Mæskning 1 | O13: =IFERROR(IF($O$9<>"",IF(AND(M12>0,M13>0),O12+TIME(,M12,)+TIME(,(L13-L12)*Data!$E$7,),IF(AND(M11>0,M13>0),O11+TIME(,M11,)+TIME(,(L13-L11)*Data!$E$7,),IF(AND(M10>0,M13>0),O10+TIME(,M10,)+TIME(,(L13-L10)*Data!$E$7,),IF(M13>0,$O$9+TIME(,(L13-14)*Data!$E$7,),"")))),""),"Fejl i indtast") -> 
B14: =IF(A14="","",(VLOOKUP(A14,Malt!$A$3:$E$85,5,FALSE)*D14)) ->  | C14: =IF(A14="","",VLOOKUP(A14,Malt!$A$3:$C$85,3,FALSE)) ->  | I14: Mæskning 2 | O14: =IFERROR(IF($O$9<>"",IF(AND(M13>0,M14>0),O13+TIME(,M13,)+TIME(,(L14-L13)*Data!$E$7,),IF(AND(M12>0,M14>0),O12+TIME(,M12,)+TIME(,(L14-L12)*Data!$E$7,),IF(AND(M11>0,M14>0),O11+TIME(,M11,)+TIME(,(L14-L11)*Data!$E$7,),IF(AND(M10>0,M14>0),O10+TIME(,M10,)+TIME(,(L14-L10)*Data!$E$7,),IF(M14>0,$O$9+TIME(,(L14-14)*Data!$E$7,),""))))),""),"Fejl i indtast") -> 
B15: =IF(A15="","",(VLOOKUP(A15,Malt!$A$3:$E$85,5,FALSE)*D15)) ->  | C15: =IF(A15="","",VLOOKUP(A15,Malt!$A$3:$C$85,3,FALSE)) ->  | I15: Mæskning 3 | O15: =IFERROR(IF($O$9<>"",IF(AND(M14>0,M15>0),O14+TIME(,M14,)+TIME(,(L15-L14)*Data!$E$7,),IF(AND(M13>0,M15>0),O13+TIME(,M13,)+TIME(,(L15-L13)*Data!$E$7,),IF(AND(M12>0,M15>0),O12+TIME(,M12,)+TIME(,(L15-L12)*Data!$E$7,),IF(AND(M11>0,M15>0),O11+TIME(,M11,)+TIME(,(L15-L11)*Data!$E$7,),IF(AND(M10>0,M15>0),O10+TIME(,M10,)+TIME(,(L15-L10)*Data!$E$7,),IF(M15>0,$O$9+TIME(,(L15-14)*Data!$E$7,),"")))))),""),"Fejl i indtast") -> 
B16: =IF(A16="","",(VLOOKUP(A16,Malt!$A$3:$E$85,5,FALSE)*D16)) ->  | C16: =IF(A16="","",VLOOKUP(A16,Malt!$A$3:$C$85,3,FALSE)) ->  | I16: Forsukring | L16: 72 | M16: 15 | N16: min | O16: =IFERROR(IF($O$9<>"",IF(AND(M15>0,M16>0),O15+TIME(,M15,)+TIME(,(L16-L15)*Data!$E$7,),IF(AND(M14>0,M16>0),O14+TIME(,M14,)+TIME(,(L16-L14)*Data!$E$7,),IF(AND(M13>0,M16>0),O13+TIME(,M13,)+TIME(,(L16-L13)*Data!$E$7,),IF(AND(M12>0,M16>0),O12+TIME(,M12,)+TIME(,(L16-L12)*Data!$E$7,),IF(AND(M11>0,M16>0),O11+TIME(,M11,)+TIME(,(L16-L11)*Data!$E$7,),IF(AND(M10>0,M16>0),O10+TIME(,M10,)+TIME(,(L16-L10)*Data!$E$7,),IF(M16>0,$O$9+TIME(,(L16-14)*Data!$E$7,),""))))))),""),"Fejl i indtast") -> 01:58:00
B17: =IF(A17="","",(VLOOKUP(A17,Malt!$A$3:$E$85,5,FALSE)*D17)) ->  | C17: =IF(A17="","",VLOOKUP(A17,Malt!$A$3:$C$85,3,FALSE)) ->  | I17: Afmæskning | L17: 78 | M17: 10 | N17: =IF(M17=0,"","min") -> min | O17: =IFERROR(IF($O$9<>"",IF(AND(M16>0,M17>0),O16+TIME(,M16,)+TIME(,(L17-L16)*Data!$E$7,),IF(AND(M15>0,M17>0),O15+TIME(,M15,)+TIME(,(L17-L15)*Data!$E$7,),IF(AND($O$9<>"",M14>0,M17>0),O14+TIME(,M14,)+TIME(,(L17-L14)*Data!$E$7,),IF(AND(M13>0,M17>0),O13+TIME(,M13,)+TIME(,(L17-L13)*Data!$E$7,),IF(AND(M12>0,M17>0),O12+TIME(,M12,)+TIME(,(L17-L12)*Data!$E$7,),IF(AND(M11>0,M17>0),O11+TIME(,M11,)+TIME(,(L17-L11)*Data!$E$7,),IF(AND(M10>0,M17>0),O10+TIME(,M10,)+TIME(,(L17-L10)*Data!$E$7,),IF(M17>0,$O$9+TIME(,(L17-14)*Data!$E$7,),"")))))))),""),"Fejl i indtast") -> 02:19:00
A18: Torrefied Flaked Oat | B18: =IF(A18="","",(VLOOKUP(A18,Malt!$A$3:$E$85,5,FALSE)*D18)) -> 0 | C18: =IF(A18="","",VLOOKUP(A18,Malt!$A$3:$C$85,3,FALSE)) -> 4 | D18: 0.3 | E18: kg | N18: =IF(M18=0,"","min") ->  | O18: =IFERROR(IF($O$9<>"",IF(AND(M17>0,M18>0),O17+TIME(,M17,)+TIME(,(L18-L17)*Data!$E$7,),IF(AND(M16>0,M18>0),O16+TIME(,M16,)+TIME(,(L18-L16)*Data!$E$7,),IF(AND(M15>0,M18>0),O15+TIME(,M15,)+TIME(,(L18-L15)*Data!$E$7,),IF(AND(M14>0,M18>0),O14+TIME(,M14,)+TIME(,(L18-L14)*Data!$E$7,),IF(AND(M13>0,M18>0),O13+TIME(,M13,)+TIME(,(L18-L13)*Data!$E$7,),IF(AND(M12>0,M18>0),O12+TIME(,M12,)+TIME(,(L18-L12)*Data!$E$7,),IF(AND(M11>0,M18>0),O11+TIME(,M11,)+TIME(,(L18-L11)*Data!$E$7,),IF(AND(M10>0,M18>0),O10+TIME(,M10,)+TIME(,(L18-L10)*Data!$E$7,),IF(M18>0,$O$9+TIME(,(L18-14)*Data!$E$7,),""))))))))),""),"Fejl i indtast") -> 
A19: Diastatisk aktivitet (>=40) : | B19: =IF(SUM(B9:B18)=0,"",ROUND((SUM(B9:B18)/D19),1)) ->  | C19: Total: | D19: =SUM(D9:D18) -> 0.3 | E19: kg | I19: Fraløb | L19: 78 | M19: 30 | N19: min | O19: =IFERROR(IF($O$9<>"",IF(AND(M18>0,M19>0),O18+TIME(,M18,)+TIME(,(L19-L18)*Data!$E$7,),IF(AND(M17>0,M19>0),O17+TIME(,M17,)+TIME(,(L19-L17)*Data!$E$7,),IF(AND(M16>0,M19>0),O16+TIME(,M16,)+TIME(,(L19-L16)*Data!$E$7,),IF(AND(M15>0,M19>0),O15+TIME(,M15,)+TIME(,(L19-L15)*Data!$E$7,),IF(AND(M14>0,M19>0),O14+TIME(,M14,)+TIME(,(L19-L14)*Data!$E$7,),IF(AND(M13>0,M19>0),O13+TIME(,M13,)+TIME(,(L19-L13)*Data!$E$7,),IF(AND(M12>0,M19>0),O12+TIME(,M12,)+TIME(,(L19-L12)*Data!$E$7,),IF(AND(M11>0,M19>0),O11+TIME(,M11,)+TIME(,(L19-L11)*Data!$E$7,),IF(AND(M10>0,M19>0),O10+TIME(,M10,)+TIME(,(L18-L10)*Data!$E$7,),IF(AND(M19>0),$O$9+TIME(,(L19-14)*Data!$E$7,),"")))))))))),""),"Fejl i indtast") -> 02:29:00
A21: Humletype | B21: B/P | C21: % og Anv. | D21: Vægt | E21: Enhed | F21: OBS: Nogle humler leveres kun à 100 gram | I21: Kogning | L21: Tid før slut | N21: Enhed | O21: Starttider (tt:mm)
A22: Bitterhumle | D22: =SUM(D23:D37) -> 0 | E22: gram | I22: I alt | L22: 90 | N22: min | O22: =IF(O19<>"",O19+TIME(,M19+5,),O9) -> 03:04:00
C23: =IF(A23="","",CONCATENATE(Data!G42,"% - ",VLOOKUP(A23,Humle!$A$2:$J$76,7,FALSE))) ->  | E23: =IF(D23=0,"","gram") ->  | I23: =IF(A23="","",A23) ->  | N23: =IF(L23="","","min") ->  | O23: =IF(AND($O$22>0,$L$22>0,L23<>""),$O$22+(TIME(,$L$22,)-TIME(,L23,)),"") -> 
C24: =IF(A24="","",CONCATENATE(Data!G43,"% - ",VLOOKUP(A24,Humle!$A$2:$J$76,7,FALSE))) ->  | E24: =IF(D24=0,"","gram") ->  | I24: =IF(A24="","",A24) ->  | N24: =IF(L24="","","min") ->  | O24: =IF(AND($O$22>0,$L$22>0,L24<>""),$O$22+(TIME(,$L$22,)-TIME(,L24,)),"") -> 
C25: =IF(A25="","",CONCATENATE(Data!G44,"% - ",VLOOKUP(A25,Humle!$A$2:$J$76,7,FALSE))) ->  | I25: =IF(A25="","",A25) -> 
A26: Smagshumle
C27: =IF(A27="","",CONCATENATE(Data!G46,"% - ",VLOOKUP(A27,Humle!$A$2:$J$76,7,FALSE))) ->  | I27: =IF(A27="","",A27) -> 
C28: =IF(A28="","",CONCATENATE(Data!G47,"% - ",VLOOKUP(A28,Humle!$A$2:$J$76,7,FALSE))) ->  | I28: =IF(A28="","",A28) -> 
C29: =IF(A29="","",CONCATENATE(Data!G48,"% - ",VLOOKUP(A29,Humle!$A$2:$J$76,7,FALSE))) ->  | I29: =IF(A29="","",A29) -> 
A30: Aromahumle
C31: =IF(A31="","",CONCATENATE(Data!G50,"% - ",VLOOKUP(A31,Humle!$A$2:$J$76,7,FALSE))) ->  | I31: =IF(A31="","",A31) -> 
C32: =IF(A32="","",CONCATENATE(Data!G51,"% - ",VLOOKUP(A32,Humle!$A$2:$J$76,7,FALSE))) ->  | I32: =IF(A32="","",A32) -> 
C33: =IF(A33="","",CONCATENATE(Data!G52,"% - ",VLOOKUP(A33,Humle!$A$2:$J$76,7,FALSE))) ->  | I33: =IF(A33="","",A33) -> 
A34: Tørhumle
C35: =IF(A35="","",CONCATENATE(Data!G54,"% - ",VLOOKUP(A35,Humle!$A$2:$J$76,7,FALSE))) ->  | I35: =IF(A35="","",A35) ->  | N35: =IF(L35="","","min") ->  | O35: =IF(AND($O$22>0,$L$22>0,L35<>""),$O$22+(TIME(,$L$22,)-TIME(,L35,)),"") -> 
C36: =IF(A36="","",CONCATENATE(Data!G55,"% - ",VLOOKUP(A36,Humle!$A$2:$J$76,7,FALSE))) ->  | I36: =IF(A36="","",A36) -> 
C37: =IF(A37="","",CONCATENATE(Data!G56,"% - ",VLOOKUP(A37,Humle!$A$2:$J$76,7,FALSE))) ->  | I37: =IF(A37="","",A37) -> 
A38: Tilsætninger
E39: =IF(D39=0,"","gram") ->  | F39: <-- Manuel indtast | I39: =IF($A$39="","",$A$39) -> 
I40: =IF($A$40="","",$A$40) -> 
I41: =IF($A$41="","",$A$41) -> 
I42: =IF($A$42="","",$A$42) -> 
I43: =IF($A$43="","",$A$43) -> 
I44: =IF($A$44="","",$A$44) -> 
I45: =IF($A$45="","",$A$45) ->  | O45: =IF($O$22="","",IF(AND($O$22>0,$L$22>0,L45<>""),$O$22+(TIME(,$L$22,)-TIME(,L45,)),"")) -> 
A47: Målinger | I47: Køling
D48: Målt | E48: Enhed | N48: Enhed
A49: Bryggedato: | D49: =IF(M3="","",M3) ->  | F49: =IF(O22<>"",CONCATENATE("Færdig ca. kl.: ",TEXT(CEILING(O22+TIME(,L22,)+TIME(,L49,),"0:15"),"tt:mm")),"Færdig ca. kl.: ") -> Færdig ca. kl.: 05:15 | I49: Tid | L49: 30 | N49: min
A50: Mængde efter mæskning | E50: liter | I50: Nedkøling til | L50: 25 | N50: °C
A51: Vægtfylde efter mæskning | E51: Oeschle | F51: =IF(D51="","",CONCATENATE("Effektivitet: ",ROUND((Data!D24*100),0)," %")) -> 
A52: Mængde efter tilsætning af sukker m.m. | E52: liter | I52: Gæring - 1. ferm.
A53: Vægtfylde efter tilsætning af sukker m.m. | E53: Oeschle | F53: =IF(D53="","",CONCATENATE("Effektivitet: ",ROUND((Data!D25*100),0)," %")) ->  | I53: Kommentar
A54: Mængde efter gæring og omstikning | E54: liter | I54: Tilsat gær type (2 mulige): °C | K54: =IFERROR(VLOOKUP(L54,Gær!$A$3:$G$70,6,FALSE),"") -> 
A55: Vægtfylde efter gæring | E55: Oeschle | K55: =IFERROR(VLOOKUP(L55,Gær!$A$3:$G$70,6,FALSE),"") -> 
A56: Forgæringsgrad | D56: =IF(D53="","",IF(D55="","",ROUND(((D53-D55)/(D53-1000))*100,0))) ->  | E56: % | F56: =IF(Data!I29="","",CONCATENATE("Estimeret: ",ROUND((Data!I29),1)," %")) ->  | I56: Gæringstemperatur °C | K56: 22 | L56: Dato | N56: Gærer i spand #
A57: Flaskedato: | D57: =IF(L76="","",L76) ->  | I57: Gæring i gang | N57: ?
A58: Alkohol indhold | D58: =IF(D53=0,"",IF(D55=0,"",ROUND(((D53-D55)/7.5)+(IF(L74=0,0,(((ROUND(L74/(IF(D54=0,IF(D52=0,D50,D52),D54)),1))-2)/10))),1))) ->  | E58: % Vol. | F58: =IF(D58="",CONCATENATE("Genstande: ",Data!I36),CONCATENATE("Genstande: ",Data!I37)) -> Genstande: | I58: Gæring færdig
I59: Tid | L59: =IF(L58=0,0,(L58-L57)) -> 0 | N59: dage
A60: Tapning - fordelt på flaskestørrelse
A61: Label Farve / Kapsel | I61: Modning - 2. ferm.
A62: Flasker | B62: à | C62: 2 liter | E62: =IF(D62=0,"",D62*2) ->  | F62: =IF(D62=0,"","Liter") ->  | I62: Kommentar
A63: Flasker | B63: à | C63: 1 liter | E63: =IF(D63=0,"",D63) ->  | F63: =IF(D63=0,"","Liter") ->  | I63: Tilsat gær type (2 mulige): °C | K63: =IFERROR(VLOOKUP(L63,Gær!$A$3:$G$70,6,FALSE),"") -> 
A64: Flasker | B64: à | C64: 0,75 liter | E64: =IF(D64=0,"",D64*0.75) ->  | K64: =IFERROR(VLOOKUP(L64,Gær!$A$3:$G$70,6,FALSE),"") -> 
A65: Flasker | B65: à | C65: 0,66 liter | E65: =IF(D65=0,"",D65*0.66) ->  | I65: Modningstemperatur °C | K65: 22 | L65: Dato | N65: Modner i spand #
A66: Flasker | B66: à | C66: 0,5 liter | E66: =IF(D66=0,"",D66*0.5) ->  | I66: Modning fra | N66: ?
A67: Flasker | B67: à | C67: 0,33 liter | E67: =IF(D67=0,"",D67*0.33) ->  | I67: Modning til
A68: Flasker | B68: à | C68: 0,25 liter | E68: =IF(D68=0,"",D68*0.25) ->  | I68: Tid | L68: =IF(L67=0,0,(L67-L66)) -> 0 | N68: dage
A69: Antal flasker i alt | D69: =SUM(D62:D68) -> 0 | E69: =CONCATENATE("= ",SUM(E62:E68)) -> = 0 | F69: =IF(D69=0,"","Liter på flaske") -> 
I70: Karbonering - 3. ferm.
A71: Brygnoter: | B71: Inspiration: | I71: Kommentar
I72: Tilsat gær type:
I73: Anbefalet mængde sukker til karbonering: | L73: =IFERROR((IF(G3="","",ROUND((((VLOOKUP(G3,Typer!C3:V128,17,FALSE)-VLOOKUP(K56,Gær!I2:J29,2,FALSE))*4)*(IF(D54="",IF(D52=0,D50,D52),D54))),0))),"") ->  | N73: =CONCATENATE("gram = ",IF(D52=0,"?",IF(L73="",0,(ROUND(L73/(IF(D54="",IF(D52=0,D50,D52),D54)),1))))," g/ltr.") -> gram = ? g/ltr.
I74: Tilsat sukker | N74: =CONCATENATE("gram = ",IF(D52=0,"?",(ROUND(L74/(IF(D54="",IF(D52=0,D50,D52),D54)),1)))," g/ltr.") -> gram = ? g/ltr.
I75: Gns.CO2 mængde for brygtypen | K75: =IFERROR(IF(G3="","",VLOOKUP(G3,Typer!C3:V128,17,FALSE)),"") ->  | L75: Dato | N75: Karbonerer i
I76: Karbonering fra | N76: Flaske
I77: Karbonering til
I78: Tid | L78: =IF(L77=0,0,(L77-L76)) -> 0 | N78: dage
A80: Vurderinger: | B80: Skumkrone | E80: Duft | I80: Smag | M80: Farve
A81: Ved brygning | B81: -
A82: Ved omstikning | B82: -
A83: Ved flaskning | B83: -
A84: Ved første åbning
A85: Efter nogen tid
A86: Brygget af: | B86: =IF(Data!E3="","",Data!E3) -> Jesper Lyngbye | I86: Godkendt til servering d.:

Sheet INFO
B2: Brew like a Monk - essentials | G2: Temperature steps in Beer Brewing
G3: Temperature | H3: Name | I3: Function | J3: Good for
C4: Malts and Sugars | D4: Limit malts darker than 100 EBC to 7%
D5: Use sugar for 10 - 20% of grist | G5: 35°C | H5: Acid Rest | I5: For undermodified malts; | J5: Bohemian Pilsners
D6: Sucrose adds alcohol and lightens the beer
D7: Caramelized sugars add rumminess and complexity | G7: 45°C | H7: Acid Rest | I7: For better flow during mashing | J7: All beers
C9: Mash | D9: Single infusion mash between 63°C and 65°C or step mash. | G9: 46-53°C | H9: Protein Rest | I9: For clarity – too much degrades head retention | J9: All beers
D10: - Remember protein rest (45 - 60°C) may degrade body and head - see next table ->
G11: 55-58°C | H11: Protein Rest | I11: For head retention | J11: All beers
C12: Boil | D12: Use noble hops
D13: Let bittering hops account for two thirds of hop mass | G13: 60-65°C | H13: Low Temp. saccharification | I13: For high fermentability; gives a dry finish | J13: German Pilsners
D14: Aim for BU:GU ratio of about 3 : 8 (RBR = 0,37 - 0,38)
D15: - a little higher for tripels and lower for strong darks | G15: 66-68°C | H15: High Temp. saccharification | I15: For less fermentability; gives a sweet finish | J15: Oktoberfest
D16: If a drinker can name the spice, you have used too much
G17: 77°C | H17: Mash Out | I17: Stops all enzyme action and allows sparging | J17: All beers
C18: Fermentation | D18: Blending yeast strains adds complexity | I18: to be more efficient.
D19: Start fermenting at low temperatures and let the temperature rise
D20: Allow for longer fermentation and longer cool maturation before bottling. | G20: 80°C ++ | H20: MAX. Limit | I20: Mash out above 80°C is not recommended as | J20: All beers
I21: unwanted substances are washed from the mash.
A24: Herunder kan man f.eks. kopiere inspiration, originale opskrifter eller artikler ind.

Sheet Labels
B1: FLASKE-ETIKETTER
D2: Udfyldes automatisk fra BrewReport til denne Label
D6: =IF(BrewReport!D2<>"",CONCATENATE(BrewReport!D2," - ",BrewReport!G3),IF(BrewReport!G3="","",BrewReport!G3)) ->  | P6: =$D$6 -> 
D9: Brygget: | E9: =IF(BrewReport!M3="","",BrewReport!M3) ->  | G9: Tappet: | H9: =IF(BrewReport!D57="","",BrewReport!D57) ->  | I9: Bryg # | J9: =IF(BrewReport!D3="","",BrewReport!D3) ->  | P9: Brygget: | Q9: =$E$9 ->  | S9: Tappet: | T9: =$H$9 ->  | U9: =$I$9 -> Bryg # | V9: =$J$9 -> 
D11: Malt: | E11: =CONCATENATE(IF(BrewReport!A9="","",BrewReport!A9),IF(BrewReport!A10="","",CONCATENATE(", ",BrewReport!A10)),IF(BrewReport!A11="","",CONCATENATE(", ",BrewReport!A11)),IF(BrewReport!A12="","",CONCATENATE(", ",BrewReport!A12)),IF(BrewReport!A13="","",CONCATENATE(", ",BrewReport!A13)),IF(BrewReport!A14="","",CONCATENATE(", ",BrewReport!A14)),IF(BrewReport!A15="","",CONCATENATE(", ",BrewReport!A15)),IF(BrewReport!A16="","",CONCATENATE(", ",BrewReport!A16)),IF(BrewReport!A17="","",CONCATENATE(", ",BrewReport!A17))) ->  | P11: =$D$11 -> Malt: | Q11: =$E$11 -> 
D13: Humle: | E13: =CONCATENATE(IF(BrewReport!A23="","",BrewReport!A23),IF(BrewReport!A24="","",CONCATENATE(", ",BrewReport!A24)),IF(BrewReport!A25="","",CONCATENATE(", ",BrewReport!A25)),IF(BrewReport!A27="","",CONCATENATE(", ",BrewReport!A27)),IF(BrewReport!A28="","",CONCATENATE(", ",BrewReport!A28)),IF(BrewReport!A29="","",CONCATENATE(", ",BrewReport!A29)),IF(BrewReport!A31="","",CONCATENATE(", ",BrewReport!A31)),IF(BrewReport!A32="","",CONCATENATE(", ",BrewReport!A32)),IF(BrewReport!A33="","",CONCATENATE(", ",BrewReport!A33)),IF(BrewReport!A35="","",CONCATENATE(", ",BrewReport!A35)),IF(BrewReport!A36="","",CONCATENATE(", ",BrewReport!A36)),IF(BrewReport!A37="","",CONCATENATE(", ",BrewReport!A37))) ->  | P13: =$D$13 -> Humle: | Q13: =$E$13 -> 
E14: =CONCATENATE(IF(BrewReport!L54="","",IF(BrewReport!L55="",BrewReport!L54,IF(BrewReport!L55=BrewReport!L54,"",CONCATENATE(BrewReport!L54,", ",CHAR(10))))),BrewReport!L55) ->  | Q14: =$E$14 -> 
D15: Gær: | P15: =$D$15 -> Gær:
D17: Tilsætning: | E17: =CONCATENATE(IF(BrewReport!A40="","",BrewReport!A40),IF(BrewReport!A41="","",CONCATENATE(", ",BrewReport!A41)),IF(BrewReport!A42="","",CONCATENATE(", ",BrewReport!A42)),IF(BrewReport!A43="","",CONCATENATE(", ",BrewReport!A43)),IF(BrewReport!A44="","",CONCATENATE(", ",BrewReport!A44)),IF(OR((BrewReport!A45="Klar Urt"),(BrewReport!A45="")),"",CONCATENATE(", ",BrewReport!A45)),IF(BrewReport!A39="","",CONCATENATE(", ",BrewReport!A39))) ->  | P17: =$D$17 -> Tilsætning: | Q17: =$E$17 -> 
D19: Alc. Vol.: | E19: =IF(BrewReport!$D$58="",IF(Data!I29="","",Data!I29/100),BrewReport!$D$58/100) ->  | G19: EBC: | H19: =BrewReport!$E$6 -> 4 | I19: IBU: | J19: =BrewReport!$L$6 ->  | P19: =$D$19 -> Alc. Vol.: | Q19: =$E$19 ->  | S19: =$G$19 -> EBC: | T19: =$H$19 -> 4 | U19: =$I$19 -> IBU: | V19: =$J$19 -> 
D21: Brygget af: | E21: =IF(BrewReport!B86="","",BrewReport!B86) -> Jesper Lyngbye | G21: =IF(Data!I36="","",CONCATENATE("Indhold: ",Data!E6," liter; svarer til ",IF(Data!I37="",Data!I36,Data!I37),IF(Data!I37>1," genstande"," genstand"))) ->  | P21: =$D$21 -> Brygget af: | Q21: =$E$21 -> Jesper Lyngbye | S21: =$G$21 -> 
D23: =IF(BrewReport!D1="","",BrewReport!D1) -> Wolfhound Brewery | P23: =$D$23 -> Wolfhound Brewery
D29: =$D$6 ->  | P29: =$D$6 -> 
D32: Brygget: | E32: =$E$9 ->  | G32: Tappet: | H32: =$H$9 ->  | I32: =$I$9 -> Bryg # | J32: =$J$9 ->  | P32: Brygget: | Q32: =$E$9 ->  | S32: Tappet: | T32: =$H$9 ->  | U32: =$I$9 -> Bryg # | V32: =$J$9 -> 
D34: =$D$11 -> Malt: | E34: =$E$11 ->  | P34: =$D$11 -> Malt: | Q34: =$E$11 -> 
D36: =$D$13 -> Humle: | E36: =$E$13 ->  | P36: =$D$13 -> Humle: | Q36: =$E$13 -> 
E37: =$E$14 ->  | Q37: =$E$14 -> 
D38: =$D$15 -> Gær: | P38: =$D$15 -> Gær:
D40: =$D$17 -> Tilsætning: | E40: =$E$17 ->  | P40: =$D$17 -> Tilsætning: | Q40: =$E$17 -> 
D42: =$D$19 -> Alc. Vol.: | E42: =$E$19 ->  | G42: =$G$19 -> EBC: | H42: =$H$19 -> 4 | I42: =$I$19 -> IBU: | J42: =$J$19 ->  | P42: =$D$19 -> Alc. Vol.: | Q42: =$E$19 ->  | S42: =$G$19 -> EBC: | T42: =$H$19 -> 4 | U42: =$I$19 -> IBU: | V42: =$J$19 -> 
D44: =$D$21 -> Brygget af: | E44: =$E$21 -> Jesper Lyngbye | G44: =$G$21 ->  | P44: =$D$21 -> Brygget af: | Q44: =$E$21 -> Jesper Lyngbye | S44: =$G$21 -> 
D46: =$D$23 -> Wolfhound Brewery | P46: =$D$23 -> Wolfhound Brewery
D52: =$D$6 ->  | P52: =$D$6 -> 
D55: Brygget: | E55: =$E$9 ->  | G55: Tappet: | H55: =$H$9 ->  | I55: =$I$9 -> Bryg # | J55: =$J$9 ->  | P55: Brygget: | Q55: =$E$9 ->  | S55: Tappet: | T55: =$H$9 ->  | U55: =$I$9 -> Bryg # | V55: =$J$9 -> 
D57: =$D$11 -> Malt: | E57: =$E$11 ->  | P57: =$D$11 -> Malt: | Q57: =$E$11 -> 
D59: =$D$13 -> Humle: | E59: =$E$13 ->  | P59: =$D$13 -> Humle: | Q59: =$E$13 -> 
E60: =$E$14 ->  | Q60: =$E$14 -> 
D61: =$D$15 -> Gær: | P61: =$D$15 -> Gær:
D63: =$D$17 -> Tilsætning: | E63: =$E$17 ->  | P63: =$D$17 -> Tilsætning: | Q63: =$E$17 -> 
D65: =$D$19 -> Alc. Vol.: | E65: =$E$19 ->  | G65: =$G$19 -> EBC: | H65: =$H$19 -> 4 | I65: =$I$19 -> IBU: | J65: =$J$19 ->  | P65: =$D$19 -> Alc. Vol.: | Q65: =$E$19 ->  | S65: =$G$19 -> EBC: | T65: =$H$19 -> 4 | U65: =$I$19 -> IBU: | V65: =$J$19 -> 
D67: =$D$21 -> Brygget af: | E67: =$E$21 -> Jesper Lyngbye | G67: =$G$21 ->  | P67: =$D$21 -> Brygget af: | Q67: =$E$21 -> Jesper Lyngbye | S67: =$G$21 -> 
D69: =$D$23 -> Wolfhound Brewery | P69: =$D$23 -> Wolfhound Brewery
D75: =$D$6 ->  | P75: =$D$6 -> 
D78: Brygget: | E78: =$E$9 ->  | G78: Tappet: | H78: =$H$9 ->  | I78: =$I$9 -> Bryg # | J78: =$J$9 ->  | P78: Brygget: | Q78: =$E$9 ->  | S78: Tappet: | T78: =$H$9 ->  | U78: =$I$9 -> Bryg # | V78: =$J$9 -> 
D80: =$D$11 -> Malt: | E80: =$E$11 ->  | P80: =$D$11 -> Malt: | Q80: =$E$11 -> 
D82: =$D$13 -> Humle: | E82: =$E$13 ->  | P82: =$D$13 -> Humle: | Q82: =$E$13 -> 
E83: =$E$14 ->  | Q83: =$E$14 -> 
D84: =$D$15 -> Gær: | P84: =$D$15 -> Gær:
D86: =$D$17 -> Tilsætning: | E86: =$E$17 ->  | P86: =$D$17 -> Tilsætning: | Q86: =$E$17 -> 
D88: =$D$19 -> Alc. Vol.: | E88: =$E$19 ->  | G88: =$G$19 -> EBC: | H88: =$H$19 -> 4 | I88: =$I$19 -> IBU: | J88: =$J$19 ->  | P88: =$D$19 -> Alc. Vol.: | Q88: =$E$19 ->  | S88: =$G$19 -> EBC: | T88: =$H$19 -> 4 | U88: =$I$19 -> IBU: | V88: =$J$19 -> 
D90: =$D$21 -> Brygget af: | E90: =$E$21 -> Jesper Lyngbye | G90: =$G$21 ->  | P90: =$D$21 -> Brygget af: | Q90: =$E$21 -> Jesper Lyngbye | S90: =$G$21 -> 
D92: =$D$23 -> Wolfhound Brewery | P92: =$D$23 -> Wolfhound Brewery

Sheet Data
A1: =IF(BrewReport!M10>0,BrewReport!M10,"") ->  | B1: =IF(BrewReport!L10>0,BrewReport!L10,"") ->  | D1: STAMDATA | H1: Version: | I1: 6.18 | L1: Breweries
A2: =IF(BrewReport!M12>0,BrewReport!M12,"") ->  | B2: =IF(BrewReport!L12>0,BrewReport!L12,"") ->  | D2: Bryggeri | E2: Wolfhound Brewery | L2: eyeT Brewery | N2: André
A3: =IF(BrewReport!M13>0,BrewReport!M13,"") ->  | B3: =IF(BrewReport!L13>0,BrewReport!L13,"") ->  | D3: Brygmester | E3: =IFERROR(VLOOKUP(E2,L2:N7,3,FALSE),"") -> Jesper Lyngbye | L3: Liquid Temptations | N3: Stefan
A4: =IF(BrewReport!M14>0,BrewReport!M14,"") ->  | B4: =IF(BrewReport!L14>0,BrewReport!L14,"") ->  | D4: Mæskeeffektivitet | E4: 0.7 | F4: Anvendes til at estimere Original Gravity | L4: Liquid Temptations & EyeT Brewery | N4: Stefan & André
A5: =IF(BrewReport!M15>0,BrewReport!M15,"") ->  | B5: =IF(BrewReport!L15>0,BrewReport!L15,"") ->  | D5: Urtmængde i liter | E5: 25 | F5: Anvendes til at beregne Effektivitet og Original Gravity | L5: Wolfhound Brewery | N5: Jesper Lyngbye
A6: =IF(BrewReport!M16>0,BrewReport!M16,"") -> 15 | B6: =IF(BrewReport!L16>0,BrewReport!L16,"") -> 72 | D6: Flaskestørrelse i liter | E6: 0.5 | F6: Anvendes til at beregne og vise antal genstande | L6: Hulebækkensbryghus | N6: Pierre Lindberg
A7: =IF(BrewReport!M17>0,BrewReport!M17,"") -> 10 | B7: =IF(BrewReport!L17>0,BrewReport!L17,"") -> 78 | D7: Opvarmningstid af urt (min/°C) | E7: 1 | F7: Anvendes til at beregne bryggetider
A8: =IF(BrewReport!M18>0,BrewReport!M18,"") ->  | B8: =IF(BrewReport!L18>0,BrewReport!L18,"") ->  | D8: Beregninger | E8: Malt | F8: % | G8: EBC | H8: Ekstraktudbytte | I8: OG
A9: =IF(BrewReport!M19>0,BrewReport!M19,"") -> 30 | B9: =IF(BrewReport!L19>0,BrewReport!L19,"") -> 78 | E9: =IF(BrewReport!A9="","",BrewReport!A9) ->  | F9: =IF(E9="","",ROUND(((BrewReport!D9/BrewReport!$D$19)*100),1)) ->  | G9: =IF(E9="","",IF(BrewReport!D9="","",ROUND((VLOOKUP(E9,Malt!$A$3:$D$85,3,)*(Data!F9/100)),1))) ->  | H9: =IF(E9="","",(VLOOKUP(E9,Malt!$A$2:$D$85,4,)*F9/100)) ->  | I9: |
A10: =IF(BrewReport!L22>0,BrewReport!L22,"") -> 90 | B10: =IF(BrewReport!L22>0,100,"") -> 100 | E10: =IF(BrewReport!A10="","",BrewReport!A10) ->  | F10: =IF(E10="","",ROUND(((BrewReport!D10/BrewReport!$D$19)*100),1)) ->  | G10: =IF(E10="","",IF(BrewReport!D10="","",ROUND((VLOOKUP(E10,Malt!$A$3:$D$85,3,)*(Data!F10/100)),1))) ->  | H10: =IF(E10="","",(VLOOKUP(E10,Malt!$A$2:$D$85,4,)*F10/100)) ->  | I10: |
A11: =IFERROR(INDEX($A$1:$A$10,SMALL(IF(ISNUMBER($A$1:$A$10),ROW($A$1:$A$10)),ROW(A1))),"") -> 15 | B11: =IFERROR(INDEX($B$1:$B$10,SMALL(IF(ISNUMBER($B$1:$B$10),ROW($B$1:$B$10)),ROW(B1))),"") -> 72 | C11: =IF(A11="","",A11) -> 15 | E11: =IF(BrewReport!A11="","",BrewReport!A11) ->  | F11: =IF(E11="","",ROUND(((BrewReport!D11/BrewReport!$D$19)*100),1)) ->  | G11: =IF(E11="","",IF(BrewReport!D11="","",ROUND((VLOOKUP(E11,Malt!$A$3:$D$85,3,)*(Data!F11/100)),1))) ->  | H11: =IF(E11="","",(VLOOKUP(E11,Malt!$A$2:$D$85,4,)*F11/100)) ->  | I11: |
A12: =IFERROR(INDEX($A$1:$A$10,SMALL(IF(ISNUMBER($A$1:$A$10),ROW($A$1:$A$10)),ROW(A2))),"") -> 10 | B12: =IFERROR(INDEX($B$1:$B$10,SMALL(IF(ISNUMBER($B$1:$B$10),ROW($B$1:$B$10)),ROW(B2))),"") -> 78 | C12: =IF(A12="","",A12+C11) -> 25 | E12: =IF(BrewReport!A12="","",BrewReport!A12) ->  | F12: =IF(E12="","",ROUND(((BrewReport!D12/BrewReport!$D$19)*100),1)) ->  | G12: =IF(E12="","",IF(BrewReport!D12="","",ROUND((VLOOKUP(E12,Malt!$A$3:$D$85,3,)*(Data!F12/100)),1))) ->  | H12: =IF(E12="","",(VLOOKUP(E12,Malt!$A$2:$D$85,4,)*F12/100)) ->  | I12: |
A13: =IFERROR(INDEX($A$1:$A$10,SMALL(IF(ISNUMBER($A$1:$A$10),ROW($A$1:$A$10)),ROW(A3))),"") -> 30 | B13: =IFERROR(INDEX($B$1:$B$10,SMALL(IF(ISNUMBER($B$1:$B$10),ROW($B$1:$B$10)),ROW(B3))),"") -> 78 | C13: =IF(A13="","",A13+C12) -> 55 | E13: =IF(BrewReport!A13="","",BrewReport!A13) ->  | F13: =IF(E13="","",ROUND(((BrewReport!D13/BrewReport!$D$19)*100),1)) ->  | G13: =IF(E13="","",IF(BrewReport!D13="","",ROUND((VLOOKUP(E13,Malt!$A$3:$D$85,3,)*(Data!F13/100)),1))) ->  | H13: =IF(E13="","",(VLOOKUP(E13,Malt!$A$2:$D$85,4,)*F13/100)) ->  | I13: |
A14: =IFERROR(INDEX($A$1:$A$10,SMALL(IF(ISNUMBER($A$1:$A$10),ROW($A$1:$A$10)),ROW(A4))),"") -> 90 | B14: =IFERROR(INDEX($B$1:$B$10,SMALL(IF(ISNUMBER($B$1:$B$10),ROW($B$1:$B$10)),ROW(B4))),"") -> 100 | C14: 145 | D14: Estimeret effektivitet | E14: =IF(BrewReport!A14="","",BrewReport!A14) ->  | F14: =IF(E14="","",ROUND(((BrewReport!D14/BrewReport!$D$19)*100),1)) ->  | G14: =IF(E14="","",IF(BrewReport!D14="","",ROUND((VLOOKUP(E14,Malt!$A$3:$D$85,3,)*(Data!F14/100)),1))) ->  | H14: =IF(E14="","",(VLOOKUP(E14,Malt!$A$2:$D$85,4,)*F14/100)) ->  | I14: |
A15: =IFERROR(INDEX($A$1:$A$10,SMALL(IF(ISNUMBER($A$1:$A$10),ROW($A$1:$A$10)),ROW(A5))),"") ->  | B15: =IFERROR(INDEX($B$1:$B$10,SMALL(IF(ISNUMBER($B$1:$B$10),ROW($B$1:$B$10)),ROW(B5))),"") ->  | D15: =IF(BrewReport!D19=0,"",((I26-1000)*E5)/(BrewReport!D19*H26)) -> 0.5952380952 | E15: =IF(BrewReport!A15="","",BrewReport!A15) ->  | F15: =IF(E15="","",ROUND(((BrewReport!D15/BrewReport!$D$19)*100),1)) ->  | G15: =IF(E15="","",IF(BrewReport!D15="","",ROUND((VLOOKUP(E15,Malt!$A$3:$D$85,3,)*(Data!F15/100)),1))) ->  | H15: =IF(E15="","",(VLOOKUP(E15,Malt!$A$2:$D$85,4,)*F15/100)) ->  | I15: |
A16: =IFERROR(INDEX($A$1:$A$10,SMALL(IF(ISNUMBER($A$1:$A$10),ROW($A$1:$A$10)),ROW(A6))),"") ->  | B16: =IFERROR(INDEX($B$1:$B$10,SMALL(IF(ISNUMBER($B$1:$B$10),ROW($B$1:$B$10)),ROW(B6))),"") ->  | E16: =IF(BrewReport!A16="","",BrewReport!A16) ->  | F16: =IF(E16="","",ROUND(((BrewReport!D16/BrewReport!$D$19)*100),1)) ->  | G16: =IF(E16="","",IF(BrewReport!D16="","",ROUND((VLOOKUP(E16,Malt!$A$3:$D$85,3,)*(Data!F16/100)),1))) ->  | H16: =IF(E16="","",(VLOOKUP(E16,Malt!$A$2:$D$85,4,)*F16/100)) ->  | I16: |
A17: =IFERROR(INDEX($A$1:$A$10,SMALL(IF(ISNUMBER($A$1:$A$10),ROW($A$1:$A$10)),ROW(A7))),"") ->  | B17: =IFERROR(INDEX($B$1:$B$10,SMALL(IF(ISNUMBER($B$1:$B$10),ROW($B$1:$B$10)),ROW(B7))),"") ->  | E17: =IF(BrewReport!A17="","",BrewReport!A17) ->  | F17: =IF(E17="","",ROUND(((BrewReport!D17/BrewReport!$D$19)*100),1)) ->  | G17: =IF(E17="","",IF(BrewReport!D17="","",ROUND((VLOOKUP(E17,Malt!$A$3:$D$85,3,)*(Data!F17/100)),1))) ->  | H17: =IF(E17="","",(VLOOKUP(E17,Malt!$A$2:$D$85,4,)*F17/100)) ->  | I17: |
A18: =IFERROR(INDEX($A$1:$A$10,SMALL(IF(ISNUMBER($A$1:$A$10),ROW($A$1:$A$10)),ROW(A8))),"") ->  | B18: =IFERROR(INDEX($B$1:$B$10,SMALL(IF(ISNUMBER($B$1:$B$10),ROW($B$1:$B$10)),ROW(B8))),"") ->  | E18: =IF(BrewReport!A18="","",BrewReport!A18) -> Torrefied Flaked Oat | F18: =IF(E18="","",ROUND(((BrewReport!D18/BrewReport!$D$19)*100),1)) -> 100 | G18: =IF(E18="","",IF(BrewReport!D18="","",ROUND((VLOOKUP(E18,Malt!$A$3:$D$85,3,)*(Data!F18/100)),1))) -> 4 | H18: =IF(E18="","",(VLOOKUP(E18,Malt!$A$2:$D$85,4,)*F18/100)) -> 280 | I18: |
A19: =IFERROR(INDEX($A$1:$A$10,SMALL(IF(ISNUMBER($A$1:$A$10),ROW($A$1:$A$10)),ROW(A9))),"") ->  | B19: =IFERROR(INDEX($B$1:$B$10,SMALL(IF(ISNUMBER($B$1:$B$10),ROW($B$1:$B$10)),ROW(B9))),"") ->  | E19: Maltudbytte i alt | H19: =ROUND(SUM(H9:H18),1) -> 280 | I19: | | K19: EBC | L19: Example | O19: Beer color | P19: SRM
A20: =IFERROR(INDEX($A$1:$A$10,SMALL(IF(ISNUMBER($A$1:$A$10),ROW($A$1:$A$10)),ROW(A10))),"") ->  | B20: =IFERROR(INDEX($B$1:$B$10,SMALL(IF(ISNUMBER($B$1:$B$10),ROW($B$1:$B$10)),ROW(B10))),"") ->  | E20: =IF(OR((BrewReport!A40="Klar Urt"),(BrewReport!A40="Appelsinskal"),(BrewReport!A40="Koriander"),(BrewReport!A40="")),"",BrewReport!A40) ->  | F20: =IF(E20="","",ROUND((((BrewReport!D40/1000)/BrewReport!$D$19)*100),1)) ->  | G20: =IF(E20="","",IF(BrewReport!D40="","",ROUND((VLOOKUP(E20,Tilsætninger!$A$2:$D$40,3,)*(Data!F20/100)),1))) ->  | H20: =IF(E20="","",(VLOOKUP(E20,Tilsætninger!$A$2:$D$40,4,)*F20/100)) ->  | I20: | | K20: 4 | L20: Pale lager, Witbier, Pilsener, Berliner Weisse | P20: 2
A21: 0 | B21: =IF(A21<=$C$11,$B$11,IF(A21<=$C$12,$B$12,IF(A21<=$C$13,$B$13,IF(A21<=$C$14,$B$14,IF(A21<=$C$15,$B$15,IF(A21<=$C$16,$B$16,IF(A21<=$C$17,$B$17,IF(A21<=$C$18,$B$18,IF(A21<=$C$19,$B$19,IF(A21<=$C$20,$B$20,"")))))))))) -> 72 | E21: =IF(OR((BrewReport!A41="Klar Urt"),(BrewReport!A41="Appelsinskal"),(BrewReport!A41="Koriander"),(BrewReport!A41="")),"",BrewReport!A41) ->  | F21: =IF(E21="","",ROUND((((BrewReport!D41/1000)/BrewReport!$D$19)*100),1)) ->  | G21: =IF(E21="","",IF(BrewReport!D41="","",ROUND((VLOOKUP(E21,Tilsætninger!$A$2:$D$40,3,)*(Data!F21/100)),1))) ->  | H21: =IF(E21="","",(VLOOKUP(E21,Tilsætninger!$A$2:$D$40,4,)*F21/100)) ->  | I21: | | K21: 6 | L21: Maibock, Blonde Ale | P21: 3
A22: 5 | B22: =IF(A22<=$C$11,$B$11,IF(A22<=$C$12,$B$12,IF(A22<=$C$13,$B$13,IF(A22<=$C$14,$B$14,IF(A22<=$C$15,$B$15,IF(A22<=$C$16,$B$16,IF(A22<=$C$17,$B$17,IF(A22<=$C$18,$B$18,IF(A22<=$C$19,$B$19,IF(A22<=$C$20,$B$20,"")))))))))) -> 72 | E22: =IF(OR((BrewReport!A42="Klar Urt"),(BrewReport!A42="Appelsinskal"),(BrewReport!A42="Koriander"),(BrewReport!A42="")),"",BrewReport!A42) ->  | F22: =IF(E22="","",ROUND((((BrewReport!D42/1000)/BrewReport!$D$19)*100),1)) ->  | G22: =IF(E22="","",IF(BrewReport!D42="","",ROUND((VLOOKUP(E22,Tilsætninger!$A$2:$D$40,3,)*(Data!F22/100)),1))) ->  | H22: =IF(E22="","",(VLOOKUP(E22,Tilsætninger!$A$2:$D$40,4,)*F22/100)) ->  | I22: | | K22: 8 | L22: Weissbier | P22: 4
A23: 10 | B23: 72 | D23: Faktisk effektivitet | E23: =IF(OR((BrewReport!A43="Klar Urt"),(BrewReport!A43="Appelsinskal"),(BrewReport!A43="Koriander"),(BrewReport!A43="")),"",BrewReport!A43) ->  | F23: =IF(E23="","",ROUND((((BrewReport!D43/1000)/BrewReport!$D$19)*100),1)) ->  | G23: =IF(E23="","",IF(BrewReport!D43="","",ROUND((VLOOKUP(E23,Tilsætninger!$A$2:$D$40,3,)*(Data!F23/100)),1))) ->  | H23: =IF(E23="","",(VLOOKUP(E23,Tilsætninger!$A$2:$D$40,4,)*F23/100)) ->  | I23: | | K23: 12 | L23: American Pale Ale, India Pale Ale | P23: 6
A24: 15 | B24: 72 | D24: =IF(BrewReport!$D$19=0,"",((BrewReport!$D$51-1000)*BrewReport!$D$50)/(BrewReport!$D$19*$H$19)) -> 0 | E24: =IF(OR((BrewReport!A44="Klar Urt"),(BrewReport!A44="Appelsinskal"),(BrewReport!A44="Koriander"),(BrewReport!A44="")),"",BrewReport!A44) ->  | F24: =IF(E24="","",ROUND((((BrewReport!D44/1000)/BrewReport!$D$19)*100),1)) ->  | G24: =IF(E24="","",IF(BrewReport!D44="","",ROUND((VLOOKUP(E24,Tilsætninger!$A$2:$D$40,3,)*(Data!F24/100)),1))) ->  | H24: =IF(E24="","",(VLOOKUP(E24,Tilsætninger!$A$2:$D$40,4,)*F24/100)) ->  | I24: | | K24: 16 | L24: Weissbier, Saison | P24: 8
A25: 20 | B25: 78 | D25: =IF(BrewReport!$D$19=0,"",((BrewReport!$D$53-1000)*BrewReport!$D$52)/(BrewReport!$D$19*$H$26)) -> 0 | E25: =IF(OR((BrewReport!A45="Klar Urt"),(BrewReport!A45="Appelsinskal"),(BrewReport!A45="Koriander"),(BrewReport!A45="")),"",BrewReport!A45) ->  | F25: =IF(E25="","",ROUND((((BrewReport!D45/1000)/BrewReport!$D$19)*100),1)) ->  | G25: =IF(E25="","",IF(BrewReport!D45="","",ROUND((VLOOKUP(E25,Tilsætninger!$A$2:$D$40,3,)*(Data!F25/100)),1))) ->  | H25: =IF(E25="","",(VLOOKUP(E25,Tilsætninger!$A$2:$D$40,4,)*F25/100)) ->  | I25: | | K25: 20 | L25: English Bitter, ESB | P25: 10
A26: 25 | B26: 78 | F26: =ROUND(SUM(F9:F18),0) -> 100 | G26: =ROUND(SUM(G9:G25),1) -> 4 | H26: =ROUND(SUM(H19:H25),1) -> 280 | I26: =ROUND(((BrewReport!D19*H26*(E4))/E5),0)+1000 -> 1002 | K26: 26 | L26: Biere de Garde, Double IPA | P26: 13
A27: 30 | B27: 78 | D27: Gær navn og nummer | F27: Alc.Tol. | G27: Att. % | H27: FG: | I27: ALC.% | K27: 33 | L27: Dark lager, Vienna lager, Marzen, Amber Ale | P27: 17
A28: 35 | B28: 78 | G28: FG beregnet af højeste Att.% | K28: 39 | L28: Brown Ale, Bock, Dunkel, Dunkelweizen | P28: 20
A29: 40 | B29: 78 | D29: =IF(BrewReport!L54="","",BrewReport!L54) ->  | F29: =IF(D29="","",(VLOOKUP(D29,Gær!A2:G76,7,FALSE))) ->  | G29: =IF(D29="","",(VLOOKUP(D29,Gær!A2:G76,5,FALSE))) ->  | H29: =IF(SUM(G29:G33)=0,"",ROUND((I26-((I26-1000)*(MAX(G29:G32)/100))),0)) ->  | I29: =IF(H29="","",((I26-H29)/7.5)) ->  | K29: 47 | L29: Irish Dry Stout, Doppelbock, Porter | P29: 24
A30: 45 | B30: 78 | D30: =IF(BrewReport!L55="","",BrewReport!L55) ->  | F30: =IF(D30="","",(VLOOKUP(D30,Gær!A2:G76,7,FALSE))) ->  | G30: =IF(D30="","",(VLOOKUP(D30,Gær!A2:G76,5,FALSE))) ->  | K30: 57 | L30: Stout | P30: 29
A31: 50 | B31: 78 | D31: =IF(BrewReport!L63="","",BrewReport!L63) ->  | F31: =IF(D31="","",(VLOOKUP(D31,Gær!A2:G76,7,FALSE))) ->  | G31: =IF(D31="","",(VLOOKUP(D31,Gær!A2:G76,5,FALSE))) ->  | K31: 69 | L31: Foreign Stout, Baltic Porter | P31: 35
A32: 55 | B32: 78 | D32: =IF(BrewReport!L64="","",BrewReport!L64) ->  | F32: =IF(D32="","",(VLOOKUP(D32,Gær!A2:G76,7,FALSE))) ->  | G32: =IF(D32="","",(VLOOKUP(D32,Gær!A2:G76,5,FALSE))) ->  | K32: 79 | L32: Imperial Stout | P32: 40+
A33: 60 | B33: 100
A34: 65 | B34: 100 | H34: Flaskeindhold | K34: EBC to RGB | P34: SRM to RGB
A35: 70 | B35: 100 | H35: Svarer til i genstande: | L35: =IF(G26=0,"",VLOOKUP(G26, K37:N336,2,TRUE)) -> 250 | M35: =IF(G26=0,"",VLOOKUP(G26, K37:N336,3,TRUE)) -> 250 | N35: =IF(G26=0,"",VLOOKUP(G26, K37:N336,4,TRUE)) -> 105
A36: 75 | B36: 100 | H36: Estimat | I36: =IF(I29="","",ROUND((((E6*1000)*0.79*(I29/100))/12),1)) -> 
A37: 80 | B37: 100 | H37: Brygget | I37: =IF(BrewReport!D58="","",ROUND((((E6*1000)*0.79*(BrewReport!D58/100))/12),1)) ->  | K37: 0.2 | L37: 250 | M37: 250 | N37: 210 | P37: 0,1 250 250 210
A38: 85 | B38: 100 | K38: 0.4 | L38: 250 | M38: 250 | N38: 204 | P38: 0,2 250 250 204
A39: 90 | B39: 100 | K39: 0.6 | L39: 250 | M39: 250 | N39: 199 | P39: 0,3 250 250 199
A40: 95 | B40: 100 | K40: 0.8 | L40: 250 | M40: 250 | N40: 193 | P40: 0,4 250 250 193
A41: 100 | B41: 100 | E41: Humle | F41: Gram | G41: IBU Avg. | H41: Udnyttelsesgrad | I41: IBU i urten | K41: 1 | L41: 250 | M41: 250 | N41: 188 | P41: 0,5 250 250 188
A42: 105 | B42: 100 | D42: Bitterhumle | E42: =IF(BrewReport!A23="","",BrewReport!A23) ->  | F42: =IF(BrewReport!D23="","",BrewReport!D23) ->  | G42: =IF(E42="","",IF(BrewReport!B23="","",IF(BrewReport!B23="Pellet",VLOOKUP(E42,Humle!$A$3:$K$73,3,FALSE),IF(BrewReport!B23="Blomst",VLOOKUP(E42,Humle!$A$3:$K$73,4,FALSE))))) ->  | H42: =IF(E42="","",VLOOKUP(BrewReport!$L23,Humle!$O$6:$Z$30,((ROUNDDOWN(($I$26/10),0)*10)-1000)/10-1,TRUE)*100) ->  | I42: =IF(E42="","",IF(BrewReport!L23="","",(F42*G42*H42)/($E$5*10))) ->  | K42: 1.2 | L42: 250 | M42: 250 | N42: 182 | P42: 0,6 250 250 182
A43: 110 | B43: 100 | E43: =IF(BrewReport!A24="","",BrewReport!A24) ->  | F43: =IF(BrewReport!D24="","",BrewReport!D24) ->  | G43: =IF(E43="","",IF(BrewReport!B24="","",IF(BrewReport!B24="Pellet",VLOOKUP(E43,Humle!$A$3:$K$73,3,FALSE),IF(BrewReport!B24="Blomst",VLOOKUP(E43,Humle!$A$3:$K$73,4,FALSE))))) ->  | H43: =IF(E43="","",VLOOKUP(BrewReport!$L24,Humle!$O$6:$Z$30,((ROUNDDOWN(($I$26/10),0)*10)-1000)/10-1,TRUE)*100) ->  | I43: =IF(E43="","",IF(BrewReport!L24="","",(F43*G43*H43)/($E$5*10))) ->  | K43: 1.4 | L43: 250 | M43: 250 | N43: 177 | P43: 0,7 250 250 177
A44: 115 | B44: 100 | E44: =IF(BrewReport!A25="","",BrewReport!A25) ->  | F44: =IF(BrewReport!D25="","",BrewReport!D25) ->  | G44: =IF(E44="","",IF(BrewReport!B25="","",IF(BrewReport!B25="Pellet",VLOOKUP(E44,Humle!$A$3:$K$73,3,FALSE),IF(BrewReport!B25="Blomst",VLOOKUP(E44,Humle!$A$3:$K$73,4,FALSE))))) ->  | H44: =IF(E44="","",VLOOKUP(BrewReport!$L25,Humle!$O$6:$Z$30,((ROUNDDOWN(($I$26/10),0)*10)-1000)/10-1,TRUE)*100) ->  | I44: =IF(E44="","",IF(BrewReport!L25="","",(F44*G44*H44)/($E$5*10))) ->  | K44: 1.6 | L44: 250 | M44: 250 | N44: 171 | P44: 0,8 250 250 171
A45: 120 | B45: 100 | I45: - | K45: 1.8 | L45: 250 | M45: 250 | N45: 166 | P45: 0,9 250 250 166
A46: 125 | B46: 100 | D46: Smagshumle | E46: =IF(BrewReport!A27="","",BrewReport!A27) ->  | F46: =IF(BrewReport!D27="","",BrewReport!D27) ->  | G46: =IF(E46="","",IF(BrewReport!B27="","",IF(BrewReport!B27="Pellet",VLOOKUP(E46,Humle!$A$3:$K$73,3,FALSE),IF(BrewReport!B27="Blomst",VLOOKUP(E46,Humle!$A$3:$K$73,4,FALSE))))) ->  | H46: =IF(E46="","",VLOOKUP(BrewReport!$L27,Humle!$O$6:$Z$30,((ROUNDDOWN(($I$26/10),0)*10)-1000)/10-1,TRUE)*100) ->  | I46: =IF(E46="","",IF(BrewReport!L27="","",(F46*G46*H46)/($E$5*10))) ->  | K46: 2 | L46: 250 | M46: 250 | N46: 160 | P46: 1 250 250 160
A47: 130 | B47: 100 | E47: =IF(BrewReport!A28="","",BrewReport!A28) ->  | F47: =IF(BrewReport!D28="","",BrewReport!D28) ->  | G47: =IF(E47="","",IF(BrewReport!B28="","",IF(BrewReport!B28="Pellet",VLOOKUP(E47,Humle!$A$3:$K$73,3,FALSE),IF(BrewReport!B28="Blomst",VLOOKUP(E47,Humle!$A$3:$K$73,4,FALSE))))) ->  | H47: =IF(E47="","",VLOOKUP(BrewReport!$L28,Humle!$O$6:$Z$30,((ROUNDDOWN(($I$26/10),0)*10)-1000)/10-1,TRUE)*100) ->  | I47: =IF(E47="","",IF(BrewReport!L28="","",(F47*G47*H47)/($E$5*10))) ->  | K47: 2.2 | L47: 250 | M47: 250 | N47: 155 | P47: 1,1 250 250 155
A48: 135 | B48: 100 | E48: =IF(BrewReport!A29="","",BrewReport!A29) ->  | F48: =IF(BrewReport!D29="","",BrewReport!D29) ->  | G48: =IF(E48="","",IF(BrewReport!B29="","",IF(BrewReport!B29="Pellet",VLOOKUP(E48,Humle!$A$3:$K$73,3,FALSE),IF(BrewReport!B29="Blomst",VLOOKUP(E48,Humle!$A$3:$K$73,4,FALSE))))) ->  | H48: =IF(E48="","",VLOOKUP(BrewReport!$L29,Humle!$O$6:$Z$30,((ROUNDDOWN(($I$26/10),0)*10)-1000)/10-1,TRUE)*100) ->  | I48: =IF(E48="","",IF(BrewReport!L29="","",(F48*G48*H48)/($E$5*10))) ->  | K48: 2.4 | L48: 250 | M48: 250 | N48: 149 | P48: 1,2 250 250 149
A49: 140 | B49: 100 | I49: - | K49: 2.6 | L49: 250 | M49: 250 | N49: 144 | P49: 1,3 250 250 144
A50: 145 | B50: 100 | D50: Aromahumle | E50: =IF(BrewReport!A31="","",BrewReport!A31) ->  | F50: =IF(BrewReport!D31="","",BrewReport!D31) ->  | G50: =IF(E50="","",IF(BrewReport!B31="","",IF(BrewReport!B31="Pellet",VLOOKUP(E50,Humle!$A$3:$K$73,3,FALSE),IF(BrewReport!B31="Blomst",VLOOKUP(E50,Humle!$A$3:$K$73,4,FALSE))))) ->  | H50: =IF(E50="","",VLOOKUP(BrewReport!$L31,Humle!$O$6:$Z$30,((ROUNDDOWN(($I$26/10),0)*10)-1000)/10-1,TRUE)*100) ->  | I50: =IF(E50="","",IF(BrewReport!L31="","",(F50*G50*H50)/($E$5*10))) ->  | K50: 2.8 | L50: 250 | M50: 250 | N50: 138 | P50: 1,4 250 250 138
A51: 150 | E51: =IF(BrewReport!A32="","",BrewReport!A32) ->  | F51: =IF(BrewReport!D32="","",BrewReport!D32) ->  | G51: =IF(E51="","",IF(BrewReport!B32="","",IF(BrewReport!B32="Pellet",VLOOKUP(E51,Humle!$A$3:$K$73,3,FALSE),IF(BrewReport!B32="Blomst",VLOOKUP(E51,Humle!$A$3:$K$73,4,FALSE))))) ->  | H51: =IF(E51="","",VLOOKUP(BrewReport!$L32,Humle!$O$6:$Z$30,((ROUNDDOWN(($I$26/10),0)*10)-1000)/10-1,TRUE)*100) ->  | I51: =IF(E51="","",IF(BrewReport!L32="","",(F51*G51*H51)/($E$5*10))) ->  | K51: 3 | L51: 250 | M51: 250 | N51: 133 | P51: 1,5 250 250 133
A52: 155 | E52: =IF(BrewReport!A33="","",BrewReport!A33) ->  | F52: =IF(BrewReport!D33="","",BrewReport!D33) ->  | G52: =IF(E52="","",IF(BrewReport!B33="","",IF(BrewReport!B33="Pellet",VLOOKUP(E52,Humle!$A$3:$K$73,3,FALSE),IF(BrewReport!B33="Blomst",VLOOKUP(E52,Humle!$A$3:$K$73,4,FALSE))))) ->  | H52: =IF(E52="","",VLOOKUP(BrewReport!$L33,Humle!$O$6:$Z$30,((ROUNDDOWN(($I$26/10),0)*10)-1000)/10-1,TRUE)*100) ->  | I52: =IF(E52="","",IF(BrewReport!L33="","",(F52*G52*H52)/($E$5*10))) ->  | K52: 3.2 | L52: 250 | M52: 250 | N52: 127 | P52: 1,6 250 250 127
A53: 160 | I53: - | K53: 3.3 | L53: 250 | M53: 250 | N53: 122 | P53: 1,7 250 250 122
A54: 165 | D54: Tørhumle | E54: =IF(BrewReport!A35="","",BrewReport!A35) ->  | F54: =IF(BrewReport!D35="","",BrewReport!D35) ->  | G54: =IF(E54="","",IF(BrewReport!B35="","",IF(BrewReport!B35="Pellet",VLOOKUP(E54,Humle!$A$3:$K$73,3,FALSE),IF(BrewReport!B35="Blomst",VLOOKUP(E54,Humle!$A$3:$K$73,4,FALSE))))) ->  | H54: =IF(E54="","",VLOOKUP(BrewReport!$L35,Humle!$O$6:$Z$30,((ROUNDDOWN(($I$26/10),0)*10)-1000)/10-1,TRUE)*100) ->  | I54: =IF(E54="","",IF(BrewReport!L35="","",(F54*G54*H54)/($E$5*10))) ->  | K54: 3.5 | L54: 250 | M54: 250 | N54: 116 | P54: 1,8 250 250 116
A55: 170 | E55: =IF(BrewReport!A36="","",BrewReport!A36) ->  | F55: =IF(BrewReport!D36="","",BrewReport!D36) ->  | G55: =IF(E55="","",IF(BrewReport!B36="","",IF(BrewReport!B36="Pellet",VLOOKUP(E55,Humle!$A$3:$K$73,3,FALSE),IF(BrewReport!B36="Blomst",VLOOKUP(E55,Humle!$A$3:$K$73,4,FALSE))))) ->  | H55: =IF(E55="","",VLOOKUP(BrewReport!$L36,Humle!$O$6:$Z$30,((ROUNDDOWN(($I$26/10),0)*10)-1000)/10-1,TRUE)*100) ->  | I55: =IF(E55="","",IF(BrewReport!L36="","",(F55*G55*H55)/($E$5*10))) ->  | K55: 3.7 | L55: 250 | M55: 250 | N55: 111 | P55: 1,9 250 250 111
A56: 175 | E56: =IF(BrewReport!A37="","",BrewReport!A37) ->  | F56: =IF(BrewReport!D37="","",BrewReport!D37) ->  | G56: =IF(E56="","",IF(BrewReport!B37="","",IF(BrewReport!B37="Pellet",VLOOKUP(E56,Humle!$A$3:$K$73,3,FALSE),IF(BrewReport!B37="Blomst",VLOOKUP(E56,Humle!$A$3:$K$73,4,FALSE))))) ->  | H56: =IF(E56="","",VLOOKUP(BrewReport!$L37,Humle!$O$6:$Z$30,((ROUNDDOWN(($I$26/10),0)*10)-1000)/10-1,TRUE)*100) ->  | I56: =IF(E56="","",IF(BrewReport!L37="","",(F56*G56*H56)/($E$5*10))) ->  | K56: 3.9 | L56: 250 | M56: 250 | N56: 105 | P56: 2 250 250 105
A57: 180 | I57: - | K57: 4.1 | L57: 250 | M57: 250 | N57: 100 | P57: 2,1 250 250 100
A58: 185 | K58: 4.3 | L58: 250 | M58: 250 | N58: 94 | P58: 2,2 250 250 94
A59: 190 | F59: Total IBU: | I59: =SUM(I42:I57) -> 0 | K59: 4.5 | L59: 250 | M59: 250 | N59: 89 | P59: 2,3 250 250 89
A60: 195 | K60: 4.7 | L60: 250 | M60: 250 | N60: 83 | P60: 2,4 250 250 83
A61: 200 | D61: BU:GU and RBR: | E61: http://www.madalchemist.com/chart_bitterness_corrected.html | K61: 4.9 | L61: 250 | M61: 250 | N61: 78 | P61: 2,5 250 250 78
A62: 205 | K62: 5.1 | L62: 249 | M62: 250 | N62: 72 | P62: 2,6 249 250 72
A63: 210 | K63: 5.3 | L63: 248 | M63: 249 | N63: 67 | P63: 2,7 248 249 67
A64: 215 | K64: 5.5 | L64: 247 | M64: 248 | N64: 61 | P64: 2,8 247 248 61
A65: 220 | K65: 5.7 | L65: 246 | M65: 247 | N65: 56 | P65: 2,9 246 247 56
A66: 225 | K66: 5.9 | L66: 245 | M66: 246 | N66: 50 | P66: 3 245 246 50
A67: 230 | K67: 6.1 | L67: 244 | M67: 245 | N67: 45 | P67: 3,1 244 245 45
A68: 235 | K68: 6.3 | L68: 243 | M68: 244 | N68: 45 | P68: 3,2 243 244 45
A69: 240 | K69: 6.5 | L69: 242 | M69: 242 | N69: 45 | P69: 3,3 242 242 45
A70: 245 | K70: 6.7 | L70: 241 | M70: 240 | N70: 46 | P70: 3,4 241 240 46
A71: 250 | K71: 6.9 | L71: 240 | M71: 238 | N71: 46 | P71: 3,5 240 238 46
A72: 255 | K72: 7.1 | L72: 239 | M72: 236 | N72: 46 | P72: 3,6 239 236 46
A73: 260 | K73: 7.3 | L73: 238 | M73: 234 | N73: 46 | P73: 3,7 238 234 46
A74: 265 | K74: 7.5 | L74: 237 | M74: 232 | N74: 47 | P74: 3,8 237 232 47
A75: 270 | K75: 7.7 | L75: 236 | M75: 230 | N75: 47 | P75: 3,9 236 230 47
K76: 7.9 | L76: 235 | M76: 228 | N76: 47 | P76: 4 235 228 47
K77: 8.1 | L77: 234 | M77: 226 | N77: 47 | P77: 4,1 234 226 47
I78: RBR colour coding | K78: 8.3 | L78: 233 | M78: 224 | N78: 48 | P78: 4,2 233 224 48
I79: (extra hoppy) > | J79: =35/55 -> 0.6363636364 | K79: 8.5 | L79: 232 | M79: 222 | N79: 48 | P79: 4,3 232 222 48
I80: (slightly hoppy) > | J80: =40/75 -> 0.5333333333 | K80: 8.7 | L80: 231 | M80: 220 | N80: 48 | P80: 4,4 231 220 48
I81: (evenly balanced) > | J81: =20/45 -> 0.4444444444 | K81: 8.9 | L81: 230 | M81: 218 | N81: 48 | P81: 4,5 230 218 48
I82: (slightly malty) > | J82: =20/55 -> 0.3636363636 | K82: 9.1 | L82: 229 | M82: 216 | N82: 49 | P82: 4,6 229 216 49
I83: (extra malty) < | J83: =20/55 -> 0.3636363636 | K83: 9.3 | L83: 228 | M83: 214 | N83: 49 | P83: 4,7 228 214 49
K84: 9.5 | L84: 227 | M84: 212 | N84: 49 | P84: 4,8 227 212 49
K85: 9.7 | L85: 226 | M85: 210 | N85: 49 | P85: 4,9 226 210 49
K86: 9.9 | L86: 225 | M86: 208 | N86: 50 | P86: 5 225 208 50
K87: 10 | L87: 224 | M87: 206 | N87: 50 | P87: 5,1 224 206 50
K88: 10.2 | L88: 223 | M88: 204 | N88: 50 | P88: 5,2 223 204 50
K89: 10.4 | L89: 222 | M89: 202 | N89: 50 | P89: 5,3 222 202 50
K90: 10.6 | L90: 221 | M90: 200 | N90: 51 | P90: 5,4 221 200 51
K91: 10.8 | L91: 220 | M91: 198 | N91: 51 | P91: 5,5 220 198 51
K92: 11 | L92: 219 | M92: 196 | N92: 51 | P92: 5,6 219 196 51
K93: 11.2 | L93: 218 | M93: 194 | N93: 51 | P93: 5,7 218 194 51
K94: 11.4 | L94: 217 | M94: 192 | N94: 52 | P94: 5,8 217 192 52
K95: 11.6 | L95: 216 | M95: 190 | N95: 52 | P95: 5,9 216 190 52
K96: 11.8 | L96: 215 | M96: 188 | N96: 52 | P96: 6 215 188 52
K97: 12 | L97: 214 | M97: 186 | N97: 52 | P97: 6,1 214 186 52
K98: 12.2 | L98: 213 | M98: 184 | N98: 53 | P98: 6,2 213 184 53
K99: 12.4 | L99: 212 | M99: 182 | N99: 53 | P99: 6,3 212 182 53
K100: 12.6 | L100: 211 | M100: 180 | N100: 53 | P100: 6,4 211 180 53
K101: 12.8 | L101: 210 | M101: 178 | N101: 53 | P101: 6,5 210 178 53
K102: 13 | L102: 209 | M102: 176 | N102: 54 | P102: 6,6 209 176 54
K103: 13.2 | L103: 208 | M103: 174 | N103: 54 | P103: 6,7 208 174 54
K104: 13.4 | L104: 207 | M104: 172 | N104: 54 | P104: 6,8 207 172 54
K105: 13.6 | L105: 206 | M105: 170 | N105: 54 | P105: 6,9 206 170 54
K106: 13.8 | L106: 205 | M106: 168 | N106: 55 | P106: 7 205 168 55
K107: 14 | L107: 204 | M107: 166 | N107: 55 | P107: 7,1 204 166 55
K108: 14.2 | L108: 203 | M108: 164 | N108: 55 | P108: 7,2 203 164 55
K109: 14.4 | L109: 202 | M109: 162 | N109: 55 | P109: 7,3 202 162 55
K110: 14.6 | L110: 201 | M110: 160 | N110: 56 | P110: 7,4 201 160 56
K111: 14.8 | L111: 200 | M111: 158 | N111: 56 | P111: 7,5 200 158 56
K112: 15 | L112: 200 | M112: 156 | N112: 56 | P112: 7,6 200 156 56
K113: 15.2 | L113: 199 | M113: 154 | N113: 56 | P113: 7,7 199 154 56
K114: 15.4 | L114: 199 | M114: 152 | N114: 56 | P114: 7,8 199 152 56
K115: 15.6 | L115: 198 | M115: 150 | N115: 56 | P115: 7,9 198 150 56
K116: 15.8 | L116: 198 | M116: 148 | N116: 56 | P116: 8 198 148 56
K117: 16 | L117: 197 | M117: 146 | N117: 56 | P117: 8,1 197 146 56
K118: 16.2 | L118: 197 | M118: 144 | N118: 56 | P118: 8,2 197 144 56
K119: 16.4 | L119: 196 | M119: 142 | N119: 56 | P119: 8,3 196 142 56
K120: 16.5 | L120: 196 | M120: 141 | N120: 56 | P120: 8,4 196 141 56
K121: 16.7 | L121: 195 | M121: 140 | N121: 56 | P121: 8,5 195 140 56
K122: 16.9 | L122: 195 | M122: 139 | N122: 56 | P122: 8,6 195 139 56
K123: 17.1 | L123: 194 | M123: 139 | N123: 56 | P123: 8,7 194 139 56
K124: 17.3 | L124: 194 | M124: 138 | N124: 56 | P124: 8,8 194 138 56
K125: 17.5 | L125: 193 | M125: 137 | N125: 56 | P125: 8,9 193 137 56
K126: 17.7 | L126: 193 | M126: 136 | N126: 56 | P126: 9 193 136 56
K127: 17.9 | L127: 192 | M127: 136 | N127: 56 | P127: 9,1 192 136 56
K128: 18.1 | L128: 192 | M128: 135 | N128: 56 | P128: 9,2 192 135 56
K129: 18.3 | L129: 192 | M129: 134 | N129: 56 | P129: 9,3 192 134 56
K130: 18.5 | L130: 192 | M130: 133 | N130: 56 | P130: 9,4 192 133 56
K131: 18.7 | L131: 192 | M131: 133 | N131: 56 | P131: 9,5 192 133 56
K132: 18.9 | L132: 192 | M132: 132 | N132: 56 | P132: 9,6 192 132 56
K133: 19.1 | L133: 192 | M133: 131 | N133: 56 | P133: 9,7 192 131 56
K134: 19.3 | L134: 192 | M134: 130 | N134: 56 | P134: 9,8 192 130 56
K135: 19.5 | L135: 192 | M135: 130 | N135: 56 | P135: 9,9 192 130 56
K136: 19.7 | L136: 192 | M136: 129 | N136: 56 | P136: 10 192 129 56
K137: 19.9 | L137: 192 | M137: 128 | N137: 56 | P137: 10,1 192 128 56
K138: 20.1 | L138: 192 | M138: 127 | N138: 56 | P138: 10,2 192 127 56
K139: 20.3 | L139: 192 | M139: 127 | N139: 56 | P139: 10,3 192 127 56
K140: 20.5 | L140: 192 | M140: 126 | N140: 56 | P140: 10,4 192 126 56
K141: 20.7 | L141: 192 | M141: 125 | N141: 56 | P141: 10,5 192 125 56
K142: 20.9 | L142: 192 | M142: 124 | N142: 56 | P142: 10,6 192 124 56
K143: 21.1 | L143: 192 | M143: 124 | N143: 56 | P143: 10,7 192 124 56
K144: 21.3 | L144: 192 | M144: 123 | N144: 56 | P144: 10,8 192 123 56
K145: 21.5 | L145: 192 | M145: 122 | N145: 56 | P145: 10,9 192 122 56
K146: 21.7 | L146: 192 | M146: 121 | N146: 56 | P146: 11 192 121 56
K147: 21.9 | L147: 192 | M147: 121 | N147: 56 | P147: 11,1 192 121 56
K148: 22.1 | L148: 192 | M148: 120 | N148: 56 | P148: 11,2 192 120 56
K149: 22.3 | L149: 192 | M149: 119 | N149: 56 | P149: 11,3 192 119 56
K150: 22.5 | L150: 192 | M150: 118 | N150: 56 | P150: 11,4 192 118 56
K151: 22.7 | L151: 192 | M151: 118 | N151: 56 | P151: 11,5 192 118 56
K152: 22.9 | L152: 192 | M152: 117 | N152: 56 | P152: 11,6 192 117 56
K153: 23 | L153: 192 | M153: 116 | N153: 56 | P153: 11,7 192 116 56
K154: 23.2 | L154: 192 | M154: 115 | N154: 56 | P154: 11,8 192 115 56
K155: 23.4 | L155: 192 | M155: 115 | N155: 56 | P155: 11,9 192 115 56
K156: 23.6 | L156: 192 | M156: 114 | N156: 56 | P156: 12 192 114 56
K157: 23.8 | L157: 192 | M157: 113 | N157: 56 | P157: 12,1 192 113 56
K158: 24 | L158: 192 | M158: 112 | N158: 56 | P158: 12,2 192 112 56
K159: 24.2 | L159: 192 | M159: 112 | N159: 56 | P159: 12,3 192 112 56
K160: 24.4 | L160: 192 | M160: 111 | N160: 56 | P160: 12,4 192 111 56
K161: 24.6 | L161: 192 | M161: 110 | N161: 56 | P161: 12,5 192 110 56
K162: 24.8 | L162: 192 | M162: 109 | N162: 56 | P162: 12,6 192 109 56
K163: 25 | L163: 192 | M163: 109 | N163: 56 | P163: 12,7 192 109 56
K164: 25.2 | L164: 192 | M164: 108 | N164: 56 | P164: 12,8 192 108 56
K165: 25.4 | L165: 191 | M165: 107 | N165: 56 | P165: 12,9 191 107 56
K166: 25.6 | L166: 190 | M166: 106 | N166: 56 | P166: 13 190 106 56
K167: 25.8 | L167: 189 | M167: 106 | N167: 56 | P167: 13,1 189 106 56
K168: 26 | L168: 188 | M168: 105 | N168: 56 | P168: 13,2 188 105 56
K169: 26.2 | L169: 187 | M169: 104 | N169: 56 | P169: 13,3 187 104 56
K170: 26.4 | L170: 186 | M170: 103 | N170: 56 | P170: 13,4 186 103 56
K171: 26.6 | L171: 185 | M171: 103 | N171: 56 | P171: 13,5 185 103 56
K172: 26.8 | L172: 184 | M172: 102 | N172: 56 | P172: 13,6 184 102 56
K173: 27 | L173: 183 | M173: 101 | N173: 56 | P173: 13,7 183 101 56
K174: 27.2 | L174: 182 | M174: 100 | N174: 56 | P174: 13,8 182 100 56
K175: 27.4 | L175: 181 | M175: 100 | N175: 56 | P175: 13,9 181 100 56
K176: 27.6 | L176: 180 | M176: 99 | N176: 56 | P176: 14 180 99 56
K177: 27.8 | L177: 179 | M177: 98 | N177: 56 | P177: 14,1 179 98 56
K178: 28 | L178: 178 | M178: 97 | N178: 56 | P178: 14,2 178 97 56
K179: 28.2 | L179: 177 | M179: 97 | N179: 56 | P179: 14,3 177 97 56
K180: 28.4 | L180: 175 | M180: 96 | N180: 55 | P180: 14,4 175 96 55
K181: 28.6 | L181: 174 | M181: 95 | N181: 55 | P181: 14,5 174 95 55
K182: 28.8 | L182: 172 | M182: 94 | N182: 55 | P182: 14,6 172 94 55
K183: 29 | L183: 171 | M183: 94 | N183: 55 | P183: 14,7 171 94 55
K184: 29.2 | L184: 169 | M184: 93 | N184: 54 | P184: 14,8 169 93 54
K185: 29.4 | L185: 168 | M185: 92 | N185: 54 | P185: 14,9 168 92 54
K186: 29.6 | L186: 167 | M186: 91 | N186: 54 | P186: 15 167 91 54
K187: 29.7 | L187: 165 | M187: 91 | N187: 54 | P187: 15,1 165 91 54
K188: 29.9 | L188: 164 | M188: 90 | N188: 53 | P188: 15,2 164 90 53
K189: 30.1 | L189: 162 | M189: 89 | N189: 53 | P189: 15,3 162 89 53
K190: 30.3 | L190: 161 | M190: 88 | N190: 53 | P190: 15,4 161 88 53
K191: 30.5 | L191: 159 | M191: 88 | N191: 53 | P191: 15,5 159 88 53
K192: 30.7 | L192: 158 | M192: 87 | N192: 52 | P192: 15,6 158 87 52
K193: 30.9 | L193: 157 | M193: 86 | N193: 52 | P193: 15,7 157 86 52
K194: 31.1 | L194: 155 | M194: 85 | N194: 52 | P194: 15,8 155 85 52
K195: 31.3 | L195: 154 | M195: 85 | N195: 52 | P195: 15,9 154 85 52
K196: 31.5 | L196: 152 | M196: 84 | N196: 51 | P196: 16 152 84 51
K197: 31.7 | L197: 151 | M197: 83 | N197: 51 | P197: 16,1 151 83 51
K198: 31.9 | L198: 149 | M198: 82 | N198: 51 | P198: 16,2 149 82 51
K199: 32.1 | L199: 148 | M199: 82 | N199: 51 | P199: 16,3 148 82 51
K200: 32.3 | L200: 147 | M200: 81 | N200: 50 | P200: 16,4 147 81 50
... 136 more rows

Sheet Omregninger
A2: Farver:
B4: Formål | C4: Formel | D4: Indtast | E4: Beregn | F4: Resultat
B5: EBC to SRM: | C5: SRM = EBC × 0,508 | D5: Indtast EBC | F5: =IF(E5="","",(ROUND((E5*0.508),0)&" SRM")) -> 
B6: SRM to EBC: | C6: EBC = SRM × 1,97 | D6: Indtast SRM | F6: =IF(E6="","",(ROUND((E6*1.97),0)&" EBC")) -> 
B7: Lovibond to SRM: | C7: SRM = (1,3546 × °L) - 0,76 | D7: Indtast °L | F7: =IF(E7="","",(ROUND(((1.3546*E7)-0.76),0)&" SRM")) -> 
B8: SRM to Lovibond: | C8: °L = (SRM + 0,76) ÷ 1,3546 | D8: Indtast SRM | F8: =IF(E8="","",(ROUND(((E8+0.76)/1.3546),0)&" °L")) -> 
A10: Vægt, rumfang og temperatur
B12: US / UK Mål ◄ | D12: Indtast | E12: ► Metriske Mål
B13: Ounce | C13: =IF(D13="","",D13/28.349523) ->  | E13: =IF(D13="","",D13*28.349523) ->  | F13: Gram
B14: Pound | C14: =IF(D14="","",D14/453.59237) ->  | E14: =IF(D14="","",D14*453.59237) ->  | F14: Gram
B15: SUM | C15: =IF(OR(D13="",D14=""),"",C13+C14) ->  | E15: =IF(OR(D13="",D14=""),"",E13+E14) ->  | F15: SUM
B17: Fluid Ounce (UK) | C17: =IF(D17="","",D17/0.028413062) ->  | E17: =IF(D17="","",D17*0.028413062) ->  | F17: Liter
B18: Fluid Ounce (US) | C18: =IF(D18="","",D18/0.0295735296875) ->  | E18: =IF(D18="","",D18*0.0295735296875) ->  | F18: Liter
B19: Cup (UK) | C19: =IF(D19="","",D19/0.25) ->  | E19: =IF(D19="","",D19*0.25) ->  | F19: Liter
B20: Cup (US) | C20: =IF(D20="","",D20/0.24) ->  | E20: =IF(D20="","",D20*0.24) ->  | F20: Liter
B21: Pint (UK) | C21: =IF(D21="","",D21/0.5682612) ->  | E21: =IF(D21="","",D21*0.5682612) ->  | F21: Liter
B22: Pint (US) | C22: =IF(D22="","",D22/0.473176473) ->  | E22: =IF(D22="","",D22*0.473176473) ->  | F22: Liter
B23: Quart (UK) | C23: =IF(D23="","",D23/1.1365225) ->  | E23: =IF(D23="","",D23*1.1365225) ->  | F23: Liter
B24: Quart (US) | C24: =IF(D24="","",D24/0.946) ->  | E24: =IF(D24="","",D24*0.946) ->  | F24: Liter
B25: Quart dry (US) | C25: =IF(D25="","",D25/1.1012209) ->  | E25: =IF(D25="","",D25*1.1012209) ->  | F25: Liter
B26: Gallon (UK) | C26: =IF(D26="","",D26/4.5460951) ->  | E26: =IF(D26="","",D26*4.5460951) ->  | F26: Liter
B27: Gallon (US) | C27: =IF(D27="","",D27/3.785) ->  | E27: =IF(D27="","",D27*3.785) ->  | F27: Liter
B28: Barrels - bbl (UK) | C28: =IF(D28="","",D28/163.65924) ->  | E28: =IF(D28="","",D28*163.65924) ->  | F28: Liter
B29: Barrels - bbl (US) | C29: =IF(D29="","",D29/117.3477658) ->  | E29: =IF(D29="","",D29*117.3477658) ->  | F29: Liter
B31: Fahrenheit | C31: =IF(D31="","",D31*1.8 +32) ->  | E31: =IF(D31="","",(D31-32)/1.8) ->  | F31: Celsius
A33: Konvertering mellem All-Grain / Ekstrakt / Spraymalt
B35: Grain | C35: Ekstrakt | D35: Spraymalt
B37: =IF(B36>0,"",IF(C36>0,(C36/3)*4,IF(D36>0,(D36/3)*5,""))) ->  | C37: =IF(C36>0,"",IF(B36>0,(B36/4)*3,IF(D36>0,((D36/4)*5),""))) ->  | D37: =IF(D36>0,"",IF(B36>0,((B36/5)*3),IF(C36>0,(C36/5)*4,""))) -> 
A39: Dry Base Fine Grind (DBFG) til Potentiale til Extraktudbytte
B41: Indtast DBFG i %: | D41: Indtast potentiale (SG): | F41: eks. 1,034
B42: Beregnet potentiale: | C42: =IF(C41="","",ROUND(( 1 + (C41 / 100) * 0.04621),3)) ->  | D42: Ekstraktudbytte: | E42: =IFERROR((ROUND(((((RIGHT(IF(C41="",IF(E41="","",E41),C42),2)*3.785)/453)*1000)/10),0)*10),"") -> 
A44: Diastatisk aktivitet / Diastatic Power
B46: Lintner (°L) | C46: =IF(D46="","",ROUND(((D46+16)/3.85),2)) ->  | E46: =IF(D46="","",ROUND(((3.85*D46)-16),2)) ->  | F46: Windisch-Kolbach (°WK)
A48: Humle
B50: AAU konvertering til humlemængde - (Alpha Acid Units)
B51: Vælg Humletype:
B52: Vælg Humleblomster eller -pellets:
B53: Indtast antal AAU
B54: Orig. opskrifts mængde - hvis forskellig fra 5 Gallons
B55: =CONCATENATE("Indtast din brygmængde - hvis forskellig fra ",Data!E5," liter") -> Indtast din brygmængde - hvis forskellig fra 25 liter
B57: Tilsvarende mængde humle i dit bryg vil være: | D57: =IFERROR(IF(D51="","",CONCATENATE(IF(D55="",ROUND((((D53/IFERROR(VLOOKUP(D51,Humle!$A$3:$D$73,IF(D52="Blomst",3,4),FALSE),""))*28.35/IF(D54="",5*3.785,D54*3.785))*25),1),ROUND((((D53/IFERROR(VLOOKUP(D51,Humle!$A$3:$D$73,IF(D52="Blomst",3,4),FALSE),""))*28.35/IF(D54="",5*3.785,D54*3.785))*D55),1))," Gram")),"Vælg anden Blomst/Pellets") -> 
A59: Refraktometer:
B61: Udregning af Final Gravity med Refraktometer måling - med kompensation for fejlvisning grundet alkohol
B62: Input er i Oechsle, hvor gravity 1080 eller 1,080 = 80 Oe
B63: Indtast Original Gravity | C63: Oe | D63: Indtast Final Gravity | E63: Oe | G63: Specific Gravity-Brix Conversion Table
B64: Refrektometer Input - OG | C64: 67 | D64: Refrektometer Input - FG | E64: 37 | G64: Specific Gravity | H64: Brix
B65: Brix mellemregning | C65: =VLOOKUP((C64/1000)+1,$G$64:$H$205,2,FALSE) -> 16.34 | D65: Brix mellemregning | E65: =VLOOKUP((E64/1000)+1,$G$64:$H$205,2,FALSE) -> 9.26 | G65: 0.99 | H65: 0
B66: Mellemregning | C66: -0.002318474 | D66: =1.001843+C66*C65 -> 0.9639591348 | G66: 0.991 | H66: 0
B67: Mellemregning | C67: -7.775e-06 | D67: =C67*C65*C65 -> -0.00207589079 | G67: 0.992 | H67: 0
B68: Mellemregning | C68: -3.4e-08 | D68: =C68*C65*C65*C65 -> -0.0001483320755 | G68: 0.993 | H68: 0
B69: Mellemregning | C69: 0.00574 | D69: =C69*E65 -> 0.0531524 | G69: 0.994 | H69: 0
B70: Mellemregning | C70: 3.344e-05 | D70: =C70*E65*E65 -> 0.002867399744 | G70: 0.995 | H70: 0
B71: Mellemregning | C71: 8.6e-08 | D71: =C71*E65*E65*E65 -> 6.828595874e-05 | G71: 0.996 | H71: 0
B72: Udregnet Final Gravity ( kompenseret for alkohol ) = | E72: =SUM(D66:D71) -> 1.017822998 | G72: 0.997 | H72: 0
G73: 0.998 | H73: 0
G74: 0.999 | H74: 0
G75: 1 | H75: 0
G76: 1.001 | H76: 0.26
G77: 1.002 | H77: 0.51
G78: 1.003 | H78: 0.77
G79: 1.004 | H79: 1.03
G80: 1.005 | H80: 1.28
G81: 1.006 | H81: 1.54
G82: 1.007 | H82: 1.8
G83: 1.008 | H83: 2.05
G84: 1.009 | H84: 2.31
G85: 1.01 | H85: 2.56
G86: 1.011 | H86: 2.81
G87: 1.012 | H87: 3.07
G88: 1.013 | H88: 3.32
G89: 1.014 | H89: 3.57
G90: 1.015 | H90: 3.82
G91: 1.016 | H91: 4.08
G92: 1.017 | H92: 4.33
G93: 1.018 | H93: 4.58
G94: 1.019 | H94: 4.83
G95: 1.02 | H95: 5.08
G96: 1.021 | H96: 5.33
G97: 1.022 | H97: 5.57
G98: 1.023 | H98: 5.82
G99: 1.024 | H99: 6.07
G100: 1.025 | H100: 6.32
G101: 1.026 | H101: 6.57
G102: 1.027 | H102: 6.81
G103: 1.028 | H103: 7.06
G104: 1.029 | H104: 7.3
G105: 1.03 | H105: 7.55
G106: 1.031 | H106: 7.8
G107: 1.032 | H107: 8.04
G108: 1.033 | H108: 8.28
G109: 1.034 | H109: 8.53
G110: 1.035 | H110: 8.77
G111: 1.036 | H111: 9.01
G112: 1.037 | H112: 9.26
G113: 1.038 | H113: 9.5
G114: 1.039 | H114: 9.74
G115: 1.04 | H115: 9.98
G116: 1.041 | H116: 10.22
G117: 1.042 | H117: 10.46
G118: 1.043 | H118: 10.7
G119: 1.044 | H119: 10.94
G120: 1.045 | H120: 11.18
G121: 1.046 | H121: 11.42
G122: 1.047 | H122: 11.66
G123: 1.048 | H123: 11.9
G124: 1.049 | H124: 12.14
G125: 1.05 | H125: 12.37
G126: 1.051 | H126: 12.61
G127: 1.052 | H127: 12.85
G128: 1.053 | H128: 13.08
G129: 1.054 | H129: 13.32
G130: 1.055 | H130: 13.55
G131: 1.056 | H131: 13.79
G132: 1.057 | H132: 14.02
G133: 1.058 | H133: 14.26
G134: 1.059 | H134: 14.49
G135: 1.06 | H135: 14.72
G136: 1.061 | H136: 14.96
G137: 1.062 | H137: 15.19
G138: 1.063 | H138: 15.42
G139: 1.064 | H139: 15.65
G140: 1.065 | H140: 15.88
G141: 1.066 | H141: 16.11
G142: 1.067 | H142: 16.34
G143: 1.068 | H143: 16.57
G144: 1.069 | H144: 16.8
G145: 1.07 | H145: 17.03
G146: 1.071 | H146: 17.26
G147: 1.072 | H147: 17.49
G148: 1.073 | H148: 17.72
G149: 1.074 | H149: 17.95
G150: 1.075 | H150: 18.18
G151: 1.076 | H151: 18.4
G152: 1.077 | H152: 18.63
G153: 1.078 | H153: 18.86
G154: 1.079 | H154: 19.08
G155: 1.08 | H155: 19.31
G156: 1.081 | H156: 19.53
G157: 1.082 | H157: 19.76
G158: 1.083 | H158: 19.98
G159: 1.084 | H159: 20.21
G160: 1.085 | H160: 20.43
G161: 1.086 | H161: 20.65
G162: 1.087 | H162: 20.88
G163: 1.088 | H163: 21.1
G164: 1.089 | H164: 21.32
G165: 1.09 | H165: 21.54
G166: 1.091 | H166: 21.77
G167: 1.092 | H167: 21.99
G168: 1.093 | H168: 22.21
G169: 1.094 | H169: 22.43
G170: 1.095 | H170: 22.65
G171: 1.096 | H171: 22.87
G172: 1.097 | H172: 23.09
G173: 1.098 | H173: 23.31
G174: 1.099 | H174: 23.53
G175: 1.1 | H175: 23.75
G176: 1.101 | H176: 23.96
G177: 1.102 | H177: 24.18
G178: 1.103 | H178: 24.4
G179: 1.104 | H179: 24.62
G180: 1.105 | H180: 24.83
G181: 1.106 | H181: 25.05
G182: 1.107 | H182: 25.27
G183: 1.108 | H183: 25.48
G184: 1.109 | H184: 25.7
G185: 1.11 | H185: 25.91
G186: 1.111 | H186: 26.13
G187: 1.112 | H187: 26.34
G188: 1.113 | H188: 26.56
G189: 1.114 | H189: 26.77
G190: 1.115 | H190: 26.98
G191: 1.116 | H191: 27.2
G192: 1.117 | H192: 27.41
G193: 1.118 | H193: 27.62
G194: 1.119 | H194: 27.83
G195: 1.12 | H195: 28.05
G196: 1.121 | H196: 28.26
G197: 1.122 | H197: 28.47
G198: 1.123 | H198: 28.68
G199: 1.124 | H199: 28.89
G200: 1.125 | H200: 29.1
G201: 1.126 | H201: 29.31
G202: 1.127 | H202: 29.52
G203: 1.128 | H203: 29.73
G204: 1.129 | H204: 29.94
G205: 1.13 | H205: 30.15

Sheet Malt
A1: Malttyper | B1: EBC Range | C1: EBC Avg. | D1: Ekstraktudbytte | E1: Diastatisk Aktivitet (DP) Degree Lintner (°L) | F1: Karakteristik | G1: Malt i kg | H1: Brygladen | I1: Hjemmebryggeren | J1: Albryg (10g interval) | K1: Bryglageret | L1: Brygforretningen | N1: Malt Pris Grupper | O1: Priser kr./kg | P1: DropDown Menu
A2: Basis Malt | H2: H | I2: I | J2: J | K2: K | L2: L | O2: 15
A3: Pilsner | B3: 2,5 - 3,5 | C3: 3 | D3: 300 | E3: 110 | F3: Høj enzymaktivitet | G3: =IFERROR(VLOOKUP(Malt!$A3,BrewReport!$A$9:$D$18,4,FALSE),0) -> 0 | H3: =G3*O5 -> 0 | I3: =G3*O7 -> 0 | J3: =G3*O7 -> 0 | K3: =G3*O7 -> 0 | L3: =G3*O5 -> 0 | O3: 16 | P3: =IFERROR(INDEX($A$3:$A$85, SMALL(IF(ISBLANK(INDIRECT(CONCATENATE("$",HLOOKUP(BrewReport!$F$7,$H$1:$L$2,2,FALSE),"$3:$",HLOOKUP(BrewReport!$F$7,$H$1:$L$2,2,FALSE),"$84"))), "", ROW(INDIRECT(CONCATENATE("$",HLOOKUP(BrewReport!$F$7,$H$1:$L$2,2,FALSE),"$3:$",HLOOKUP(BrewReport!$F$7,$H$1:$L$2,2,FALSE),"$84")))-MIN(ROW(INDIRECT(CONCATENATE("$",HLOOKUP(BrewReport!$F$7,$H$1:$L$2,2,FALSE),"$3:$",HLOOKUP(BrewReport!$F$7,$H$1:$L$2,2,FALSE),"$84"))))+1), ROW(A1))),"") -> Pilsner
A4: Fuglsang Pilsner | B4: 3,7 | C4: 3,7 | D4: 320 | E4: 120 | F4: Dansk, Høj enzymaktivitet | G4: =IFERROR(VLOOKUP(Malt!$A4,BrewReport!$A$9:$D$18,4,FALSE),0) -> 0 | J4: =G4*O2 -> 0 | O4: 17 | P4: =IFERROR(INDEX($A$3:$A$85, SMALL(IF(ISBLANK(INDIRECT(CONCATENATE("$",HLOOKUP(BrewReport!$F$7,$H$1:$L$2,2,FALSE),"$3:$",HLOOKUP(BrewReport!$F$7,$H$1:$L$2,2,FALSE),"$84"))), "", ROW(INDIRECT(CONCATENATE("$",HLOOKUP(BrewReport!$F$7,$H$1:$L$2,2,FALSE),"$3:$",HLOOKUP(BrewReport!$F$7,$H$1:$L$2,2,FALSE),"$84")))-MIN(ROW(INDIRECT(CONCATENATE("$",HLOOKUP(BrewReport!$F$7,$H$1:$L$2,2,FALSE),"$3:$",HLOOKUP(BrewReport!$F$7,$H$1:$L$2,2,FALSE),"$84"))))+1), ROW(A2))),"") -> Vienna
A5: Pilsner Bohemian | B5: 2,5 - 3,5 | C5: 3 | D5: 300 | E5: 110 | F5: Høj enzymaktivitet | G5: =IFERROR(VLOOKUP(Malt!$A5,BrewReport!$A$9:$D$18,4,FALSE),0) -> 0 | H5: =G5*O5 -> 0 | J5: =G5*O3 -> 0 | K5: =G5*O7 -> 0 | N5: Grp 1 | O5: 18 | P5: =IFERROR(INDEX($A$3:$A$85, SMALL(IF(ISBLANK(INDIRECT(CONCATENATE("$",HLOOKUP(BrewReport!$F$7,$H$1:$L$2,2,FALSE),"$3:$",HLOOKUP(BrewReport!$F$7,$H$1:$L$2,2,FALSE),"$84"))), "", ROW(INDIRECT(CONCATENATE("$",HLOOKUP(BrewReport!$F$7,$H$1:$L$2,2,FALSE),"$3:$",HLOOKUP(BrewReport!$F$7,$H$1:$L$2,2,FALSE),"$84")))-MIN(ROW(INDIRECT(CONCATENATE("$",HLOOKUP(BrewReport!$F$7,$H$1:$L$2,2,FALSE),"$3:$",HLOOKUP(BrewReport!$F$7,$H$1:$L$2,2,FALSE),"$84"))))+1), ROW(A3))),"") -> Pale Ale
A6: Vienna | B6: 5 - 7 | C6: 6 | D6: 300 | E6: 50 | F6: Farve, sødme og fylde | G6: =IFERROR(VLOOKUP(Malt!$A6,BrewReport!$A$9:$D$18,4,FALSE),0) -> 0 | H6: =G6*O5 -> 0 | I6: =G6*O7 -> 0 | J6: =G6*O3 -> 0 | L6: =G6*O5 -> 0 | N6: Grp 2 | O6: 19 | P6: =IFERROR(INDEX($A$3:$A$85, SMALL(IF(ISBLANK(INDIRECT(CONCATENATE("$",HLOOKUP(BrewReport!$F$7,$H$1:$L$2,2,FALSE),"$3:$",HLOOKUP(BrewReport!$F$7,$H$1:$L$2,2,FALSE),"$84"))), "", ROW(INDIRECT(CONCATENATE("$",HLOOKUP(BrewReport!$F$7,$H$1:$L$2,2,FALSE),"$3:$",HLOOKUP(BrewReport!$F$7,$H$1:$L$2,2,FALSE),"$84")))-MIN(ROW(INDIRECT(CONCATENATE("$",HLOOKUP(BrewReport!$F$7,$H$1:$L$2,2,FALSE),"$3:$",HLOOKUP(BrewReport!$F$7,$H$1:$L$2,2,FALSE),"$84"))))+1), ROW(A4))),"") -> Munich
A7: Pale Ale | B7: 7,0 - 9,0 | C7: 8 | D7: 300 | E7: 65 | F7: Mørkere og mere maltet end Pilsner | G7: =IFERROR(VLOOKUP(Malt!$A7,BrewReport!$A$9:$D$18,4,FALSE),0) -> 0 | H7: =G7*O5 -> 0 | I7: =G7*O7 -> 0 | J7: =G7*O3 -> 0 | K7: =G7*O6 -> 0 | L7: =G7*O5 -> 0 | N7: Grp 3 | O7: 20 | P7: =IFERROR(INDEX($A$3:$A$85, SMALL(IF(ISBLANK(INDIRECT(CONCATENATE("$",HLOOKUP(BrewReport!$F$7,$H$1:$L$2,2,FALSE),"$3:$",HLOOKUP(BrewReport!$F$7,$H$1:$L$2,2,FALSE),"$84"))), "", ROW(INDIRECT(CONCATENATE("$",HLOOKUP(BrewReport!$F$7,$H$1:$L$2,2,FALSE),"$3:$",HLOOKUP(BrewReport!$F$7,$H$1:$L$2,2,FALSE),"$84")))-MIN(ROW(INDIRECT(CONCATENATE("$",HLOOKUP(BrewReport!$F$7,$H$1:$L$2,2,FALSE),"$3:$",HLOOKUP(BrewReport!$F$7,$H$1:$L$2,2,FALSE),"$84"))))+1), ROW(A5))),"") -> Munich Light (Type 1)
A8: Munich | B8: 20 - 25 | C8: 25 | D8: 290 | E8: 25 | F8: Sødme og fylde | G8: =IFERROR(VLOOKUP(Malt!$A8,BrewReport!$A$9:$D$18,4,FALSE),0) -> 0 | H8: =G8*O5 -> 0 | I8: =G8*O7 -> 0 | J8: =G8*O7 -> 0 | K8: =G8*O16 -> 0 | L8: =G8*O5 -> 0 | N8: Grp 4 | O8: 21 | P8: =IFERROR(INDEX($A$3:$A$85, SMALL(IF(ISBLANK(INDIRECT(CONCATENATE("$",HLOOKUP(BrewReport!$F$7,$H$1:$L$2,2,FALSE),"$3:$",HLOOKUP(BrewReport!$F$7,$H$1:$L$2,2,FALSE),"$84"))), "", ROW(INDIRECT(CONCATENATE("$",HLOOKUP(BrewReport!$F$7,$H$1:$L$2,2,FALSE),"$3:$",HLOOKUP(BrewReport!$F$7,$H$1:$L$2,2,FALSE),"$84")))-MIN(ROW(INDIRECT(CONCATENATE("$",HLOOKUP(BrewReport!$F$7,$H$1:$L$2,2,FALSE),"$3:$",HLOOKUP(BrewReport!$F$7,$H$1:$L$2,2,FALSE),"$84"))))+1), ROW(A6))),"") -> Maris Otter Ale
A9: Munich Light (Type 1) | B9: 10 - 12 | C9: 11 | D9: 290 | E9: 70 | F9: Sødme og fylde | G9: =IFERROR(VLOOKUP(Malt!$A9,BrewReport!$A$9:$D$18,4,FALSE),0) -> 0 | I9: =G9*O7 -> 0 | J9: =G9*O7 -> 0 | K9: =G9*O16 -> 0 | L9: =G9*O5 -> 0 | N9: Grp 5 | O9: 22 | P9: =IFERROR(INDEX($A$3:$A$85, SMALL(IF(ISBLANK(INDIRECT(CONCATENATE("$",HLOOKUP(BrewReport!$F$7,$H$1:$L$2,2,FALSE),"$3:$",HLOOKUP(BrewReport!$F$7,$H$1:$L$2,2,FALSE),"$84"))), "", ROW(INDIRECT(CONCATENATE("$",HLOOKUP(BrewReport!$F$7,$H$1:$L$2,2,FALSE),"$3:$",HLOOKUP(BrewReport!$F$7,$H$1:$L$2,2,FALSE),"$84")))-MIN(ROW(INDIRECT(CONCATENATE("$",HLOOKUP(BrewReport!$F$7,$H$1:$L$2,2,FALSE),"$3:$",HLOOKUP(BrewReport!$F$7,$H$1:$L$2,2,FALSE),"$84"))))+1), ROW(A7))),"") -> Red X
A10: Maris Otter Ale | B10: 5,5 - 8,0 | C10: 6,75 | D10: 320 | E10: 120 | F10: Fyldig, nødder, let orange farve | G10: =IFERROR(VLOOKUP(Malt!$A10,BrewReport!$A$9:$D$18,4,FALSE),0) -> 0 | H10: =G10*O6 -> 0 | I10: =G10*O7 -> 0 | L10: =G10*O12 -> 0 | N10: Grp 6 | O10: 23 | P10: =IFERROR(INDEX($A$3:$A$85, SMALL(IF(ISBLANK(INDIRECT(CONCATENATE("$",HLOOKUP(BrewReport!$F$7,$H$1:$L$2,2,FALSE),"$3:$",HLOOKUP(BrewReport!$F$7,$H$1:$L$2,2,FALSE),"$84"))), "", ROW(INDIRECT(CONCATENATE("$",HLOOKUP(BrewReport!$F$7,$H$1:$L$2,2,FALSE),"$3:$",HLOOKUP(BrewReport!$F$7,$H$1:$L$2,2,FALSE),"$84")))-MIN(ROW(INDIRECT(CONCATENATE("$",HLOOKUP(BrewReport!$F$7,$H$1:$L$2,2,FALSE),"$3:$",HLOOKUP(BrewReport!$F$7,$H$1:$L$2,2,FALSE),"$84"))))+1), ROW(A8))),"") -> Cara Pils
A11: Red X | B11: 28 - 32 | C11: 30 | D11: 280 | E11: 56 | F11: Fyldig, intens rødlig farve | G11: =IFERROR(VLOOKUP(Malt!$A11,BrewReport!$A$9:$D$18,4,FALSE),0) -> 0 | H11: =G11*O6 -> 0 | I11: =G11*O7 -> 0 | N11: Grp 7 | O11: 24 | P11: =IFERROR(INDEX($A$3:$A$85, SMALL(IF(ISBLANK(INDIRECT(CONCATENATE("$",HLOOKUP(BrewReport!$F$7,$H$1:$L$2,2,FALSE),"$3:$",HLOOKUP(BrewReport!$F$7,$H$1:$L$2,2,FALSE),"$84"))), "", ROW(INDIRECT(CONCATENATE("$",HLOOKUP(BrewReport!$F$7,$H$1:$L$2,2,FALSE),"$3:$",HLOOKUP(BrewReport!$F$7,$H$1:$L$2,2,FALSE),"$84")))-MIN(ROW(INDIRECT(CONCATENATE("$",HLOOKUP(BrewReport!$F$7,$H$1:$L$2,2,FALSE),"$3:$",HLOOKUP(BrewReport!$F$7,$H$1:$L$2,2,FALSE),"$84"))))+1), ROW(A9))),"") -> Cara Clair
A12: Karamel Malt | N12: Grp 8 | O12: 25 | P12: =IFERROR(INDEX($A$3:$A$85, SMALL(IF(ISBLANK(INDIRECT(CONCATENATE("$",HLOOKUP(BrewReport!$F$7,$H$1:$L$2,2,FALSE),"$3:$",HLOOKUP(BrewReport!$F$7,$H$1:$L$2,2,FALSE),"$84"))), "", ROW(INDIRECT(CONCATENATE("$",HLOOKUP(BrewReport!$F$7,$H$1:$L$2,2,FALSE),"$3:$",HLOOKUP(BrewReport!$F$7,$H$1:$L$2,2,FALSE),"$84")))-MIN(ROW(INDIRECT(CONCATENATE("$",HLOOKUP(BrewReport!$F$7,$H$1:$L$2,2,FALSE),"$3:$",HLOOKUP(BrewReport!$F$7,$H$1:$L$2,2,FALSE),"$84"))))+1), ROW(A10))),"") -> Cara Blond
A13: Cara Pils | B13: 5 | C13: 5 | D13: 275 | E13: 0 | G13: =IFERROR(VLOOKUP(Malt!$A13,BrewReport!$A$9:$D$18,4,FALSE),0) -> 0 | H13: =G13*O8 -> 0 | I13: =G13*O16 -> 0 | J13: =G13*O7 -> 0 | K13: =G13*O16 -> 0 | L13: =G13*O9 -> 0 | N13: Grp 9 | O13: 26 | P13: =IFERROR(INDEX($A$3:$A$85, SMALL(IF(ISBLANK(INDIRECT(CONCATENATE("$",HLOOKUP(BrewReport!$F$7,$H$1:$L$2,2,FALSE),"$3:$",HLOOKUP(BrewReport!$F$7,$H$1:$L$2,2,FALSE),"$84"))), "", ROW(INDIRECT(CONCATENATE("$",HLOOKUP(BrewReport!$F$7,$H$1:$L$2,2,FALSE),"$3:$",HLOOKUP(BrewReport!$F$7,$H$1:$L$2,2,FALSE),"$84")))-MIN(ROW(INDIRECT(CONCATENATE("$",HLOOKUP(BrewReport!$F$7,$H$1:$L$2,2,FALSE),"$3:$",HLOOKUP(BrewReport!$F$7,$H$1:$L$2,2,FALSE),"$84"))))+1), ROW(A11))),"") -> Cara Gold
A14: Cara Clair | B14: 8 | C14: 8 | D14: 275 | E14: 0 | G14: =IFERROR(VLOOKUP(Malt!$A14,BrewReport!$A$9:$D$18,4,FALSE),0) -> 0 | H14: =G14*O8 -> 0 | I14: =G14*O16 -> 0 | N14: Grp 10 | O14: 27 | P14: =IFERROR(INDEX($A$3:$A$85, SMALL(IF(ISBLANK(INDIRECT(CONCATENATE("$",HLOOKUP(BrewReport!$F$7,$H$1:$L$2,2,FALSE),"$3:$",HLOOKUP(BrewReport!$F$7,$H$1:$L$2,2,FALSE),"$84"))), "", ROW(INDIRECT(CONCATENATE("$",HLOOKUP(BrewReport!$F$7,$H$1:$L$2,2,FALSE),"$3:$",HLOOKUP(BrewReport!$F$7,$H$1:$L$2,2,FALSE),"$84")))-MIN(ROW(INDIRECT(CONCATENATE("$",HLOOKUP(BrewReport!$F$7,$H$1:$L$2,2,FALSE),"$3:$",HLOOKUP(BrewReport!$F$7,$H$1:$L$2,2,FALSE),"$84"))))+1), ROW(A12))),"") -> Cara Hell
A15: Cara Blond | B15: 20 - 30 | C15: 25 | D15: 280 | E15: 0 | F15: Mild karamel smag og gylden farve | G15: =IFERROR(VLOOKUP(Malt!$A15,BrewReport!$A$9:$D$18,4,FALSE),0) -> 0 | I15: =G15*O16 -> 0 | K15: =G15*O16 -> 0 | L15: =G15*O9 -> 0 | N15: Grp 11 | O15: 28 | P15: =IFERROR(INDEX($A$3:$A$85, SMALL(IF(ISBLANK(INDIRECT(CONCATENATE("$",HLOOKUP(BrewReport!$F$7,$H$1:$L$2,2,FALSE),"$3:$",HLOOKUP(BrewReport!$F$7,$H$1:$L$2,2,FALSE),"$84"))), "", ROW(INDIRECT(CONCATENATE("$",HLOOKUP(BrewReport!$F$7,$H$1:$L$2,2,FALSE),"$3:$",HLOOKUP(BrewReport!$F$7,$H$1:$L$2,2,FALSE),"$84")))-MIN(ROW(INDIRECT(CONCATENATE("$",HLOOKUP(BrewReport!$F$7,$H$1:$L$2,2,FALSE),"$3:$",HLOOKUP(BrewReport!$F$7,$H$1:$L$2,2,FALSE),"$84"))))+1), ROW(A13))),"") -> Cara Munich Type I
A16: Carabelge | B16: 30 - 35 | C16: 33 | D16: 280 | E16: 0 | G16: =IFERROR(VLOOKUP(Malt!$A16,BrewReport!$A$9:$D$18,4,FALSE),0) -> 0 | J16: =G16*O7 -> 0 | N16: Grp 12 | O16: 30 | P16: =IFERROR(INDEX($A$3:$A$85, SMALL(IF(ISBLANK(INDIRECT(CONCATENATE("$",HLOOKUP(BrewReport!$F$7,$H$1:$L$2,2,FALSE),"$3:$",HLOOKUP(BrewReport!$F$7,$H$1:$L$2,2,FALSE),"$84"))), "", ROW(INDIRECT(CONCATENATE("$",HLOOKUP(BrewReport!$F$7,$H$1:$L$2,2,FALSE),"$3:$",HLOOKUP(BrewReport!$F$7,$H$1:$L$2,2,FALSE),"$84")))-MIN(ROW(INDIRECT(CONCATENATE("$",HLOOKUP(BrewReport!$F$7,$H$1:$L$2,2,FALSE),"$3:$",HLOOKUP(BrewReport!$F$7,$H$1:$L$2,2,FALSE),"$84"))))+1), ROW(A14))),"") -> Cara Munich Type II
A17: Cara Vienna | B17: 50 | C17: 50 | D17: 280 | E17: 0 | G17: =IFERROR(VLOOKUP(Malt!$A17,BrewReport!$A$9:$D$18,4,FALSE),0) -> 0 | H17: =G17*O8 -> 0 | K17: =G17*O16 -> 0 | N17: Grp 13 | O17: 35 | P17: =IFERROR(INDEX($A$3:$A$85, SMALL(IF(ISBLANK(INDIRECT(CONCATENATE("$",HLOOKUP(BrewReport!$F$7,$H$1:$L$2,2,FALSE),"$3:$",HLOOKUP(BrewReport!$F$7,$H$1:$L$2,2,FALSE),"$84"))), "", ROW(INDIRECT(CONCATENATE("$",HLOOKUP(BrewReport!$F$7,$H$1:$L$2,2,FALSE),"$3:$",HLOOKUP(BrewReport!$F$7,$H$1:$L$2,2,FALSE),"$84")))-MIN(ROW(INDIRECT(CONCATENATE("$",HLOOKUP(BrewReport!$F$7,$H$1:$L$2,2,FALSE),"$3:$",HLOOKUP(BrewReport!$F$7,$H$1:$L$2,2,FALSE),"$84"))))+1), ROW(A15))),"") -> Cara Munich Type III
A18: Cara Gold | B18: 110 - 130 | C18: 120 | D18: 280 | E18: 0 | F18: Stor karamel- og toffee smag, bedre skum og fylde | G18: =IFERROR(VLOOKUP(Malt!$A18,BrewReport!$A$9:$D$18,4,FALSE),0) -> 0 | H18: =G18*O8 -> 0 | I18: =G18*O16 -> 0 | J18: =G18*O7 -> 0 | L18: =G18*O9 -> 0 | N18: Grp 14 | O18: 40 | P18: =IFERROR(INDEX($A$3:$A$85, SMALL(IF(ISBLANK(INDIRECT(CONCATENATE("$",HLOOKUP(BrewReport!$F$7,$H$1:$L$2,2,FALSE),"$3:$",HLOOKUP(BrewReport!$F$7,$H$1:$L$2,2,FALSE),"$84"))), "", ROW(INDIRECT(CONCATENATE("$",HLOOKUP(BrewReport!$F$7,$H$1:$L$2,2,FALSE),"$3:$",HLOOKUP(BrewReport!$F$7,$H$1:$L$2,2,FALSE),"$84")))-MIN(ROW(INDIRECT(CONCATENATE("$",HLOOKUP(BrewReport!$F$7,$H$1:$L$2,2,FALSE),"$3:$",HLOOKUP(BrewReport!$F$7,$H$1:$L$2,2,FALSE),"$84"))))+1), ROW(A16))),"") -> Cara Aroma
A19: Chateau Cara | B19: 150 | C19: 150 | D19: 280 | E19: 0 | G19: =IFERROR(VLOOKUP(Malt!$A19,BrewReport!$A$9:$D$18,4,FALSE),0) -> 0 | J19: =G19*O7 -> 0 | L19: =G19*O9 -> 0 | N19: Grp 15 | O19: 50 | P19: =IFERROR(INDEX($A$3:$A$85, SMALL(IF(ISBLANK(INDIRECT(CONCATENATE("$",HLOOKUP(BrewReport!$F$7,$H$1:$L$2,2,FALSE),"$3:$",HLOOKUP(BrewReport!$F$7,$H$1:$L$2,2,FALSE),"$84"))), "", ROW(INDIRECT(CONCATENATE("$",HLOOKUP(BrewReport!$F$7,$H$1:$L$2,2,FALSE),"$3:$",HLOOKUP(BrewReport!$F$7,$H$1:$L$2,2,FALSE),"$84")))-MIN(ROW(INDIRECT(CONCATENATE("$",HLOOKUP(BrewReport!$F$7,$H$1:$L$2,2,FALSE),"$3:$",HLOOKUP(BrewReport!$F$7,$H$1:$L$2,2,FALSE),"$84"))))+1), ROW(A17))),"") -> Cara Aromatic
A20: Cara Hell | B20: 20 - 40 | C20: 30 | D20: 280 | E20: 0 | G20: =IFERROR(VLOOKUP(Malt!$A20,BrewReport!$A$9:$D$18,4,FALSE),0) -> 0 | H20: =G20*O8 -> 0 | I20: =G20*O16 -> 0 | J20: =G20*O7 -> 0 | K20: =G20*O16 -> 0 | P20: =IFERROR(INDEX($A$3:$A$85, SMALL(IF(ISBLANK(INDIRECT(CONCATENATE("$",HLOOKUP(BrewReport!$F$7,$H$1:$L$2,2,FALSE),"$3:$",HLOOKUP(BrewReport!$F$7,$H$1:$L$2,2,FALSE),"$84"))), "", ROW(INDIRECT(CONCATENATE("$",HLOOKUP(BrewReport!$F$7,$H$1:$L$2,2,FALSE),"$3:$",HLOOKUP(BrewReport!$F$7,$H$1:$L$2,2,FALSE),"$84")))-MIN(ROW(INDIRECT(CONCATENATE("$",HLOOKUP(BrewReport!$F$7,$H$1:$L$2,2,FALSE),"$3:$",HLOOKUP(BrewReport!$F$7,$H$1:$L$2,2,FALSE),"$84"))))+1), ROW(A18))),"") -> Cara Amber
A21: Cara Munich Type I | B21: 80 - 100 | C21: 90 | D21: 275 | E21: 0 | G21: =IFERROR(VLOOKUP(Malt!$A21,BrewReport!$A$9:$D$18,4,FALSE),0) -> 0 | H21: =G21*O7 -> 0 | I21: =G21*O16 -> 0 | J21: =G21*O7 -> 0 | K21: =G21*O15 -> 0 | P21: =IFERROR(INDEX($A$3:$A$85, SMALL(IF(ISBLANK(INDIRECT(CONCATENATE("$",HLOOKUP(BrewReport!$F$7,$H$1:$L$2,2,FALSE),"$3:$",HLOOKUP(BrewReport!$F$7,$H$1:$L$2,2,FALSE),"$84"))), "", ROW(INDIRECT(CONCATENATE("$",HLOOKUP(BrewReport!$F$7,$H$1:$L$2,2,FALSE),"$3:$",HLOOKUP(BrewReport!$F$7,$H$1:$L$2,2,FALSE),"$84")))-MIN(ROW(INDIRECT(CONCATENATE("$",HLOOKUP(BrewReport!$F$7,$H$1:$L$2,2,FALSE),"$3:$",HLOOKUP(BrewReport!$F$7,$H$1:$L$2,2,FALSE),"$84"))))+1), ROW(A19))),"") -> Cara Ruby
A22: Cara Munich Type II | B22: 110 - 130 | C22: 120 | D22: 275 | E22: 0 | G22: =IFERROR(VLOOKUP(Malt!$A22,BrewReport!$A$9:$D$18,4,FALSE),0) -> 0 | I22: =G22*O16 -> 0 | J22: =G22*O7 -> 0 | K22: =G22*O15 -> 0 | P22: =IFERROR(INDEX($A$3:$A$85, SMALL(IF(ISBLANK(INDIRECT(CONCATENATE("$",HLOOKUP(BrewReport!$F$7,$H$1:$L$2,2,FALSE),"$3:$",HLOOKUP(BrewReport!$F$7,$H$1:$L$2,2,FALSE),"$84"))), "", ROW(INDIRECT(CONCATENATE("$",HLOOKUP(BrewReport!$F$7,$H$1:$L$2,2,FALSE),"$3:$",HLOOKUP(BrewReport!$F$7,$H$1:$L$2,2,FALSE),"$84")))-MIN(ROW(INDIRECT(CONCATENATE("$",HLOOKUP(BrewReport!$F$7,$H$1:$L$2,2,FALSE),"$3:$",HLOOKUP(BrewReport!$F$7,$H$1:$L$2,2,FALSE),"$84"))))+1), ROW(A20))),"") -> Crystal
A23: Cara Munich Type III | B23: 140 - 160 | C23: 150 | D23: 275 | E23: 0 | G23: =IFERROR(VLOOKUP(Malt!$A23,BrewReport!$A$9:$D$18,4,FALSE),0) -> 0 | I23: =G23*O16 -> 0 | K23: =G23*O16 -> 0 | P23: =IFERROR(INDEX($A$3:$A$85, SMALL(IF(ISBLANK(INDIRECT(CONCATENATE("$",HLOOKUP(BrewReport!$F$7,$H$1:$L$2,2,FALSE),"$3:$",HLOOKUP(BrewReport!$F$7,$H$1:$L$2,2,FALSE),"$84"))), "", ROW(INDIRECT(CONCATENATE("$",HLOOKUP(BrewReport!$F$7,$H$1:$L$2,2,FALSE),"$3:$",HLOOKUP(BrewReport!$F$7,$H$1:$L$2,2,FALSE),"$84")))-MIN(ROW(INDIRECT(CONCATENATE("$",HLOOKUP(BrewReport!$F$7,$H$1:$L$2,2,FALSE),"$3:$",HLOOKUP(BrewReport!$F$7,$H$1:$L$2,2,FALSE),"$84"))))+1), ROW(A21))),"") -> Crystal 150
A24: Cara Red | B24: 40 | C24: 40 | D24: 290 | E24: 0 | G24: =IFERROR(VLOOKUP(Malt!$A24,BrewReport!$A$9:$D$18,4,FALSE),0) -> 0 | H24: =G24*O8 -> 0 | J24: =G24*O7 -> 0 | K24: =G24*O16 -> 0 | P24: =IFERROR(INDEX($A$3:$A$85, SMALL(IF(ISBLANK(INDIRECT(CONCATENATE("$",HLOOKUP(BrewReport!$F$7,$H$1:$L$2,2,FALSE),"$3:$",HLOOKUP(BrewReport!$F$7,$H$1:$L$2,2,FALSE),"$84"))), "", ROW(INDIRECT(CONCATENATE("$",HLOOKUP(BrewReport!$F$7,$H$1:$L$2,2,FALSE),"$3:$",HLOOKUP(BrewReport!$F$7,$H$1:$L$2,2,FALSE),"$84")))-MIN(ROW(INDIRECT(CONCATENATE("$",HLOOKUP(BrewReport!$F$7,$H$1:$L$2,2,FALSE),"$3:$",HLOOKUP(BrewReport!$F$7,$H$1:$L$2,2,FALSE),"$84"))))+1), ROW(A22))),"") -> Crystal 400
A25: Cara Aroma | B25: 350 - 450 | C25: 400 | D25: 290 | E25: 0 | G25: =IFERROR(VLOOKUP(Malt!$A25,BrewReport!$A$9:$D$18,4,FALSE),0) -> 0 | H25: =G25*O9 -> 0 | I25: =G25*O16 -> 0 | K25: =G25*O16 -> 0 | P25: =IFERROR(INDEX($A$3:$A$85, SMALL(IF(ISBLANK(INDIRECT(CONCATENATE("$",HLOOKUP(BrewReport!$F$7,$H$1:$L$2,2,FALSE),"$3:$",HLOOKUP(BrewReport!$F$7,$H$1:$L$2,2,FALSE),"$84"))), "", ROW(INDIRECT(CONCATENATE("$",HLOOKUP(BrewReport!$F$7,$H$1:$L$2,2,FALSE),"$3:$",HLOOKUP(BrewReport!$F$7,$H$1:$L$2,2,FALSE),"$84")))-MIN(ROW(INDIRECT(CONCATENATE("$",HLOOKUP(BrewReport!$F$7,$H$1:$L$2,2,FALSE),"$3:$",HLOOKUP(BrewReport!$F$7,$H$1:$L$2,2,FALSE),"$84"))))+1), ROW(A23))),"") -> Special B
A26: Cara Aromatic | B26: 41 - 60 | C26: 50 | D26: 290 | E26: 0 | F26: Noter af karamel og mandler | G26: =IFERROR(VLOOKUP(Malt!$A26,BrewReport!$A$9:$D$18,4,FALSE),0) -> 0 | I26: =G26*O16 -> 0 | P26: =IFERROR(INDEX($A$3:$A$85, SMALL(IF(ISBLANK(INDIRECT(CONCATENATE("$",HLOOKUP(BrewReport!$F$7,$H$1:$L$2,2,FALSE),"$3:$",HLOOKUP(BrewReport!$F$7,$H$1:$L$2,2,FALSE),"$84"))), "", ROW(INDIRECT(CONCATENATE("$",HLOOKUP(BrewReport!$F$7,$H$1:$L$2,2,FALSE),"$3:$",HLOOKUP(BrewReport!$F$7,$H$1:$L$2,2,FALSE),"$84")))-MIN(ROW(INDIRECT(CONCATENATE("$",HLOOKUP(BrewReport!$F$7,$H$1:$L$2,2,FALSE),"$3:$",HLOOKUP(BrewReport!$F$7,$H$1:$L$2,2,FALSE),"$84"))))+1), ROW(A24))),"") -> Special X
A27: Cara Amber | B27: 60 | C27: 60 | D27: 290 | E27: 0 | G27: =IFERROR(VLOOKUP(Malt!$A27,BrewReport!$A$9:$D$18,4,FALSE),0) -> 0 | H27: =G27*O9 -> 0 | I27: =G27*O16 -> 0 | K27: =G27*O16 -> 0 | P27: =IFERROR(INDEX($A$3:$A$85, SMALL(IF(ISBLANK(INDIRECT(CONCATENATE("$",HLOOKUP(BrewReport!$F$7,$H$1:$L$2,2,FALSE),"$3:$",HLOOKUP(BrewReport!$F$7,$H$1:$L$2,2,FALSE),"$84"))), "", ROW(INDIRECT(CONCATENATE("$",HLOOKUP(BrewReport!$F$7,$H$1:$L$2,2,FALSE),"$3:$",HLOOKUP(BrewReport!$F$7,$H$1:$L$2,2,FALSE),"$84")))-MIN(ROW(INDIRECT(CONCATENATE("$",HLOOKUP(BrewReport!$F$7,$H$1:$L$2,2,FALSE),"$3:$",HLOOKUP(BrewReport!$F$7,$H$1:$L$2,2,FALSE),"$84"))))+1), ROW(A25))),"") -> Coffee / Café Light
A28: Cara Rye | B28: 90 | C28: 90 | D28: 260 | E28: 0 | G28: =IFERROR(VLOOKUP(Malt!$A28,BrewReport!$A$9:$D$18,4,FALSE),0) -> 0 | H28: =G28*O9 -> 0 | P28: =IFERROR(INDEX($A$3:$A$85, SMALL(IF(ISBLANK(INDIRECT(CONCATENATE("$",HLOOKUP(BrewReport!$F$7,$H$1:$L$2,2,FALSE),"$3:$",HLOOKUP(BrewReport!$F$7,$H$1:$L$2,2,FALSE),"$84"))), "", ROW(INDIRECT(CONCATENATE("$",HLOOKUP(BrewReport!$F$7,$H$1:$L$2,2,FALSE),"$3:$",HLOOKUP(BrewReport!$F$7,$H$1:$L$2,2,FALSE),"$84")))-MIN(ROW(INDIRECT(CONCATENATE("$",HLOOKUP(BrewReport!$F$7,$H$1:$L$2,2,FALSE),"$3:$",HLOOKUP(BrewReport!$F$7,$H$1:$L$2,2,FALSE),"$84"))))+1), ROW(A27))),"") -> Roasted Barley
A29: Cara Ruby | B29: 50 | C29: 50 | D29: 290 | E29: 0 | F29: Rig karamelsmag og toffee aroma | G29: =IFERROR(VLOOKUP(Malt!$A29,BrewReport!$A$9:$D$18,4,FALSE),0) -> 0 | I29: =G29*O16 -> 0 | J29: =G29*O3 -> 0 | L29: =G29*O9 -> 0 | P29: =IFERROR(INDEX($A$3:$A$85, SMALL(IF(ISBLANK(INDIRECT(CONCATENATE("$",HLOOKUP(BrewReport!$F$7,$H$1:$L$2,2,FALSE),"$3:$",HLOOKUP(BrewReport!$F$7,$H$1:$L$2,2,FALSE),"$84"))), "", ROW(INDIRECT(CONCATENATE("$",HLOOKUP(BrewReport!$F$7,$H$1:$L$2,2,FALSE),"$3:$",HLOOKUP(BrewReport!$F$7,$H$1:$L$2,2,FALSE),"$84")))-MIN(ROW(INDIRECT(CONCATENATE("$",HLOOKUP(BrewReport!$F$7,$H$1:$L$2,2,FALSE),"$3:$",HLOOKUP(BrewReport!$F$7,$H$1:$L$2,2,FALSE),"$84"))))+1), ROW(A28))),"") -> Chocolate
A30: Cara Wheat | B30: 100 - 140 | C30: 120 | D30: 290 | E30: 0 | G30: =IFERROR(VLOOKUP(Malt!$A30,BrewReport!$A$9:$D$18,4,FALSE),0) -> 0 | H30: =G30*O9 -> 0 | P30: =IFERROR(INDEX($A$3:$A$85, SMALL(IF(ISBLANK(INDIRECT(CONCATENATE("$",HLOOKUP(BrewReport!$F$7,$H$1:$L$2,2,FALSE),"$3:$",HLOOKUP(BrewReport!$F$7,$H$1:$L$2,2,FALSE),"$84"))), "", ROW(INDIRECT(CONCATENATE("$",HLOOKUP(BrewReport!$F$7,$H$1:$L$2,2,FALSE),"$3:$",HLOOKUP(BrewReport!$F$7,$H$1:$L$2,2,FALSE),"$84")))-MIN(ROW(INDIRECT(CONCATENATE("$",HLOOKUP(BrewReport!$F$7,$H$1:$L$2,2,FALSE),"$3:$",HLOOKUP(BrewReport!$F$7,$H$1:$L$2,2,FALSE),"$84"))))+1), ROW(A29))),"") -> Black
A31: Crystal | B31: 150 | C31: 150 | D31: 280 | E31: 0 | F31: Rig malt smag og aroma. Blød bitterhed | G31: =IFERROR(VLOOKUP(Malt!$A31,BrewReport!$A$9:$D$18,4,FALSE),0) -> 0 | I31: =G31*O16 -> 0 | P31: =IFERROR(INDEX($A$3:$A$85, SMALL(IF(ISBLANK(INDIRECT(CONCATENATE("$",HLOOKUP(BrewReport!$F$7,$H$1:$L$2,2,FALSE),"$3:$",HLOOKUP(BrewReport!$F$7,$H$1:$L$2,2,FALSE),"$84"))), "", ROW(INDIRECT(CONCATENATE("$",HLOOKUP(BrewReport!$F$7,$H$1:$L$2,2,FALSE),"$3:$",HLOOKUP(BrewReport!$F$7,$H$1:$L$2,2,FALSE),"$84")))-MIN(ROW(INDIRECT(CONCATENATE("$",HLOOKUP(BrewReport!$F$7,$H$1:$L$2,2,FALSE),"$3:$",HLOOKUP(BrewReport!$F$7,$H$1:$L$2,2,FALSE),"$84"))))+1), ROW(A30))),"") -> Wheat Blanc
A32: Crystal 150 | B32: 150 | C32: 150 | D32: 280 | E32: 0 | F32: Sød karamelagtig smag og gyldent skær | G32: =IFERROR(VLOOKUP(Malt!$A32,BrewReport!$A$9:$D$18,4,FALSE),0) -> 0 | I32: =G32*O16 -> 0 | P32: =IFERROR(INDEX($A$3:$A$85, SMALL(IF(ISBLANK(INDIRECT(CONCATENATE("$",HLOOKUP(BrewReport!$F$7,$H$1:$L$2,2,FALSE),"$3:$",HLOOKUP(BrewReport!$F$7,$H$1:$L$2,2,FALSE),"$84"))), "", ROW(INDIRECT(CONCATENATE("$",HLOOKUP(BrewReport!$F$7,$H$1:$L$2,2,FALSE),"$3:$",HLOOKUP(BrewReport!$F$7,$H$1:$L$2,2,FALSE),"$84")))-MIN(ROW(INDIRECT(CONCATENATE("$",HLOOKUP(BrewReport!$F$7,$H$1:$L$2,2,FALSE),"$3:$",HLOOKUP(BrewReport!$F$7,$H$1:$L$2,2,FALSE),"$84"))))+1), ROW(A31))),"") -> Wheat
A33: Crystal 400 | B33: 400 | C33: 400 | D33: 250 | E33: 0 | F33: Dark Crystal malt er velegnet til at tilrette smag og farve og tilføre øllet en rød og helt ned til dyb rød farve | G33: =IFERROR(VLOOKUP(Malt!$A33,BrewReport!$A$9:$D$18,4,FALSE),0) -> 0 | H33: =G33*O10 -> 0 | I33: =G33*O16 -> 0 | P33: =IFERROR(INDEX($A$3:$A$85, SMALL(IF(ISBLANK(INDIRECT(CONCATENATE("$",HLOOKUP(BrewReport!$F$7,$H$1:$L$2,2,FALSE),"$3:$",HLOOKUP(BrewReport!$F$7,$H$1:$L$2,2,FALSE),"$84"))), "", ROW(INDIRECT(CONCATENATE("$",HLOOKUP(BrewReport!$F$7,$H$1:$L$2,2,FALSE),"$3:$",HLOOKUP(BrewReport!$F$7,$H$1:$L$2,2,FALSE),"$84")))-MIN(ROW(INDIRECT(CONCATENATE("$",HLOOKUP(BrewReport!$F$7,$H$1:$L$2,2,FALSE),"$3:$",HLOOKUP(BrewReport!$F$7,$H$1:$L$2,2,FALSE),"$84"))))+1), ROW(A32))),"") -> Wheat Munich
A34: Special B | B34: 300 | C34: 300 | D34: 250 | E34: 0 | F34: Rosinagtig smag, strejf af nødder og blommer | G34: =IFERROR(VLOOKUP(Malt!$A34,BrewReport!$A$9:$D$18,4,FALSE),0) -> 0 | H34: =G34*O9 -> 0 | I34: =G34*O16 -> 0 | J34: =G34*O7 -> 0 | K34: =G34*O16 -> 0 | P34: =IFERROR(INDEX($A$3:$A$85, SMALL(IF(ISBLANK(INDIRECT(CONCATENATE("$",HLOOKUP(BrewReport!$F$7,$H$1:$L$2,2,FALSE),"$3:$",HLOOKUP(BrewReport!$F$7,$H$1:$L$2,2,FALSE),"$84"))), "", ROW(INDIRECT(CONCATENATE("$",HLOOKUP(BrewReport!$F$7,$H$1:$L$2,2,FALSE),"$3:$",HLOOKUP(BrewReport!$F$7,$H$1:$L$2,2,FALSE),"$84")))-MIN(ROW(INDIRECT(CONCATENATE("$",HLOOKUP(BrewReport!$F$7,$H$1:$L$2,2,FALSE),"$3:$",HLOOKUP(BrewReport!$F$7,$H$1:$L$2,2,FALSE),"$84"))))+1), ROW(A33))),"") -> Amber
A35: Special X | B35: 300 - 400 | C35: 350 | D35: 250 | E35: 0 | G35: =IFERROR(VLOOKUP(Malt!$A35,BrewReport!$A$9:$D$18,4,FALSE),0) -> 0 | I35: =G35*O16 -> 0 | P35: =IFERROR(INDEX($A$3:$A$85, SMALL(IF(ISBLANK(INDIRECT(CONCATENATE("$",HLOOKUP(BrewReport!$F$7,$H$1:$L$2,2,FALSE),"$3:$",HLOOKUP(BrewReport!$F$7,$H$1:$L$2,2,FALSE),"$84"))), "", ROW(INDIRECT(CONCATENATE("$",HLOOKUP(BrewReport!$F$7,$H$1:$L$2,2,FALSE),"$3:$",HLOOKUP(BrewReport!$F$7,$H$1:$L$2,2,FALSE),"$84")))-MIN(ROW(INDIRECT(CONCATENATE("$",HLOOKUP(BrewReport!$F$7,$H$1:$L$2,2,FALSE),"$3:$",HLOOKUP(BrewReport!$F$7,$H$1:$L$2,2,FALSE),"$84"))))+1), ROW(A34))),"") -> Biscuit
A36: Golden Naked Oats | B36: 18 | C36: 18 | D36: 270 | E36: 0 | F36: Speciel nøddeagtig smag | G36: =IFERROR(VLOOKUP(Malt!$A36,BrewReport!$A$9:$D$18,4,FALSE),0) -> 0 | H36: =G36*O8 -> 0 | P36: =IFERROR(INDEX($A$3:$A$85, SMALL(IF(ISBLANK(INDIRECT(CONCATENATE("$",HLOOKUP(BrewReport!$F$7,$H$1:$L$2,2,FALSE),"$3:$",HLOOKUP(BrewReport!$F$7,$H$1:$L$2,2,FALSE),"$84"))), "", ROW(INDIRECT(CONCATENATE("$",HLOOKUP(BrewReport!$F$7,$H$1:$L$2,2,FALSE),"$3:$",HLOOKUP(BrewReport!$F$7,$H$1:$L$2,2,FALSE),"$84")))-MIN(ROW(INDIRECT(CONCATENATE("$",HLOOKUP(BrewReport!$F$7,$H$1:$L$2,2,FALSE),"$3:$",HLOOKUP(BrewReport!$F$7,$H$1:$L$2,2,FALSE),"$84"))))+1), ROW(A35))),"") -> Brown
A37: Coffee / Café Light | B37: 250 | C37: 250 | D37: 280 | E37: 0 | F37: Mild nøddeagtig og kaffesmag | G37: =IFERROR(VLOOKUP(Malt!$A37,BrewReport!$A$9:$D$18,4,FALSE),0) -> 0 | I37: =G37*O16 -> 0 | L37: =G37*O10 -> 0 | P37: =IFERROR(INDEX($A$3:$A$85, SMALL(IF(ISBLANK(INDIRECT(CONCATENATE("$",HLOOKUP(BrewReport!$F$7,$H$1:$L$2,2,FALSE),"$3:$",HLOOKUP(BrewReport!$F$7,$H$1:$L$2,2,FALSE),"$84"))), "", ROW(INDIRECT(CONCATENATE("$",HLOOKUP(BrewReport!$F$7,$H$1:$L$2,2,FALSE),"$3:$",HLOOKUP(BrewReport!$F$7,$H$1:$L$2,2,FALSE),"$84")))-MIN(ROW(INDIRECT(CONCATENATE("$",HLOOKUP(BrewReport!$F$7,$H$1:$L$2,2,FALSE),"$3:$",HLOOKUP(BrewReport!$F$7,$H$1:$L$2,2,FALSE),"$84"))))+1), ROW(A36))),"") -> Arome
A38: Coffee / Café | B38: 500 | C38: 500 | D38: 280 | E38: 0 | F38: Mild nøddeagtig og kaffesmag | G38: =IFERROR(VLOOKUP(Malt!$A38,BrewReport!$A$9:$D$18,4,FALSE),0) -> 0 | H38: =G38*O10 -> 0 | I38: =G38*O16 -> 0 | L38: =G38*O10 -> 0 | P38: =IFERROR(INDEX($A$3:$A$85, SMALL(IF(ISBLANK(INDIRECT(CONCATENATE("$",HLOOKUP(BrewReport!$F$7,$H$1:$L$2,2,FALSE),"$3:$",HLOOKUP(BrewReport!$F$7,$H$1:$L$2,2,FALSE),"$84"))), "", ROW(INDIRECT(CONCATENATE("$",HLOOKUP(BrewReport!$F$7,$H$1:$L$2,2,FALSE),"$3:$",HLOOKUP(BrewReport!$F$7,$H$1:$L$2,2,FALSE),"$84")))-MIN(ROW(INDIRECT(CONCATENATE("$",HLOOKUP(BrewReport!$F$7,$H$1:$L$2,2,FALSE),"$3:$",HLOOKUP(BrewReport!$F$7,$H$1:$L$2,2,FALSE),"$84"))))+1), ROW(A37))),"") -> Melano Light
A39: Ristet Malt | P39: =IFERROR(INDEX($A$3:$A$85, SMALL(IF(ISBLANK(INDIRECT(CONCATENATE("$",HLOOKUP(BrewReport!$F$7,$H$1:$L$2,2,FALSE),"$3:$",HLOOKUP(BrewReport!$F$7,$H$1:$L$2,2,FALSE),"$84"))), "", ROW(INDIRECT(CONCATENATE("$",HLOOKUP(BrewReport!$F$7,$H$1:$L$2,2,FALSE),"$3:$",HLOOKUP(BrewReport!$F$7,$H$1:$L$2,2,FALSE),"$84")))-MIN(ROW(INDIRECT(CONCATENATE("$",HLOOKUP(BrewReport!$F$7,$H$1:$L$2,2,FALSE),"$3:$",HLOOKUP(BrewReport!$F$7,$H$1:$L$2,2,FALSE),"$84"))))+1), ROW(A38))),"") -> Melano
A40: Roasted Barley | B40: 1200 - 1400 | C40: 1300 | D40: 210 | E40: 0 | F40: Kaffeagtig smag, kraftigt ristet smag. Sødme | G40: =IFERROR(VLOOKUP(Malt!$A40,BrewReport!$A$9:$D$18,4,FALSE),0) -> 0 | H40: =G40*O10 -> 0 | I40: =G40*O16 -> 0 | K40: =G40*O15 -> 0 | L40: =G40*O7 -> 0 | P40: =IFERROR(INDEX($A$3:$A$85, SMALL(IF(ISBLANK(INDIRECT(CONCATENATE("$",HLOOKUP(BrewReport!$F$7,$H$1:$L$2,2,FALSE),"$3:$",HLOOKUP(BrewReport!$F$7,$H$1:$L$2,2,FALSE),"$84"))), "", ROW(INDIRECT(CONCATENATE("$",HLOOKUP(BrewReport!$F$7,$H$1:$L$2,2,FALSE),"$3:$",HLOOKUP(BrewReport!$F$7,$H$1:$L$2,2,FALSE),"$84")))-MIN(ROW(INDIRECT(CONCATENATE("$",HLOOKUP(BrewReport!$F$7,$H$1:$L$2,2,FALSE),"$3:$",HLOOKUP(BrewReport!$F$7,$H$1:$L$2,2,FALSE),"$84"))))+1), ROW(A39))),"") -> Melanoidin
A41: Roasted Wheat | B41: 950 - 1050 | C41: 1000 | D41: 210 | E41: 0 | G41: =IFERROR(VLOOKUP(Malt!$A41,BrewReport!$A$9:$D$18,4,FALSE),0) -> 0 | H41: =G41*O10 -> 0 | K41: =G41*O15 -> 0 | P41: =IFERROR(INDEX($A$3:$A$85, SMALL(IF(ISBLANK(INDIRECT(CONCATENATE("$",HLOOKUP(BrewReport!$F$7,$H$1:$L$2,2,FALSE),"$3:$",HLOOKUP(BrewReport!$F$7,$H$1:$L$2,2,FALSE),"$84"))), "", ROW(INDIRECT(CONCATENATE("$",HLOOKUP(BrewReport!$F$7,$H$1:$L$2,2,FALSE),"$3:$",HLOOKUP(BrewReport!$F$7,$H$1:$L$2,2,FALSE),"$84")))-MIN(ROW(INDIRECT(CONCATENATE("$",HLOOKUP(BrewReport!$F$7,$H$1:$L$2,2,FALSE),"$3:$",HLOOKUP(BrewReport!$F$7,$H$1:$L$2,2,FALSE),"$84"))))+1), ROW(A40))),"") -> Boghvede / Buckwheat (1kg)
A42: Roasted Rye | B42: 500 - 800 | C42: 650 | D42: 260 | E42: 0 | G42: =IFERROR(VLOOKUP(Malt!$A42,BrewReport!$A$9:$D$18,4,FALSE),0) -> 0 | H42: =G42*O10 -> 0 | J42: =G42*O4 -> 0 | P42: =IFERROR(INDEX($A$3:$A$85, SMALL(IF(ISBLANK(INDIRECT(CONCATENATE("$",HLOOKUP(BrewReport!$F$7,$H$1:$L$2,2,FALSE),"$3:$",HLOOKUP(BrewReport!$F$7,$H$1:$L$2,2,FALSE),"$84"))), "", ROW(INDIRECT(CONCATENATE("$",HLOOKUP(BrewReport!$F$7,$H$1:$L$2,2,FALSE),"$3:$",HLOOKUP(BrewReport!$F$7,$H$1:$L$2,2,FALSE),"$84")))-MIN(ROW(INDIRECT(CONCATENATE("$",HLOOKUP(BrewReport!$F$7,$H$1:$L$2,2,FALSE),"$3:$",HLOOKUP(BrewReport!$F$7,$H$1:$L$2,2,FALSE),"$84"))))+1), ROW(A41))),"") -> Acid / Sauer
A43: Chocolate Rye | B43: 800 | C43: 800 | D43: 260 | E43: 0 | G43: =IFERROR(VLOOKUP(Malt!$A43,BrewReport!$A$9:$D$18,4,FALSE),0) -> 0 | J43: =G43*O7 -> 0 | P43: =IFERROR(INDEX($A$3:$A$85, SMALL(IF(ISBLANK(INDIRECT(CONCATENATE("$",HLOOKUP(BrewReport!$F$7,$H$1:$L$2,2,FALSE),"$3:$",HLOOKUP(BrewReport!$F$7,$H$1:$L$2,2,FALSE),"$84"))), "", ROW(INDIRECT(CONCATENATE("$",HLOOKUP(BrewReport!$F$7,$H$1:$L$2,2,FALSE),"$3:$",HLOOKUP(BrewReport!$F$7,$H$1:$L$2,2,FALSE),"$84")))-MIN(ROW(INDIRECT(CONCATENATE("$",HLOOKUP(BrewReport!$F$7,$H$1:$L$2,2,FALSE),"$3:$",HLOOKUP(BrewReport!$F$7,$H$1:$L$2,2,FALSE),"$84"))))+1), ROW(A42))),"") -> Abbey
A44: Chocolate | B44: 800 - 900 | C44: 900 | D44: 275 | E44: 0 | F44: Nøddeagtig og ristet smag | G44: =IFERROR(VLOOKUP(Malt!$A44,BrewReport!$A$9:$D$18,4,FALSE),0) -> 0 | H44: =G44*O10 -> 0 | I44: =G44*O16 -> 0 | J44: =G44*O7 -> 0 | K44: =G44*O16 -> 0 | L44: =G44*O9 -> 0 | P44: =IFERROR(INDEX($A$3:$A$85, SMALL(IF(ISBLANK(INDIRECT(CONCATENATE("$",HLOOKUP(BrewReport!$F$7,$H$1:$L$2,2,FALSE),"$3:$",HLOOKUP(BrewReport!$F$7,$H$1:$L$2,2,FALSE),"$84"))), "", ROW(INDIRECT(CONCATENATE("$",HLOOKUP(BrewReport!$F$7,$H$1:$L$2,2,FALSE),"$3:$",HLOOKUP(BrewReport!$F$7,$H$1:$L$2,2,FALSE),"$84")))-MIN(ROW(INDIRECT(CONCATENATE("$",HLOOKUP(BrewReport!$F$7,$H$1:$L$2,2,FALSE),"$3:$",HLOOKUP(BrewReport!$F$7,$H$1:$L$2,2,FALSE),"$84"))))+1), ROW(A43))),"") -> Peated / Røg
A45: Dehusked Chocolate | B45: 800 | C45: 800 | D45: 275 | E45: 0 | G45: =IFERROR(VLOOKUP(Malt!$A45,BrewReport!$A$9:$D$18,4,FALSE),0) -> 0 | H45: =G45*O10 -> 0 | P45: =IFERROR(INDEX($A$3:$A$85, SMALL(IF(ISBLANK(INDIRECT(CONCATENATE("$",HLOOKUP(BrewReport!$F$7,$H$1:$L$2,2,FALSE),"$3:$",HLOOKUP(BrewReport!$F$7,$H$1:$L$2,2,FALSE),"$84"))), "", ROW(INDIRECT(CONCATENATE("$",HLOOKUP(BrewReport!$F$7,$H$1:$L$2,2,FALSE),"$3:$",HLOOKUP(BrewReport!$F$7,$H$1:$L$2,2,FALSE),"$84")))-MIN(ROW(INDIRECT(CONCATENATE("$",HLOOKUP(BrewReport!$F$7,$H$1:$L$2,2,FALSE),"$3:$",HLOOKUP(BrewReport!$F$7,$H$1:$L$2,2,FALSE),"$84"))))+1), ROW(A44))),"") -> Oat
A46: Black | B46: 1500 | C46: 1500 | D46: 210 | E46: 0 | F46: Let brændt smag | G46: =IFERROR(VLOOKUP(Malt!$A46,BrewReport!$A$9:$D$18,4,FALSE),0) -> 0 | H46: =G46*O10 -> 0 | I46: =G46*O16 -> 0 | J46: =G46*O7 -> 0 | K46: =G46*O16 -> 0 | L46: =G46*O10 -> 0 | P46: =IFERROR(INDEX($A$3:$A$85, SMALL(IF(ISBLANK(INDIRECT(CONCATENATE("$",HLOOKUP(BrewReport!$F$7,$H$1:$L$2,2,FALSE),"$3:$",HLOOKUP(BrewReport!$F$7,$H$1:$L$2,2,FALSE),"$84"))), "", ROW(INDIRECT(CONCATENATE("$",HLOOKUP(BrewReport!$F$7,$H$1:$L$2,2,FALSE),"$3:$",HLOOKUP(BrewReport!$F$7,$H$1:$L$2,2,FALSE),"$84")))-MIN(ROW(INDIRECT(CONCATENATE("$",HLOOKUP(BrewReport!$F$7,$H$1:$L$2,2,FALSE),"$3:$",HLOOKUP(BrewReport!$F$7,$H$1:$L$2,2,FALSE),"$84"))))+1), ROW(A45))),"") -> Rye
A47: Dehusked Black / carafa Special type II | B47: 1400 | C47: 1400 | D47: 210 | E47: 0 | G47: =IFERROR(VLOOKUP(Malt!$A47,BrewReport!$A$9:$D$18,4,FALSE),0) -> 0 | H47: =G47*O10 -> 0 | K47: =G47*O16 -> 0 | P47: =IFERROR(INDEX($A$3:$A$85, SMALL(IF(ISBLANK(INDIRECT(CONCATENATE("$",HLOOKUP(BrewReport!$F$7,$H$1:$L$2,2,FALSE),"$3:$",HLOOKUP(BrewReport!$F$7,$H$1:$L$2,2,FALSE),"$84"))), "", ROW(INDIRECT(CONCATENATE("$",HLOOKUP(BrewReport!$F$7,$H$1:$L$2,2,FALSE),"$3:$",HLOOKUP(BrewReport!$F$7,$H$1:$L$2,2,FALSE),"$84")))-MIN(ROW(INDIRECT(CONCATENATE("$",HLOOKUP(BrewReport!$F$7,$H$1:$L$2,2,FALSE),"$3:$",HLOOKUP(BrewReport!$F$7,$H$1:$L$2,2,FALSE),"$84"))))+1), ROW(A46))),"") -> Spelt
A48: Wheat Chocolate | B48: 900 - 1200 | C48: 1050 | D48: 275 | E48: 0 | G48: =IFERROR(VLOOKUP(Malt!$A48,BrewReport!$A$9:$D$18,4,FALSE),0) -> 0 | H48: =G48*O10 -> 0 | J48: =G48*O7 -> 0 | K48: =G48*O16 -> 0 | P48: =IFERROR(INDEX($A$3:$A$85, SMALL(IF(ISBLANK(INDIRECT(CONCATENATE("$",HLOOKUP(BrewReport!$F$7,$H$1:$L$2,2,FALSE),"$3:$",HLOOKUP(BrewReport!$F$7,$H$1:$L$2,2,FALSE),"$84"))), "", ROW(INDIRECT(CONCATENATE("$",HLOOKUP(BrewReport!$F$7,$H$1:$L$2,2,FALSE),"$3:$",HLOOKUP(BrewReport!$F$7,$H$1:$L$2,2,FALSE),"$84")))-MIN(ROW(INDIRECT(CONCATENATE("$",HLOOKUP(BrewReport!$F$7,$H$1:$L$2,2,FALSE),"$3:$",HLOOKUP(BrewReport!$F$7,$H$1:$L$2,2,FALSE),"$84"))))+1), ROW(A47))),"") -> Barley Flaked
A49: Chocolate Spelt | B49: 450 - 650 | C49: 550 | D49: 250 | E49: 0 | G49: =IFERROR(VLOOKUP(Malt!$A49,BrewReport!$A$9:$D$18,4,FALSE),0) -> 0 | J49: =G49*O16 -> 0 | P49: =IFERROR(INDEX($A$3:$A$85, SMALL(IF(ISBLANK(INDIRECT(CONCATENATE("$",HLOOKUP(BrewReport!$F$7,$H$1:$L$2,2,FALSE),"$3:$",HLOOKUP(BrewReport!$F$7,$H$1:$L$2,2,FALSE),"$84"))), "", ROW(INDIRECT(CONCATENATE("$",HLOOKUP(BrewReport!$F$7,$H$1:$L$2,2,FALSE),"$3:$",HLOOKUP(BrewReport!$F$7,$H$1:$L$2,2,FALSE),"$84")))-MIN(ROW(INDIRECT(CONCATENATE("$",HLOOKUP(BrewReport!$F$7,$H$1:$L$2,2,FALSE),"$3:$",HLOOKUP(BrewReport!$F$7,$H$1:$L$2,2,FALSE),"$84"))))+1), ROW(A48))),"") -> Torrefied Flaked Maize
A50: Brown | B50: 400 - 600 | C50: 500 | D50: 250 | E50: 0 | G50: =IFERROR(VLOOKUP(Malt!$A50,BrewReport!$A$9:$D$18,4,FALSE),0) -> 0 | H50: =G50*O10 -> 0 | P50: =IFERROR(INDEX($A$3:$A$85, SMALL(IF(ISBLANK(INDIRECT(CONCATENATE("$",HLOOKUP(BrewReport!$F$7,$H$1:$L$2,2,FALSE),"$3:$",HLOOKUP(BrewReport!$F$7,$H$1:$L$2,2,FALSE),"$84"))), "", ROW(INDIRECT(CONCATENATE("$",HLOOKUP(BrewReport!$F$7,$H$1:$L$2,2,FALSE),"$3:$",HLOOKUP(BrewReport!$F$7,$H$1:$L$2,2,FALSE),"$84")))-MIN(ROW(INDIRECT(CONCATENATE("$",HLOOKUP(BrewReport!$F$7,$H$1:$L$2,2,FALSE),"$3:$",HLOOKUP(BrewReport!$F$7,$H$1:$L$2,2,FALSE),"$84"))))+1), ROW(A49))),"") -> Torrefied Flaked Oat
A51: Hvede Malt | P51: =IFERROR(INDEX($A$3:$A$85, SMALL(IF(ISBLANK(INDIRECT(CONCATENATE("$",HLOOKUP(BrewReport!$F$7,$H$1:$L$2,2,FALSE),"$3:$",HLOOKUP(BrewReport!$F$7,$H$1:$L$2,2,FALSE),"$84"))), "", ROW(INDIRECT(CONCATENATE("$",HLOOKUP(BrewReport!$F$7,$H$1:$L$2,2,FALSE),"$3:$",HLOOKUP(BrewReport!$F$7,$H$1:$L$2,2,FALSE),"$84")))-MIN(ROW(INDIRECT(CONCATENATE("$",HLOOKUP(BrewReport!$F$7,$H$1:$L$2,2,FALSE),"$3:$",HLOOKUP(BrewReport!$F$7,$H$1:$L$2,2,FALSE),"$84"))))+1), ROW(A50))),"") -> Wheat Flaked
A52: CaraWheat | B52: 100 - 140 | C52: 120 | D52: 290 | E52: 0 | G52: =IFERROR(VLOOKUP(Malt!$A52,BrewReport!$A$9:$D$18,4,FALSE),0) -> 0 | H52: =G52*O6 -> 0 | K52: =G52*O15 -> 0 | P52: =IFERROR(INDEX($A$3:$A$85, SMALL(IF(ISBLANK(INDIRECT(CONCATENATE("$",HLOOKUP(BrewReport!$F$7,$H$1:$L$2,2,FALSE),"$3:$",HLOOKUP(BrewReport!$F$7,$H$1:$L$2,2,FALSE),"$84"))), "", ROW(INDIRECT(CONCATENATE("$",HLOOKUP(BrewReport!$F$7,$H$1:$L$2,2,FALSE),"$3:$",HLOOKUP(BrewReport!$F$7,$H$1:$L$2,2,FALSE),"$84")))-MIN(ROW(INDIRECT(CONCATENATE("$",HLOOKUP(BrewReport!$F$7,$H$1:$L$2,2,FALSE),"$3:$",HLOOKUP(BrewReport!$F$7,$H$1:$L$2,2,FALSE),"$84"))))+1), ROW(A51))),"") -> Torrefied Flaked Rice
A53: Wheat Blanc | B53: 3 | C53: 3 | D53: 310 | E53: 75 | F53: Fylde og skumstabilitet | G53: =IFERROR(VLOOKUP(Malt!$A53,BrewReport!$A$9:$D$18,4,FALSE),0) -> 0 | H53: =G53*O5 -> 0 | I53: =G53*O7 -> 0 | K53: =G53*O16 -> 0 | L53: =G53*O5 -> 0 | P53: =IFERROR(INDEX($A$3:$A$85, SMALL(IF(ISBLANK(INDIRECT(CONCATENATE("$",HLOOKUP(BrewReport!$F$7,$H$1:$L$2,2,FALSE),"$3:$",HLOOKUP(BrewReport!$F$7,$H$1:$L$2,2,FALSE),"$84"))), "", ROW(INDIRECT(CONCATENATE("$",HLOOKUP(BrewReport!$F$7,$H$1:$L$2,2,FALSE),"$3:$",HLOOKUP(BrewReport!$F$7,$H$1:$L$2,2,FALSE),"$84")))-MIN(ROW(INDIRECT(CONCATENATE("$",HLOOKUP(BrewReport!$F$7,$H$1:$L$2,2,FALSE),"$3:$",HLOOKUP(BrewReport!$F$7,$H$1:$L$2,2,FALSE),"$84"))))+1), ROW(A52))),"") -> 
A54: Wheat | B54: 15 - 20 | C54: 18 | D54: 325 | E54: 75 | G54: =IFERROR(VLOOKUP(Malt!$A54,BrewReport!$A$9:$D$18,4,FALSE),0) -> 0 | I54: =G54*O7 -> 0 | J54: =G54*O2 -> 0 | K54: =G54*O16 -> 0 | P54: =IFERROR(INDEX($A$3:$A$85, SMALL(IF(ISBLANK(INDIRECT(CONCATENATE("$",HLOOKUP(BrewReport!$F$7,$H$1:$L$2,2,FALSE),"$3:$",HLOOKUP(BrewReport!$F$7,$H$1:$L$2,2,FALSE),"$84"))), "", ROW(INDIRECT(CONCATENATE("$",HLOOKUP(BrewReport!$F$7,$H$1:$L$2,2,FALSE),"$3:$",HLOOKUP(BrewReport!$F$7,$H$1:$L$2,2,FALSE),"$84")))-MIN(ROW(INDIRECT(CONCATENATE("$",HLOOKUP(BrewReport!$F$7,$H$1:$L$2,2,FALSE),"$3:$",HLOOKUP(BrewReport!$F$7,$H$1:$L$2,2,FALSE),"$84"))))+1), ROW(A53))),"") -> 
A55: Wheat Dark | B55: 15 | C55: 15 | D55: 325 | E55: 10 | G55: =IFERROR(VLOOKUP(Malt!$A55,BrewReport!$A$9:$D$18,4,FALSE),0) -> 0 | H55: =G55*O8 -> 0 | J55: =G55*O3 -> 0 | P55: =IFERROR(INDEX($A$3:$A$85, SMALL(IF(ISBLANK(INDIRECT(CONCATENATE("$",HLOOKUP(BrewReport!$F$7,$H$1:$L$2,2,FALSE),"$3:$",HLOOKUP(BrewReport!$F$7,$H$1:$L$2,2,FALSE),"$84"))), "", ROW(INDIRECT(CONCATENATE("$",HLOOKUP(BrewReport!$F$7,$H$1:$L$2,2,FALSE),"$3:$",HLOOKUP(BrewReport!$F$7,$H$1:$L$2,2,FALSE),"$84")))-MIN(ROW(INDIRECT(CONCATENATE("$",HLOOKUP(BrewReport!$F$7,$H$1:$L$2,2,FALSE),"$3:$",HLOOKUP(BrewReport!$F$7,$H$1:$L$2,2,FALSE),"$84"))))+1), ROW(A54))),"") -> 
A56: Wheat Munich | B56: 20 - 30 | C56: 20 | D56: 325 | E56: 10 | G56: =IFERROR(VLOOKUP(Malt!$A56,BrewReport!$A$9:$D$18,4,FALSE),0) -> 0 | H56: =G56*O5 -> 0 | I56: =G56*O7 -> 0 | J56: =G56*O4 -> 0 | L56: =G56*O5 -> 0 | P56: =IFERROR(INDEX($A$3:$A$85, SMALL(IF(ISBLANK(INDIRECT(CONCATENATE("$",HLOOKUP(BrewReport!$F$7,$H$1:$L$2,2,FALSE),"$3:$",HLOOKUP(BrewReport!$F$7,$H$1:$L$2,2,FALSE),"$84"))), "", ROW(INDIRECT(CONCATENATE("$",HLOOKUP(BrewReport!$F$7,$H$1:$L$2,2,FALSE),"$3:$",HLOOKUP(BrewReport!$F$7,$H$1:$L$2,2,FALSE),"$84")))-MIN(ROW(INDIRECT(CONCATENATE("$",HLOOKUP(BrewReport!$F$7,$H$1:$L$2,2,FALSE),"$3:$",HLOOKUP(BrewReport!$F$7,$H$1:$L$2,2,FALSE),"$84"))))+1), ROW(A55))),"") -> 
A57: Wheat Chit | B57: 3 - 7 | C57: 5 | D57: 325 | E57: 0 | G57: =IFERROR(VLOOKUP(Malt!$A57,BrewReport!$A$9:$D$18,4,FALSE),0) -> 0 | H57: =G57*O7 -> 0 | L57: =G57*O12 -> 0 | P57: =IFERROR(INDEX($A$3:$A$85, SMALL(IF(ISBLANK(INDIRECT(CONCATENATE("$",HLOOKUP(BrewReport!$F$7,$H$1:$L$2,2,FALSE),"$3:$",HLOOKUP(BrewReport!$F$7,$H$1:$L$2,2,FALSE),"$84"))), "", ROW(INDIRECT(CONCATENATE("$",HLOOKUP(BrewReport!$F$7,$H$1:$L$2,2,FALSE),"$3:$",HLOOKUP(BrewReport!$F$7,$H$1:$L$2,2,FALSE),"$84")))-MIN(ROW(INDIRECT(CONCATENATE("$",HLOOKUP(BrewReport!$F$7,$H$1:$L$2,2,FALSE),"$3:$",HLOOKUP(BrewReport!$F$7,$H$1:$L$2,2,FALSE),"$84"))))+1), ROW(A56))),"") -> 
A58: Wheat Spelt | B58: 3 - 7 | C58: 5 | D58: 290 | E58: 0 | F58: Sødlig nøddeagtig og krydret, jordagtig smag | G58: =IFERROR(VLOOKUP(Malt!$A58,BrewReport!$A$9:$D$18,4,FALSE),0) -> 0 | H58: =G58*O15 -> 0 | J58: =G58*O16 -> 0 | P58: =IFERROR(INDEX($A$3:$A$85, SMALL(IF(ISBLANK(INDIRECT(CONCATENATE("$",HLOOKUP(BrewReport!$F$7,$H$1:$L$2,2,FALSE),"$3:$",HLOOKUP(BrewReport!$F$7,$H$1:$L$2,2,FALSE),"$84"))), "", ROW(INDIRECT(CONCATENATE("$",HLOOKUP(BrewReport!$F$7,$H$1:$L$2,2,FALSE),"$3:$",HLOOKUP(BrewReport!$F$7,$H$1:$L$2,2,FALSE),"$84")))-MIN(ROW(INDIRECT(CONCATENATE("$",HLOOKUP(BrewReport!$F$7,$H$1:$L$2,2,FALSE),"$3:$",HLOOKUP(BrewReport!$F$7,$H$1:$L$2,2,FALSE),"$84"))))+1), ROW(A57))),"") -> 
A59: Special Malt | P59: =IFERROR(INDEX($A$3:$A$85, SMALL(IF(ISBLANK(INDIRECT(CONCATENATE("$",HLOOKUP(BrewReport!$F$7,$H$1:$L$2,2,FALSE),"$3:$",HLOOKUP(BrewReport!$F$7,$H$1:$L$2,2,FALSE),"$84"))), "", ROW(INDIRECT(CONCATENATE("$",HLOOKUP(BrewReport!$F$7,$H$1:$L$2,2,FALSE),"$3:$",HLOOKUP(BrewReport!$F$7,$H$1:$L$2,2,FALSE),"$84")))-MIN(ROW(INDIRECT(CONCATENATE("$",HLOOKUP(BrewReport!$F$7,$H$1:$L$2,2,FALSE),"$3:$",HLOOKUP(BrewReport!$F$7,$H$1:$L$2,2,FALSE),"$84"))))+1), ROW(A58))),"") -> 
A60: Amber | B60: 80 - 110 | C60: 95 | D60: 290 | E60: 20 | G60: =IFERROR(VLOOKUP(Malt!$A60,BrewReport!$A$9:$D$18,4,FALSE),0) -> 0 | H60: =G60*O10 -> 0 | I60: =G60*O16 -> 0 | J60: =G60*O7 -> 0 | K60: =G60*O16 -> 0 | P60: =IFERROR(INDEX($A$3:$A$85, SMALL(IF(ISBLANK(INDIRECT(CONCATENATE("$",HLOOKUP(BrewReport!$F$7,$H$1:$L$2,2,FALSE),"$3:$",HLOOKUP(BrewReport!$F$7,$H$1:$L$2,2,FALSE),"$84"))), "", ROW(INDIRECT(CONCATENATE("$",HLOOKUP(BrewReport!$F$7,$H$1:$L$2,2,FALSE),"$3:$",HLOOKUP(BrewReport!$F$7,$H$1:$L$2,2,FALSE),"$84")))-MIN(ROW(INDIRECT(CONCATENATE("$",HLOOKUP(BrewReport!$F$7,$H$1:$L$2,2,FALSE),"$3:$",HLOOKUP(BrewReport!$F$7,$H$1:$L$2,2,FALSE),"$84"))))+1), ROW(A59))),"") -> 
A61: Biscuit | B61: 45 - 70 | C61: 50 | D61: 300 | E61: 6 | F61: Kiksesmag, svag smag af black og chokolade | G61: =IFERROR(VLOOKUP(Malt!$A61,BrewReport!$A$9:$D$18,4,FALSE),0) -> 0 | H61: =G61*O10 -> 0 | I61: =G61*O16 -> 0 | K61: =G61*O16 -> 0 | L61: =G61*O9 -> 0 | P61: =IFERROR(INDEX($A$3:$A$85, SMALL(IF(ISBLANK(INDIRECT(CONCATENATE("$",HLOOKUP(BrewReport!$F$7,$H$1:$L$2,2,FALSE),"$3:$",HLOOKUP(BrewReport!$F$7,$H$1:$L$2,2,FALSE),"$84"))), "", ROW(INDIRECT(CONCATENATE("$",HLOOKUP(BrewReport!$F$7,$H$1:$L$2,2,FALSE),"$3:$",HLOOKUP(BrewReport!$F$7,$H$1:$L$2,2,FALSE),"$84")))-MIN(ROW(INDIRECT(CONCATENATE("$",HLOOKUP(BrewReport!$F$7,$H$1:$L$2,2,FALSE),"$3:$",HLOOKUP(BrewReport!$F$7,$H$1:$L$2,2,FALSE),"$84"))))+1), ROW(A60))),"") -> 
A62: Brown | B62: 110 - 135 | C62: 120 | D62: 290 | E62: 0 | F62: Let røgsmag til porter og mørke øl. | G62: =IFERROR(VLOOKUP(Malt!$A62,BrewReport!$A$9:$D$18,4,FALSE),0) -> 0 | I62: =G62*O16 -> 0 | P62: =IFERROR(INDEX($A$3:$A$85, SMALL(IF(ISBLANK(INDIRECT(CONCATENATE("$",HLOOKUP(BrewReport!$F$7,$H$1:$L$2,2,FALSE),"$3:$",HLOOKUP(BrewReport!$F$7,$H$1:$L$2,2,FALSE),"$84"))), "", ROW(INDIRECT(CONCATENATE("$",HLOOKUP(BrewReport!$F$7,$H$1:$L$2,2,FALSE),"$3:$",HLOOKUP(BrewReport!$F$7,$H$1:$L$2,2,FALSE),"$84")))-MIN(ROW(INDIRECT(CONCATENATE("$",HLOOKUP(BrewReport!$F$7,$H$1:$L$2,2,FALSE),"$3:$",HLOOKUP(BrewReport!$F$7,$H$1:$L$2,2,FALSE),"$84"))))+1), ROW(A61))),"") -> 
A63: Arome | B63: 100 | C63: 100 | D63: 300 | E63: 25 | F63: Blød bitterhed | G63: =IFERROR(VLOOKUP(Malt!$A63,BrewReport!$A$9:$D$18,4,FALSE),0) -> 0 | H63: =G63*O10 -> 0 | I63: =G63*O16 -> 0 | J63: =G63*O7 -> 0 | L63: =G63*O7 -> 0 | P63: =IFERROR(INDEX($A$3:$A$85, SMALL(IF(ISBLANK(INDIRECT(CONCATENATE("$",HLOOKUP(BrewReport!$F$7,$H$1:$L$2,2,FALSE),"$3:$",HLOOKUP(BrewReport!$F$7,$H$1:$L$2,2,FALSE),"$84"))), "", ROW(INDIRECT(CONCATENATE("$",HLOOKUP(BrewReport!$F$7,$H$1:$L$2,2,FALSE),"$3:$",HLOOKUP(BrewReport!$F$7,$H$1:$L$2,2,FALSE),"$84")))-MIN(ROW(INDIRECT(CONCATENATE("$",HLOOKUP(BrewReport!$F$7,$H$1:$L$2,2,FALSE),"$3:$",HLOOKUP(BrewReport!$F$7,$H$1:$L$2,2,FALSE),"$84"))))+1), ROW(A62))),"") -> 
A64: Arome 150 | B64: 150 | C64: 150 | D64: 300 | E64: 25 | F64: Blød bitterhed | G64: =IFERROR(VLOOKUP(Malt!$A64,BrewReport!$A$9:$D$18,4,FALSE),0) -> 0 | H64: =G64*O10 -> 0 | P64: =IFERROR(INDEX($A$3:$A$85, SMALL(IF(ISBLANK(INDIRECT(CONCATENATE("$",HLOOKUP(BrewReport!$F$7,$H$1:$L$2,2,FALSE),"$3:$",HLOOKUP(BrewReport!$F$7,$H$1:$L$2,2,FALSE),"$84"))), "", ROW(INDIRECT(CONCATENATE("$",HLOOKUP(BrewReport!$F$7,$H$1:$L$2,2,FALSE),"$3:$",HLOOKUP(BrewReport!$F$7,$H$1:$L$2,2,FALSE),"$84")))-MIN(ROW(INDIRECT(CONCATENATE("$",HLOOKUP(BrewReport!$F$7,$H$1:$L$2,2,FALSE),"$3:$",HLOOKUP(BrewReport!$F$7,$H$1:$L$2,2,FALSE),"$84"))))+1), ROW(A63))),"") -> 
A65: Aromatic | B65: 42 - 59 | C65: 50 | D65: 300 | E65: 25 | F65: Kompleks sødme og lidt syrlighed | G65: =IFERROR(VLOOKUP(Malt!$A65,BrewReport!$A$9:$D$18,4,FALSE),0) -> 0 | H65: =G65*O10 -> 0 | P65: =IFERROR(INDEX($A$3:$A$85, SMALL(IF(ISBLANK(INDIRECT(CONCATENATE("$",HLOOKUP(BrewReport!$F$7,$H$1:$L$2,2,FALSE),"$3:$",HLOOKUP(BrewReport!$F$7,$H$1:$L$2,2,FALSE),"$84"))), "", ROW(INDIRECT(CONCATENATE("$",HLOOKUP(BrewReport!$F$7,$H$1:$L$2,2,FALSE),"$3:$",HLOOKUP(BrewReport!$F$7,$H$1:$L$2,2,FALSE),"$84")))-MIN(ROW(INDIRECT(CONCATENATE("$",HLOOKUP(BrewReport!$F$7,$H$1:$L$2,2,FALSE),"$3:$",HLOOKUP(BrewReport!$F$7,$H$1:$L$2,2,FALSE),"$84"))))+1), ROW(A64))),"") -> 
A66: Imperial | B66: 38 | C66: 38 | D66: 300 | E66: 25 | G66: =IFERROR(VLOOKUP(Malt!$A66,BrewReport!$A$9:$D$18,4,FALSE),0) -> 0 | H66: =G66*O10 -> 0 | P66: =IFERROR(INDEX($A$3:$A$85, SMALL(IF(ISBLANK(INDIRECT(CONCATENATE("$",HLOOKUP(BrewReport!$F$7,$H$1:$L$2,2,FALSE),"$3:$",HLOOKUP(BrewReport!$F$7,$H$1:$L$2,2,FALSE),"$84"))), "", ROW(INDIRECT(CONCATENATE("$",HLOOKUP(BrewReport!$F$7,$H$1:$L$2,2,FALSE),"$3:$",HLOOKUP(BrewReport!$F$7,$H$1:$L$2,2,FALSE),"$84")))-MIN(ROW(INDIRECT(CONCATENATE("$",HLOOKUP(BrewReport!$F$7,$H$1:$L$2,2,FALSE),"$3:$",HLOOKUP(BrewReport!$F$7,$H$1:$L$2,2,FALSE),"$84"))))+1), ROW(A65))),"") -> 
A67: Melano Light | B67: 40 | C67: 40 | D67: 310 | E67: 10 | F67: Intens maltsmag og fylde | G67: =IFERROR(VLOOKUP(Malt!$A67,BrewReport!$A$9:$D$18,4,FALSE),0) -> 0 | H67: =G67*O10 -> 0 | I67: =G67*O16 -> 0 | P67: =IFERROR(INDEX($A$3:$A$85, SMALL(IF(ISBLANK(INDIRECT(CONCATENATE("$",HLOOKUP(BrewReport!$F$7,$H$1:$L$2,2,FALSE),"$3:$",HLOOKUP(BrewReport!$F$7,$H$1:$L$2,2,FALSE),"$84"))), "", ROW(INDIRECT(CONCATENATE("$",HLOOKUP(BrewReport!$F$7,$H$1:$L$2,2,FALSE),"$3:$",HLOOKUP(BrewReport!$F$7,$H$1:$L$2,2,FALSE),"$84")))-MIN(ROW(INDIRECT(CONCATENATE("$",HLOOKUP(BrewReport!$F$7,$H$1:$L$2,2,FALSE),"$3:$",HLOOKUP(BrewReport!$F$7,$H$1:$L$2,2,FALSE),"$84"))))+1), ROW(A66))),"") -> 
A68: Melano | B68: 80 | C68: 80 | D68: 310 | E68: 10 | F68: Intens maltsmag og fylde | G68: =IFERROR(VLOOKUP(Malt!$A68,BrewReport!$A$9:$D$18,4,FALSE),0) -> 0 | H68: =G68*O10 -> 0 | I68: =G68*O16 -> 0 | J68: =G68*O7 -> 0 | K68: =G68*O16 -> 0 | L68: =G68*O9 -> 0 | P68: =IFERROR(INDEX($A$3:$A$85, SMALL(IF(ISBLANK(INDIRECT(CONCATENATE("$",HLOOKUP(BrewReport!$F$7,$H$1:$L$2,2,FALSE),"$3:$",HLOOKUP(BrewReport!$F$7,$H$1:$L$2,2,FALSE),"$84"))), "", ROW(INDIRECT(CONCATENATE("$",HLOOKUP(BrewReport!$F$7,$H$1:$L$2,2,FALSE),"$3:$",HLOOKUP(BrewReport!$F$7,$H$1:$L$2,2,FALSE),"$84")))-MIN(ROW(INDIRECT(CONCATENATE("$",HLOOKUP(BrewReport!$F$7,$H$1:$L$2,2,FALSE),"$3:$",HLOOKUP(BrewReport!$F$7,$H$1:$L$2,2,FALSE),"$84"))))+1), ROW(A67))),"") -> 
A69: Melanoidin | B69: 61 - 80 | C69: 70 | D69: 310 | E69: 10 | G69: =IFERROR(VLOOKUP(Malt!$A69,BrewReport!$A$9:$D$18,4,FALSE),0) -> 0 | I69: =G69*O16 -> 0 | P69: =IFERROR(INDEX($A$3:$A$85, SMALL(IF(ISBLANK(INDIRECT(CONCATENATE("$",HLOOKUP(BrewReport!$F$7,$H$1:$L$2,2,FALSE),"$3:$",HLOOKUP(BrewReport!$F$7,$H$1:$L$2,2,FALSE),"$84"))), "", ROW(INDIRECT(CONCATENATE("$",HLOOKUP(BrewReport!$F$7,$H$1:$L$2,2,FALSE),"$3:$",HLOOKUP(BrewReport!$F$7,$H$1:$L$2,2,FALSE),"$84")))-MIN(ROW(INDIRECT(CONCATENATE("$",HLOOKUP(BrewReport!$F$7,$H$1:$L$2,2,FALSE),"$3:$",HLOOKUP(BrewReport!$F$7,$H$1:$L$2,2,FALSE),"$84"))))+1), ROW(A68))),"") -> 
A70: Boghvede / Buckwheat (1kg) | B70: 4 - 15 | C70: 9 | D70: 275 | E70: 0 | F70: Malt og nøddeagtig smag. Glutenfri | G70: =IFERROR(VLOOKUP(Malt!$A70,BrewReport!$A$9:$D$18,4,FALSE),0) -> 0 | I70: =G70*O17 -> 0 | J70: =G70*O13 -> 0 | L70: =G70*42 -> 0 | P70: =IFERROR(INDEX($A$3:$A$85, SMALL(IF(ISBLANK(INDIRECT(CONCATENATE("$",HLOOKUP(BrewReport!$F$7,$H$1:$L$2,2,FALSE),"$3:$",HLOOKUP(BrewReport!$F$7,$H$1:$L$2,2,FALSE),"$84"))), "", ROW(INDIRECT(CONCATENATE("$",HLOOKUP(BrewReport!$F$7,$H$1:$L$2,2,FALSE),"$3:$",HLOOKUP(BrewReport!$F$7,$H$1:$L$2,2,FALSE),"$84")))-MIN(ROW(INDIRECT(CONCATENATE("$",HLOOKUP(BrewReport!$F$7,$H$1:$L$2,2,FALSE),"$3:$",HLOOKUP(BrewReport!$F$7,$H$1:$L$2,2,FALSE),"$84"))))+1), ROW(A69))),"") -> 
A71: Acid / Sauer | B71: 6 - 12 | C71: 9 | D71: 220 | E71: 0 | F71: Rund og stabil smag | G71: =IFERROR(VLOOKUP(Malt!$A71,BrewReport!$A$9:$D$18,4,FALSE),0) -> 0 | H71: =G71*O10 -> 0 | I71: =G71*O18 -> 0 | J71: =G71*O9 -> 0 | K71: =G71*O7 -> 0 | L71: =G71*32 -> 0 | P71: =IFERROR(INDEX($A$3:$A$85, SMALL(IF(ISBLANK(INDIRECT(CONCATENATE("$",HLOOKUP(BrewReport!$F$7,$H$1:$L$2,2,FALSE),"$3:$",HLOOKUP(BrewReport!$F$7,$H$1:$L$2,2,FALSE),"$84"))), "", ROW(INDIRECT(CONCATENATE("$",HLOOKUP(BrewReport!$F$7,$H$1:$L$2,2,FALSE),"$3:$",HLOOKUP(BrewReport!$F$7,$H$1:$L$2,2,FALSE),"$84")))-MIN(ROW(INDIRECT(CONCATENATE("$",HLOOKUP(BrewReport!$F$7,$H$1:$L$2,2,FALSE),"$3:$",HLOOKUP(BrewReport!$F$7,$H$1:$L$2,2,FALSE),"$84"))))+1), ROW(A70))),"") -> 
A72: Chateau Diastatic | B72: 3,5 - 4,5 | C72: 4 | D72: 275 | E72: 110 | F72: Enzymer. Hæver udbyttet | G72: =IFERROR(VLOOKUP(Malt!$A72,BrewReport!$A$9:$D$18,4,FALSE),0) -> 0 | L72: =G72*O9 -> 0 | P72: =IFERROR(INDEX($A$3:$A$85, SMALL(IF(ISBLANK(INDIRECT(CONCATENATE("$",HLOOKUP(BrewReport!$F$7,$H$1:$L$2,2,FALSE),"$3:$",HLOOKUP(BrewReport!$F$7,$H$1:$L$2,2,FALSE),"$84"))), "", ROW(INDIRECT(CONCATENATE("$",HLOOKUP(BrewReport!$F$7,$H$1:$L$2,2,FALSE),"$3:$",HLOOKUP(BrewReport!$F$7,$H$1:$L$2,2,FALSE),"$84")))-MIN(ROW(INDIRECT(CONCATENATE("$",HLOOKUP(BrewReport!$F$7,$H$1:$L$2,2,FALSE),"$3:$",HLOOKUP(BrewReport!$F$7,$H$1:$L$2,2,FALSE),"$84"))))+1), ROW(A71))),"") -> 
A73: Abbey | B73: 45 | C73: 45 | D73: 280 | E73: 25 | F73: Stærkere smag af kogt brød, nødder og frugt | G73: =IFERROR(VLOOKUP(Malt!$A73,BrewReport!$A$9:$D$18,4,FALSE),0) -> 0 | H73: =G73*O10 -> 0 | I73: =G73*O16 -> 0 | J73: =G73*O2 -> 0 | L73: =G73*O7 -> 0 | P73: =IFERROR(INDEX($A$3:$A$85, SMALL(IF(ISBLANK(INDIRECT(CONCATENATE("$",HLOOKUP(BrewReport!$F$7,$H$1:$L$2,2,FALSE),"$3:$",HLOOKUP(BrewReport!$F$7,$H$1:$L$2,2,FALSE),"$84"))), "", ROW(INDIRECT(CONCATENATE("$",HLOOKUP(BrewReport!$F$7,$H$1:$L$2,2,FALSE),"$3:$",HLOOKUP(BrewReport!$F$7,$H$1:$L$2,2,FALSE),"$84")))-MIN(ROW(INDIRECT(CONCATENATE("$",HLOOKUP(BrewReport!$F$7,$H$1:$L$2,2,FALSE),"$3:$",HLOOKUP(BrewReport!$F$7,$H$1:$L$2,2,FALSE),"$84"))))+1), ROW(A72))),"") -> 
A74: Peated / Røg | B74: 5 - 10 | C74: 7 | D74: 310 | E74: 0 | G74: =IFERROR(VLOOKUP(Malt!$A74,BrewReport!$A$9:$D$18,4,FALSE),0) -> 0 | H74: =G74*O10 -> 0 | I74: =G74*O16 -> 0 | J74: =G74*O5 -> 0 | K74: =G74*O15 -> 0 | L74: =G74*O9 -> 0 | P74: =IFERROR(INDEX($A$3:$A$85, SMALL(IF(ISBLANK(INDIRECT(CONCATENATE("$",HLOOKUP(BrewReport!$F$7,$H$1:$L$2,2,FALSE),"$3:$",HLOOKUP(BrewReport!$F$7,$H$1:$L$2,2,FALSE),"$84"))), "", ROW(INDIRECT(CONCATENATE("$",HLOOKUP(BrewReport!$F$7,$H$1:$L$2,2,FALSE),"$3:$",HLOOKUP(BrewReport!$F$7,$H$1:$L$2,2,FALSE),"$84")))-MIN(ROW(INDIRECT(CONCATENATE("$",HLOOKUP(BrewReport!$F$7,$H$1:$L$2,2,FALSE),"$3:$",HLOOKUP(BrewReport!$F$7,$H$1:$L$2,2,FALSE),"$84"))))+1), ROW(A73))),"") -> 
A75: Oat | B75: 2 - 4 | C75: 3 | D75: 280 | E75: 0 | F75: Brødsmag, blødhed og fylde. Husk at koge det inden mæskning. | G75: =IFERROR(VLOOKUP(Malt!$A75,BrewReport!$A$9:$D$18,4,FALSE),0) -> 0 | I75: =G75*O16 -> 0 | P75: =IFERROR(INDEX($A$3:$A$85, SMALL(IF(ISBLANK(INDIRECT(CONCATENATE("$",HLOOKUP(BrewReport!$F$7,$H$1:$L$2,2,FALSE),"$3:$",HLOOKUP(BrewReport!$F$7,$H$1:$L$2,2,FALSE),"$84"))), "", ROW(INDIRECT(CONCATENATE("$",HLOOKUP(BrewReport!$F$7,$H$1:$L$2,2,FALSE),"$3:$",HLOOKUP(BrewReport!$F$7,$H$1:$L$2,2,FALSE),"$84")))-MIN(ROW(INDIRECT(CONCATENATE("$",HLOOKUP(BrewReport!$F$7,$H$1:$L$2,2,FALSE),"$3:$",HLOOKUP(BrewReport!$F$7,$H$1:$L$2,2,FALSE),"$84"))))+1), ROW(A74))),"") -> 
A76: Rye | B76: 4 - 10 | C76: 7 | D76: 240 | E76: 90 | F76: Lidt rug smag og kompleksitet | G76: =IFERROR(VLOOKUP(Malt!$A76,BrewReport!$A$9:$D$18,4,FALSE),0) -> 0 | I76: =G76*O16 -> 0 | J76: =G76*O8 -> 0 | L76: =G76*O10 -> 0 | P76: =IFERROR(INDEX($A$3:$A$85, SMALL(IF(ISBLANK(INDIRECT(CONCATENATE("$",HLOOKUP(BrewReport!$F$7,$H$1:$L$2,2,FALSE),"$3:$",HLOOKUP(BrewReport!$F$7,$H$1:$L$2,2,FALSE),"$84"))), "", ROW(INDIRECT(CONCATENATE("$",HLOOKUP(BrewReport!$F$7,$H$1:$L$2,2,FALSE),"$3:$",HLOOKUP(BrewReport!$F$7,$H$1:$L$2,2,FALSE),"$84")))-MIN(ROW(INDIRECT(CONCATENATE("$",HLOOKUP(BrewReport!$F$7,$H$1:$L$2,2,FALSE),"$3:$",HLOOKUP(BrewReport!$F$7,$H$1:$L$2,2,FALSE),"$84"))))+1), ROW(A75))),"") -> 
A77: Spelt | B77: 3 - 7 | C77: 5 | D77: 290 | E77: 0 | F77: Sødlig nøddeagtig og krydret, jordagtig smag | G77: =IFERROR(VLOOKUP(Malt!$A77,BrewReport!$A$9:$D$18,4,FALSE),0) -> 0 | H77: =G58*O15 -> 0 | I77: =G58*O16 -> 0 | J77: =G58*O16 -> 0 | P77: =IFERROR(INDEX($A$3:$A$85, SMALL(IF(ISBLANK(INDIRECT(CONCATENATE("$",HLOOKUP(BrewReport!$F$7,$H$1:$L$2,2,FALSE),"$3:$",HLOOKUP(BrewReport!$F$7,$H$1:$L$2,2,FALSE),"$84"))), "", ROW(INDIRECT(CONCATENATE("$",HLOOKUP(BrewReport!$F$7,$H$1:$L$2,2,FALSE),"$3:$",HLOOKUP(BrewReport!$F$7,$H$1:$L$2,2,FALSE),"$84")))-MIN(ROW(INDIRECT(CONCATENATE("$",HLOOKUP(BrewReport!$F$7,$H$1:$L$2,2,FALSE),"$3:$",HLOOKUP(BrewReport!$F$7,$H$1:$L$2,2,FALSE),"$84"))))+1), ROW(A76))),"") -> 
A78: Barley Chit | B78: 3 - 7 | C78: 5 | D78: 270 | E78: 0 | F78: Rig og tør kornagtig smag, Stabilt skum | G78: =IFERROR(VLOOKUP(Malt!$A78,BrewReport!$A$9:$D$18,4,FALSE),0) -> 0 | L78: =G78*O12 -> 0 | P78: =IFERROR(INDEX($A$3:$A$85, SMALL(IF(ISBLANK(INDIRECT(CONCATENATE("$",HLOOKUP(BrewReport!$F$7,$H$1:$L$2,2,FALSE),"$3:$",HLOOKUP(BrewReport!$F$7,$H$1:$L$2,2,FALSE),"$84"))), "", ROW(INDIRECT(CONCATENATE("$",HLOOKUP(BrewReport!$F$7,$H$1:$L$2,2,FALSE),"$3:$",HLOOKUP(BrewReport!$F$7,$H$1:$L$2,2,FALSE),"$84")))-MIN(ROW(INDIRECT(CONCATENATE("$",HLOOKUP(BrewReport!$F$7,$H$1:$L$2,2,FALSE),"$3:$",HLOOKUP(BrewReport!$F$7,$H$1:$L$2,2,FALSE),"$84"))))+1), ROW(A77))),"") -> 
A79: Barley Flaked | B79: 3 - 7 | C79: 5 | D79: 270 | E79: 0 | F79: Rig og tør kornagtig smag, Stabilt skum | G79: =IFERROR(VLOOKUP(Malt!$A79,BrewReport!$A$9:$D$18,4,FALSE),0) -> 0 | H79: =G79*O8 -> 0 | I79: =G79*O16 -> 0 | K79: =G79*O16 -> 0 | P79: =IFERROR(INDEX($A$3:$A$85, SMALL(IF(ISBLANK(INDIRECT(CONCATENATE("$",HLOOKUP(BrewReport!$F$7,$H$1:$L$2,2,FALSE),"$3:$",HLOOKUP(BrewReport!$F$7,$H$1:$L$2,2,FALSE),"$84"))), "", ROW(INDIRECT(CONCATENATE("$",HLOOKUP(BrewReport!$F$7,$H$1:$L$2,2,FALSE),"$3:$",HLOOKUP(BrewReport!$F$7,$H$1:$L$2,2,FALSE),"$84")))-MIN(ROW(INDIRECT(CONCATENATE("$",HLOOKUP(BrewReport!$F$7,$H$1:$L$2,2,FALSE),"$3:$",HLOOKUP(BrewReport!$F$7,$H$1:$L$2,2,FALSE),"$84"))))+1), ROW(A78))),"") -> 
A80: Torrefied Flaked Maize | B80: 1,5 | C80: 1,5 | D80: 310 | E80: 0 | F80: Let smag | G80: =IFERROR(VLOOKUP(Malt!$A80,BrewReport!$A$9:$D$18,4,FALSE),0) -> 0 | H80: =G80*O8 -> 0 | I80: =G80*O16 -> 0 | P80: =IFERROR(INDEX($A$3:$A$85, SMALL(IF(ISBLANK(INDIRECT(CONCATENATE("$",HLOOKUP(BrewReport!$F$7,$H$1:$L$2,2,FALSE),"$3:$",HLOOKUP(BrewReport!$F$7,$H$1:$L$2,2,FALSE),"$84"))), "", ROW(INDIRECT(CONCATENATE("$",HLOOKUP(BrewReport!$F$7,$H$1:$L$2,2,FALSE),"$3:$",HLOOKUP(BrewReport!$F$7,$H$1:$L$2,2,FALSE),"$84")))-MIN(ROW(INDIRECT(CONCATENATE("$",HLOOKUP(BrewReport!$F$7,$H$1:$L$2,2,FALSE),"$3:$",HLOOKUP(BrewReport!$F$7,$H$1:$L$2,2,FALSE),"$84"))))+1), ROW(A79))),"") -> 
A81: Oat Flaked | B81: 3 - 7 | C81: 5 | D81: 280 | E81: 0 | F81: Brødsmag, blødhed og fylde. Husk pause i mæskningen. | G81: =IFERROR(VLOOKUP(Malt!$A81,BrewReport!$A$9:$D$18,4,FALSE),0) -> 0 | H81: =G81*O8 -> 0 | J81: =G81*O16 -> 0 | L81: =G81*32 -> 0 | P81: =IFERROR(INDEX($A$3:$A$85, SMALL(IF(ISBLANK(INDIRECT(CONCATENATE("$",HLOOKUP(BrewReport!$F$7,$H$1:$L$2,2,FALSE),"$3:$",HLOOKUP(BrewReport!$F$7,$H$1:$L$2,2,FALSE),"$84"))), "", ROW(INDIRECT(CONCATENATE("$",HLOOKUP(BrewReport!$F$7,$H$1:$L$2,2,FALSE),"$3:$",HLOOKUP(BrewReport!$F$7,$H$1:$L$2,2,FALSE),"$84")))-MIN(ROW(INDIRECT(CONCATENATE("$",HLOOKUP(BrewReport!$F$7,$H$1:$L$2,2,FALSE),"$3:$",HLOOKUP(BrewReport!$F$7,$H$1:$L$2,2,FALSE),"$84"))))+1), ROW(A80))),"") -> 
A82: Torrefied Flaked Oat | B82: 2,8 - 5 | C82: 4 | D82: 280 | E82: 0 | F82: Forbedrer mundfylden og skummet | G82: =IFERROR(VLOOKUP(Malt!$A82,BrewReport!$A$9:$D$18,4,FALSE),0) -> 0.3 | I82: =G82*O16 -> 9 | P82: =IFERROR(INDEX($A$3:$A$85, SMALL(IF(ISBLANK(INDIRECT(CONCATENATE("$",HLOOKUP(BrewReport!$F$7,$H$1:$L$2,2,FALSE),"$3:$",HLOOKUP(BrewReport!$F$7,$H$1:$L$2,2,FALSE),"$84"))), "", ROW(INDIRECT(CONCATENATE("$",HLOOKUP(BrewReport!$F$7,$H$1:$L$2,2,FALSE),"$3:$",HLOOKUP(BrewReport!$F$7,$H$1:$L$2,2,FALSE),"$84")))-MIN(ROW(INDIRECT(CONCATENATE("$",HLOOKUP(BrewReport!$F$7,$H$1:$L$2,2,FALSE),"$3:$",HLOOKUP(BrewReport!$F$7,$H$1:$L$2,2,FALSE),"$84"))))+1), ROW(A81))),"") -> 
A83: Wheat Flaked | B83: 3,0 - 7,0 | C83: 5 | D83: 290 | E83: 0 | F83: Stabilt skum | G83: =IFERROR(VLOOKUP(Malt!$A83,BrewReport!$A$9:$D$18,4,FALSE),0) -> 0 | H83: =G83*O8 -> 0 | I83: =G83*O7 -> 0 | J83: =G83*O12 -> 0 | P83: =IFERROR(INDEX($A$3:$A$85, SMALL(IF(ISBLANK(INDIRECT(CONCATENATE("$",HLOOKUP(BrewReport!$F$7,$H$1:$L$2,2,FALSE),"$3:$",HLOOKUP(BrewReport!$F$7,$H$1:$L$2,2,FALSE),"$84"))), "", ROW(INDIRECT(CONCATENATE("$",HLOOKUP(BrewReport!$F$7,$H$1:$L$2,2,FALSE),"$3:$",HLOOKUP(BrewReport!$F$7,$H$1:$L$2,2,FALSE),"$84")))-MIN(ROW(INDIRECT(CONCATENATE("$",HLOOKUP(BrewReport!$F$7,$H$1:$L$2,2,FALSE),"$3:$",HLOOKUP(BrewReport!$F$7,$H$1:$L$2,2,FALSE),"$84"))))+1), ROW(A82))),"") -> 
A84: Torrefied Flaked Rice | B84: 0 | C84: 0 | D84: 270 | E84: 0 | F84: Masser af stivelse, øger alkohol% | G84: =IFERROR(VLOOKUP(Malt!$A84,BrewReport!$A$9:$D$18,4,FALSE),0) -> 0 | H84: =G84*O8 -> 0 | I84: =G84*O16 -> 0 | J84: =G84*38 -> 0 | K84: =G84*O7 -> 0 | P84: =IFERROR(INDEX($A$3:$A$85, SMALL(IF(ISBLANK(INDIRECT(CONCATENATE("$",HLOOKUP(BrewReport!$F$7,$H$1:$L$2,2,FALSE),"$3:$",HLOOKUP(BrewReport!$F$7,$H$1:$L$2,2,FALSE),"$84"))), "", ROW(INDIRECT(CONCATENATE("$",HLOOKUP(BrewReport!$F$7,$H$1:$L$2,2,FALSE),"$3:$",HLOOKUP(BrewReport!$F$7,$H$1:$L$2,2,FALSE),"$84")))-MIN(ROW(INDIRECT(CONCATENATE("$",HLOOKUP(BrewReport!$F$7,$H$1:$L$2,2,FALSE),"$3:$",HLOOKUP(BrewReport!$F$7,$H$1:$L$2,2,FALSE),"$84"))))+1), ROW(A83))),"") -> 
A85: Whisky 30 - 45 ppm | B85: 2,5 - 4,5 | C85: 3,5 | D85: 300 | E85: 0 | F85: Tørv- og røgsmag | G85: =IFERROR(VLOOKUP(Malt!$A85,BrewReport!$A$9:$D$18,4,FALSE),0) -> 0 | I85: =G85*O16 -> 0 | J85: =G85*O7 -> 0
A86: Ialt | G86: =SUM(G3:G85) -> 0.3 | H86: 0 | I86: 9 | J86: 0 | K86: 0 | L86: 0
A87: Valsning og håndtering | H87: 28 | I87: 0 | J87: 20 | K87: =2 * (G87/1000) -> 0 | L87: 25
A88: Forsendelse uden omdeling (Post dk) (<=10kg) | B88: Tast 1 for at vælge fragt > | D88: 1 | H88: =IF(D88=1,59,0) -> 59 | I88: =IF(D88=1,30,0) -> 30 | J88: =IF(D88=1,55,0) -> 55 | K88: =IF(D88=1,49,0) -> 49 | L88: =IF(D88=1,60,0) -> 60
A89: Ialt | H89: =SUM(H86:H88) -> 87 | I89: =SUM(I86:I88) -> 39 | J89: 75 | K89: 49 | L89: 85

Sheet Malt Data
A1: GRAINS CHART | C1: Here's a composite list of grains. The color is listed in degrees Lovibond and the gravity is calculated from 1 pound of the ingredient in 1 gallon of water.
A2: American Grains | B2: Malt | C2: °Lovibond | D2: EBC | E2: Gravity | F2: Yield | G2: Ekstraktudbytte | H2: Description
B3: Black Barley | C3: 525 - 525° | D3: 1399 - 1399 | E3: 1.023 - 1.027 | F3: 49,7 - 58,4% | G3: =IFERROR(((ROUND(((((((MID(E3,4,2)+RIGHT(E3,2))/2)*3.785)/453)*1000)/10),0))*10),0) -> 210 | H3: Imparts dryness. Unmalted; use in porters and dry stouts.
B4: Black Patent | C4: 500 - 500° | D4: 1334 - 1334 | E4: 1.026 - 1.026 | F4: 56,2 - 56,2% | G4: 220 | H4: Provides color and sharp flavor in stouts and porters.
B5: Chocolate | C5: 350 - 350° | D5: 932 - 932 | E5: 1.034 - 1.034 | F5: 73,5 - 73,5% | G5: 280 | H5: Use in all types to adjust color and add nutty, toasted flavor. Chocolate flavor.
B6: Crystal | C6: 10 - 10° | D6: 26 - 26 | E6: 1.033 - 1.035 | F6: 71,4 - 75,7% | G6: 280 | H6: Sweet, mild caramel flavor and a golden color. Use in light lagers and light ales.
B7: Crystal | C7: 20 - 20° | D7: 51 - 51 | E7: 1.033 - 1.035 | F7: 71,4 - 75,7% | G7: 280 | H7: Sweet, mild caramel flavor and a golden color. Use in light lagers and light ales.
B8: Crystal | C8: 30 - 30° | D8: 79 - 79 | E8: 1.033 - 1.035 | F8: 71,4 - 75,7% | G8: 280 | H8: Sweet, mild caramel flavor and a golden color. Use in light lagers and light ales.
B9: Crystal | C9: 40 - 40° | D9: 104 - 104 | E9: 1.033 - 1.035 | F9: 71,4 - 75,7% | G9: 280 | H9: Sweet, mild caramel flavor and a golden color. Use in light lagers and light ales.
B10: Crystal | C10: 60 - 60° | D10: 160 - 160 | E10: 1.033 - 1.035 | F10: 71,4 - 75,7% | G10: 280 | H10: Sweet caramel flavor, deep golden to red color. For dark amber and brown ales.
B11: Crystal | C11: 80 - 80° | D11: 213 - 213 | E11: 1.033 - 1.035 | F11: 71,4 - 75,7% | G11: 280 | H11: Sweet, smooth caramel flavor and a red to deep red color. For porters, old ales.
B12: Crystal | C12: 90 - 90° | D12: 238 - 238 | E12: 1.033 - 1.035 | F12: 71,4 - 75,7% | G12: 280 | H12: Pronounced caramel flavor and a red color. For stouts, porters and black beers.
B13: Crystal | C13: 120 - 120° | D13: 319 - 319 | E13: 1.033 - 1.035 | F13: 71,4 - 75,7% | G13: 280 | H13: Pronounced caramel flavor and a red color. For stouts, porters and black beers.
B14: Dextrin (carapils) | C14: 1.5 - 1.5° | D14: 2 - 2 | E14: 1.033 - 1.033 | F14: 71,4 - 71,4% | G14: 280 | H14: Balances body and flavor without adding color, aids in head retention. For any beer.
B15: Munich | C15: 10 - 10° | D15: 26 - 26 | E15: 1.034 - 1.034 | F15: 73,5 - 73,5% | G15: 280 | H15: Sweet, toasted flavor and aroma. For Oktoberfests and malty styles.
B16: Pale (Brewers 2-row) | C16: 1.8 - 1.8° | D16: 4 - 4 | E16: 1.037 - 1.038 | F16: 80,0 - 82,2% | G16: 310 | H16: Smooth, less grainy, moderate malt flavor. Basic malt for all beer styles.
B17: Pale (Brewers 6-row) | C17: 1.8 - 1.8° | D17: 4 - 4 | E17: 1.035 - 1.035 | F17: 75,7 - 75,7% | G17: 290 | H17: Moderate malt flavor. Basic malt for all beer styles.
B18: Roasted Barley | C18: 300 - 300° | D18: 800 - 800 | E18: 1.025 - 1.025 | F18: 54,1 - 54,1% | G18: 210 | H18: Sweet, grainy, coffee flavor and a red to deep brown color. For porters and stouts.
B19: Special Roast | C19: 50 - 50° | D19: 132 - 132 | E19: 1.035 - 1.035 | F19: 75,7 - 75,7% | G19: 290 | H19: Provides a deep golden to brown color for ales. Use in all darker ales.
B20: Victory | C20: 25 - 25° | D20: 65 - 65 | E20: 1.034 - 1.034 | F20: 73,5 - 73,5% | G20: 280 | H20: Provides a deep golden to brown color. Use in nut brown ales, IPAs and Scottish ales.
B21: Vienna | C21: 3.5 - 4° | D21: 8 - 10 | E21: 1.035 - 1.035 | F21: 75,7 - 75,7% | G21: 290 | H21: Increases malty flavor, provides balance. Use in Vienna, Märzen and Oktoberfest.
B22: Wheat | C22: 2 - 2° | D22: 4 - 4 | E22: 1.038 - 1.038 | F22: 82,2 - 82,2% | G22: 320 | H22: Light flavor and creamy head. For American weizenbier, weissbier and dunkelweiss.
B23: White Wheat | C23: 2 - 2° | D23: 4 - 4 | E23: 1.037 - 1.037 | F23: 80,0 - 80,0% | G23: 310 | H23: Imparts a malty flavor. For American wheat beers, wheat bock and doppel bock.
A25: Belgian Grains | B25: Malt | C25: °Lovibond | D25: EBC | E25: Gravity | F25: Yield | G25: Ekstraktudbytte | H25: Description
B26: Aromatic | C26: 20 - 26° | D26: 51 - 67 | E26: 1.036 - 1.036 | F26: 77,9 - 77,9% | G26: =IFERROR(((ROUND(((((((MID(E26,4,2)+RIGHT(E26,2))/2)*3.785)/453)*1000)/10),0))*10),0) -> 300 | H26: Imparts a big malt aroma. Use in brown ales, Belgian dubbels and tripels.
B27: Belgian Pale Ale | C27: 2.7 - 3.8° | D27: 6 - 8 | E27: 1.038 - 1.038 | F27: 82,2 - 82,2% | G27: 320 | H27: Use as a base malt for any Belgian style beer with full body.
B28: Biscuit | C28: 23 - 25° | D28: 59 - 65 | E28: 1.035 - 1.035 | F28: 75,7 - 75,7% | G28: 290 | H28: Warm baked biscuit flavor and aroma. Increases body. Use in Belgian beers.
B29: Caramel Pils | C29: 6 - 9° | D29: 14 - 22 | E29: 1.030 - 1.030 | F29: 64,9 - 64,9% | G29: 250 | H29: A very light crystal malt that lends body, smoother mouth-feel and foam stability.
B30: Caramunich | C30: 56 - 56° | D30: 148 - 148 | E30: 1.033 - 1.033 | F30: 71,4 - 71,4% | G30: 280 | H30: Caramel, full flavor, copper color. For Belgian ales, German smoked and bocks.
B31: Caravienne | C31: 21 - 22° | D31: 55 - 57 | E31: 1.034 - 1.034 | F31: 73,5 - 73,5% | G31: 280 | H31: Belgian light crystal malt. Used in lighter Abbey or Trappist style ales.
B32: Chocolate | C32: 300 - 380° | D32: 800 - 1013 | E32: 1.030 - 1.030 | F32: 64,9 - 64,9% | G32: 250 | H32: Will add a deep red color and nutty/roasted taste.
B33: De-Bittered Black | C33: 500 - 600° | D33: 1334 - 1600 | E33: 1.030 - 1.030 | F33: 64,9 - 64,9% | G33: 250 | H33: Will add a deep black color without the astringent flavor of black malt.
B34: Pale Wheat | C34: 1.2 - 2° | D34: 2 - 4 | E34: 1.038 - 1.038 | F34: 82,2 - 82,2% | G34: 320 | H34: Can be used in amounts of up to 70% of grist to create many wheat beer styles and aid in head retention in smaller amounts.
B35: Pilsen | C35: 1.5 - 1.5° | D35: 2 - 2 | E35: 1.037 - 1.037 | F35: 80,0 - 80,0% | G35: 310 | H35: Light color, malty flavor. For pilsners, dubbels, tripels, whites and specialty ales.
B36: Roasted Wheat | C36: 10 - 14° | D36: 26 - 35 | E36: 1.036 - 1.036 | F36: 77,9 - 77,9% | G36: 300 | H36: Slightly roasted wheat which imparts a bready, nut-like quality.
B37: Special B | C37: 130 - 220° | D37: 345 - 585 | E37: 1.030 - 1.030 | F37: 64,9 - 64,9% | G37: 250 | H37: Extreme caramel aroma and flavor. For dark Abbey beers and other dark beers.
A39: British Grains | B39: Malt | C39: °Lovibond | D39: EBC | E39: Gravity | F39: Yield | G39: Ekstraktudbytte | H39: Description
B40: Amber | C40: 35 - 35° | D40: 93 - 93 | E40: 1.032 - 1.032 | F40: 69,2 - 69,2% | G40: =IFERROR(((ROUND(((((((MID(E40,4,2)+RIGHT(E40,2))/2)*3.785)/453)*1000)/10),0))*10),0) -> 270 | H40: Roasted malt used in British milds, old ales, brown ales, nut brown ales.
B41: Amber | C41: 65 - 65° | D41: 171 - 171 | E41: 1.032 - 1.032 | F41: 69,2 - 69,2% | G41: 270 | H41: Imparts a dry, biscuit flavor. Use in porters, brown, nut brown and Belgian ales.
B42: Black Patent | C42: 500 - 600° | D42: 1334 - 1600 | E42: 1.026 - 1.026 | F42: 56,2 - 56,2% | G42: 220 | H42: Dry, burnt, chalky character. Use in porters, stouts, brown ales and dark lagers.
B43: Brown | C43: 65 - 65° | D43: 171 - 171 | E43: 1.032 - 1.032 | F43: 69,2 - 69,2% | G43: 270 | H43: Imparts a dry, biscuit flavor. Use in porters, brown, nut brown and Belgian ales.
B44: Cara-Pils Dextrin | C44: 10 - 14° | D44: 26 - 35 | E44: 1.033 - 1.033 | F44: 71,4 - 71,4% | G44: 280 | H44: Adds body; aids head retention. For porters, stouts and heavier bodied beers.
B45: Caramalt | C45: 30 - 37° | D45: 79 - 97 | E45: - | F45: - | G45: 0 | H45: Made from green malt, imparts a red hue and contributes to flavor and foam stability.
B46: Chocolate | C46: 395 - 475° | D46: 1052 - 1267 | E46: 1.034 - 1.034 | F46: 73,5 - 73,5% | G46: 280 | H46: Nutty, toasted flavor, brown color. Use in brown ales, porters, stouts and bocks.
B47: Crystal | C47: 55 - 60° | D47: 146 - 160 | E47: 1.033 - 1.035 | F47: 71,4 - 75,7% | G47: 280 | H47: Sweet caramel flavor, adds mouthfeel and head retention. For pale or amber ales.
B48: Dark Crystal | C48: 145 - 188° | D48: 386 - 500 | E48: 1.033 - 1.035 | F48: 71,4 - 75,7% | G48: 280 | H48: Sweet caramel flavor, mouthfeel. For porters, stouts, old ales and any dark ale.
B49: Lager | C49: 1.6 - 1.6° | D49: 2 - 2 | E49: 1.038 - 1.038 | F49: 82,2 - 82,2% | G49: 320 | H49: Used to make light colored and flavored lagers.
B50: Maris Otter Pale | C50: 3 - 3° | D50: 6 - 6 | E50: 1.038 - 1.038 | F50: 82,2 - 82,2% | G50: 320 | H50: Premium base malt for any beer. Good for pale ales.
B51: Mild Ale | C51: 2.3 - 2.7° | D51: 4 - 6 | E51: 1.037 - 1.037 | F51: 80,0 - 80,0% | G51: 310 | H51: Dry, nutty malty flavor. Promotes body. Use in English mild ales.
B52: Oat | C52: 4 - 4° | D52: 10 - 10 | E52: 1.034 - 1.034 | F52: 73,5 - 73,5% | G52: 280 | H52: Enhances body and flavor. For winter beers, stouts, porters and other robust beers.
B53: Pale Ale | C53: 2.2 - 2.2° | D53: 4 - 4 | E53: 1.038 - 1.038 | F53: 82,2 - 82,2% | G53: 320 | H53: Moderate malt flavor. Used to produce traditional English and Scottish style ales.
B54: Pale Chocolate | C54: 180 - 250° | D54: 479 - 666 | E54: 1.034 - 1.034 | F54: 73,5 - 73,5% | G54: 280 | H54: Less roasted than regular chocolate malt, adds color and mild chocolate/coffee flavors to porters, milds & stouts.
B55: Peat Smoked | C55: 2.8 - 2.8° | D55: 6 - 6 | E55: 1.034 - 1.034 | F55: 73,5 - 73,5% | G55: 280 | H55: Imparts a robust smoky flavor and aroma. For Scottish ales and wee heavies.
B56: Roasted Barley | C56: 500 - 500° | D56: 1334 - 1334 | E56: 1.025 - 1.025 | F56: 54,1 - 54,1% | G56: 210 | H56: Dry, roasted flavor, amber color. For stouts, porters and Scottish ales.
B57: Toasted Pale | C57: 25 - 25° | D57: 65 - 65 | E57: 1.038 - 1.038 | F57: 82,2 - 82,2% | G57: 320 | H57: Imparts nutty flavor and aroma. Use in IPAs and Scottish ales.
B58: Torrified Wheat | C58: 1 - 1.5° | D58: 2 - 2 | E58: 1.036 - 1.036 | F58: 77,9 - 77,9% | G58: 300 | H58: Puffed wheat created by high heat. Use in pale ales, bitters and milds.
B59: Wheat | C59: 2 - 2° | D59: 4 - 4 | E59: 1.038 - 1.038 | F59: 82,2 - 82,2% | G59: 320 | H59: Light flavor, creamy head. For wheat beers, stouts, doppelbocks and alt beers.
A61: German Grains | B61: Malt | C61: °Lovibond | D61: EBC | E61: Gravity | F61: Yield | G61: Ekstraktudbytte | H61: Description
B62: Acidulated (Sauer) | C62: 1.7 - 2.8° | D62: 4 - 6 | E62: 1.033 - 1.033 | F62: 71,4 - 71,4% | G62: =IFERROR(((ROUND(((((((MID(E62,4,2)+RIGHT(E62,2))/2)*3.785)/453)*1000)/10),0))*10),0) -> 280 | H62: High lactic acid. For lambics, sour mash beers, Irish stout, pilsners and wheats.
B63: Cara Wheat® | C63: 38 - 53° | D63: 100 - 140 | E63: 1.035 - 1.035 | F63: 75,7 - 75,7% | G63: 290 | H63: For dark ales, hefeweizen, dunkelweizen, wheat bocks and double bocks.
B64: CaraAmber® (crystal) | C64: 23 - 31° | D64: 59 - 81 | E64: 1.033 - 1.033 | F64: 71,4 - 71,4% | G64: 280 | H64: Adds aroma and color intensity to darker beers. For use in alts, bocks, stouts and porters.
B65: CaraAroma® (crystal) | C65: 130 - 170° | D65: 345 - 453 | E65: 1.034 - 1.034 | F65: 73,5 - 73,5% | G65: 280 | H65: Imparts a deep red color, adds body and malt aroma. For use in bocks, porters, stouts and ambers.
B66: Carafa I ® | C66: 300 - 340° | D66: 800 - 906 | E66: 1.038 - 1.038 | F66: 82,2 - 82,2% | G66: 320 | H66: Gives deep aroma and color to dark beers, bocks, stout, alt and schwarzbier.
B67: Carafa II ® | C67: 375 - 450° | D67: 999 - 1200 | E67: 1.038 - 1.038 | F67: 82,2 - 82,2% | G67: 320 | H67: Carafa I, II and III also are available de-husked. Adds aroma, color and body.
B68: Carafa III ® | C68: 490 - 560° | D68: 1306 - 1493 | E68: 1.038 - 1.038 | F68: 82,2 - 82,2% | G68: 320
B69: CaraFoam® (crystal) | C69: 1.3 - 2.3° | D69: 2 - 4 | E69: 1.033 - 1.033 | F69: 71,4 - 71,4% | G69: 280 | H69: Improves head retention and body.
B70: CaraHell® (crystal) | C70: 8 - 12° | D70: 20 - 30 | E70: 1.033 - 1.035 | F70: 71,4 - 75,7% | G70: 280 | H70: For light colored beer for body; hefeweizen, pale ale, golden ale, Oktoberfest.
B71: CaraMunich I ® | C71: 30 - 38° | D71: 79 - 100 | E71: 1.033 - 1.035 | F71: 71,4 - 75,7% | G71: 280 | H71: Provides body. For Oktoberfest, bock, porter, stout, red, amber and brown ales.
B72: CaraMunich II ® | C72: 42 - 50° | D72: 110 - 132 | E72: 1.033 - 1.035 | F72: 71,4 - 75,7% | G72: 280
B73: CaraMunich III ® | C73: 53 - 60° | D73: 140 - 160 | E73: 1.033 - 1.035 | F73: 71,4 - 75,7% | G73: 280 | H73: CaraMunich Malt III is dark crystal.
B74: CaraRed® (crystal) | C74: 15 - 20° | D74: 39 - 51 | E74: 1.033 - 1.033 | F74: 71,4 - 71,4% | G74: 280 | H74: Provides body and a deep red color for use in red ales, lagers, Scottish ales and alts.
B75: Chocolate Rye | C75: 190 - 300° | D75: 506 - 800 | E75: 1.030 - 1.030 | F75: 64,9 - 64,9% | G75: 250 | H75: Enhances aroma of dark ales and improves color. For dunkel rye wheat and ale.
B76: Chocolate Wheat | C76: 375 - 450° | D76: 999 - 1200 | E76: 1.038 - 1.038 | F76: 82,2 - 82,2% | G76: 320 | H76: Intensifies aroma; improves color. For dark ales, alt, dark wheat, stout and porter.
B77: Dark Munich | C77: 8 - 10° | D77: 20 - 26 | E77: 1.034 - 1.034 | F77: 73,5 - 73,5% | G77: 280 | H77: Enhances body and aroma. Stout, schwarzbier, brown ale, dark and amber ales.
B78: Kölsch | C78: 4.5 - 4.5° | D78: 10 - 10 | E78: 1.034 - 1.034 | F78: 73,5 - 73,5% | G78: 280 | H78: Traditionally for Kölsch-style beers, can be used in a variety of German and American styled beers. Adds a light, sweet, biscuity flavor.
B79: Light Munich | C79: 5 - 6° | D79: 12 - 14 | E79: 1.034 - 1.034 | F79: 73,5 - 73,5% | G79: 280 | H79: For a desired malty, nutty flavor. Lagers, Oktoberfests and bock beer.
B80: Melanoidin | C80: 23 - 31° | D80: 59 - 81 | E80: 1.033 - 1.033 | F80: 71,4 - 71,4% | G80: 280 | H80: For amber lagers and ales, dark lagers and ales, Scottish & red ales.
B81: Rauch Smoked | C81: 2 - 4° | D81: 4 - 10 | E81: 1.037 - 1.037 | F81: 80,0 - 80,0% | G81: 310 | H81: For rauchbier, kellerbier, smoked porters, Scottish ales and barleywines.
B82: Rye | C82: 2.8 - 4.3° | D82: 6 - 10 | E82: 1.029 - 1.029 | F82: 62,7 - 62,7% | G82: 240 | H82: Dry character. Can use as a base malt. For seasonal beers, roggenbier and ales.
B83: Vienna | C83: 3.2 - 3.9° | D83: 8 - 10 | E83: 1.035 - 1.035 | F83: 75,7 - 75,7% | G83: 290 | H83: European lager malt kilned slightly more than Pilsner malt. Full bodied, golden color.
B84: Wheat Dark | C84: 6 - 8° | D84: 14 - 20 | E84: 1.039 - 1.039 | F84: 84,3 - 84,3% | G84: 330
B85: Wheat Light | C85: 1.5 - 2° | D85: 2 - 4 | E85: 1.039 - 1.039 | F85: 84,3 - 84,3% | G85: 330 | H85: Typical top fermented aroma, produces superb wheat beers.
A87: Other malts and Additions | B87: Malt | C87: °Lovibond | D87: EBC | E87: Gravity | F87: Yield | G87: Ekstraktudbytte | H87: Description
B88: Flaked Barley | C88: 1.5 - 1.5° | D88: 2 - 2 | E88: 1.032 - 1.032 | F88: 69,2 - 69,2% | G88: =IFERROR(((ROUND(((((((MID(E88,4,2)+RIGHT(E88,2))/2)*3.785)/453)*1000)/10),0))*10),0) -> 270 | H88: Helps head retention, imparts creamy smoothness. For porters and stouts.
B89: Flaked Maize | C89: 1 - 1° | D89: 2 - 2 | E89: 1.037 - 1.037 | F89: 80,0 - 80,0% | G89: 310 | H89: Lightens body and color. For light American pilsners and ales.
B90: Flaked Oats | C90: 1 - 1° | D90: 2 - 2 | E90: 1.033 - 1.033 | F90: 71,4 - 71,4% | G90: 280 | H90: Adds body and creamy head. For stouts and oat ales.
B91: Flaked Rye | C91: 2 - 2° | D91: 4 - 4 | E91: 1.036 - 1.036 | F91: 77,9 - 77,9% | G91: 300 | H91: Imparts a dry, crisp character. Use in rye beers.
B92: Flaked Wheat | C92: 2 - 2° | D92: 4 - 4 | E92: 1.036 - 1.036 | F92: 77,9 - 77,9% | G92: 300 | H92: Imparts a wheat flavor, hazy color. For wheat and Belgian white beers.
B93: Franco-Belges Kiln Coffee | C93: 150 - 180° | D93: 398 - 479 | E93: - | F93: - | G93: 0 | H93: A unique malt which imparts a coffee flavor.
B94: Gambrinus Honey | C94: 25 - 25° | D94: 65 - 65 | E94: 1.034 - 1.034 | F94: 73,5 - 73,5% | G94: 280 | H94: Nutty honey flavor. For brown ales, Belgian wheats, bocks and many other styles.
B95: Grits | C95: 1 - 1.5° | D95: 2 - 2 | E95: 1.037 - 1.037 | F95: 80,0 - 80,0% | G95: 310 | H95: Imparts a corn/grain taste. Use in American lagers.
B96: Irish Moss | C96: - | D96: 0 | E96: - | F96: - | G96: 0 | H96: Prevents chill haze. Use in all beers except cloudy wheat and white beers.
B97: Malto Dextrin | C97: - | D97: 0 | E97: 1.043 - 1.043 | F97: 93,0 - 93,0% | G97: 360 | H97: Adds body and mouthfeel. For all extract beers. Does not ferment.
B98: Oak Chips | C98: - | D98: 0 | E98: - | F98: - | G98: 0 | H98: Creates cask-conditioned flavor and aroma. Use in IPAs, Belgian ales and Scottish ales.
B99: Scotmalt Golden Promise | C99: 2.4 - 2.4° | D99: 4 - 4 | E99: 1.038 - 1.038 | F99: 82,2 - 82,2% | G99: 320 | H99: Scottish pale ale malt; base malt for all Scottish beers.

Sheet Malt X-ref.
B2: Malt X-reference - se Malt karakteristik nedenfor
B3: WEYERMANN | C3: Castle Malting | D3: MUNTONS | F3: BRIESS | G3: FAWCETT | H3: BAIRDS | I3: CRISP | J3: GAMBRINUS | K3: DINGEMANS
B4: (German) | C4: (Belgian) | D4: (British) | F4: (American) | G4: (British) | H4: (British) | I4: (British) | J4: (Canadian) | K4: (Belgian)
B5: Bohemian Pilsner | C5: Pilsner | D5: Lager | F5: Pilsner | G5: Lager | I5: Lager | K5: Pilsen
B6: Pale | C6: Pale Ale | D6: Pale | F6: Brewers 2-Row | G6: Pale Ale | H6: Pale Ale | I6: Pale | J6: Pale | K6: Pale Ale
C7: Maris Otter Ale | D7: Maris Otter | G7: Maris Otter | J7: ESB
B8: Vienna | C8: Vienna | D8: Mild | F8: Vienna | G8: Vienna | H8: Vienna | I8: Ashburne/Vienna
B9: Abbey | C9: Abbey
B10: Munich Type I, Light | C10: Munich Light | F10: Bonlander | K10: Munich
B11: Munich Type II, Dark | C11: Munich | F11: Munich 10L | J11: Munich 10L
B12: Carafoam/Dextrin | D12: Caramalt | F12: Carapils/Dextrin | G12: Caramalt | I12: Carapils | K12: Cara 8/Carapils
B13: Melanoidin | C13: Melanoidin/ Melano | F13: Victory | G13: Amber | I13: Amber | K13: Aromatic/Biscuit
B14: CaraHell | C14: Cara Blond | D14: Carapils | F14: Crystal 10L
B15: CaraBelge | C15: Melano Light | H15: Light Carastan (10-15L)
B16: CaraRed | C16: Cara Ruby | F16: Crystal 20L | K16: Cara 20/CaraVienne
B17: CaraAmber | C17: Aroma | F17: Victory | J17: Munich 30 | K17: Biscuit
F18: Crystal 30L | G18: Pale Crystal | H18: Carastan
B19: CaraMunich I | C19: Cara Gold | F19: Crystal 40L | G19: Crystal Malt (40 - 50) | K19: Cara 45
B20: CaraMunich II | C20: Cara Gold | D20: Medium Crystal
B21: CaraMunich III | C21: Café Light | F21: Crystal 60L | G21: Crystal Malt II (60 - 70)
B22: CaraBohemian | F22: Crystal 80L | G22: Dark Crystal (85 - 95) | H22: Crystal
F23: Crystal 90L
B24: CaraAroma | C24: Café | D24: Dark Crystal | F24: Crystal 120L | G24: Dark Crystal II (118 - 124) | H24: Dark Crystal
F25: Special Roast | G25: Brown Malt | H25: Brown Malt
F26: Extra Special Roast | K26: Special B
B27: Carafa I, dehusked | C27: Chocolate | G27: Pale Chocolate
B28: Carafa II, dehusked | C28: Black | D28: Chocolate | F28: Chocolate | G28: Chocolate | H28: Chocolate | I28: Chocolate | K28: Chocolate
B29: Carafa III, dehusked | C29: Black | D29: Black Patent | F29: Black Patent | G29: Black Malt | H29: Black Malt | I29: Black | J29: De-Bittered Black
B30: Roasted Barley | C30: Roasted Barley | D30: Roasted Barley | F30: Roasted Barley | G30: Roasted Barley | H30: Roasted Barley
B31: Chocolate Wheat | G31: Roasted Wheat | K31: Roasted Wheat
B32: Pale Wheat, Light | C32: Wheat | D32: Wheat | F32: Wheat | G32: Wheat | I32: Wheat | K32: Pale Wheat
B33: Dark Wheat | C33: Munich Wheat
B34: Caramel Wheat | G34: Crystal Wheat
B35: Chocolate Rye
B36: Rye Malt | F36: Rye Malt | G36: Rye Malt
B37: Caramel Rye
J38: Honey
B39: Acidulated Malt | C39: Acid
B40: Smoked Malt, Beechwood | C40: Smoked | G40: Peated Malt (Peat Smoked)

Sheet Humle
A1: Humletyper | B1: Alfa Range % | C1: IBU Avg. | E1: Beta Range % | F1: Co-humulione % | G1: Usage | H1: Min. orders | I1: Pris i kr. pr. gram | J1: Description | K1: Used in | L1: Characteristics | M1: Substitutes | O1: Glenn Tinseth's website | R1: Decimal Alpha Acid Utilization vs. Boil Time and Wort Original Gravity
C2: Pellet | D2: Blomst | G2: B/A | H2: 1 or 100 grams
A3: Admiral | B3: 13,0 - 16,0 | C3: 14.6 | E3: 4,0 - 6,0 | F3: 37 - 45 | G3: B | H3: 100 | I3: 0.4 | J3: High alpha bittering hops. From Horticulture Research International,Wye College, Kent, England. It is a descendant of Northdown and Challenger | K3: ESB, IPAs, Ales and Bitter | L3: Discrete pine and fresh herbal character mixed with delicate citrus. | M3: =VLOOKUP(A3,'Humle X-ref.'!$A$2:$D$141,4,FALSE) -> Target, Challenger
A4: Ahtanum | B4: 3,5 - 6,5 | E4: 4,0 - 6,0 | F4: 30 - 34 | G4: A | J4: This hop is used for its aromatic properties and moderate bittering. It has aromas that are citrus (grapefruit), earthy, and floral. | K4: American Style ales | L4: Specific aroma descriptors include citrus grapefruit and geranium. | M4: =VLOOKUP(A4,'Humle X-ref.'!$A$2:$D$141,4,FALSE) -> Cascade, Amarillo | O4: Boil Time (min) | P4: Original Gravity
A5: Amarillo | B5: 8,0 - 11,0 | C5: 9.1 | E5: 6,0 - 7,0 | F5: 21 - 24 | G5: BA | H5: 1 | I5: 0.6 | J5: Unknown origin, but character similar to Cascade. Used for both bitterness and aroma | K5: IPAs, Ales | L5: Floral, tropical, and citrus (lemon, orange and grapefruit) | M5: =VLOOKUP(A5,'Humle X-ref.'!$A$2:$D$141,4,FALSE) -> Cascade, Centennial, Citra, Simcoe | P5: 1.03 | Q5: 1.04 | R5: 1.05 | S5: 1.06 | T5: 1.07 | U5: 1.08 | V5: 1.09 | W5: 1.1 | X5: 1.11 | Y5: 1.12 | Z5: 1.13
A6: Azacca | B6: 14 - 16 | E6: 4,0 - 5,5 | F6: 38 - 45 | G6: BA | J6: Descended directly from Toyomidori, its greater parentage also includes Summit™ and Northern Brewer. Azacca is considered by many brewers as being well suited to IPAs. | K6: American IPAs | L6: Aromas of tropical fruits and citrus. Tasting notes of spicy mango, pineapple, tangerine and pine. | M6: =VLOOKUP(A6,'Humle X-ref.'!$A$2:$D$141,4,FALSE) -> Centennial | O6: 0 | P6: 0 | Q6: 0 | R6: 0 | S6: 0 | T6: 0 | U6: 0 | V6: 0 | W6: 0 | X6: 0 | Y6: 0 | Z6: 0
A7: Barbe Rouge | B7: 8 - 9 | C7: 9.1 | E7: 3.6 | F7: 42,1 - 42,2 | G7: BA | H7: 100 | I7: 0.5 | J7: Developed as part of the varietal research program in Alsace, France. It has parentage in Strisselspalt. | K7: Belgian Ales, Saisons, Pale Ales | L7: It has a very pronounced red fruit aroma with strawberry and cherry being main notes of the character. | M7: =VLOOKUP(A7,'Humle X-ref.'!$A$2:$D$141,4,FALSE) -> Ingen | O7: 3 | P7: 0.034 | Q7: 0.031 | R7: 0.029 | S7: 0.026 | T7: 0.024 | U7: 0.022 | V7: 0.02 | W7: 0.018 | X7: 0.017 | Y7: 0.015 | Z7: 0.014
A8: Boadicea | B8: 7 - 10 | C8: 5.3 | E8: 3 - 4 | F8: 26 | G8: A | H8: 100 | I8: 0.4 | J8: Boadicea was the world’s first aphid resistant variety and as such is the most environmentally friendly hop available. Boadicea was released in 2004 by Horticulture Research International (HRI) at Wye College in the UK from ‘open crossing’ of aphid resistant hedgerow varieties. | K8: Lager | L8: Spicy, light, floral. Boadicea is an unusual hedgerow hop and is excellent for finishing and dry hopping. Boadicea's bittering characteristics are light bodied and rounded. | M8: =VLOOKUP(A8,'Humle X-ref.'!$A$2:$D$141,4,FALSE) -> Challenger, Sovereign, Golding | O8: 6 | P8: 0.065 | Q8: 0.059 | R8: 0.054 | S8: 0.049 | T8: 0.045 | U8: 0.041 | V8: 0.038 | W8: 0.035 | X8: 0.032 | Y8: 0.029 | Z8: 0.026
A9: Bouclier | B9: 5,2 - 9 | C9: 4.9 | E9: 2,4 - 3,3 | F9: 20 - 25 | G9: BA | H9: 100 | I9: 0.4 | J9: Emerging in 2005, Bouclier is a cross between Alsace-grown Strisselspalt and a wild male from Wye, Kent. It is unclear however if this variety was first developed in the UK or across the Channel in France. | K9: English Ales, Pale Ale, Lager, Imperial Stout, Saison, Blonde | L9: The aroma of the cones is herby and grassy with a sniff of spice. In a brew, Bouclier extracts a citrusy and floral character – great for adding a French kiss to traditional English styles | M9: =VLOOKUP(A9,'Humle X-ref.'!$A$2:$D$141,4,FALSE) -> Tettnanger, Spalt Select, Tradition | O9: 9 | P9: 0.092 | Q9: 0.084 | R9: 0.077 | S9: 0.07 | T9: 0.064 | U9: 0.059 | V9: 0.054 | W9: 0.049 | X9: 0.045 | Y9: 0.041 | Z9: 0.037
A10: Bramling Cross | B10: 5,0 - 7,8 | C10: 6 | E10: 2,3 - 3,5 | F10: 34 | G10: A | H10: 1 | I10: 0.4 | J10: Developed in 1927 from commercial Goldings and wild hop variety. | K10: ESB, Bitters, Pale Ale | L10: Mild, fruity, currant aroma. | M10: =VLOOKUP(A10,'Humle X-ref.'!$A$2:$D$141,4,FALSE) -> East Kent Goldings, Brewer’s Gold, Willamette, WGV | O10: 12 | P10: 0.116 | Q10: 0.106 | R10: 0.097 | S10: 0.088 | T10: 0.081 | U10: 0.074 | V10: 0.068 | W10: 0.062 | X10: 0.056 | Y10: 0.052 | Z10: 0.047
A11: Bravo | B11: 14 - 17 | C11: 13.9 | E11: 3 - 5 | F11: 29 - 34 | G11: B | H11: 100 | I11: 0.5 | J11: Developed as part of the Hopsteiner Breeding Program, Bravo hops were released to the public in 2006 as a high-yielding and vigorous late-season hop with a high alpha profile and balanced oils. | K11: India Pale Ale, American Pale Ale, Extra Special Bitter | L11: Spicy, earthy, and lightly floral aroma | M11: =VLOOKUP(A11,'Humle X-ref.'!$A$2:$D$141,4,FALSE) -> Warrior - Columbus, Zeus, Apollo, Magnum, Nugget | O11: 15 | P11: 0.137 | Q11: 0.125 | R11: 0.114 | S11: 0.105 | T11: 0.096 | U11: 0.087 | V11: 0.08 | W11: 0.073 | X11: 0.067 | Y11: 0.061 | Z11: 0.056
A12: Brewer’s Gold | B12: 5,5 - 10,0 | C12: 6.8 | E12: 3,5 - 4,5 | F12: 37 - 40 | G12: B | H12: 1 | I12: 0.4 | J12: Traditional bittering hop. An English variety and sibling of Bullion | K12: English ales and heavy German lagers. | L12: Spicy, fruity characteristics, black currant | M12: =VLOOKUP(A12,'Humle X-ref.'!$A$2:$D$141,4,FALSE) -> Bullion, Galena, Pacific Gem, Northern Brewer, North Down, Pioneer | O12: 18 | P12: 0.156 | Q12: 0.142 | R12: 0.13 | S12: 0.119 | T12: 0.109 | U12: 0.099 | V12: 0.091 | W12: 0.083 | X12: 0.076 | Y12: 0.069 | Z12: 0.063
A13: Callista | B13: 2 - 5 | C13: 10 | E13: 5 - 10 | F13: 15 - 22 | G13: A | H13: 100 | I13: 0.4 | J13: Released in Spring of 2016, Callista is a larger cone aromatic hop with classic noble characteristics and smooth hoppy notes. | K13: Very versatile in many styles of beer | L13: Pleasant, hoppy fruity, and red berries - Apricots, Blackberries and Raspberries | M13: =VLOOKUP(A13,'Humle X-ref.'!$A$2:$D$141,4,FALSE) -> Hüll Melon, Mandarina Bavaria, Hallertau Blanc | O13: 21 | P13: 0.173 | Q13: 0.158 | R13: 0.144 | S13: 0.132 | T13: 0.12 | U13: 0.11 | V13: 0.101 | W13: 0.092 | X13: 0.084 | Y13: 0.077 | Z13: 0.07
A14: Calypso | B14: 12,0 - 14,0 | C14: 14.6 | E14: 5,0 - 6,0 | F14: 40 - 42 | G14: BA | H14: 1 | I14: 0.5 | J14: Calypso is a Yakima Valley bred, dual-purpose diploid hop with Hopsteiner lineage on both sides. It is marvelously complex with an almost understated earthy, tea-like note. | K14: American ales and lagers | L14: Despite its aroma-focused origins, it boasts a high alpha acid percentage. Calypso features crisp, fruity aromas and flavors that exhibit elements of apple, pear and stone fruit brightened with hints of lime citrus. | M14: =VLOOKUP(A14,'Humle X-ref.'!$A$2:$D$141,4,FALSE) -> Cascade, Belma | O14: 24 | P14: 0.187 | Q14: 0.171 | R14: 0.157 | S14: 0.143 | T14: 0.131 | U14: 0.12 | V14: 0.109 | W14: 0.1 | X14: 0.091 | Y14: 0.083 | Z14: 0.076
A15: Cascade | B15: 4,5 - 7,0 | C15: 5.7 | E15: 4,5 - 7,0 | F15: 33 - 40 | G15: BA | H15: 1 | I15: 0.6 | J15: A hop with Northern Brewers Heritage. One of the 3 C's. | K15: American ales and lagers | L15: Strong spicy, floral, grapefruit character | M15: =VLOOKUP(A15,'Humle X-ref.'!$A$2:$D$141,4,FALSE) -> Centennial, Citra, Amarillo | O15: 27 | P15: 0.201 | Q15: 0.183 | R15: 0.168 | S15: 0.153 | T15: 0.14 | U15: 0.128 | V15: 0.117 | W15: 0.107 | X15: 0.098 | Y15: 0.089 | Z15: 0.082
A16: Centennial | B16: 9,5 - 11,5 | C16: 9.7 | E16: 3,5 - 4,5 | F16: 28 - 30 | G16: BA | H16: 1 | I16: 0.6 | J16: General purpose bittering, aroma. Derived from 3/4 Brewer's Gold and contributions of Fuggle, East Kent Golding and others. One of the 3 C's. | K16: American ales and Wheats | L16: Floral, citrus aroma, spicy, clean bittering flavor | M16: =VLOOKUP(A16,'Humle X-ref.'!$A$2:$D$141,4,FALSE) -> Cascade, Chinook, Citra, Columbus, Galena, Eroica, Nugget, Bullion | O16: 30 | P16: 0.212 | Q16: 0.194 | R16: 0.177 | S16: 0.162 | T16: 0.148 | U16: 0.135 | V16: 0.124 | W16: 0.113 | X16: 0.103 | Y16: 0.094 | Z16: 0.086
A17: Challenger | B17: 6,5 - 9,0 | C17: 6.1 | E17: 3,2 - 4,2 | F17: 20 - 25 | G17: BA | H17: 1 | I17: 0.5 | J17: Challenger blev udviklet på Wye College ved at kombinere Northern Brewer humle med nogle tyske han-planter med stor meldugresistens. Challenger kan bruges både som bitterhumle og aromahumle. | K17: ESB, portere, stout og brown ales | L17: Som aromahumle er den kraftig og krydret, og giver en meget ren bitterhed med masser af blomstrede aromaer. Som bitterhumle får man noter af orangemarmelade, citrus og en blomstret aroma. | M17: =VLOOKUP(A17,'Humle X-ref.'!$A$2:$D$141,4,FALSE) -> Perle, Target, Phoenix, EKG, Northern Brewer, First Gold, Northdown | O17: 33 | P17: 0.223 | Q17: 0.203 | R17: 0.186 | S17: 0.17 | T17: 0.155 | U17: 0.142 | V17: 0.13 | W17: 0.119 | X17: 0.108 | Y17: 0.099 | Z17: 0.091
A18: Chinook | B18: 12,0 - 14,0 | C18: 12.8 | E18: 3,0 - 4,0 | F18: 29 - 34 | G18: Ba | H18: 1 | I18: 0.6 | J18: Strong versatile bittering hop, but also acceptable aroma | K18: Ales, porters, stouts | L18: Heavy and spicy aroma. Distinct, medium intensity spice and pine characteristics with subtle notes of grapefruit | M18: =VLOOKUP(A18,'Humle X-ref.'!$A$2:$D$141,4,FALSE) -> Nugget, Columbus, Northern Brewer, Galena, Eroica, Bullion | O18: 36 | P18: 0.232 | Q18: 0.212 | R18: 0.194 | S18: 0.177 | T18: 0.162 | U18: 0.148 | V18: 0.135 | W18: 0.124 | X18: 0.113 | Y18: 0.103 | Z18: 0.094
A19: Citra | B19: 9,0 - 13,0 | C19: 12.8 | E19: 3,5 - 4,5 | F19: 22 - 24 | G19: A | H19: 1 | I19: 0.6 | J19: Special aroma hops. Comprised of Hallertau Mittelfrüh, US Tettnang, Brewer's Gold and East Kent Golding. Released in 2007 | K19: IPAs, strong American and Belgian Ales | L19: Strong citrus and tropical tones of grapefruit, melon, lime, gooseberry, passion fruit and lychee | M19: =VLOOKUP(A19,'Humle X-ref.'!$A$2:$D$141,4,FALSE) -> Galaxy, Centennial, Nelson Sauvin, Fuggles, Goldings, Willamette | O19: 39 | P19: 0.24 | Q19: 0.219 | R19: 0.2 | S19: 0.183 | T19: 0.167 | U19: 0.153 | V19: 0.14 | W19: 0.128 | X19: 0.117 | Y19: 0.107 | Z19: 0.098
A20: Columbus | B20: 14,0 - 16,0 | C20: 16.8 | E20: 4,0 - 5,0 | F20: 30 - 35 | G20: B | H20: 1 | I20: 0.4 | J20: High alpha bittering hops. Engineered Centennial Substitute, a descendant of Nugget. One of the 3 C's. | K20: Pale Ale | L20: Pungent, black pepper, licorice characteristics with subtle citrus overtones | M20: =VLOOKUP(A20,'Humle X-ref.'!$A$2:$D$141,4,FALSE) -> Chinook, Nugget, Northern Brewer, Galena, UK Target | O20: 42 | P20: 0.247 | Q20: 0.226 | R20: 0.206 | S20: 0.189 | T20: 0.172 | U20: 0.158 | V20: 0.144 | W20: 0.132 | X20: 0.12 | Y20: 0.11 | Z20: 0.101
A21: Comet | B21: 9,4 - 12,4 | C21: 10.2 | E21: 3 - 6,1 | F21: 41 | G21: BA | H21: 100 | I21: 0.5 | J21: Comet has an intriguing parentage of English Sunshine and a native American hop, bringing out a “wild American” flavor. Released in 1974 by the USDA, Comet was originally bred to address the needs for higher alpha hops. | K21: Bittering in American style Lagers - and Dry Hop in Ales and IPA's. Lager, American Ale, India Pale Ale, Ale | L21: Strong grapefruit, dank resin flavors | M21: =VLOOKUP(A21,'Humle X-ref.'!$A$2:$D$141,4,FALSE) -> Galena, Summit | O21: 45 | P21: 0.253 | Q21: 0.232 | R21: 0.212 | S21: 0.194 | T21: 0.177 | U21: 0.162 | V21: 0.148 | W21: 0.135 | X21: 0.123 | Y21: 0.113 | Z21: 0.103
A22: Crystal | B22: 3,5 - 5,5 | C22: 3.7 | E22: 4,5 - 6,7 | F22: 20 - 26 | G22: A | H22: 100 | I22: 0.5 | J22: Aroma and finishing hops | K22: IPAs and Lagers | L22: Clean, mild, floral, pleasant and slightly spicy | M22: =VLOOKUP(A22,'Humle X-ref.'!$A$2:$D$141,4,FALSE) -> Mt. Hood, Hersbrucker, Liberty, Hallertau | O22: 48 | P22: 0.259 | Q22: 0.237 | R22: 0.216 | S22: 0.198 | T22: 0.181 | U22: 0.165 | V22: 0.151 | W22: 0.138 | X22: 0.126 | Y22: 0.115 | Z22: 0.105
A23: Dr. Rudi | B23: 10 - 12 | C23: 12.6 | E23: 7 - 8,5 | F23: 36 - 39 | G23: BA | H23: 100 | I23: 0.6 | J23: Originally known as Super Alpha, the variety was renamed to Dr Rudi in 2012. It was bred from New Zealand Smooth Cone and is largely grown in New Zealand. It was originally released in 1976. | K23: Lager, India Pale Ale | L23: Grass, pine and citrus flavors | M23: =VLOOKUP(A23,'Humle X-ref.'!$A$2:$D$141,4,FALSE) -> Green Bullet | O23: 51 | P23: 0.264 | Q23: 0.241 | R23: 0.221 | S23: 0.202 | T23: 0.184 | U23: 0.169 | V23: 0.154 | W23: 0.141 | X23: 0.129 | Y23: 0.118 | Z23: 0.108
A24: East Kent Golding | B24: 4,0 - 6,0 | C24: 5.1 | E24: 1,9 - 3,0 | F24: 25 - 30 | G24: BA | H24: 1 | I24: 0.4 | J24: UK origin. The Goldings are the traditional Old English hop. Used for bittering, aroma and dry hopping. | K24: English style Ales, Belgian-Style Ales, Stouts, Porters, most Lagers. | L24: Gentle, fragrant, and pleasant. | M24: =VLOOKUP(A24,'Humle X-ref.'!$A$2:$D$141,4,FALSE) -> Fuggle, First Gold, Williamette, Progress, Sovereign, Golding | O24: 54 | P24: 0.269 | Q24: 0.246 | R24: 0.224 | S24: 0.205 | T24: 0.188 | U24: 0.171 | V24: 0.157 | W24: 0.143 | X24: 0.131 | Y24: 0.12 | Z24: 0.109
A25: Ekuanot | B25: 14,4 - 15,6 | C25: 13.6 | E25: 4,6 - 5,1 | F25: 31,7 - 38,0 | G25: Ab | H25: 1 | I25: 0.6 | J25: Pronounced aroma and notably high oil content. Earlier called Equinox | K25: All beers | L25: Citrus, Fruity. Noted for an indescribably unique berry-and-fresh-pepper character | M25: =VLOOKUP(A25,'Humle X-ref.'!$A$2:$D$141,4,FALSE) -> Ingen | O25: 57 | P25: 0.273 | Q25: 0.249 | R25: 0.228 | S25: 0.208 | T25: 0.19 | U25: 0.174 | V25: 0.159 | W25: 0.145 | X25: 0.133 | Y25: 0.121 | Z25: 0.111
A26: El Dorado | B26: 13,0 - 17,0 | C26: 14.1 | E26: 7,0 - 8,0 | F26: 28 - 33 | G26: BA | H26: 100 | I26: 0.6 | J26: El Dorado is a relatively new kid on the block from Yakima Valley. Released in 2010 | K26: Wheat beers, Pale Ales and IPA’s | L26: Flavors of tropical fruit, pineapple, mango. Aromas of pear, watermelon, stone fruit and candy. | M26: =VLOOKUP(A26,'Humle X-ref.'!$A$2:$D$141,4,FALSE) -> Galena, Simcoe | O26: 60 | P26: 0.276 | Q26: 0.252 | R26: 0.231 | S26: 0.211 | T26: 0.193 | U26: 0.176 | V26: 0.161 | W26: 0.147 | X26: 0.135 | Y26: 0.123 | Z26: 0.112
A27: Extra Styrian Dana | B27: 11 - 16 | C27: 10.9 | E27: 4 - 6 | F27: 28 - 31 | G27: BA | H27: 100 | I27: 0.4 | J27: Dana, or Extra Styrian Dana as it is often known, is a Slovenian hop bred from a German Hallertau Magnum and a wild Slovenian male. A product of the Institute of Hop Research in Zalec, Solvenia | K27: India Pale Ale | L27: Harmonious bittering properties alongside a slightly floral and citrus flavor profile. | M27: =VLOOKUP(A27,'Humle X-ref.'!$A$2:$D$141,4,FALSE) -> Ingen | O27: 70 | P27: 0.285 | Q27: 0.261 | R27: 0.238 | S27: 0.218 | T27: 0.199 | U27: 0.182 | V27: 0.166 | W27: 0.152 | X27: 0.139 | Y27: 0.127 | Z27: 0.116
A28: First Gold | B28: 5,6 - 9,3 | C28: 7.5 | E28: 2,3 - 4,1 | F28: 32 - 34 | G28: BA | H28: 1 | I28: 0.4 | J28: The variety is very suitable both as a general kettle hop and also for late and dry hopping in all types of beer | K28: All beers | L28: Produces a well-balanced bitterness and a fruity, slightly spicy note in ales. An orangey quality has been observed in many beers brewed using this variety. | M28: =VLOOKUP(A28,'Humle X-ref.'!$A$2:$D$141,4,FALSE) -> East Kent Goldings, Fuggle, Crystal, Challenger, Northern Brewer, Northdown, Boadicea | O28: 80 | P28: 0.291 | Q28: 0.266 | R28: 0.243 | S28: 0.222 | T28: 0.203 | U28: 0.186 | V28: 0.17 | W28: 0.155 | X28: 0.142 | Y28: 0.13 | Z28: 0.119
A29: Fuggles | B29: 3,5 - 6,5 | C29: 4.6 | E29: 2,0 - 4,0 | F29: 27 - 33 | G29: BA | H29: 1 | I29: 0.4 | J29: General purpose bittering/aroma. Selected in 1861 by Richard Fuggle | K29: English Ales, Dark Lagers | L29: Mild wood, soft, grassy, floral aroma | M29: =VLOOKUP(A29,'Humle X-ref.'!$A$2:$D$141,4,FALSE) -> Williamette, Styrian Goldings | O29: 90 | P29: 0.295 | Q29: 0.27 | R29: 0.247 | S29: 0.226 | T29: 0.206 | U29: 0.188 | V29: 0.172 | W29: 0.157 | X29: 0.144 | Y29: 0.132 | Z29: 0.12
A30: Galaxy | B30: 11 - 16 | C30: 13.5 | E30: 5 - 6,9 | F30: 32 - 42 | G30: BA | H30: 100 | I30: 0.6 | J30: Descended from German variety Perle, Galaxy® is a unique Australian breed of hops that has the distinction of sporting the highest percentage of essential oils in the industry. | K30: Pale Ale, India Pale Ale, ESB | L30: Amazing citrus, peach and passionfruit aroma, especially when used as a late addition. The flavor is often quite intense upon production, but mellows as it matures. | M30: =VLOOKUP(A30,'Humle X-ref.'!$A$2:$D$141,4,FALSE) -> Citra, Amarillo, Centennial | O30: 120 | P30: 0.301 | Q30: 0.275 | R30: 0.252 | S30: 0.23 | T30: 0.21 | U30: 0.192 | V30: 0.176 | W30: 0.161 | X30: 0.147 | Y30: 0.134 | Z30: 0.123
A31: Galena | B31: 12,0 - 14,0 | C31: 15.2 | E31: 7,0 - 9,0 | F31: 37 - 42 | G31: B | H31: 1 | I31: 0.6 | J31: General bittering hops. Strong, clean, balanced bittering. | K31: All beers | L31: Spicy, blackcurrant and citrus (grapefruit) tones | M31: =VLOOKUP(A31,'Humle X-ref.'!$A$2:$D$141,4,FALSE) -> Legacy, Brewer’s Gold, Nugget, Eroica, Northern Brewer, Columbus, Chinook
A32: Goldings | B32: 4,0 - 6,0 | C32: 3.79 | E32: 2,0 - 3,0 | F32: 20 - 25 | G32: BA | H32: 1 | I32: 0.5 | J32: Bittering, aroma and finishing. | K32: British ales, bitters, porters and stouts. | L32: Mild and delicate with sweet floral characteristics | M32: =VLOOKUP(A32,'Humle X-ref.'!$A$2:$D$141,4,FALSE) -> East Kent Golding, Progress
A33: Hallertau Blanc | B33: 9 - 12 | C33: 9.1 | E33: 4,5 - 6 | F33: 22 - 26 | G33: A | H33: 100 | I33: 0.4 | J33: Hallertau Blanc, daughter of Cascade, was released to the world in 2012. Established on the Hüll farm in the German Hallertau region | K33: American-style Ales | L33: Flavours of white-wine and fruit, aromas of cassis, elderflower, grapes, grapefruit and lemongrass. | M33: =VLOOKUP(A33,'Humle X-ref.'!$A$2:$D$141,4,FALSE) -> Galaxy / Nelson Sauvin | O33: To calculate IBUs, the formula is simple: | V33: IBUs = decimal alpha acid utilization * mg/l of added alpha acids
A34: Hallertau Hersbrucker | B34: 2,0 - 5,0 | C34: 2.6 | E34: 2,5 - 6,0 | F34: 18 - 25 | G34: A | H34: 1 | I34: 0.4 | J34: Very good aroma hop | K34: Lager, Pilsner, Bock, Weizen Bock, Wheat, Belgian-Style Ales, Kölsch, Munich Helles | L34: A mild aroma and a low co-humulone content | M34: =VLOOKUP(A34,'Humle X-ref.'!$A$2:$D$141,4,FALSE) -> Hallertau, Strisselspalt, Helga, Hallertauer Mittlefrüh
A35: Hallertau Mittelfrüh | B35: 3,0 - 5,5 | C35: 3.4 | E35: 3,0 - 5,0 | F35: 18 - 28 | G35: A | H35: 1 | I35: 0.4 | J35: Mittelfrüh has a traditional European aroma and is one of the Noble Hops | K35: German Pilsner, German Style Lagers | L35: A pleasant herbal, grassy and floral aroma | M35: =VLOOKUP(A35,'Humle X-ref.'!$A$2:$D$141,4,FALSE) -> Hersbruck, Mt. Hood, Liberty, Helga | O35: To calculate the concentration of alpha acids you add to the wort: | Y35: (mg/l of added alpha acids = decimal AA rating * grams hops * 1000) / volume of finished beer in liters
A36: Herkules | B36: 12 - 17 | C36: 10 | E36: 4 - 5,5 | F36: 32 - 38 | G36: BA | H36: 100 | I36: 0.4 | J36: Strong and robust in flavor and aroma, German Herkules lives up to it’s name. The Hüll-bred offspring of Hallertauer Taurus, Herkules is a high alpha acid bittering hop, known to be spicy and floral, tangy and hoppy, with notes of melon, black pepper, with hints of pine. It was released in 2005. | K36: German Ale | L36: Notes of melon, black pepper and pine | M36: =VLOOKUP(A36,'Humle X-ref.'!$A$2:$D$141,4,FALSE) -> Horizon, Magnum, (Hallertau) Taurus
A37: Hüll Melon | B37: 6,9 - 7,5 | C37: 6.9 | E37: 7,3 - 7,9 | F37: 25 - 30 | G37: A | H37: 100 | I37: 0.6 | J37: Relatively new on the market, Hüll Melon made its debut in 2012. A daughter of Cascade (US), it has some interesting flavor characteristics not commonly associated with hops. It is noted to be intensely fruity with flavors and aromas of honeydew melon and strawberry. | L37: Intensely fruity, flavors and aromas of honeydew melon, strawberry | M37: =VLOOKUP(A37,'Humle X-ref.'!$A$2:$D$141,4,FALSE) -> Ingen
A38: Junga | B38: 10 - 13 | C38: 11 | G38: Ba | H38: 100 | I38: 0.4 | J38: This Polish varietal is a high alpha acid hop best utilized as a bittering agent. It provides fantastic bittering | K38: IPAs, Lagers, and Altbiers. | L38: If used for aroma purposes however, Junga hops do provide blackcurrant, grapefruit and spice notes. | M38: =VLOOKUP(A38,'Humle X-ref.'!$A$2:$D$141,4,FALSE) -> Nugget, Target, Galena
A39: Kohatu | B39: 5 - 7 | C39: 6.6 | E39: 4 - 6 | F39: 21 | G39: bA | H39: 100 | I39: 0.6 | J39: This New Zealand bred varietal was bred around the same time as popular Wai-iti hops, and carries some similar characteristics. It creates such a delectable, rounded bitterness when brewed that it is considered a dual purpose hop. | K39: IPA, Pale, or even Blonde recipe for an extra fruity flavor. | L39: Intense tropical fruits, lots of pine, and a touch of lush floral. | M39: =VLOOKUP(A39,'Humle X-ref.'!$A$2:$D$141,4,FALSE) -> Wai-iti, Motueka
A40: Lemondrop | B40: 5,0 - 7,0 | C40: 5.2 | E40: 4,0 - 6,0 | F40: 28 - 34 | G40: A | J40: Aroma-type hop, originated from a cross between Cascade and USDA 19058 male | K40: American Ales | L40: Lemon, mint, green tea, light melon | M40: =VLOOKUP(A40,'Humle X-ref.'!$A$2:$D$141,4,FALSE) -> Cascade, Mandarina Bavaria, Centennial
A41: Magnum | B41: 11,0 - 16,0 | C41: 12.8 | E41: 5,0 - 7,0 | F41: 21 - 29 | G41: B | H41: 1 | I41: 0.4 | J41: Bittering, no distinct aroma | K41: Ales and Lagers | L41: No distinct aroma | M41: =VLOOKUP(A41,'Humle X-ref.'!$A$2:$D$141,4,FALSE) -> Columbus, Horizon, Nugget, Magnum
A42: Mandarina Bavaria | B42: 7,0 - 10,0 | C42: 9.3 | E42: 5,0 - 6,5 | F42: 31 - 35 | H42: 1 | I42: 0.6 | M42: =VLOOKUP(A42,'Humle X-ref.'!$A$2:$D$141,4,FALSE) -> Cascade
A43: Mosaic | B43: 11,5 - 13,5 | C43: 12.1 | E43: 3,2 - 3,9 | F43: 24 - 26 | G43: A | H43: 1 | I43: 0.6 | J43: An excellent aroma variety. Daughter of Simcoe | K43: IPAs | L43: A complex array of tropical fruit, citrus, berry, herbal, earthy and pine characteristics | M43: =VLOOKUP(A43,'Humle X-ref.'!$A$2:$D$141,4,FALSE) -> Simco eller måske Nelson Sauvin
A44: Motueka | B44: 6,5 - 8,5 | C44: 6.7 | E44: 5 - 5,5 | F44: 29 | G44: BA | H44: 100 | I44: 0.6 | J44: Formerly known as Belgian Saaz or B Saaz, Motueka is a premier New Zealand hop. Developed by HortResearch, this triploid was bred from Saaz and an unnamed New Zealand breeding strain | K44: European Ale, English Ale, Dark Lager, Pilsner, Belgian Ales, Lager, Maibock, Ales | L44: Tropical fruit and citrus | M44: =VLOOKUP(A44,'Humle X-ref.'!$A$2:$D$141,4,FALSE) -> Saaz, Saaz (US), Sterling
A45: Mount Hood | B45: 4,0 - 8,0 | C45: 6 | E45: 5,0 - 7,5 | F45: 21 - 23 | G45: A | J45: Released in 1989, Mount Hood is an American-bred cultivar stemming from Hallertau Mittelfrüh | K45: Hefeweizen, Doppelbock, Russian Imperial Stout, Brown Ale, Golden Ale, Pale Ale, Amber Ale, Weizenbock, India Pale Ale, Holiday Lager, Bock, American Wheat, Alt Munich Helles, American Lager | L45: Noble hop aroma | M45: =VLOOKUP(A45,'Humle X-ref.'!$A$2:$D$141,4,FALSE) -> Hersbrucker, Strisselspalt, Crystal, Hallertauer, Tettnanger
A46: Nelson Sauvin | B46: 12,0 - 13,0 | C46: 10.9 | E46: 6,0 - 8,0 | F46: 23 - 25 | G46: BA | H46: 1 | I46: 0.8 | J46: Nelson Sauvin™ Brand 85-03-06 is a triploid variety bred from the New Zealand variety “Smoothcone” and a selected New Zealand male. Developed by New Zealand’s Plant & Food Research and released in 2000 | K46: All beers, but mainly American Pale Ales and IPAs. | L46: “fresh crushed gooseberries”, a distinctive cool climate white wine “fruitiness”. This hop is considered by some as being extreme and the bold hop character may be overpowering for the un-initiated. | M46: =VLOOKUP(A46,'Humle X-ref.'!$A$2:$D$141,4,FALSE) -> Ingen
A47: Northern Brewer | B47: 7,0 - 10,0 | C47: 9.5 | E47: 3,5 - 5,0 | F47: 27 - 33 | G47: BA | H47: 1 | I47: 0.5 | J47: A true dual purpose hop variety | K47: Ales | L47: Medium intensity, pine and mint characteristics | M47: =VLOOKUP(A47,'Humle X-ref.'!$A$2:$D$141,4,FALSE) -> Northdown, Challenger, Chinook, Brewers Gold, First Gold, Perle, Aurora, Northern Brewer, Galena
A48: Nugget | B48: 12,0 - 14,5 | C48: 11.4 | E48: 4,0 - 6,0 | F48: 22 - 26 | G48: Ba | H48: 1 | I48: 0.5 | J48: Bittering, but gaining acceptance as a dual purpose variety | K48: Barley Wine | L48: Mild and pleasant with spicy, herbal tones | M48: =VLOOKUP(A48,'Humle X-ref.'!$A$2:$D$141,4,FALSE) -> Galena, Columbus, Magnum
A49: Opal | B49: 13 - 14 | C49: 6.6 | E49: 3,5 - 5,5 | F49: 28 - 34 | G49: BA | H49: 100 | I49: 0.4 | J49: Developed by the Hull Hops Research Institute in Germany, Opal hops feature a clean aroma and flavor profile | K49: Pilsner, Hefeweizen, Helles, Lager, Brown Ale, Saison, Tripel, Wheat, Kölsch, Blonde Ale | L49: Flavors of spice and citrus, slight sweetness | M49: =VLOOKUP(A49,'Humle X-ref.'!$A$2:$D$141,4,FALSE) -> Saphir, East Kent Goldings, Styrian Golding
A50: Perle | B50: 6,0 - 10,0 | C50: 7.8 | E50: 2,5 - 5,0 | F50: 28 - 32 | G50: BA | H50: 1 | I50: 0.4 | J50: Bred from English Northern Brewer. Often used as a dual purpose hop in a variety of applications | K50: Stout | L50: Slightly spicy with herbal and floral characteristics | M50: =VLOOKUP(A50,'Humle X-ref.'!$A$2:$D$141,4,FALSE) -> Northern Brewer, Northdown, Perle
A51: Rakau | B51: 5,8 - 10,9 | C51: 10.1 | E51: 2,6 - 4,8 | F51: 27 | G51: BA | H51: 100 | I51: 0.6 | J51: Rakau, or AlphaAroma as it was previously known, was developed in New Zealand. Languishing in its disease free habitat, Rakau features a high concentration of myrcene is said to pair it beautifully to dry-hopped American Pale Ales. | K51: Pale Ale, Lager | L51: Lending flavors and aromas of apricot, plum, mango, pear, and other stone fruits. Some lighter notes of lime and pine are also present | M51: =VLOOKUP(A51,'Humle X-ref.'!$A$2:$D$141,4,FALSE) -> Ingen
A52: Saaz | B52: 3,0 - 4,5 | C52: 3.4 | E52: 3,0 - 4,5 | F52: 24 - 28 | G52: A | H52: 1 | I52: 0.4 | J52: The classic "noble" aroma hop with long and strong traditions, associated with the renowned pilsner lager | K52: Lagers | L52: Very mild, with pleasant earthy, herbal and floral overtones | M52: =VLOOKUP(A52,'Humle X-ref.'!$A$2:$D$141,4,FALSE) -> Sterling, Spalt, Saaz, Lublin
A53: Saphir | B53: 2 - 4,5 | C53: 2.7 | E53: 4 - 7 | F53: 12 - 17 | G53: A | H53: 100 | I53: 0.4 | J53: Bred at the Hop Research Center in Hüll and released in 2002, the initial goal of its creators was to produce a more commercially viable alternative to Hallertau Mittelfrüh through increased disease resistance and the retention of Hallertau’s noble characteristics. In that capacity, Saphir would most certainly be considered a success. | K53: Pilsner, Lager | L53: Sweet citrus aromas with hints of tangerine | M53: =VLOOKUP(A53,'Humle X-ref.'!$A$2:$D$141,4,FALSE) -> Hallertau, Hallertau Tradition, Spalter Select
A54: Select Spalt | B54: 3 - 6,5 | C54: 4.3 | E54: 2 - 5 | F54: 20 - 28 | G54: A | H54: 100 | I54: 0.4 | J54: Released in 1993, Spalter Select was bred in Hüll, Germany in an effort to increase yield potential and disease resistant and serve as a commercial replacement for Spalt. These efforts were quite successful. | K54: Kölsch, Belgian Ale, French Ale, Lager, Bock, Helles, Alt, Pilsner, Märzen | L54: Considered a slightly spicier version of Spalt | M54: =VLOOKUP(A54,'Humle X-ref.'!$A$2:$D$141,4,FALSE) -> Saaz, Tettnanger, Spalt, Hersbrucker, Perle, Tradition
A55: Simcoe | B55: 12,0 - 14,0 | C55: 13.8 | E55: 4,0 - 5,0 | F55: 15 - 20 | G55: BA | H55: 1 | I55: 0.6 | J55: Known as a bittering hop with a good aroma. Dual Purpose | K55: IPAs | L55: Unique passionfruit, pine, earth and citrus characteristics | M55: =VLOOKUP(A55,'Humle X-ref.'!$A$2:$D$141,4,FALSE) -> Magnum, Summit
A56: Sorachi Ace | B56: 11,5 - 14,5 | C56: 11 | E56: 6,0 - 7,5 | F56: 25 - 28 | G56: BA | H56: 1 | I56: 0.6 | J56: Japanese dual purpose hop seeing increased usage in 2008 after hop shortages in the Western world. It is a cross between Brewer's Gold, Saaz and Beikei No. 2 male. | K56: Pale Ales & IPAs, Wheat Styles, Golden Ales, Saisons, Tripels, Bière de Garde. | L56: Imparts an unusual lemon/"bubblegum" and dill pickle flavour. It is a popular variety among craft brewers for its unique citrus fruit, herbal and dill aromas. | M56: =VLOOKUP(A56,'Humle X-ref.'!$A$2:$D$141,4,FALSE) -> Columbus, Tomahawk, Summit, Warrior, Chinook, Southern Cross
A57: Southern Cross | B57: 13 - 14 | C57: 14 | E57: 6 - 7 | F57: 28 | G57: BA | H57: 100 | I57: 0.6 | J57: Southern Cross was created by New Zealand’s HortResearch breeding program as a cross between Smooth Cone and the result of a Californian and English Fuggle. It was released in 1994. | K57: Pale Ale, India Pale Ale, Lager | L57: Soft bitterness, lemon zest and pine needles | M57: =VLOOKUP(A57,'Humle X-ref.'!$A$2:$D$141,4,FALSE) -> Northern Brewer, Chinook, Sorachi Ace
A58: Sovereign | B58: 4,5 - 6,5 | C58: 7.1 | E58: 2,1 - 3,1 | F58: 26 - 30 | G58: B | H58: 100 | I58: 0.4 | J58: The granddaughter of Pioneer, Sovereign is an English variety bred at Wye College in the mid-1990s. Released in 2006, Sovereign is gaining respect for its complex and delicate aroma profile. | K58: American Lager, American Pale Ale | L58: Complex aroma, subtle notes of green-tea and vanilla | M58: =VLOOKUP(A58,'Humle X-ref.'!$A$2:$D$141,4,FALSE) -> Fuggles, Golding
A59: Spalt | B59: 2,5 - 5,7 | E59: 3 - 5 | F59: 22 - 29 | G59: A | J59: Surely one of the world oldest hop varieties, Spalt hops date back as far as the 8th century and in the 16th century they were the first variety to be granted the German hop seal – a historically significant certification system predating the current, German Hop Provenance Law. Grown primarily in the Spalt region of Germany, it is one of the original landrace hops. | K59: German Ale, Lager, Pilsner, Bock, Kölsch | L59: Spicy noble hop aroma | M59: =VLOOKUP(A59,'Humle X-ref.'!$A$2:$D$141,4,FALSE) -> Saaz, Tettnanger, Santiam, Liberty, Hallertau
A60: Strisselspalt | B60: 1,8 - 5,7 | C60: 2.1 | E60: 2,5 - 6 | F60: 20 - 27 | G60: A | H60: 100 | I60: 0.4 | J60: Strisselspalt hails from the Alsace region of France around Strasbourg and is likely related to German Spalt and/or Hersbrucker hops. Thought to be an old land race, its acreage is dwindling due to its inherent low yield but it survives largely on the back of a strong domestic demand for the variety. | K60: Lager, Saison, Blonde Ale, Amber Ale, Belgian Ale, Bock, Maibock, Golden Ale, Belgian Pale Ale | L60: Pleasant continental-style aroma, herbal, floral, spicy, citrus, fruit | M60: =VLOOKUP(A60,'Humle X-ref.'!$A$2:$D$141,4,FALSE) -> Liberty, Hallertau, Mt Hood, Crystal, Hersbrucker
A61: Styrian Eureka | B61: 18 - 19 | C61: 14.7 | E61: 5 - 6 | F61: 27 | G61: BA | H61: 100 | I61: 0.4 | J61: With similarities to Simcoe® and Summit™ hops, Eureka is a fairly new variety with very strong bittering qualities and a complex and robust flavor and aroma profile. | K61: Imperial India Pale Ale, India Pale Ale, American Ales, American Red, Saison | L61: Flavours of citrus, peach and pine, aromas of stone fruit and mandarin | M61: =VLOOKUP(A61,'Humle X-ref.'!$A$2:$D$141,4,FALSE) -> Ingen
A62: Styrian Golding | B62: 2,8 - 5,5 | C62: 4 | E62: 2,0 - 3,0 | F62: 25 - 30 | G62: A | H62: 1 | I62: 0.4 | J62: A world-renowned aroma hop with widespread usage in both ale and lager brewing | K62: Belgian-style Ales | L62: Very mild, noble hop flavor | M62: =VLOOKUP(A62,'Humle X-ref.'!$A$2:$D$141,4,FALSE) -> Aurora, Fuggle, Williamette, Styrian Bobek
A63: Styrian Wolf | B63: 10 - 18,5 | C63: 12.1 | E63: 5 - 6 | F63: 22 - 23 | G63: BA | H63: 100 | I63: 0.4 | J63: Developed by the Slovenian Institute for Hop Research and Brewing, Styrian Wolf is one of the latest Styrian hops on the market. When brewed, expect intense fruity and floral notes. | K63: IPA, Pale Ale, Ale | L63: Intense fruity and floral notes. These include flavours of sweet tropical fruits and complex aromas of mango, elderflower and even a hint of violet. | M63: =VLOOKUP(A63,'Humle X-ref.'!$A$2:$D$141,4,FALSE) -> Ingen
A64: Summit | B64: 15,0 - 17,0 | C64: 15.6 | E64: 5,0 - 6,5 | F64: 29 - 32 | G64: Ba | H64: 1 | I64: 0.5 | J64: Mainly used as a bittering hop, but does have earthy aromatic characteristics and subtle hints of citrus. | K64: American ales and lagers | L64: Specific aroma descriptors include pepper, incense, anise, orange, pink grapefruit and tangerine. | M64: =VLOOKUP(A64,'Humle X-ref.'!$A$2:$D$141,4,FALSE) -> Apollo
A65: Target | B65: 8,5 - 13,5 | C65: 9.74 | E65: 4,0 - 5,7 | F65: 37 | G65: B | H65: 1 | I65: 0.4 | J65: An excellent bittering hop that tends to be too harsh for aroma purposes late in the boil | K65: Ale | L65: An intense English hop aroma with distinct spicy, floral, sage and citrus characteristics | M65: =VLOOKUP(A65,'Humle X-ref.'!$A$2:$D$141,4,FALSE) -> Admiral, Fuggle, Willamette
A66: Tettnanger | B66: 3,0 - 6,0 | C66: 1.7 | E66: 3,0 - 5,0 | F66: 22 - 29 | G66: A | H66: 1 | I66: 0.4 | J66: Traditional noble aroma hop | K66: Belgian-style Ales | L66: Mild and pleasant with balanced earthy, herbal and floral aroma impressions | M66: =VLOOKUP(A66,'Humle X-ref.'!$A$2:$D$141,4,FALSE) -> Hersbrucker, Saaz, Spalt, Ultra, Select
A67: Tradition | B67: 5,0 - 7,0 | C67: 6.7 | E67: 4,0 - 5,0 | F67: 26 - 29 | G67: A | H67: 1 | I67: 0.4 | J67: Aroma Hop. Imparts beer with a harmonic bitterness | K67: Bock | L67: Medium intense floral and herbal (grassy) tones | M67: =VLOOKUP(A67,'Humle X-ref.'!$A$2:$D$141,4,FALSE) -> Hallertau Mittelfrüh, Liberty
A68: Triskel | B68: 8 - 9 | C68: 3 | E68: 4,0 - 4,7 | F68: 20 - 23 | G68: A | H68: 100 | I68: 0.4 | J68: Developed in France in 2006, Triskel is a cultivar of the French hop, Strisselspalt and English varietal, Yeoman. With a more pronounced nose than its French parent, Triskel makes a unique first wort alternative and its notable aroma qualities make it well suited as a late addition or for dry hopping. | K68: Belgian Ale, Saison, Kolsch, Pilsner, Pale Ale, India Pale Ale, Lager, Wheat | L68: Floral aroma, subtly fruity, citrusy | M68: =VLOOKUP(A68,'Humle X-ref.'!$A$2:$D$141,4,FALSE) -> Strisselspalt, Ahtanum, Centennial, Chinook, Simcoe
A69: Vic Secret | B69: 14 - 17 | C69: 14.5 | E69: 6,1 - 7,8 | F69: 51 - 56 | G69: BA | H69: 100 | I69: 0.5 | J69: Vic Secret had her first commercial harvest in 2013. Developed in 2000 in Victoria, Australia alongside sister variety Topaz. | K69: Pale Ale, India Pale Ale, Stout, Porter | L69: Tropical fruit, pine, herbs. Vic Secret’s is best utilized via whirlpool and dry hopping. It is also worth noting that late kettle additions impart a wonderful earthiness, but the fruitiness doesn’t come through. | M69: =VLOOKUP(A69,'Humle X-ref.'!$A$2:$D$141,4,FALSE) -> Galaxy
A70: Wai-iti | B70: 2,5 - 3,5 | E70: 4,5 - 5,5 | F70: 22 - 24 | G70: A | J70: It was released to brewers in 2011 alongside Kohatu by New Zealand Plant & Food Research and features higher beta acids than alpha acids, low cohumulone and robust oil content. | K70: Pale Ale, India Pale Ale, Wheat Beer | L70: Lime citrus and stone fruit notes | M70: =VLOOKUP(A70,'Humle X-ref.'!$A$2:$D$141,4,FALSE) -> Riwaka
A71: Waimea | B71: 16 - 19 | C71: 15.5 | E71: 7 - 9 | F71: 22 - 24 | G71: BA | H71: 100 | I71: 0.6 | J71: Waimea is a new New Zealand dual-use variety originally bred for high alpha and bittering qualities. Released in 2012, it’s heritage stems from Californian Late Cluster, Fuggle and Saaz. | K71: India Pale Ale, Pale Ale | L71: Citrus and pine | M71: =VLOOKUP(A71,'Humle X-ref.'!$A$2:$D$141,4,FALSE) -> Columbus
A72: Warrior | B72: 14,5 - 18 | C72: 14 | E72: 4,3 - 6 | F72: 22 - 28 | G72: B | H72: 100 | I72: 0.5 | J72: Among its desirable traits are its clean, smooth bittering and a somewhat inconspicuous citrusy and spicy aroma. | K72: India Pale Ale, American Ales | L72: Aromas of citrus and spice | M72: =VLOOKUP(A72,'Humle X-ref.'!$A$2:$D$141,4,FALSE) -> Bravo, Nugget, Columbus - muligvis Apollo or Magnum
A73: Willamette | B73: 4,0 - 6,0 | C73: 4.5 | E73: 3,0 - 4,5 | F73: 30 - 35 | G73: A | H73: 1 | I73: 0.4 | J73: A quality aroma hop with low alpha content. Triploid seedling of the English Fuggle variety | K73: English-style Ale | L73: Mild and pleasant, with slightly spicy and floral tones | M73: =VLOOKUP(A73,'Humle X-ref.'!$A$2:$D$141,4,FALSE) -> Fuggle, Tettnanger, Glacier, Styrian Golding
A77: https://ychhops.com/varieties
A79: Humlesorter i Pellets | C79: =COUNTA(C3:C73) -> 67
A80: Humlesorter i Blomster | D80: =COUNTA(D3:D73) -> 0

Sheet Humle X-ref.
A1: Navn | B1: Land | C1: Karakteristika | D1: Erstatning
A2: Admiral | B2: GB | C2: Avlet som erstatning for Target, men med en mindre barsk bitterhed. Svag aroma med en mild citrus karakter. | D2: Target, Challenger
A3: Ahtanum | B3: US | C3: Citrus og blomsteragtig karakter, med grapefrugt kvaliteter, der siges at være stærkere end i Cascade. | D3: Cascade, Amarillo
A4: Amarillo | B4: US | C4: Blomsteragtig, grapefrugt, citrus, fersken | D4: Cascade, Centennial, Citra, Simcoe
A5: Apollo | B5: US | C5: Appelsinagtig med lidt harpiks. Ret potent. | D5: Columbus, Tomahawk, Magnum
A6: Aramis | B6: US | C6: Krydret, blomster, nyopgravet muldjord, citron | D6: Centennial, Chinook, Hallertau, Tettnanger
A7: Aurora | B7: SLO | C7: Meget “humlet” aroma, frugtagtig | D7: Styrian Golding, Northern Brewer
A8: Azacca | B8: US | C8: Duft af tropisk frugt og citrus. Smag med noter af krydret mango, ananas, mandarin og fyr. | D8: Centennial
A9: Barbe Rouge | B9: FR | C9: This extremely rare, delicate aroma hop is native to France. Pedigree: French Parentage | D9: Ingen
A10: Belma | B10: US | C10: Meget ren humlesmag, appelsin, let grapefrugtagtig, ananas og melon. Det er en ny variant, der udelukkende forhandles af “Hops Direct”. | D10: Pacific Gem
A11: Boadicea | B11: GB | C11: Delikat duft af frugtplantage og græs. Svag, men tydelig krydret karakter | D11: Challenger, Sovereign, Golding
A12: Bobek | B12: SLO | C12: Behagelig blomstret aroma. Bobek er et forsøg på at lave en både høj-Alpha og god aroma humle | D12: Fuggle, Willamette, Styrian Golding
A13: Bouclier | B13: FR | C13: Aromaer af urt, græs og krydderi sammen med en citrus og blomster karakter | D13: Tettnanger, Spalt Select, Tradition
A14: Bramling Cross | B14: GB | C14: Stærk og krydret engelsk humle. Frugtagtig, med solbær noter og en let citron note | D14: East Kent Goldings, Brewer’s Gold, Willamette, WGV
A15: Bravo | B15: US | C15: Blød mild smag, frugtagtig, blomsteragtig, meget ren bitterhed | D15: Warrior - Columbus, Zeus, Apollo, Magnum, Nugget
A16: Brewer’s Gold | B16: GB | C16: Tidlig bitterhumle. Harpiksagtig og kraftigt krydret i smagen med solbærnoter | D16: Bullion, Galena, Pacific Gem, Northern Brewer, North Down, Pioneer
A17: Bullion | B17: US | C17: Tidlig og traditionel bitterhumle velegnet til en god stout. Harpiksagtig, muldjord, kraftig solbær eller hindbær aroma | D17: Brewer’s Gold, Galena
A18: Callista | B18: DE | C18: Pleasant hoppy note, intensively fruity, apricot, passion fruit, red berries | D18: Hüll Melon, Mandarina Bavaria, Hallertau Blanc
A19: Calypso | B19: US | C19: Citron aroma, surt æble, nyopgravet muldjord | D19: Cascade, Belma
A20: Cascade | B20: US | C20: Typisk amerikansk humle med citrusagtige grapefrugt karakter | D20: Centennial, Citra, Amarillo
A21: Centennial | B21: US | C21: Balancerede frugtagtige citrusnoter og stenfrugt karakter. Blød og lækker bitterhed | D21: Cascade, Chinook, Citra, Columbus, Galena, Eroica, Nugget, Bullion
A22: Challenger | B22: GB | C22: Meget ren bitterhumle med en stærk krydret aroma | D22: Perle, Target, Phoenix, EKG, Northern Brewer, First Gold, Northdown
A23: Chinook | B23: US | C23: Krydret fyrnåle smag med noget grapefrugt aroma | D23: Nugget, Columbus, Northern Brewer, Galena, Eroica, Bullion
A24: Citra | B24: US | C24: Potent aroma af intens mango, tropisk frugt og citrus. Smagen er lidt blødere, mindre specific, men dog intens. Meget velegnet til tørhumling og sen-humling, ikke egnet som bitterhumle | D24: Galaxy, Centennial, Nelson Sauvin, Fuggles, Goldings, Willamette
A25: Cluster | B25: US | C25: Skarp bitterhumle med en krydret blomsteraroma. En af de helt originale amerikanske humler | D25: Galena, Northern Brewer
A26: Columbus | B26: US | C26: Potent muldjord og harpiks aroma. Også kendt som Tomahawk eller Zeus (CTZ) | D26: Chinook, Nugget, Northern Brewer, Galena, UK Target
A27: Comet | B27: US | C27: Amerikansk citrus aroma. (der er ikke megen information om denne humle) | D27: Galena, Summit
A28: Crystal | B28: US | C28: En Hallertau hybrid der dyrkes i USA. Krydret blomsteragtig aroma, søster humle til Mount Hood og Liberty. | D28: Mt. Hood, Hersbrucker, Liberty, Hallertau
A29: Dana | B29: SLO | C29: Dana, or Extra Styrian Dana as it is often known, is from a German Hallertau Magnum and a wild Slovenian male. | D29: Ingen
A30: Delta | B30: US | C30: Mildt krydret med et touch af citrus. (Delta er en krydsning mellem Fuggles and Cascade). Beskrives som mild og diskret. | D30: Ingen
A31: Dr. Rudi | B31: NZ | C31: Grass, pine and citrus flavors | D31: Green Bullet
A32: East Kent Golding | B32: GB | C32: En populær engelsk humle med en mild duftende aroma. Blød krydret blomsteraroma. Har præget engelske ales i århundreder | D32: Fuggle, First Gold, Williamette, Progress, Sovereign, Golding
A33: El Dorado | B33: US | C33: Intens bolcheagtig aroma af kirsebær, pære og andre frugter. Smager næsten som et kirsebærbolche | D33: Galena, Simcoe
A34: Endeavour | B34: GB | C34: Komplekse solbær, loganbær og kryddernoter beskriver bedst Endeavours aroma med en vidunderlig grapefrugt og lime smag. Det er mildere end Cascade. | D34: Northern Brewer
A35: Ekuanot | B35: US | C35: Tropical fruit, papaya and mango notes reminiscent of Mosaic and Citra offer versatility across fresh-flavored styles. Then also a sweet and fruity green pepper character. | D35: Ingen
A36: Extra Styrian Dana | B36: SLO | C36: Dana, or Extra Styrian Dana as it is often known, is from a German Hallertau Magnum and a wild Slovenian male. | D36: Ingen
A37: Falconers Flight | B37: US | C37: Tropefrugt, citrus, blomster, citron, grapefrugt | D37: Cascade, Ahtanum, Sorachi Ace
A38: Falconers Seven Seas | B38: US | C38: Frugtagtig, citrus, krydret, muldjord. En krydsning af 7 andre humler, der alle starter med “C” | D38: Simcoe
A39: First Gold | B39: GB | C39: En ung hybrid af Goldings, med en lignende aroma. Krydret, frisk savsmuld, mynte smag og aroma | D39: East Kent Goldings, Fuggle, Crystal, Challenger, Northern Brewer, Northdown, Boadicea
A40: Fuggles | B40: GB | C40: Frisk savsmuld, nyopgravet muldjord. Mildt krydret | D40: Williamette, Styrian Goldings
A41: Galaxy | B41: AUS | C41: Tropisk passionsfrugt, citrus med et snært af fersken og mango. Ligner Citra, men er mindre intens. | D41: Citra, Amarillo, Centennial
A42: Galena | B42: GB | C42: Frugtagtig solbær og citrus | D42: Legacy, Brewer’s Gold, Nugget, Eroica, Northern Brewer, Columbus, Chinook
A43: Glacier | B43: US | C43: Muldjord og blomsterkarakter med sødlige citrusnoter | D43: Williamette, Styrian Goldings
A44: Goldings | B44: GB | C44: Aroma noterne omfatter blomstret, lidt krydret, jordet og honning. | D44: East Kent Golding, Progress
A45: Green Bullet | B45: NZ | C45: Frugtagtig harpiks. Beskrevet som at have en klar rosinagtig karakter | D45: Galena, Centennial
A46: Hallertau | B46: DE | C46: Robust klassisk humle med en mild, krydret, blomsteragtig muldjords aroma. Dette er en ædelhumle, der ofte bruges i tyske pilsnertyper (lager). Se også: Hallertau Mittelfrüh | D46: Hersbruck, Mt. Hood, Liberty, Helga
A47: Hallertau Aroma | B47: NZ | C47: Mindre krydret end Mittelfrüh, med en blomsteragtig og citrus, lime karakter. Også kendt som Wakatu | D47: Hallertauer Mittelfrüh, Nelson Sauvin
A48: Hallertau Blanc | B48: DE | C48: Aroma af blomster og frugt, passionsfrugt, grapefrugt, stikkelsbær og ananas | D48: Galaxy / Nelson Sauvin
A49: Hallertau Mittelfrüh | B49: DE | C49: Alsidig klassisk humle med en mild og krydret aroma af blomster og friskpløjet muldjord. Dette er en ædelhumle der er ofte bruges i de gode tyske pilsnere. Den er sansynligvis en regional variation af Hallertau humlen | D49: Hersbruck, Mt. Hood, Liberty, Helga
A50: Hallertau Hersbrucker | B50: DE | C50: Mellemintens blomster karakter, med en krydret og frugtagtig aroma | D50: Hallertau, Strisselspalt, Helga, Hallertauer Mittlefrüh
A51: Helga | B51: AUS | C51: En humle med en næsten-ædel blomsteragtig og mild aroma | D51: Hallertau Mittelfrüh, Hersbrucker
A52: Herald | B52: GB | C52: En søsterhumle til Pioneer. Kraftig bitterhed med et touch af citrus og grapefrugt | D52: Pioneer
A53: Herkules | B53: DE | C53: Let frugtagtig og krydret aroma | D53: Horizon, Magnum, (Hallertau) Taurus
A54: Horizon | B54: US | C54: Citrus og blomsteragtig duftende aroma. Krydret og harpiks aroma kan forekomme. Klar og ren som bitterhumle | D54: Magnum, Amarillo
A55: Hüll Melon | B55: DE | C55: Jordbær og honningmelon nuancer | D55: Ingen
A56: Junga | B56: PO | C56: Krydret humle med grapefrugt og solbær | D56: Nugget, Target, Galena
A57: Kazbek | B57: CZ | C57: Kazbek har en krydret lemonlignende aroma og blev første gang udgivet i 2008. Beslægtet med vilde russiske humlesorter. | D57: Saaz, Sterling
A58: Kohatu | B58: NZ | C58: Expect an aroma of intense tropical fruits, lots of pine, and a touch of lush floral. | D58: Wai-iti, Motueka
A59: Legacy | B59: US | C59: Blomsteragtig, solbær, krydret | D59: Cluster, Galena
A60: Lemondrop | B60: US | C60: Lemondrop giver en unik citron-citrus karakter med en behagelig aroma. De tydelige citrus- og subtile urtenoter er perfekte til sæson øl. Mens ales har tendens til at bringe dens sødere side, er Lemondrop delikat og raffineret nok til kvalitetslagerøl. | D60: Cascade, Mandarina Bavaria, Centennial
A61: Liberty | B61: US | C61: Mild, let krydret, harpiksagtig. Anses af nogle som en ædelhumle | D61: Hallertau
A62: Lubelski | B62: PO | C62: En polsk avlet version af tjekkisk Saaz | D62: Styrian Golding, Saaz
A63: Lublin | B63: PO | C63: En polsk avlet version af tjekkisk Saaz | D63: Saaz, Tettnanger
A64: Magnum | B64: DE | C64: Meget klar og ren bitterhumle med en mild og diskret aroma | D64: Columbus, Horizon, Nugget, Magnum
A65: Mandarina Bavaria | B65: DE | C65: Intens mandarin og citrus toner | D65: Cascade
A66: Marynka | B66: PO | C66: Muldjord, rodfrugt, lakrids | D66: Perle, Chinook
A67: Meridian | B67: US | C67: A chance discovery in 2011, Meridian delivers a mix of tropical, berry, and citrus fruitiness with a hint of spearmint. A “top note” hop, nice in a saison, wit, or farmhouse, it can also be combined with more aggressive hops in IPAs to brighten the overall impression of the beer. | D67: Citra, Amarillo, Sorachi Ace
A68: Merkur | B68: DE | C68: Ligner Magnum som bitterhumle, men med en muldjord og blomsteraroma | D68: Magnum, Horizon
A69: Millennium | B69: US | C69: Ren og klar som bitterhumle, med en aroma af krydderurter | D69: Nugget, Columbus, Tomahawk
A70: Mosaic | B70: US | C70: En kompleks blanding af tropisk frugt aroma med blåbærtoner, muldet, krydret, citrus, fyrtræ. Er en forædling af Simcoe. | D70: Simco eller måske Nelson Sauvin
A71: Motueka | B71: NZ | C71: Citronagtig, tropisk frugt, krydret | D71: Saaz, Saaz (US), Sterling
A72: Mount Hood | B72: US | C72: Mild og ren aroma og smag | D72: Hersbrucker, Strisselspalt, Crystal, Hallertauer, Tettnanger
A73: Mount Rainier | B73: US | C73: Ligner Hallertauer men med en højere Alpha værdi. Citron og lakrids aroma | D73: Hallertauer, Fuggles
A74: Nelson Sauvin | B74: NZ | C74: Frugtsmagen fra Hvidvin og stikkelsbær. Grapefrugt, bær, citrus. Lækker | D74: Ingen
A75: Newport | B75: US | C75: Mild aroma, god bitterhumle | D75: Magnum
A76: Northdown | B76: GB | C76: Ren og klar bitterhed, og klar frisk savsmuld og myntesmag | D76: Northern Brewer
A77: Northern Brewer | B77: GB | C77: Rigtig god bitterhumle med en neutral og mild smag | D77: Northdown, Challenger, Chinook, Brewers Gold, First Gold, Perle, Aurora, Northern Brewer, Galena
A78: Nugget | B78: US | C78: Noget tung, krydderurtagtig bitterhed og aroma | D78: Galena, Columbus, Magnum
A79: Opal | B79: DE | C79: Moderat bitterhed, krydret, frugt- og blomsteragtig | D79: Saphir, East Kent Goldings, Styrian Golding
A80: Pacifica | B80: NZ | C80: Orangemarmelade smag, der også indeholder en smule citrus- og blomsterkarakter. | D80: Hallertau family
A81: Pacific Gem | B81: NZ | C81: Egetræagtig karakter, aroma af solbær | D81: Brewer’s Gold, Bullion, Galena
A82: Pacific Jade | B82: NZ | C82: Med en blød bitterhed. Kraftig aroma af citrus og knust sort peber | D82: Magnum
A83: Palisade | B83: US | C83: Frugtagtig, men ikke citrus aroma. Friskgravet muldjord undertoner | D83: Willamette
A84: Perle | B84: DE | C84: Krydret moderat myntearoma og balanceret bitterhed | D84: Northern Brewer, Northdown, Perle
A85: Phoenix | B85: GB | C85: Krydret “English Ale” aroma med en meget ren bitterhed | D85: Challenger, Northern Brewer
A86: Pilgrim | B86: GB | C86: Krydret muldjord karakter | D86: Target
A87: Pioneer | B87: GB | C87: Citrus (mindre agressiv end de amerikanske humler, en mere engelsk tilgang til aroma) | D87: EKG
A88: Polaris | B88: DE | C88: Mynteagtig | D88: Ingen
A89: Premiant | B89: CZ | C89: Mild behagelig aroma | D89: Styrian Goldings, måske Saaz og Aurora
A90: Pride of Ringwood | B90: AUS | C90: Helt enestående intens aroma der ofte beskrives som grov citrus og krydderurtagtig. En helt original australsk humle | D90: Cluster, Galena
A91: Progress | B91: GB | C91: Mild og krydret med toner af frisk savsmuld, en antydning af enebær. Den ligner Fuggle, men er lidt sødere | D91: Fuggle
A92: Rakau | B92: NZ | C92: Starter med græsagtig og krydret smag, slutter med fersken og clementin aroma | D92: Ingen
A93: Riwaka | B93: NZ | C93: Kraftig grapefrugt citrus karakter | D93: Cascade
A94: San Juan Ruby Red | B94: US | C94: Vildt voksende humle der blev fundet i Colorado. Frugtagtig og let sød | D94: Ingen
A95: Santiam | B95: US | C95: Meget lig Tettnanger. Krydderurt og blomster | D95: Tettnanger
A96: Saphir | B96: DE | C96: Sød, ren, krydret. Citrus aroma, næsten ovre i clementiner | D96: Hallertau, Hallertau Tradition, Spalter Select
A97: Satus | B97: US | C97: Meget lig Galena | D97: Galena
A98: Savinjski Golding | B98: SLO | C98: Slovensk variant af Fuggle | D98: Tettnanger, Fuggle, Saaz, Styrian Golding
A99: Select | B99: DE | C99: Avlet for at ligne Spalt, Tettnanger, Saaz | D99: Spalt, Tettnanger, Saaz
A100: Serebrianka | B100: RU | C100: Let parfumeret aroma | D100: Ingen
A101: Simcoe | B101: US | C101: Fyrnåle og citrus. Særpræget stærk smag. Blød og lækker bitterhed | D101: Magnum, Summit
A102: Sladek | B102: CZ | C102: Både bitter- og aromahumle. Jordagtig aroma med krydderi og citrus | D102: Crystal, Mount Hood, Traditional
A103: Smaragd | B103: DE | C103: Et ny europæisk svar på Amarillo. Frugtagtig næse og blomsteragtig. Mere fremadstræbende aroma end de fleste europæiske humler. Balanceret og flot og diskret frugtaroma | D103: Ingen
A104: Sonnet | B104: US | C104: Siges at have Saaz og Styrian Golding karakter. Lav bitterhed gør den til en behagelig Aromahumle med floral, græs- og jordagtige noter. Frugtig smag med eg og honning | D104: Golding
A105: Sorachi ACE | B105: JP | C105: Citronagtig, citrongræs, citronsorbét smag | D105: Columbus, Tomahawk, Summit, Warrior, Chinook, Southern Cross
A106: Southern Cross | B106: NZ | C106: Blød bitterhed, med citrus, lime og fyrrenål | D106: Northern Brewer, Chinook, Sorachi Ace
A107: Sovereign | B107: GB | C107: Muldjord, nøddeagtig, fyrnål | D107: Fuggles, Golding
A108: Spalt | B108: DE | C108: Krydret ædelhumle aroma | D108: Saaz, Tettnanger, Santiam, Liberty, Hallertau
A109: Select Spalt | B109: DE | C109: Opfattes som en smule mere krydret end Spalt | D109: Saaz, Tettnanger, Spalt, Hersbrucker, Perle, Tradition
A110: Stella | B110: AUS | C110: Krydret, muldjord, en antydning af stjerneanis, blomsteragtig | D110: Ingen
A111: Sterling | B111: US | C111: Blomsteragtig, krydret, let citrusaroma | D111: Saaz
A112: Sticklebract | B112: NZ | C112: Fyrnål, citrus, ret barsk bitterhed | D112: Ingen
A113: Strisselspalt | B113: FR | C113: Mild og minder om en ædelhumle. Krydret krydderurtaroma | D113: Liberty, Hallertau, Mt Hood, Crystal, Hersbrucker
A114: Styrian Eureka | B114: SLO | C114: Flavours of citrus, peach and pine, aromas of stone fruit and mandarin | D114: Ingen
A115: Styrian Golding | B115: SLO | C115: Mild krydret aroma | D115: Aurora, Fuggle, Williamette, Styrian Bobek
A116: Styrian Wolf | B116: SLO | C116: When brewed, expect intense fruity and floral notes. These include flavors of sweet tropical fruits and complex aromas of mango, elderflower and even a hint of violet. | D116: Ingen
A117: Summer | B117: AUS | C117: Let abrikos og melon frugtagtige toner, med en underbygning af muldjord og krydderier | D117: Prøv med Rakau og Amarillo
A118: Summit | B118: US | C118: Blød og lækker bitterhed med appelsin, mandarin og citruskarakter | D118: Apollo
A119: Super Alpha | B119: NZ | C119: Fyrrenåle, græs, citrongræs | D119: Ingen
A120: Super Pride | B120: AUS | C120: Helt enestående intens aroma der ofte beskrives som grov citrus og krydderurtagtig. En helt original australsk humle | D120: Cluster, Galena
A121: Sussex | B121: GB | C121: Kraftig og usædvanlig tropisk frugt aroma. Sussex er en aroma hop, med lav alfa og cohumulone med en delikat smag. | D121: Fuggle
A122: Sybilla | B122: PO | C122: Meget god aromahumle med relativ høj Alphasyre% | D122: Nugget, Challenger, Northern Brewer, Progress, Perle, Fuggle, Sterling
A123: Saaz | B123: CZ | C123: Blød aroma og bitterhed, den ultimative krydrede humle. Det er den ædelhumle der bruges til det fleste af de mest berømte pilsnere | D123: Sterling, Spalt, Saaz, Lublin
A124: Target | B124: GB | C124: Krydderurter, muldjord, friskslået græs | D124: Admiral, Fuggle, Willamette
A125: Taurus | B125: DE | C125: Aromatisk ædelhumle, citronskal | D125: Horizon, Herkules, Magnum
A126: Tettnanger | B126: GB | C126: Krydderurter, let krydret, frisk savsmuld | D126: Hersbrucker, Saaz, Spalt, Ultra, Select
A127: Tomahawk | B127: US | C127: Potent muldjord og harpiks aroma. Også kendt som Columbus eller Zeus | D127: Chinook, Nugget
A128: Topaz | B128: AUS | C128: Lychee, mandarin, krydderier, harpiks med et touch af citrus | D128: Måske Rakau, Stella
A129: Tradition | B129: DE | C129: Sødlig blomsteragtig, nygravet muldjord. Avlet for at få en stærkere version af Hallertau | D129: Hallertau Mittelfrüh, Liberty
A130: Triskel | B130: FR | C130: Floral aroma, subtly fruity, citrusy | D130: Strisselspalt, Ahtanum, Centennial, Chinook, Simcoe
A131: Ultra | B131: US | C131: Krydret, blomsteragtig, mild. God erstatning for ædelhumler | D131: Saaz, Spalt, Tettnanger
A132: Vanguard | B132: US | C132: Let blomsteragtig, krydderurt og mild. Ligner Hallertau | D132: Hallertau, Spalt, Tettnanger
A133: Vic Secret | B133: AUS | C133: Tropical fruit, pine, herbs | D133: Galaxy
A134: Wai-iti | B134: NZ | C134: Fresh peaches and stone fruit dominate the aroma | D134: Riwaka
A135: Waimea | B135: NZ | C135: Despite its incredibly high alphas, brewing characteristics of Waimea include some decidedly favorable flavor and aromas of fresh-crushed citrus and pine. | D135: Columbus
A136: Wakatu | B136: NZ | C136: Mindre krydret end Mittelfrüh, med en blomsteragtig citrus og lime karakter. Også kendt som Hallertau Aroma | D136: Hallertauer Mittelfrüh, Nelson Sauvin
A137: Warrior | B137: US | C137: Ren blød smag. Mild citrus og citronkarakter | D137: Bravo, Nugget, Columbus - muligvis Apollo or Magnum
A138: WGV | B138: GB | C138: (Whitbread Golding Variety) | D138: Challenger, Sovereign, Golding
A139: Willamette | B139: US | C139: Krydderurt, frisk savsmuld, nygravet muldjord | D139: Fuggle, Tettnanger, Glacier, Styrian Golding
A140: Zeus | B140: US | C140: Potent muldjord og harpiks aroma. Også kendt som Columbus eller Tomahawk | D140: Chinook, Nugget
A141: Zythos | B141: US | C141: Stærk aromatisk humle med noter af clementin, citron, grapefrugt og fyrnåle | D141: Ahtanum, Sorachi Ace
D289: 30
D449: 50

Sheet Tilsætninger
A1: Tilsætninger | B1: EBC | C1: EBC Avg. | D1: Udbytte | G1: Sugars | H1: Malt | I1: °Lovibond | J1: EBC | K1: Gravity | L1: Yield | M1: Ekstraktudbytte | N1: Description
A2: Farin | B2: 50 - 75 | C2: 65 | D2: 420 | H2: Belgian Candi Sugar (clear) | I2: 0.5-0.5° | J2: 1 - 1 | K2: 1.036-1.036 | L2: 77,9 - 77,9% | M2: =IFERROR(((ROUND(((((((MID(K2,4,2)+RIGHT(K2,2))/2)*3.785)/453)*1000)/10),0))*10),0) -> 300 | N2: Smooth taste, good head retention, sweet aroma and high gravity without being apparent. Use in Belgian and holiday ales. Use clear for tripels.
A3: Lyle's Golden Syrup | B3: 30 | C3: 30 | D3: 375 | E3: Estimat | H3: Brown Sugar | I3: 40-40° | J3: 104 - 104 | K3: 1.046-1.046 | L3: 99,5 - 99,5% | M3: =IFERROR(((ROUND(((((((MID(K3,4,2)+RIGHT(K3,2))/2)*3.785)/453)*1000)/10),0))*10),0) -> 380 | N3: Imparts rich, sweet flavor. Use in Scottish ales, old ales and holiday beers.
A4: Lyle's Black Treacle | B4: 200 | C4: 200 | D4: 375 | E4: Estimat | H4: Candi Sugar (amber) | I4: 75-75° | J4: 199 - 199 | K4: 1.036-1.036 | L4: 77,9 - 77,9% | M4: 300 | N4: Smooth taste, good head retention, sweet aroma and high gravity without being apparent. Use in Belgian and holiday ales. Use amber for dubbels.
A5: Lys Kandis | B5: 0 | C5: 0 | D5: 375 | H5: Candi Sugar (dark) | I5: 275-275° | J5: 733 - 733 | K5: 1.036-1.036 | L5: 77,9 - 77,9% | M5: 300 | N5: Smooth taste, good head retention, sweet aroma and high gravity without being apparent. Use in Belgian and holiday ales. Use dark in brown beer and strong golden ales.
A6: Mørk Kandis | B6: 80 - 120 | C6: 80 | D6: 375 | H6: Corn Sugar | I6: 1-1° | J6: 2 - 2 | K6: 1.037-1.037 | L6: 80 - 80% | M6: 310 | N6: Use in priming beer or in extract recipes where flaked maize would be used in a mash.
A7: Muscovado Sukker | B7: 80 - 120 | C7: 100 | D7: 400 | H7: Dark Brown Sugar | I7: 60-60° | J7: 160 - 160 | K7: 1.046-1.046 | L7: 99,5 - 99,5% | M7: 380 | N7: Imparts rich, sweet flavor. Use in Scottish ales, old ales and holiday beers.
A8: Rørsukker | B8: 20 | C8: 20 | D8: 420 | H8: Demerara Sugar | I8: 1-1° | J8: 2 - 2 | K8: 1.041-1.042 | L8: 88,7 - 90,8% | M8: 350 | N8: Imparts mellow, sweet flavor. Use in English ales.
A9: Sukker | B9: 0 | C9: 0 | D9: 440 | H9: Dextrose (glucose) | I9: 1-1° | J9: 2 - 2 | K9: 1.037-1.037 | L9: 80 - 80% | M9: 310 | N9: Imparts a mild sweet taste and smoothness. Use in English beers.
A10: Dansk Honning | B10: 20 | C10: 20 | D10: 400 | H10: Dry Malt Extract | I10: 10° | J10: 26 | K10: 1.044-1.044 | L10: 95,2 - 95,2% | M10: 370 | N10: Extra light (2.5°), Light (3.5°), Amber (10°), Dark (30°), Wheat (3°)
A11: Appelsinskal | B11: 0 | C11: 0 | D11: 0 | H11: Honey | I11: 10° | J11: 26 | K11: 1.032-1.032 | L11: 69,2 - 69,2% | M11: 270 | N11: Imparts sweet and dry taste. For honey and brown ales. Also: specialty ales.
A12: Basilikum | B12: 0 | C12: 0 | D12: 0 | E12: Frisk | H12: Invert Sugar | I12: - | J12: 0 | K12: 1.046-1.046 | L12: 99,5 - 99,5% | M12: 380 | N12: Increases alcohol. Use in some Belgian or English ales. Use as an adjunct for priming. Made from sucrose. No dextrins. Use 1 cup for priming.
A13: Bynke | B13: 0 | C13: 0 | D13: 0 | H13: Lactose | I13: - | J13: 0 | K13: 1.043-1.043 | L13: 93 - 93% | M13: 360 | N13: Adds sweetness and body. Use in sweet or milk stouts.
A14: Chili Flakes | B14: 0 | C14: 0 | D14: 0 | H14: Licorice Stick | I14: - | J14: 0 | K14: - | L14: - | M14: 0 | N14: Adds a smooth flavor to stouts, porters, holiday ales and flavored beers.
A15: Ege Chips | B15: 0 | C15: 0 | D15: 0 | H15: Lyle’s Golden Syrup | I15: 0-0° | J15: 0 | K15: 1.036-1.036 | L15: 77,9 - 77,9% | M15: 300 | N15: Increases alcohol without flavor. Liquid Invert Sugar. Use in English and Belgian (Chimay) ales.
A16: Havtorn | B16: 0 | C16: 0 | D16: 0 | H16: Maple Sap | I16: 3-3° | J16: 6 - 6 | K16: 1.009-1.009 | L16: 19,5 - 19,5% | M16: 80 | N16: Crisp dry, earthy flavor. Use in pale ales, porters and maple ales.
A17: Hybenskaller | B17: 0 | C17: 0 | D17: 0 | H17: Maple Syrup | I17: 35-35° | J17: 93 - 93 | K17: 1.030-1.030 | L17: 64,9 - 64,9% | M17: 250 | N17: Imparts a dry, woodsy flavor if used in the boil. If beer is bottled with it, it gives it a smooth sweet, maple taste. Use in maple ales, pale ales, brown ales and porters.
A18: Hyldeblomst | B18: 0 | C18: 0 | D18: 0 | H18: Molasses | I18: 80-80° | J18: 213 - 213 | K18: 1.036-1.036 | L18: 77,9 - 77,9% | M18: 300 | N18: Imparts strong sweet flavor. Use in stouts and porters.
A19: Ingefær | B19: 0 | C19: 0 | D19: 0 | H19: Rice Solids | I19: 0-0° | J19: 0 | K19: 1.040-1.040 | L19: 86,5 - 86,5% | M19: 330 | N19: Lightens flavor without taste. Use in American and Asian lagers.
A20: Kanel | B20: 0 | C20: 0 | D20: 0 | H20: Sucrose (white table sugar) | I20: - | J20: 0 | K20: 1.046-1.046 | L20: 99,5 - 99,5% | M20: 380 | N20: Increases alcohol. Use in Australian lagers and English bitters.
A21: Koriander | B21: 0 | C21: 0 | D21: 0 | H21: Syrup Malt Extract | I21: 10° | J21: 26 | K21: 1.033-1.037 | L21: 71,4 - 80% | M21: 290 | N21: Extra Light (3.5°), Light (3.5 -5°), Amber (10°), Dark (30°), Wheat (2°).
A22: Kumquats | B22: 0 | C22: 0 | D22: 0 | H22: Treacle | I22: 100-100° | J22: 266 - 266 | K22: 1.036-1.036 | L22: 77,9 - 77,9% | M22: 300 | N22: Imparts intense, sweet flavor. A British mixture of molasses, invert sugar and golden syrup (corn syrup). Use in dark English ales.
A23: Lakrids | B23: 0 | C23: 100 | D23: 0 | E23: Estimat
A24: Lakridsrod | B24: 0 | C24: 0 | D24: 0
A25: Lyngblomster | B25: 0 | C25: 0 | D25: 0
A26: Malurt | B26: 0 | C26: 0 | D26: 0
A27: Mjødurt | B27: 0 | C27: 0 | D27: 0
A28: Porse | B28: 0 | C28: 0 | D28: 0
A29: Rosiner | B29: 0 | C29: 0 | D29: 0
A30: Røllikeblomst | B30: 0 | C30: 0 | D30: 0
A31: Røllikeblade | B31: 0 | C31: 0 | D31: 0
A32: Stjerneanis | B32: 0 | C32: 0 | D32: 0
A33: Laktose | B33: 0 | C33: 0 | D33: 0 | E33: Uforgærbart mælkesukker
A34: Ekstra lys spraymalt | B34: 8 | C34: 8 | D34: 420 | E34: Estimat
A35: Lys spraymalt | B35: 12 | C35: 12 | D35: 420 | E35: Estimat
A36: Medium spraymalt | B36: 18 | C36: 18 | D36: 420 | E36: Estimat
A37: Mørk spraymalt | B37: 57 | C37: 57 | D37: 420 | E37: Estimat
A38: Ekstra mørk spraymalt | B38: 95 | C38: 95 | D38: 420 | E38: Estimat
A39: Hvede spraymalt | B39: 8 | C39: 8 | D39: 420 | E39: Estimat
A40: Klar Urt | B40: 0 | C40: 0 | D40: 0

Sheet Gær
A1: Gær Navn | B1: Beskrivelse | C1: Flocculation | D1: Attenuation % | E1: Attenuation Avg. | F1: Temp. Range °C | G1: Alc. Tolerance % | I1: Temp.(°C) | J1: CO2
I2: 0 | J2: 1.71
A3: Brewolution Abbey Ale | B3: Den har en fantastisk og kraftig frugtaroma, balanceret perfekt med en mild og let krydret aroma, og komplekse og lækre krydrede phenoler. | C3: Medium - High | D3: 73 - 77 | E3: 75 | F3: 18 - 25 | G3: 8 | I3: 1 | J3: 1.66
A4: Brewolution American Ale | B4: Denne gær giver en usædvanlig ren smag, ideel til at humlekarakteren kommer tydelig frem. Citrus og fyrresmag i humle vil blive fremhævet. | C4: High | D4: 77 - 85 | E4: 81 | F4: 18 - 23 | G4: 10 | I4: 2 | J4: 1.61
A5: Brewolution Belgian Strong Ale | B5: Meget karakterfuld ølgær med krydrede, frugtige og pebrede noter. | C5: Medium | D5: 85 - 90 | E5: 85 | F5: 26 - 32 | G5: 12 | I5: 3 | J5: 1.56
A6: Brewolution British Ale | B6: Gæren har en neutral gæraroma for at sikre, den fulde karakter af malt og humle er fremtrædende i hver øl. | C6: Very High | D6: 77 - 82 | E6: 80 | F6: 16 - 22 | G6: 12 | I6: 4 | J6: 1.51
A7: Brewolution Dark Ale | B7: Fremmer krop og smag. Gæren giver en fyldig mørk frugt variation. | C7: High | D7: 70 - 75 | E7: 73 | F7: 18 - 22 | G7: 8 | I7: 5 | J7: 1.46
A8: Brewolution Universal Lager | B8: Denne gær giver en blød, delikat og velafbalanceret øl, med en tør og ren smag. | C8: High | D8: 72 - 76 | E8: 77 | F8: 10 - 15 | G8: 8 | I8: 6 | J8: 1.39
A9: Brewolution Wheat Beer | B9: Giver fine velafbalancerede estere med krydrede aromaer. Klassiske banan estere | C9: Low | D9: 70 - 75 | E9: 73 | F9: 18 - 30 | G9: 7.5 | I9: 7 | J9: 1.32
A10: - Mangrove Jack's Bohemian Lager M84 | B10: Denne gær giver en blød, delikat og velafbalanceret øl, med en tør og ren smag. | C10: High | D10: 72 - 76 | E10: 74 | F10: 10 - 15 | G10: 8 | I10: 8 | J10: 1.28
A11: Mangrove Jack's Californian Lager M54 | B11: Producerer en ren og klar pilsneraroma, uden de frygtede bismage. Gæren er perfekt til de fleste undergærede øltyper. | C11: Medium - High | D11: 77 - 82 | E11: 80 | F11: 18 - 20 | G11: 9 | I11: 9 | J11: 1.24
A12: Mangrove Jack's Belgian Abbey Ale M47 | B12: Den har en fantastisk og kraftig frugtaroma, balanceret perfekt med en mild og let krydret aroma, og komplekse og lækre krydrede phenoler. | C12: Medium - High | D12: 73 - 77 | E12: 75 | F12: 18 - 25 | G12: 8 | I12: 10 | J12: 1.2
A13: Mangrove Jack's Bavarian Wheat M20 | B13: Giver fine velafbalancerede estere med krydrede aromaer. Klassiske banan estere | C13: Low | D13: 70 - 75 | E13: 73 | F13: 18 - 30 | G13: 7.5 | I13: 11 | J13: 1.17
A14: Mangrove Jack's Liberty Bell Ale M36 | B14: Ren, neutral og rund I smagen, let pæreagtig aroma, med lidt jordbær eller kiwi blandet i. Rene klare maltaromaer, og med en evne til at fremhæve humlearomaerne | C14: High | D14: 74 - 78 | E14: 76 | F14: 18 - 23 | G14: 9 | I14: 12 | J14: 1.13
A15: Mangrove Jack´s French Saison M29 | B15: Meget karakterfuld ølgær med krydrede, frugtige og pebrede noter. | C15: Medium | D15: 85 - 90 | E15: 90 | F15: 26 - 32 | G15: 14 | I15: 13 | J15: 1.09
A16: Mangrove Jack´s New World Strong Ale M42 | B16: Gæren har en neutral gæraroma for at sikre, den fulde karakter af malt og humle er fremtrædende i hver øl. Giver en meget klar øl, da gærrester lægger sig fast i bunden og blander sig ikke ved uro i væsken. | C16: Very High | D16: 77 - 82 | E16: 80 | F16: 16 - 22 | G16: 12 | I16: 14 | J16: 1.05
A17: - Mangrove Jack's Newcastle Dark Ale M03 | B17: Fremmer krop og smag. Gæren giver en fyldig mørk frugt variation. | C17: High | D17: 70 - 75 | E17: 73 | F17: 18 - 22 | G17: 8 | I17: 15 | J17: 1.02
A18: Mangrove Jack's US West Coast M44 | B18: Denne gær giver en usædvanlig ren smag, ideel til at humlekarakteren kommer tydelig frem. Citrus og fyrresmag i humle vil blive fremhævet. | C18: High | D18: 77 - 85 | E18: 81 | F18: 18 - 23 | G18: 10 | I18: 16 | J18: 0.99
A19: Mangrove Jack's Bavarian Lager M76 | B19: A bottom fermenting yeast suitable for most lager styles. Promotes less sulphur production than other lager strains as well as a fuller, more rounded malt character with well-promoted hop flavours. | C19: Medium | D19: 75 - 80 | E19: 77 | F19: 8 - 14 | G19: 8 | I19: 17 | J19: 0.95
A20: Mangrove Jack's Belgian Ale M41 | B20: Spicy and phenolic, this yeast emulates the intensity and complexity of some of the best monastic breweries in Belgium. High attenuation and alcohol tolerance allow you to brew a huge range of Belgian beers. | C20: Medium | D20: 82 - 88 | E20: 85 | F20: 18 - 28 | G20: 12 | I20: 18 | J20: 0.91
A21: Mangrove Jack's Belgian Tripel M31 | B21: Provides a fantastic complex marriage of spice, fruity esters, phenolics and alcohol. It is also very attenuative with a high alcohol tolerance making it perfect for a range of Belgian styles. | C21: Medium | D21: 82 - 88 | E21: 85 | F21: 18 - 28 | G21: 10 | I21: 19 | J21: 0.89
A22: Mangrove Jack's Belgian Wit M21 | B22: A traditional top-fermenting yeast that has a good balance between fruity esters and warming spice phenolics. The yeast will leave some sweetness and will drop bright if left long enough. | C22: Low | D22: 70 - 75 | E22: 73 | F22: 18 - 25 | G22: 8 | I22: 20 | J22: 0.88
A23: Mangrove Jack's Empire Ale M15 | B23: A top-fermenting ale yeast suitable for a variety of full bodied ales, with exceptional depth. Ferments with full, rich dark fruit flavors. | C23: High | D23: 70 - 75 | E23: 73 | F23: 18 - 22 | G23: 8 | I23: 21 | J23: 0.85
A24: Mangrove Jack's Mjød M05 | B24: A high ester-producing strain conferring fresh, floral esters, especially when fermented cool. This yeast has high alcohol tolerance and ferments well over a wide temperature range. | C24: High | D24: 95 - 100 | E24: 97 | F24: 15 - 30 | G24: 18 | I24: 22 | J24: 0.83
A25: Mangrove Jack's Cider M02 | B25: A high ester-producing cider strain imparting wonderful flavour depth, revealing the full fruit potential. Makes exceptionally crisp, flavoursome and refreshing ciders. | C25: High | D25: 95 - 100 | E25: 97 | F25: 18 - 24 | G25: 17.5 | I25: 23 | J25: 0.81
A26: Wyeast XL1007 German Ale | C26: Low | D26: 73 - 77 | E26: 75 | F26: 13 - 20 | G26: 11 | I26: 24 | J26: 0.78
A27: Wyeast XL1010 American Wheat | C27: Low | D27: 74 - 78 | E27: 76 | F27: 14 - 23 | G27: 10 | I27: 25 | J27: 0.76
A28: Wyeast XL1028 London Ale | C28: Low - Medium | D28: 73 - 77 | E28: 75 | F28: 15 - 22 | G28: 11 | I28: 26 | J28: 0.74
A29: Wyeast XL1056 American Ale | B29: Well balanced. Ferments dry, finishes soft. | C29: Low - Medium | D29: 73 - 77 | E29: 75 | F29: 15 - 22 | G29: 11 | I29: 27 | J29: 0.73
A30: Wyeast XL1084 Irish Ale | C30: Medium | D30: 71 - 75 | E30: 73 | F30: 16 - 22 | G30: 12
A31: Wyeast XL1098 British Ale | C31: Medium | D31: 73 - 75 | E31: 74 | F31: 18 - 22 | G31: 10
A32: Wyeast XL1099 Whitbread Ale | C32: Medium - High | D32: 68 - 72 | E32: 70 | F32: 18 - 24 | G32: 10
A33: Wyeast XL1187 Ringwood Ale | B33: A malty, complex profile that clears well. | C33: High | D33: 68 - 72 | E33: 70 | F33: 18 - 23 | G33: 10
A34: Wyeast XL1214 Belgian Abbey | C34: Low - Medium | D34: 74 - 78 | E34: 76 | F34: 20 - 24 | G34: 12
A35: Wyeast XL1272 American Ale II | B35: Slightly nutty, soft, clean and tart finish. | C35: Medium | D35: 72 - 76 | E35: 74 | F35: 15 - 22 | G35: 10
A36: Wyeast XL1275 Thames Valley Ale | C36: Low - Medium | D36: 72 - 76 | E36: 74 | F36: 16 - 22 | G36: 10
A37: Wyeast XL1318 London Ale III | C37: High | D37: 71 - 75 | E37: 73 | F37: 18 - 23 | G37: 10
A38: Wyeast XL1332 Northwest Ale | B38: Malty, mildly fruity, good depth and complexity. | C38: High | D38: 67 - 71 | E38: 69 | F38: 18 - 24 | G38: 10
A39: Wyeast XL1335 British Ale II | C39: High | D39: 73 - 76 | E39: 74 | F39: 17 - 24 | G39: 10
A40: Wyeast XL1388 Belgian Strong Ale | C40: Low | D40: 74 - 78 | E40: 76 | F40: 18 - 27 | G40: 13
A41: Wyeast XL1450 Denny's Favorite 50 | B41: Accentuates malt, caramel, or fruit character. | C41: Low | D41: 74 - 76 | E41: 75 | F41: 15 - 21 | G41: 10
A42: - Wyeast XL1469 West Yorkshire Ale | C42: High | D42: 67 - 71 | E42: 69 | F42: 18 - 22 | G42: 9
A43: Wyeast XL1728 Scottish Ale | C43: High | D43: 69 - 73 | E43: 71 | F43: 13 - 24 | G43: 12
A44: Wyeast XL1762 Belgian Abbey II | C44: Medium | D44: 73 - 77 | E44: 75 | F44: 18 - 24 | G44: 12
A45: Wyeast XL1968 London ESB Ale | C45: Very High | D45: 67 - 71 | E45: 69 | F45: 18 - 22 | G45: 9
A46: - Wyeast XL2000 Budvar Lager | C46: Medium - High | D46: 71 - 75 | E46: 73 | F46: 9 - 13 | G46: 9
A47: - Wyeast XL2001 Urquell Lager | C47: Medium - High | D47: 72 - 76 | E47: 74 | F47: 9 - 13 | G47: 9
A48: Wyeast XL2007 Pilsen Lager | C48: Medium | D48: 71 - 75 | E48: 73 | F48: 9 - 13 | G48: 9
A49: - Wyeast XL2035 American Lager | C49: Medium | D49: 73 - 77 | E49: 75 | F49: 9 - 14 | G49: 9
A50: - Wyeast XL2042 Danish Lager | C50: Low | D50: 73 - 77 | E50: 75 | F50: 8 - 13 | G50: 9
A51: Wyeast XL2112 California Lager | C51: High | D51: 67 - 71 | E51: 69 | F51: 14 - 20 | G51: 9
A52: Wyeast XL2124 Bohemian Lager | C52: Low - Medium | D52: 73 - 77 | E52: 75 | F52: 8 - 22 | G52: 9
A53: - Wyeast XL2206 Bavarian Lager | C53: Medium - High | D53: 73 - 77 | E53: 75 | F53: 8 - 14 | G53: 9
A54: Wyeast XL2278 Czech Pils | C54: Medium - High | D54: 70 - 74 | E54: 72 | F54: 10 - 14 | G54: 9
A55: Wyeast XL2308 Munich Lager | C55: Medium | D55: 70 - 74 | E55: 72 | F55: 9 - 13 | G55: 9
A56: Wyeast XL2565 Kölsch | C56: Low | D56: 73 - 77 | E56: 75 | F56: 13 - 21 | G56: 10
A57: Wyeast XL2633 Octoberfest Lager Blend | C57: Low - Medium | D57: 73 - 77 | E57: 75 | F57: 9 - 14 | G57: 9
A58: - Wyeast XL3056 Bavarian Wheat Blend | C58: Medium | D58: 73 - 77 | E58: 75 | F58: 18 - 23 | G58: 10
A59: - Wyeast XL3068 Weihenstephan Weizen | C59: Low | D59: 73 - 77 | E59: 75 | F59: 18 - 24 | G59: 10
A60: Wyeast XL3278 Belgian Lambic Blend | C60: Variable | D60: 70 - 80 | E60: 75 | F60: 17 - 24 | G60: 11
A61: - Wyeast XL3333 German Wheat | C61: High | D61: 70 - 76 | E61: 73 | F61: 17 - 24 | G61: 10
A62: - Wyeast XL3463 Forbidden Fruit | C62: Low | D62: 72 - 76 | E62: 74 | F62: 17 - 24 | G62: 12
A63: Wyeast XL3522 Belgian Ardennes | C63: High | D63: 72 - 76 | E63: 74 | F63: 18 - 24 | G63: 12
A64: Wyeast XL3638 Bavarian Wheat | C64: Low | D64: 70 - 76 | E64: 73 | F64: 18 - 24 | G64: 10
A65: Wyeast XL3711 French Saison | C65: Low | D65: 77 - 83 | E65: 80 | F65: 18 - 25 | G65: 12
A66: Wyeast XL3724 Belgian Saison | C66: Low | D66: 76 - 80 | E66: 78 | F66: 21 - 35 | G66: 12
A67: Wyeast XL3763 Roeselare Ale Blend | C67: Variable | D67: 80 | E67: 80 | F67: 18 - 30 | G67: 11
A68: Wyeast XL3787 Trappist High Gravity | C68: Medium | D68: 74 - 78 | E68: 76 | F68: 18 - 25 | G68: 12
A69: - Wyeast XL3942 Belgian Wheat | C69: Medium | D69: 72 - 76 | E69: 74 | F69: 18 - 23 | G69: 12
A70: - Wyeast XL3944 Belgian Witbier | C70: Medium | D70: 72 - 76 | E70: 74 | F70: 16 - 24 | G70: 12
C73: https://www.wyeastlab.com/hb_yeaststrain.cfm
C75: http://mangrovejacks.com/collections/craft-series-yeasts

Sheet Typer
A1: Ref.: Beer Judge Certification Program | F1: OBS: 27J and 27K are not part of BJCP 2015 styles
A2: Style # | C2: Style Name | D2: Style # | F2: OG high | G2: OG low | H2: FG high | I2: FG low | J2: ABV high | K2: ABV low | L2: EBC high | M2: EBC low | N2: IBU high | O2: IBU low | P2: RBR | Q2: CO2 High | R2: CO2 Low | S2: CO2 Avg. | T2: Yeast Type | U2: Examples
A4: 1 | B4: A | C4: American Light Lager | D4: 1 | E4: A | F4: 1040 | G4: 1028 | H4: 1008 | I4: 0998 | J4: 4,2 | K4: 2,8 | L4: 6 | M4: 4 | N4: 12 | O4: 8 | P4: 0.34 | Q4: 2.73 | R4: 2.57 | S4: =IF(R4="","",(R4+Q4)/2) -> 2.65 | T4: Lager | U4: Bud Light, Coors Light, Keystone Light, Michelob Light, Miller Lite, Old Milwaukee Light
A5: 1 | B5: B | C5: American Lager | D5: 1 | E5: B | F5: 1050 | G5: 1040 | H5: 1010 | I5: 1004 | J5: 5,3 | K5: 4,2 | L5: 8 | M5: 4 | N5: 18 | O5: 8 | P5: 0.27 | Q5: 2.73 | R5: 2.57 | S5: =IF(R5="","",(R5+Q5)/2) -> 2.65 | T5: Lager | U5: Budweiser, Coors Original, Grain Belt Premium Lager, Miller High Life, Pabst Blue Ribbon, Special Export
A6: 1 | B6: C | C6: Cream Ale | D6: 1 | E6: C | F6: 1055 | G6: 1042 | H6: 1012 | I6: 1006 | J6: 5,6 | K6: 4,2 | L6: 10 | M6: 5 | N6: 20 | O6: 8 | P6: 0.38 | Q6: 2.7 | R6: 2.6 | S6: 2.65 | T6: Ale | U6: Genesee Cream Ale, Liebotschaner Cream Ale, Little Kings Cream Ale, New Glarus Spotted Cow, Old Style, Sleeman Cream Ale
A7: 1 | B7: D | C7: American Wheat Beer | D7: 1 | E7: D | F7: 1055 | G7: 1040 | H7: 1013 | I7: 1008 | J7: 5,5 | K7: 4,0 | L7: 12 | M7: 6 | N7: 30 | O7: 15 | P7: 0.48 | Q7: 2.6 | R7: 2.3 | S7: 2.45 | T7: Ale | U7: Bell’s Oberon, Boulevard Unfiltered Wheat Beer, Goose Island 312 Urban Wheat Ale, Widmer Hefeweizen
A8: 2 | B8: A | C8: International Pale Lager | D8: 2 | E8: A | F8: 1050 | G8: 1042 | H8: 1012 | I8: 1008 | J8: 6,0 | K8: 4,6 | L8: 12 | M8: 4 | N8: 25 | O8: 18 | P8: 0.74 | Q8: 2.5 | R8: 2.3 | S8: 2.4 | T8: Lager | U8: Asahi Super Dry, Birra Moretti, Corona Extra, Devils Backbone Gold Leaf Lager, Full Sail Session Premium Lager, Heineken, Red Stripe, Singha
A9: 2 | B9: B | C9: International Amber Lager | D9: 2 | E9: B | F9: 1055 | G9: 1042 | H9: 1014 | I9: 1008 | J9: 6,0 | K9: 4,6 | L9: 28 | M9: 14 | N9: 25 | O9: 8 | P9: 0.74 | Q9: 2.5 | R9: 2.3 | S9: 2.4 | T9: Lager | U9: Brooklyn Lager, Capital Winter Skål, Dos Equis Amber, Schell’s Oktoberfest, Yuengling Lager
A10: 2 | B10: C | C10: International Dark Lager | D10: 2 | E10: C | F10: 1056 | G10: 1044 | H10: 1012 | I10: 1008 | J10: 6,0 | K10: 4,2 | L10: 43 | M10: 28 | N10: 20 | O10: 8 | P10: 0.74 | Q10: 2.5 | R10: 2.3 | S10: 2.4 | T10: Lager | U10: Baltika #4 Original, Devils Backbone Old Virginia Dark, Dixie Blackened Voodoo, Saint Pauli Girl Dark, San Miguel Dark, Session Black Dark Lager, Shiner Bock
A11: 3 | B11: A | C11: Czech Pale Lager | D11: 3 | E11: A | F11: 1044 | G11: 1028 | H11: 1014 | I11: 1008 | J11: 4,1 | K11: 3,0 | L11: 12 | M11: 6 | N11: 35 | O11: 20 | P11: 0.74 | Q11: 2.5 | R11: 2.3 | S11: 2.4 | T11: Lager | U11: Březňák Světlé výčepní pivo, Notch Session Pils, Pivovar Kout na Šumavě Koutská 10°, Únětické pivo 10°
A12: 3 | B12: B | C12: Czech Premium Pale Lager | D12: 3 | E12: B | F12: 1060 | G12: 1044 | H12: 1017 | I12: 1013 | J12: 5,8 | K12: 4,2 | L12: 12 | M12: 7 | N12: 45 | O12: 30 | P12: 0.74 | Q12: 2.5 | R12: 2.3 | S12: 2.4 | T12: Lager | U12: Bernard Sváteční ležák, Gambrinus Premium, Kout na Šumavě Koutská 12°, Pilsner Urquell, Pivovar Jihlava Ježek 11°, Primátor Premium, Únětická 12°
A13: 3 | B13: C | C13: Czech Amber Lager | D13: 3 | E13: C | F13: 1060 | G13: 1044 | H13: 1017 | I13: 1013 | J13: 5,8 | K13: 4,4 | L13: 32 | M13: 20 | N13: 35 | O13: 20 | P13: 0.74 | Q13: 2.5 | R13: 2.3 | S13: 2.4 | T13: Lager | U13: Bernard Jantarový ležák, Pivovar Vysoký Chlumec Démon, Primátor polotmavý 13°, Strakonický Dudák Klostermann polotmavý ležák 13°
A14: 3 | B14: D | C14: Czech Dark Lager | D14: 3 | E14: D | F14: 1060 | G14: 1044 | H14: 1017 | I14: 1013 | J14: 5,8 | K14: 4,4 | L14: 69 | M14: 28 | N14: 34 | O14: 18 | P14: 0.74 | Q14: 2.5 | R14: 2.3 | S14: 2.4 | T14: Lager | U14: Bohemian Brewery Cherny Bock 4%, Budweiser Budvar B:Dark tmavý ležák, Devils Backbone Morana, Kout na Šumavě Koutský tmavý speciál 14°, Notch Černé Pivo, Pivovar Březnice Herold, U Fleků Flekovský tmavý 13° ležák
A15: 4 | B15: A | C15: Munich Helles | D15: 4 | E15: A | F15: 1048 | G15: 1044 | H15: 1012 | I15: 1006 | J15: 5,4 | K15: 4,7 | L15: 10 | M15: 6 | N15: 22 | O15: 16 | P15: 0.4 | Q15: 2.68 | R15: 2.26 | S15: 2.47 | T15: Lager | U15: Augustiner Lagerbier Hell, Bürgerbräu Wolznacher Hell Naturtrüb, Hacker-Pschorr Münchner Gold, Löwenbraü Original, Paulaner Premium Lager, Spaten Premium Lager, Weihenstephaner Original
A16: 4 | B16: B | C16: Festbier | D16: 4 | E16: B | F16: 1057 | G16: 1054 | H16: 1012 | I16: 1010 | J16: 6,3 | K16: 5,8 | L16: 14 | M16: 8 | N16: 25 | O16: 18 | P16: 0.43 | Q16: 2.73 | R16: 2.57 | S16: 2.65 | T16: Lager | U16: Augustiner Oktoberfest, Hacker-Pschorr Superior Festbier, Hofbräu Festbier, Löwenbräu Oktoberfestbier, Paulaner Wiesn, Schönramer Gold, Weihenstephaner Festbier
A17: 4 | B17: C | C17: Helles Bock | D17: 4 | E17: C | F17: 1072 | G17: 1064 | H17: 1018 | I17: 1011 | J17: 7,4 | K17: 6,3 | L17: 22 | M17: 12 | N17: 35 | O17: 23 | P17: 0.43 | Q17: 2.73 | R17: 2.16 | S17: 2.445 | T17: Lager | U17: Altenmünster Maibock, Ayinger Maibock, Capital Maibock, Blind Tiger Maibock, Einbecker Mai-Urbock, Hacker-Pschorr Hubertus Bock, Mahr’s Bock
A18: 5 | B18: A | C18: German Leichtbier | D18: 5 | E18: A | F18: 1034 | G18: 1026 | H18: 1010 | I18: 1006 | J18: 3,6 | K18: 2,4 | L18: 10 | M18: 4 | N18: 28 | O18: 15 | P18: 0.34 | Q18: 2.7 | R18: 2.2 | S18: 2.45 | T18: Lager | U18: Beck’s Light, Bitburger Light, Mahr’s Leicht, Paulaner Münchner Hell Leicht, Paulaner Premium Leicht
A19: 5 | B19: B | C19: Kölsch | D19: 5 | E19: B | F19: 1050 | G19: 1044 | H19: 1011 | I19: 1007 | J19: 5,2 | K19: 4,4 | L19: 10 | M19: 7 | N19: 30 | O19: 18 | P19: 0.55 | Q19: 2.73 | R19: 2.42 | S19: 2.575 | T19: Kölsch | U19: Früh Kölsch, Gaffel Kölsch, Mühlen Kölsch, Reissdorf Kölsch, Sion Kölsch, Sünner Kölsch
A20: 5 | B20: C | C20: German Helles Exportbier | D20: 5 | E20: C | F20: 1056 | G20: 1048 | H20: 1015 | I20: 1010 | J20: 6,0 | K20: 4,8 | L20: 14 | M20: 8 | N20: 30 | O20: 20 | P20: 0.5 | Q20: 2.57 | R20: 2.57 | S20: 2.57 | T20: Lager | U20: DAB Original, Dortmunder Kronen, Dortmunder Union Export, Flensburger Gold, Gordon Biersch Golden Export, Great Lakes Dortmunder Gold
A21: 5 | B21: D | C21: German Pils | D21: 5 | E21: D | F21: 1050 | G21: 1044 | H21: 1013 | I21: 1008 | J21: 5,2 | K21: 4,4 | L21: 10 | M21: 4 | N21: 40 | O21: 22 | P21: 0.75 | Q21: 2.52 | R21: 2.52 | S21: 2.52 | T21: Lager | U21: König Pilsener, Left Hand Polestar Pils, Paulaner Premium Pils, Schönramer Pils, Stoudt Pils, Tröegs Sunshine Pils, Trumer Pils
A22: 6 | B22: A | C22: Märzen | D22: 6 | E22: A | F22: 1060 | G22: 1054 | H22: 1014 | I22: 1010 | J22: 6,3 | K22: 5,8 | L22: 33 | M22: 16 | N22: 24 | O22: 18 | P22: 0.43 | Q22: 2.73 | R22: 2.57 | S22: 2.65 | T22: Lager | U22: Buergerliches Ur-Saalfelder, Hacker-Pschorr Original Oktoberfest, Paulaner Oktoberfest, Weltenburg Kloster Anno 1050
A23: 6 | B23: B | C23: Rauchbier | D23: 6 | E23: B | F23: 1057 | G23: 1050 | H23: 1016 | I23: 1012 | J23: 8.6 | K23: 4,8 | L23: 43 | M23: 24 | N23: 30 | O23: 20 | P23: 0.45 | Q23: 2.57 | R23: 2.16 | S23: 2.365 | T23: Ale | U23: Eisenbahn Rauchbier, Kaiserdom Rauchbier, Schlenkerla Rauchbier Märzen, Spezial Rauchbier Märzen Victory Scarlet Fire Rauchbier
A24: 6 | B24: C | C24: Dunkles Bock | D24: 6 | E24: C | F24: 1072 | G24: 1064 | H24: 1019 | I24: 1013 | J24: 7,2 | K24: 6,3 | L24: 43 | M24: 28 | N24: 27 | O24: 20 | P24: 0.34 | Q24: 2.7 | R24: 2.2 | S24: 2.45 | T24: Lager | U24: Aass Bock, Einbecker Ur-Bock Dunkel, Great Lakes Rockefeller Bock, Kneitinger Bock, New Glarus Uff-da Bock, Penn Brewery St. Nikolaus Bock
A25: 7 | B25: A | C25: Vienna Lager | D25: 7 | E25: A | F25: 1055 | G25: 1048 | H25: 1014 | I25: 1010 | J25: 5,5 | K25: 4,7 | L25: 30 | M25: 18 | N25: 30 | O25: 18 | P25: 0.48 | Q25: 2.6 | R25: 2.4 | S25: 2.5 | T25: Lager | U25: Cuauhtémoc Noche Buena, Chuckanut Vienna Lager, Devils Backbone Vienna Lager, Figueroa Mountain Danish-style Red Lager, Heavy Seas Cutlass Amber Lager, Schell’s Firebrick
A26: 7 | B26: B | C26: Altbier | D26: 7 | E26: B | F26: 1052 | G26: 1044 | H26: 1014 | I26: 1008 | J26: 5,5 | K26: 4,3 | L26: 33 | M26: 22 | N26: 50 | O26: 25 | P26: 0.83 | Q26: 3.09 | R26: 2.16 | S26: 2.625 | T26: Ale | U26: Bolten Alt, Diebels Alt, Füchschen Alt, Original Schlüssel Alt, Schlösser Alt, Schumacher Alt, Uerige Altbier
A27: 7 | B27: C | C27: Kellerbier | D27: 7 | E27: C | F27: 1051 | G27: 1045 | H27: 1012 | I27: 1008 | J27: 5,4 | K27: 4,7 | L27: 14 | M27: 6 | N27: 35 | O27: 20 | P27: 0.63 | Q27: 3.09 | R27: 2.16 | S27: 2.625 | T27: Ale | U27: Paulaner, Paulaner Brauhaus, Hofbrau, Tegernseer Tal. (bottled) Ayinger Kellerbier, Hacker-Pschorr Munchner Kellerbier Anno 1417, Hofbrau Munchner Sommer Naturtrub, Wolnzacher Hell Naturtrüb
A28: 7 | B28: D | C28: Amber Kellerbier | D28: 7 | E28: D | F28: 1054 | G28: 1048 | H28: 1016 | I28: 1012 | J28: 5,4 | K28: 4,8 | L28: 33 | M28: 14 | N28: 40 | O28: 25 | P28: 0.63 | Q28: 3.09 | R28: 2.16 | S28: 2.625 | T28: Ale | U28: Greif, Eichhorn, Nederkeller, Hebendanz (bottled) Buttenheimer Kaiserdom Kellerbier, Kulmbacher Monchshof Kellerbier, Leikeim Kellerbier, Löwenbräu Kellerbier, Mahr’s Kellerbier, St. Georgen Kellerbier, Tucher Kellerbier Naturtrub
A29: 8 | B29: A | C29: Munich Dunkel | D29: 8 | E29: A | F29: 1056 | G29: 1048 | H29: 1016 | I29: 1010 | J29: 5,6 | K29: 4,5 | L29: 55 | M29: 28 | N29: 28 | O29: 18 | P29: 0.43 | Q29: 2.66 | R29: 2.21 | S29: 2.435 | T29: Lager | U29: Ayinger Altbairisch Dunkel, Chuckanut Dunkel Lager, Ettaler Kloster Dunkel, Hacker-Pschorr Alt Munich Dark, Weltenburger Kloster Barock-Dunkel
A30: 8 | B30: B | C30: Schwarzbier | D30: 8 | E30: B | F30: 1052 | G30: 1046 | H30: 1016 | I30: 1010 | J30: 5,4 | K30: 4,4 | L30: 59 | M30: 33 | N30: 30 | O30: 20 | P30: 0.53 | Q30: 2.6 | R30: 2.2 | S30: 2.4 | T30: Lager | U30: Devils Backbone Schwartz Bier, Einbecker Schwarzbier, Eisenbahn Dunkel, Köstritzer Schwarzbier, Mönchshof Schwarzbier, Nuezeller Original Badebier
A31: 9 | B31: A | C31: Doppelbock | D31: 9 | E31: A | F31: 1112 | G31: 1072 | H31: 1024 | I31: 1016 | J31: 10 | K31: 7,0 | L31: 49 | M31: 12 | N31: 26 | O31: 16 | P31: 0.23 | Q31: 2.62 | R31: 2.26 | S31: 2.44 | T31: Lager | U31: Dark Versions –Andechser Doppelbock Dunkel, Ayinger Celebrator, Paulaner Salvator, Spaten Optimator, Tröegs Troegenator, Weihenstephaner Korbinian,; Pale Versions – Eggenberg Urbock 23º, EKU 28, Plank Bavarian Heller Doppelbock
A32: 9 | B32: B | C32: Eisbock | D32: 9 | E32: B | F32: 1120 | G32: 1078 | H32: 1035 | I32: 1020 | J32: 4,0 | K32: 9,0 | L32: 59 | M32: 35 | N32: 35 | O32: 25 | P32: 0.28 | Q32: 2.37 | R32: 2.37 | S32: 2.37 | T32: Lager | U32: Kulmbacher Eisbock
A33: 9 | B33: C | C33: Baltic Porter | D33: 9 | E33: C | F33: 1090 | G33: 1060 | H33: 1024 | I33: 1016 | J33: 9,5 | K33: 6,5 | L33: 59 | M33: 33 | N33: 40 | O33: 20 | P33: 0.38 | Q33: 2.5 | R33: 1.8 | S33: 2.15 | T33: Ale | U33: Aldaris Porteris, Baltika #6 Porter, Devils Backbone Danzig, Okocim Porter, Sinebrychoff Porter, Zywiec Porter
A34: 10 | B34: A | C34: Weizen | D34: 10 | E34: A | F34: 1052 | G34: 1044 | H34: 1014 | I34: 1010 | J34: 5,6 | K34: 4,3 | L34: 12 | M34: 4 | N34: 15 | O34: 8 | P34: 0.23 | Q34: 4.48 | R34: 3.6 | S34: 4.04 | T34: Wheat Ale | U34: Ayinger Bräu Weisse, Hacker-Pschorr Weisse, Paulaner Hefe-Weizen Naturtrüb, Schneider Weisse Unser Original, Weihenstephaner Hefeweissbier
A35: 10 | B35: B | C35: Dunkelweizen | D35: 10 | E35: B | F35: 1056 | G35: 1044 | H35: 1014 | I35: 1010 | J35: 5,6 | K35: 4,3 | L35: 45 | M35: 28 | N35: 18 | O35: 10 | P35: 0.28 | Q35: 4.48 | R35: 3.6 | S35: 4.04 | T35: Wheat Ale | U35: Ayinger Ur-Weisse, Ettaler Weissbier Dunkel, Franziskaner Hefe-Weisse Dunkel, Hacker-Pschorr Weisse Dark, Tucher Dunkles Hefe Weizen, Weihenstephaner Hefeweissbier Dunkel
A36: 10 | B36: C | C36: Weizenbock | D36: 10 | E36: C | F36: 1090 | G36: 1064 | H36: 1022 | I36: 1015 | J36: 9,0 | K36: 6,5 | L36: 49 | M36: 12 | N36: 30 | O36: 15 | P36: 0.29 | Q36: 4.74 | R36: 3.71 | S36: 4.225 | T36: Wheat Ale | U36: Dark –Eisenbahn Weizenbock, Plank Bavarian Dunkler Weizenbock, Penn Weizenbock, Schneider Unser Aventinus; Pale –Plank Bavarian Heller Weizenbock, Weihenstephaner Vitus
A37: 11 | B37: A | C37: Standard Bitter | D37: 11 | E37: A | F37: 1039 | G37: 1030 | H37: 1011 | I37: 1007 | J37: 3,8 | K37: 3,2 | L37: 28 | M37: 16 | N37: 35 | O37: 25 | P37: 0.81 | Q37: 1.3 | R37: 0.75 | S37: 1.025 | T37: Ale | U37: Adnams Southwold Bitter, Brains Bitter, Fuller's Chiswick Bitter, Greene King IPA, Tetley’s Original Bitter, Young's Bitter
A38: 11 | B38: B | C38: Best Bitter | D38: 11 | E38: B | F38: 1048 | G38: 1040 | H38: 1012 | I38: 1008 | J38: 4,6 | K38: 3,8 | L38: 32 | M38: 16 | N38: 40 | O38: 25 | P38: 0.74 | Q38: 1.3 | R38: 0.75 | S38: 1.025 | T38: Ale | U38: Adnams SSB, Coniston Bluebird Bitter, Fuller's London Pride, Harvey’s Sussex Best Bitter, Shepherd Neame Master Brew Kentish Ale, Timothy Taylor Landlord, Young’s Special
A39: 11 | B39: C | C39: Strong Bitter | D39: 11 | E39: C | F39: 1060 | G39: 1048 | H39: 1016 | I39: 1010 | J39: 6,2 | K39: 4,6 | L39: 35 | M39: 16 | N39: 50 | O39: 30 | P39: 0.73 | Q39: 1.3 | R39: 0.75 | S39: 1.025 | T39: Ale | U39: Bass Ale, Highland Orkney Blast, Samuel Smith’s Old Brewery Pale Ale, Shepherd Neame Bishop's Finger, Shepherd Neame Spitfire, West Berkshire Dr. Hexter’s Healer, Whitbread Pale Ale, Young’s Ram Rod
A40: 12 | B40: A | C40: British Golden Ale | D40: 12 | E40: A | F40: 1053 | G40: 1038 | H40: 1012 | I40: 1006 | J40: 5,0 | K40: 3,8 | L40: 12 | M40: 4 | N40: 45 | O40: 20 | P40: 0.47 | Q40: 2.6 | R40: 2.3 | S40: =IF(R40="","",(R40+Q40)/2) -> 2.45 | T40: Ale | U40: Crouch Vale Brewers Gold, Fuller's Discovery, Golden Hill Exmoor Gold, Hop Back Summer Lightning, Kelham Island Pale Rider, Morland Old Golden Hen, Oakham JHB
A41: 12 | B41: B | C41: Australian Sparkling Ale | D41: 12 | E41: B | F41: 1050 | G41: 1038 | H41: 1006 | I41: 1004 | J41: 6,0 | K41: 4,5 | L41: 14 | M41: 8 | N41: 35 | O41: 20 | P41: 0.8 | Q41: 4.5 | R41: 3 | S41: 3.75 | T41: Ale | U41: Coopers Original Pale Ale, Coopers Sparkling Ale
A42: 12 | B42: C | C42: English IPA | D42: 12 | E42: C | F42: 1075 | G42: 1050 | H42: 1018 | I42: 1010 | J42: 7,5 | K42: 5,0 | L42: 28 | M42: 12 | N42: 60 | O42: 40 | P42: 0.8 | Q42: 2.3 | R42: 1.5 | S42: 1.9 | T42: Ale | U42: Freeminer Trafalgar IPA, Fuller's Bengal Lancer IPA, Meantime India Pale Ale, Ridgeway IPA, Summit True Brit IPA, Thornbridge Jaipur, Worthington White Shield
A43: 13 | B43: A | C43: Dark Mild | D43: 13 | E43: A | F43: 1038 | G43: 1030 | H43: 1013 | I43: 1008 | J43: 3,8 | K43: 3,0 | L43: 49 | M43: 24 | N43: 25 | O43: 10 | P43: 0.47 | Q43: 2 | R43: 1.3 | S43: 1.65 | T43: Ale | U43: Banks's Mild, Cain's Dark Mild, Highgate Dark Mild, Brain’s Dark, Moorhouse Black Cat, Rudgate Ruby Mild, Theakston Traditional Mild
A44: 13 | B44: B | C44: British Brown Ale | D44: 13 | E44: B | F44: 1052 | G44: 1040 | H44: 1013 | I44: 1008 | J44: 5,4 | K44: 4,2 | L44: 43 | M44: 24 | N44: 30 | O44: 20 | P44: 0.54 | Q44: 2.3 | R44: 1.5 | S44: 1.9 | T44: Ale | U44: Maxim Double Maxim, Newcastle Brown Ale, Riggwelter Yorkshire Ale, Samuel Smith’s Nut Brown Ale, Wychwood Hobgoblin
A45: 13 | B45: C | C45: English Porter | D45: 13 | E45: C | F45: 1052 | G45: 1040 | H45: 1014 | I45: 1008 | J45: 5,4 | K45: 4,0 | L45: 59 | M45: 39 | N45: 35 | O45: 18 | P45: 0.57 | Q45: 2.5 | R45: 1.7 | S45: 2.1 | T45: Ale | U45: Burton Bridge Burton Porter, Fuller's London Porter, Nethergate Old Growler Porter, RCH Old Slug Porter, Samuel Smith Taddy Porter
A46: 14 | B46: A | C46: Scottish Light | D46: 14 | E46: A | F46: 1035 | G46: 1030 | H46: 1013 | I46: 1010 | J46: 3,2 | K46: 2,5 | L46: 43 | M46: 33 | N46: 20 | O46: 10 | P46: 0.4 | Q46: 1.3 | R46: 0.75 | S46: 1.025 | T46: Ale | U46: McEwan's 60
A47: 14 | B47: B | C47: Scottish Heavy | D47: 14 | E47: B | F47: 1040 | G47: 1035 | H47: 1015 | I47: 1010 | J47: 3,9 | K47: 3,2 | L47: 43 | M47: 26 | N47: 20 | O47: 10 | P47: 0.42 | Q47: 1.3 | R47: 0.75 | S47: 1.025 | T47: Ale | U47: Broughton Greenmantle Ale, Caledonia Smooth, McEwan's 70, Orkney Raven Ale, Tennent’s Special Ale
A48: 14 | B48: C | C48: Scottish Export | D48: 14 | E48: C | F48: 1060 | G48: 1040 | H48: 1016 | I48: 1010 | J48: 6,0 | K48: 3,9 | L48: 43 | M48: 26 | N48: 30 | O48: 15 | P48: 0.45 | Q48: 1.3 | R48: 0.75 | S48: 1.025 | T48: Ale | U48: Belhaven Scottish Ale, Broughton Exciseman’s Ale, Orkney Dark Island, Pelican MacPelican’s Scottish Style Ale, Weasel Boy Plaid Ferret Scottish Ale
A49: 15 | B49: A | C49: Irish Red Ale | D49: 15 | E49: A | F49: 1060 | G49: 1044 | H49: 1014 | I49: 1010 | J49: 6 | K49: 4 | L49: 35 | M49: 18 | N49: 28 | O49: 18 | P49: 0.43 | Q49: 2.3 | R49: 1.5 | S49: 1.9 | T49: Ale | U49: Caffrey’s Irish Ale, Franciscan Well Rebel Red, Kilkenny Irish Beer, O’Hara’s Irish Red Ale, Porterhouse Red Ale, Samuel Adams Irish Red, Smithwick’s Irish Ale
A50: 15 | B50: B | C50: Irish Stout | D50: 15 | E50: B | F50: 1044 | G50: 1036 | H50: 1011 | I50: 1007 | J50: 4,5 | K50: 4,0 | L50: 79 | M50: 49 | N50: 45 | O50: 25 | P50: 0.43 | Q50: 2.3 | R50: 1.5 | S50: 1.9 | T50: Ale | U50: Beamish Irish Stout, Guinness Draught, Harpoon Boston Irish Stout, Murphy's Irish Stout, O’Hara’s Irish Stout, Porterhouse Wrasslers 4X
A51: 15 | B51: C | C51: Irish Extra Stout | D51: 15 | E51: C | F51: 1062 | G51: 1052 | H51: 1014 | I51: 1010 | J51: 6,5 | K51: 5,5 | L51: 79 | M51: 49 | N51: 50 | O51: 35 | P51: 0.89 | Q51: 2 | R51: 1.6 | S51: 1.8 | T51: Ale | U51: Guinness Extra Stout (US version), O’Hara’s Leann Folláin, Sheaf Stout
A52: 16 | B52: A | C52: Sweet Stout | D52: 16 | E52: A | F52: 1060 | G52: 1044 | H52: 1024 | I52: 1012 | J52: 6,0 | K52: 4,0 | L52: 79 | M52: 59 | N52: 40 | O52: 20 | P52: 0.51 | Q52: 2.4 | R52: 2 | S52: 2.2 | T52: Ale | U52: Bristol Beer Factory Milk Stout, Left Hand Milk Stout, Lancaster Milk Stout, Mackeson's XXX Stout, Marston’s Oyster Stout, Samuel Adams Cream Stout
A53: 16 | B53: B | C53: Oatmeal Stout | D53: 16 | E53: B | F53: 1065 | G53: 1045 | H53: 1018 | I53: 1010 | J53: 5,9 | K53: 4,2 | L53: 79 | M53: 43 | N53: 40 | O53: 25 | P53: 0.56 | Q53: 2.4 | R53: 2 | S53: 2.2 | T53: Ale | U53: Anderson Valley Barney Flats Oatmeal Stout, Broughton Scottish Oatmeal Stout, Figueroa Mountain Stagecoach Stout, St-Ambroise Oatmeal Stout, Samuel Smith Oatmeal Stout, Young's Oatmeal Stout
A54: 16 | B54: C | C54: Tropical Stout | D54: 16 | E54: C | F54: 1075 | G54: 1056 | H54: 1018 | I54: 1010 | J54: 8,0 | K54: 5,5 | L54: 79 | M54: 59 | N54: 50 | O54: 30 | P54: 0.77 | Q54: 2.6 | R54: 2.3 | S54: 2.45 | T54: Ale | U54: ABC Extra Stout, Dragon Stout, Jamaica Stout, Lion Stout, Royal Extra Stout
A55: 16 | B55: D | C55: Foreign Extra Stout | D55: 16 | E55: D | F55: 1075 | G55: 1056 | H55: 1018 | I55: 1010 | J55: 8,0 | K55: 6,3 | L55: 79 | M55: 59 | N55: 70 | O55: 50 | P55: 0.77 | Q55: 2.6 | R55: 2.3 | S55: 2.45 | T55: Ale | U55: Coopers Best Extra Stout, Guinness Foreign Extra Stout, The Kernel Export Stout, Ridgeway Foreign Export Stout, Southwark Old Stout
A56: 17 | B56: A | C56: British Strong Ale | D56: 17 | E56: A | F56: 1080 | G56: 1055 | H56: 1022 | I56: 1015 | J56: 8,0 | K56: 5,5 | L56: 43 | M56: 16 | N56: 60 | O56: 30 | P56: 0.22 | Q56: 2.3 | R56: 1.5 | S56: 1.9 | T56: Ale | U56: Fuller’s 1845, Harvey’s Elizabethan Ale, J.W. Lees Manchester Star, Samuel Smith’s Winter Welcome, Young's Winter Warmer
A57: 17 | B57: B | C57: Old Ale | D57: 17 | E57: B | F57: 1088 | G57: 1055 | H57: 1022 | I57: 1015 | J57: 9,0 | K57: 5,5 | L57: 43 | M57: 20 | N57: 60 | O57: 30 | P57: 0.58 | Q57: 2.3 | R57: 1.5 | S57: 1.9 | T57: Ale | U57: Burton Bridge Olde Expensive, Gale’s Prize Old Ale, Greene King Strong Suffolk Ale, Marston Owd Roger, Theakston Old Peculier
A58: 17 | B58: C | C58: Wee Heavy | D58: 17 | E58: C | F58: 1130 | G58: 1070 | H58: 1040 | I58: 1018 | J58: 10 | K58: 6,5 | L58: 49 | M58: 28 | N58: 35 | O58: 17 | P58: 0.22 | Q58: 2.3 | R58: 1.5 | S58: 1.9 | T58: Ale | U58: Belhaven Wee Heavy, Gordon Highland Scotch Ale, Inveralmond Blackfriar, McEwan's Scotch Ale, Orkney Skull Splitter, Traquair House Ale
A59: 17 | B59: D | C59: English Barleywine | D59: 17 | E59: D | F59: 1120 | G59: 1080 | H59: 1030 | I59: 1018 | J59: 12 | K59: 8,0 | L59: 43 | M59: 16 | N59: 70 | O59: 35 | P59: 0.51 | Q59: 2.3 | R59: 1.3 | S59: 1.8 | T59: Ale | U59: Adnams Tally-Ho, Burton Bridge Thomas Sykes Old Ale, Coniston No. 9 Barley Wine, Fuller’s Golden Pride, J.W. Lee’s Vintage Harvest Ale, Robinson’s Old Tom
A60: 18 | B60: A | C60: Blonde Ale | D60: 18 | E60: A | F60: 1054 | G60: 1038 | H60: 1013 | I60: 1008 | J60: 5,5 | K60: 3,8 | L60: 12 | M60: 6 | N60: 28 | O60: 15 | P60: 0.47 | Q60: 2.6 | R60: 2.3 | S60: 2.45 | T60: Ale | U60: Kona Big Wave Golden Ale, Pelican Kiwanda Cream Ale, Russian River Aud Blonde, Victory Summer Love, Widmer Citra Summer Blonde Brew
A61: 18 | B61: B | C61: American Pale Ale | D61: 18 | E61: B | F61: 1060 | G61: 1045 | H61: 1015 | I61: 1010 | J61: 6,2 | K61: 4,5 | L61: 20 | M61: 10 | N61: 50 | O61: 30 | P61: 0.71 | Q61: 2.78 | R61: 2.26 | S61: 2.52 | T61: Ale | U61: Ballast Point Grunion Pale Ale, Firestone Walker Pale 31, Great Lakes Burning River, Sierra Nevada Pale Ale, Stone Pale Ale, Tröegs Pale Ale
A62: 19 | B62: A | C62: Amber Ale | D62: 19 | E62: A | F62: 1060 | G62: 1045 | H62: 1015 | I62: 1010 | J62: 6,2 | K62: 4,5 | L62: 33 | M62: 20 | N62: 40 | O62: 25 | P62: 0.61 | Q62: 2.78 | R62: 2.26 | S62: 2.52 | T62: Ale | U62: Deschutes Cinder Cone Red, Full Sail Amber, Kona Lavaman Red Ale, North Coast Ruedrich's Red Seal Ale, Rogue American Amber Ale, Tröegs HopBack Amber Ale
A63: 19 | B63: B | C63: California Common | D63: 19 | E63: B | F63: 1054 | G63: 1048 | H63: 1014 | I63: 1011 | J63: 5,5 | K63: 4,5 | L63: 28 | M63: 20 | N63: 45 | O63: 30 | P63: 0.72 | Q63: 2.8 | R63: 2.4 | S63: 2.6 | T63: Lager | U63: Anchor Steam, Flying Dog Old Scratch Amber Lager, Schlafly Pi Common, Steamworks Steam Engine Lager
A64: 19 | B64: C | C64: American Brown Ale | D64: 19 | E64: C | F64: 1060 | G64: 1045 | H64: 1016 | I64: 1010 | J64: 6,2 | K64: 4,3 | L64: 69 | M64: 35 | N64: 30 | O64: 20 | P64: 0.56 | Q64: 2.5 | R64: 1.5 | S64: 2 | T64: Ale | U64: Anchor Brekle’s Brown, Big Sky Moose Drool Brown Ale, Brooklyn Brown Ale, Bell’s Best Brown, Cigar City Maduro Brown Ale, Smuttynose Old Brown Dog Ale, Telluride Face Down Brown
A65: 20 | B65: A | C65: Robust Porter | D65: 20 | E65: A | F65: 1070 | G65: 1050 | H65: 1018 | I65: 1012 | J65: 6,5 | K65: 4,8 | L65: 79 | M65: 43 | N65: 50 | O65: 25 | P65: 0.65 | Q65: 2.5 | R65: 1.8 | S65: 2.15 | T65: Ale | U65: Anchor Porter, Boulevard Bully! Porter, Deschutes Black Butte Porter, Founders Porter, Great Lakes Edmund Fitzgerald Porter, Smuttynose Robust Porter, Sierra Nevada Porter
A66: 20 | B66: B | C66: American Stout | D66: 20 | E66: B | F66: 1075 | G66: 1050 | H66: 1022 | I66: 1010 | J66: 7,0 | K66: 5,0 | L66: 79 | M66: 59 | N66: 75 | O66: 35 | P66: 0.85 | Q66: 2.6 | R66: 2.3 | S66: 2.45 | T66: Ale | U66: Avery Out of Bounds Stout, Deschutes Obsidian Stout, North Coast Old No. 38, Rogue Shakespeare Stout, Sierra Nevada Stout
A67: 20 | B67: C | C67: Imperial Stout | D67: 20 | E67: C | F67: 1115 | G67: 1075 | H67: 1030 | I67: 1018 | J67: 12 | K67: 8,0 | L67: 79 | M67: 59 | N67: 90 | O67: 50 | P67: 0.71 | Q67: 2.3 | R67: 1.5 | S67: 1.9 | T67: Ale | U67: American –Bell’s Expedition Stout, Cigar City Marshal Zhukov’s Imperial Stout, Great Divide Yeti Imperial Stout, North Coast Old Rasputin Imperial Stout, Sierra Nevada Narwhal Imperial Stout; English – Courage Imperial Russian Stout, Le Coq Imperial Extra Double Stout, Samuel Smith Imperial Stout
A68: 21 | B68: A | C68: American IPA | D68: 21 | E68: A | F68: 1070 | G68: 1056 | H68: 1014 | I68: 1008 | J68: 7,5 | K68: 5,5 | L68: 28 | M68: 12 | N68: 70 | O68: 40 | P68: 0.85 | Q68: 2.3 | R68: 1.5 | S68: 1.9 | T68: Ale | U68: Alpine Duet, Bell’s Two-Hearted Ale, Fat Heads Head Hunter IPA, Firestone Walker Union Jack, Lagunitas IPA, Russian River Blind Pig IPA, Stone IPA
A69: 21 | B69: B | C69: Belgian IPA | D69: 21 | E69: B | F69: 1080 | G69: 1058 | H69: 1016 | I69: 1008 | J69: 9,5 | K69: 6,2 | L69: 30 | M69: 10 | N69: 100 | O69: 50 | P69: 0.8 | Q69: 2.3 | R69: 1.5 | S69: =IF(R69="","",(R69+Q69)/2) -> 1.9 | T69: Ale | U69: Brewery Vivant Triomphe, Houblon Chouffe, Epic Brainless IPA, Green Flash Le Freak, Stone Cali-Belgique, Urthel Hop It
A70: 21 | B70: C | C70: Black IPA | D70: 21 | E70: C | F70: 1085 | G70: 1050 | H70: 1018 | I70: 1010 | J70: 9,0 | K70: 5,5 | L70: 79 | M70: 49 | N70: 90 | O70: 50 | P70: 0.8 | Q70: 2.3 | R70: 1.5 | S70: 1.9 | T70: Ale | U70: 21st Amendment Back in Black (standard), Deschutes Hop in the Dark CDA (standard), Rogue Dad’s Little Helper (standard), Southern Tier Iniquity (double), Widmer Pitch Black IPA (standard)
A71: 21 | B71: D | C71: Brown IPA | D71: 21 | E71: D | F71: 1070 | G71: 1056 | H71: 1016 | I71: 1008 | J71: 7,5 | K71: 5,5 | L71: 37 | M71: 22 | N71: 70 | O71: 40 | P71: 0.8 | Q71: 2.3 | R71: 1.5 | S71: 1.9 | T71: Ale | U71: Dogfish Head Indian Brown Ale, Grand Teton Bitch Creek, Harpoon Brown IPA, Russian River Janet’s Brown Ale
A72: 21 | B72: E | C72: Red IPA | D72: 21 | E72: E | F72: 1070 | G72: 1056 | H72: 1016 | I72: 1008 | J72: 7,5 | K72: 5,5 | L72: 37 | M72: 22 | N72: 70 | O72: 40 | P72: 0.8 | Q72: 2.3 | R72: 1.5 | S72: 1.9 | T72: Ale | U72: Green Flash Hop Head Red Double Red IPA (double), Midnight Sun Sockeye Red, Sierra Nevada Flipside Red IPA, Summit Horizon Red IPA, Odell Runoff Red IPA
A73: 21 | B73: F | C73: Rye IPA | D73: 21 | E73: F | F73: 1075 | G73: 1056 | H73: 1014 | I73: 1008 | J73: 8,0 | K73: 5,5 | L73: 28 | M73: 12 | N73: 75 | O73: 50 | P73: 0.8 | Q73: 2.3 | R73: 1.5 | S73: 1.9 | T73: Ale | U73: Arcadia Sky High Rye, Bear Republic Hop Rod Rye, Founders Reds Rye, Great Lakes Rye of the Tiger, Sierra Nevada Ruthless Rye
A74: 21 | B74: G | C74: White IPA | D74: 21 | E74: G | F74: 1065 | G74: 1056 | H74: 1016 | I74: 1010 | J74: 7,0 | K74: 5,5 | L74: 16 | M74: 10 | N74: 70 | O74: 40 | P74: 0.8 | Q74: 2.3 | R74: 1.5 | S74: 1.9 | T74: Ale | U74: Blue Point White IPA, Deschutes Chainbreaker IPA, Harpoon The Long Thaw, New Belgium Accumulation
A75: 22 | B75: A | C75: Double IPA | D75: 22 | E75: A | F75: 1085 | G75: 1065 | H75: 1018 | I75: 1008 | J75: 10 | K75: 7,5 | L75: 28 | M75: 12 | N75: 120 | O75: 60 | P75: 0.8 | Q75: 2.3 | R75: 1.5 | S75: 1.9 | T75: Ale | U75: Avery Maharaja, Fat Heads Hop Juju, Firestone Walker Double Jack, Port Brewing Hop 15, Russian River Pliny the Elder, Stone Ruination IPA, Three Floyds Dreadnaught
A76: 22 | B76: B | C76: American Strong Ale | D76: 22 | E76: B | F76: 1090 | G76: 1062 | H76: 1024 | I76: 1014 | J76: 10 | K76: 6,3 | L76: 37 | M76: 14 | N76: 100 | O76: 50 | P76: 0.84 | Q76: 2.3 | R76: 1.3 | S76: =IF(R76="","",(R76+Q76)/2) -> 1.8 | T76: Ale | U76: Bear Republic Red Rocket Ale, Great Lakes Nosferatu, Terrapin Big Hoppy Monster, Port Brewing Shark Attack Double Red, Stone Arrogant Bastard,
A77: 22 | B77: C | C77: American Barleywine | D77: 22 | E77: C | F77: 1120 | G77: 1080 | H77: 1030 | I77: 1016 | J77: 12 | K77: 8,0 | L77: 37 | M77: 20 | N77: 100 | O77: 50 | P77: 0.84 | Q77: 2.3 | R77: 1.3 | S77: 1.8 | T77: Ale | U77: Avery Hog Heaven Barleywine, Anchor Old Foghorn, Great Divide Old Ruffian, Rogue Old Crustacean, Sierra Nevada Bigfoot, Victory Old Horizontal
A78: 22 | B78: D | C78: Wheatwine | D78: 22 | E78: D | F78: 1120 | G78: 1080 | H78: 1030 | I78: 1016 | J78: 12 | K78: 8,0 | L78: 30 | M78: 16 | N78: 60 | O78: 30 | P78: 0.84 | Q78: 2.5 | R78: 2 | S78: 2.25 | T78: Ale | U78: Rubicon Winter Wheat Wine, Two Brothers Bare Trees Weiss Wine, Smuttynose Wheat Wine, Portsmouth Wheat Wine
A79: 23 | B79: A | C79: Berliner Weisse | D79: 23 | E79: A | F79: 1032 | G79: 1028 | H79: 1006 | I79: 1003 | J79: 3,8 | K79: 2,8 | L79: 6 | M79: 4 | N79: 8 | O79: 3 | P79: 0.2 | Q79: 3.45 | R79: 3.45 | S79: 3.45 | T79: Ale w. Lactic | U79: Bayerischer Bahnhof Berliner Style Weisse, Berliner Kindl Weisse, Nodding Head Berliner Weisse, The Bruery Hottenroth
A80: 23 | B80: B | C80: Flanders Red Ale | D80: 23 | E80: B | F80: 1057 | G80: 1048 | H80: 1012 | I80: 1002 | J80: 6,5 | K80: 4,6 | L80: 32 | M80: 20 | N80: 25 | O80: 10 | P80: 0.37 | Q80: 2.5 | R80: 1.9 | S80: 2.2 | T80: Ale w. Lactic | U80: Cuvée des Jacobins Rouge, Duchesse de Bourgogne, Rodenbach Grand Cru, Rodenbach Klassiek, Vichtenaar Flemish Ale
A81: 23 | B81: C | C81: Oud Bruin | D81: 23 | E81: C | F81: 1074 | G81: 1040 | H81: 1012 | I81: 1008 | J81: 8,0 | K81: 4,0 | L81: 43 | M81: 30 | N81: 25 | O81: 20 | P81: 0.41 | Q81: 2.5 | R81: 1.9 | S81: 2.2 | T81: Ale w. Lactic | U81: Ichtegem Oud Bruin, Liefmans Goudenband, Liefmans Liefmans Oud Bruin, Petrus Oud Bruin, Riva Vondel, Vanderghinste Bellegems Bruin
A82: 23 | B82: D | C82: Lambic | D82: 23 | E82: D | F82: 1054 | G82: 1040 | H82: 1010 | I82: 1001 | J82: 6,5 | K82: 5,0 | L82: 14 | M82: 6 | N82: 10 | O82: 0 | P82: 0.12 | Q82: 4.5 | R82: 3 | S82: 3.75 | T82: Ale w. Lactic | U82: The only bottled version readily available is Cantillon Grand Cru Bruocsella of whatever single batch vintage the brewer deems worthy to bottle. De Cam sometimes bottles their very old (5 years) lambic. In and around Brussels there are specialty cafes that often have draught lambics from traditional brewers or blenders such as Boon, De Cam, Cantillon, Drie Fonteinen, Lindemans, Timmermans and Girardin.
A83: 23 | B83: E | C83: Gueuze | D83: 23 | E83: E | F83: 1060 | G83: 1040 | H83: 1006 | I83: 1000 | J83: 8,0 | K83: 5,0 | L83: 14 | M83: 6 | N83: 10 | O83: 0 | P83: 0.12 | Q83: 4.5 | R83: 3 | S83: 3.75 | T83: Ale w. Lactic | U83: Boon Oude Gueuze, Boon Oude Gueuze Mariage Parfait, Cantillon Gueuze, De Cam Gueuze, De Cam/Drei Fonteinen Millennium Gueuze, Drie Fonteinen Oud Gueuze, Girardin Gueuze (Black Label), Hanssens Oude Gueuze, Lindemans Gueuze Cuvée René, Mort Subite (Unfiltered) Gueuze, Oud Beersel Oude Gueuze
A84: 23 | B84: F | C84: Fruit Lambic | D84: 23 | E84: F | F84: 1060 | G84: 1040 | H84: 1010 | I84: 1000 | J84: 7,0 | K84: 5,0 | L84: 14 | M84: 6 | N84: 10 | O84: 0 | P84: 0.11 | Q84: 4.5 | R84: 2.6 | S84: 3.55 | T84: Ale w. Lactic | U84: Boon Framboise Marriage Parfait, Boon Kriek Mariage Parfait, Boon Oude Kriek, Cantillon Fou’ Foune, Cantillon Kriek, Cantillon Lou Pepe Kriek, Cantillon Lou Pepe Framboise, Cantillon Rose de Gambrinus, Cantillon St. Lamvinus, Cantillon Vigneronne, De Cam Oude Kriek, Drie Fonteinen Kriek, Girardin Kriek, Hanssens Oude Kriek, Oud Beersel Kriek, Mort Subite Kriek
A85: 24 | B85: A | C85: Witbier | D85: 24 | E85: A | F85: 1052 | G85: 1044 | H85: 1012 | I85: 1008 | J85: 5,5 | K85: 4,5 | L85: 8 | M85: 4 | N85: 20 | O85: 8 | P85: 0.32 | Q85: 2.6 | R85: 2.1 | S85: 2.35 | T85: Ale | U85: Allagash White, Blanche de Bruxelles, Celis White, Hoegaarden Wit, Ommegang Witte, St. Bernardus Witbier, Wittekerke
A86: 24 | B86: B | C86: Belgian Pale Ale | D86: 24 | E86: B | F86: 1054 | G86: 1048 | H86: 1014 | I86: 1010 | J86: 5,5 | K86: 4,8 | L86: 28 | M86: 16 | N86: 30 | O86: 20 | P86: 0.49 | Q86: 2.5 | R86: 1.9 | S86: 2.2 | T86: Ale | U86: De Koninck, De Ryck Special, Palm Dobble, Palm Speciale
A87: 24 | B87: C | C87: Bière de Garde | D87: 24 | E87: C | F87: 1080 | G87: 1060 | H87: 1016 | I87: 1008 | J87: 8,5 | K87: 6,0 | L87: 37 | M87: 12 | N87: 28 | O87: 18 | P87: 0.35 | Q87: 2.5 | R87: 1.9 | S87: 2.2 | T87: Ale | U87: Ch’Ti (brown and blond), Jenlain (amber and blond), La Choulette (all 3 versions), St. Amand (brown), Saint Sylvestre 3 Monts (blond), Russian River Perdition
A88: 25 | B88: A | C88: Belgian Blond Ale | D88: 25 | E88: A | F88: 1075 | G88: 1062 | H88: 1018 | I88: 1008 | J88: 7,5 | K88: 6,0 | L88: 14 | M88: 8 | N88: 30 | O88: 15 | P88: 0.34 | Q88: 2.4 | R88: 1.9 | S88: 2.15 | T88: Ale | U88: Affligem Blond, Grimbergen Blond, La Trappe Blond, Leffe Blond, Val-Dieu Blond
A89: 25 | B89: B | C89: Saison (pale) (standard) | D89: 25 | E89: B | F89: 1065 | G89: 1048 | H89: 1008 | I89: 1002 | J89: 7,0 | K89: 5,0 | L89: 28 | M89: 10 | N89: 35 | O89: 20 | P89: 0.54 | Q89: 2.4 | R89: 1.9 | S89: 2.15 | T89: Ale | U89: Ellezelloise Saison, Fantôme Saison, Lefebvre Saison 1900, Saison Dupont Vieille Provision, Saison de Pipaix, Saison Regal, Saison Voisin, Boulevard Tank 7 Farmhouse Ale
A90: 25 | B90: C | C90: Saison (dark) (standard) | D90: 25 | E90: C | F90: 1065 | G90: 1048 | H90: 1008 | I90: 1002 | J90: 7,0 | K90: 5,0 | L90: 43 | M90: 30 | N90: 35 | O90: 20 | P90: 0.54 | Q90: 2.4 | R90: 1.9 | S90: 2.15 | T90: Ale
A91: 25 | B91: D | C91: Saison (pale) (table) | D91: 25 | E91: D | F91: 1065 | G91: 1048 | H91: 1008 | I91: 1002 | J91: 5,0 | K91: 3,5 | L91: 28 | M91: 10 | N91: 35 | O91: 20 | P91: 0.54 | Q91: 2.4 | R91: 1.9 | S91: 2.15 | T91: Ale
A92: 25 | B92: E | C92: Saison (pale) (super) | D92: 25 | E92: E | F92: 1065 | G92: 1048 | H92: 1008 | I92: 1002 | J92: 9,5 | K92: 7,0 | L92: 28 | M92: 10 | N92: 35 | O92: 20 | P92: 0.54 | Q92: 2.4 | R92: 1.9 | S92: 2.15 | T92: Ale
A93: 25 | B93: F | C93: Belgian Golden Strong Ale | D93: 25 | E93: F | F93: 1095 | G93: 1070 | H93: 1016 | I93: 1005 | J93: 10.5 | K93: 7,5 | L93: 12 | M93: 6 | N93: 35 | O93: 22 | P93: 0.38 | Q93: 2.4 | R93: 1.9 | S93: 2.15 | T93: Ale | U93: Brigand, Delirium Tremens, Dulle Teve, Duvel, Judas, Lucifer, Piraat, Russian River Damnation
A94: 26 | B94: A | C94: Trappist Single | D94: 26 | E94: A | F94: 1054 | G94: 1044 | H94: 1010 | I94: 1004 | J94: 6,0 | K94: 4,8 | L94: 10 | M94: 6 | N94: 45 | O94: 25 | P94: 0.49 | Q94: 2.5 | R94: 1.9 | S94: 2.2 | T94: Ale | U94: Achel 5° Blond, St. Bernardus Extra 4, Westmalle Extra, Westvleteren Blond
A95: 26 | B95: B | C95: Belgian Dubbel | D95: 26 | E95: B | F95: 1075 | G95: 1062 | H95: 1018 | I95: 1008 | J95: 7,6 | K95: 6,0 | L95: 33 | M95: 20 | N95: 25 | O95: 15 | P95: 0.3 | Q95: 2.4 | R95: 1.9 | S95: 2.15 | T95: Ale | U95: Affligem Dubbel, Chimay Première, Corsendonk Pater, Grimbergen Double, La Trappe Dubbel, St. Bernardus Pater 6, Trappistes Rochefort 6, Westmalle Dubbel
A96: 26 | B96: C | C96: Belgian Tripel | D96: 26 | E96: C | F96: 1085 | G96: 1075 | H96: 1014 | I96: 1008 | J96: 9,5 | K96: 7,5 | L96: 14 | M96: 9 | N96: 40 | O96: 20 | P96: 0.41 | Q96: 2.4 | R96: 1.9 | S96: 2.15 | T96: Ale | U96: Affligem Tripel, Chimay Cinq Cents, La Rulles Tripel, La Trappe Tripel, St. Bernardus Tripel, Unibroue La Fin Du Monde, Val-Dieu Triple, Watou Tripel, Westmalle Tripel
A97: 26 | B97: D | C97: Belgian Dark Strong Ale | D97: 26 | E97: D | F97: 1110 | G97: 1075 | H97: 1024 | I97: 1010 | J97: 12 | K97: 8,0 | L97: 43 | M97: 24 | N97: 35 | O97: 20 | P97: 0.31 | Q97: 2.5 | R97: 1.9 | S97: 2.2 | T97: Ale | U97: Achel Extra Brune, Boulevard The Sixth Glass, Chimay Grande Réserve, Gouden Carolus Grand Cru of the Emperor, Rochefort 8 & 10, St. Bernardus Abt 12, Westvleteren 12
A98: 27 | B98: A | C98: Historical Beer: Gose | D98: 27 | E98: A | F98: 1056 | G98: 1036 | H98: 1010 | I98: 1006 | J98: 4,8 | K98: 4,2 | L98: 8 | M98: 6 | N98: 12 | O98: 5 | Q98: 2.5 | R98: 1.9 | S98: 2.2 | T98: Ale | U98: Anderson Valley Gose, Bayerisch Bahnhof Leipziger Gose, Döllnitzer Ritterguts Gose
A99: 27 | B99: B | C99: Historical Beer: Kentucky Common | D99: 27 | E99: B | F99: 1055 | G99: 1044 | H99: 1018 | I99: 1010 | J99: 5,5 | K99: 4,0 | L99: 39 | M99: 22 | N99: 30 | O99: 15 | P99: 0.48 | Q99: 2.5 | R99: 1.9 | S99: 2.2 | T99: Ale | U99: Apocalypse Brew Works Ortel’s 1912
A100: 27 | B100: C | C100: Historical Beer: Lichtenhainer | D100: 27 | E100: C | F100: 1040 | G100: 1032 | H100: 1008 | I100: 1004 | J100: 4,7 | K100: 3,5 | L100: 12 | M100: 6 | N100: 12 | O100: 5 | P100: - | Q100: 2.5 | R100: 1.9 | S100: 2.2 | T100: Ale | U100: - NONE LISTED -
A101: 27 | B101: D | C101: Historical Beer: London Brown Ale | D101: 27 | E101: D | F101: 1038 | G101: 1033 | H101: 1015 | I101: 1012 | J101: 3,6 | K101: 2,8 | L101: 69 | M101: 43 | N101: 20 | O101: 15 | P101: - | Q101: 2.5 | R101: 1.9 | S101: 2.2 | T101: Ale | U101: Harveys Bloomsbury Brown Ale, Mann's Brown Ale
A102: 27 | B102: E | C102: Historical Beer: Piwo Grodziskie | D102: 27 | E102: E | F102: 1032 | G102: 1028 | H102: 1012 | I102: 1006 | J102: 3,3 | K102: 2,5 | L102: 12 | M102: 6 | N102: 35 | O102: 20 | P102: - | Q102: 5 | R102: 4 | S102: 4.5 | T102: Ale | U102: - NONE LISTED -
A103: 27 | B103: F | C103: Historical Beer: Pre-Prohibition Lager | D103: 27 | E103: F | F103: 1060 | G103: 1044 | H103: 1015 | I103: 1010 | J103: 6,0 | K103: 4,5 | L103: 12 | M103: 6 | N103: 40 | O103: 25 | P103: - | Q103: 2.5 | R103: 1.9 | S103: 2.2 | T103: Lager | U103: Anchor California Lager, Coors Batch 19, Little Harpeth Chicken Scratch
A104: 27 | B104: G | C104: Historical Beer: Pre-Prohibition Porter | D104: 27 | E104: G | F104: 1060 | G104: 1046 | H104: 1016 | I104: 1010 | J104: 6,0 | K104: 4,5 | L104: 59 | M104: 35 | N104: 30 | O104: 20 | P104: - | Q104: 2.5 | R104: 1.9 | S104: 2.2 | T104: Ale | U104: Stegmaier Porter, Yuengling Porter
A105: 27 | B105: H | C105: Historical Beer: Roggenbier | D105: 27 | E105: H | F105: 1056 | G105: 1046 | H105: 1014 | I105: 1010 | J105: 6,0 | K105: 4,5 | L105: 37 | M105: 28 | N105: 20 | O105: 10 | P105: - | Q105: 2.5 | R105: 1.9 | S105: 2.2 | T105: Ale | U105: Thurn und Taxis Roggen
A106: 27 | B106: I | C106: Historical Beer: Sahti | D106: 27 | E106: I | F106: 1120 | G106: 1076 | H106: 1020 | I106: 1016 | J106: 10 | K106: 7,0 | L106: 43 | M106: 8 | N106: 15 | O106: 7 | P106: - | Q106: 2.5 | R106: 1.9 | S106: 2.2 | T106: Ale | U106: Now made year-round by several breweries in Finland.
A107: 27 | B107: J | C107: Old English Mild | D107: 27 | E107: J | F107: 1066 | G107: 1059 | H107: 1019 | I107: 1012 | J107: 6.3 | K107: 5.3 | L107: 50 | M107: 25 | N107: 55 | O107: 34 | P107: 0.47 | Q107: 2 | R107: 1.3 | S107: 1.65 | T107: Ale | U107: Not part of BJCP 2015, but an old english beer style from around year 1900
A108: 27 | B108: K | C108: Pale Mild | D108: 27 | E108: K | F108: 1038 | G108: 1030 | H108: 1013 | I108: 1008 | J108: 4.5 | K108: 2.8 | L108: 50 | M108: 25 | N108: 25 | O108: 10 | P108: 0.47 | Q108: 2 | R108: 1.3 | S108: =IF(R108="","",(R108+Q108)/2) -> 1.65 | T108: Ale | U108: Not part of BJCP 2015, but an old english beer style from around year 1900
A109: 28 | B109: A | C109: Brett Beer | D109: 28 | E109: A | F109: - | G109: - | H109: - | I109: - | J109: - | K109: - | L109: - | M109: - | N109: - | O109: - | P109: - | Q109: - | R109: - | S109: - | T109: - | U109: Boulevard Saison Brett, Hill Farmstead Arthur, Logsdon Seizoen Bretta, Russian River Sanctification, The Bruery Saison Rue, Victory Helios
A110: 28 | B110: B | C110: Mixed-Fermentation Sour Beer | D110: 28 | E110: B | F110: - | G110: - | H110: - | I110: - | J110: - | K110: - | L110: - | M110: - | N110: - | O110: - | P110: - | Q110: - | R110: - | S110: - | T110: - | U110: Boulevard Love Child, Cascade Vlad the Imp Aler, Jester King Le Petit Prince, Jolly Pumpkin Calabaza Blanca, Russian River Temptation, The Bruery Rueuze, The Bruery Tart of Darkness
A111: 28 | B111: C | C111: Wild Specialty Beer | D111: 28 | E111: C | F111: - | G111: - | H111: - | I111: - | J111: - | K111: - | L111: - | M111: - | N111: - | O111: - | P111: - | Q111: - | R111: - | S111: - | T111: - | U111: Cascade Bourbonic Plague, Jester King Atrial Rubicite, New Belgium Eric’s Ale, New Glarus Belgian Red, Russian River Supplication, The Lost Abbey Cuvee de Tomme
A112: 29 | B112: A | C112: Fruit Beer | D112: 29 | E112: A | F112: - | G112: - | H112: - | I112: - | J112: - | K112: - | L112: - | M112: - | N112: - | O112: - | P112: - | Q112: 3 | R112: 2 | S112: 2.5 | T112: Ale | U112: Bell’s Cherry Stout, Dogfish Head Aprihop, Ebulum Elderberry Black Ale, Founders Rübæus
A113: 29 | B113: B | C113: Fruit and Spice Beer | D113: 29 | E113: B | F113: - | G113: - | H113: - | I113: - | J113: - | K113: - | L113: - | M113: - | N113: - | O113: - | P113: - | Q113: - | R113: - | S113: - | T113: - | U113: - NONE LISTED -
A114: 29 | B114: C | C114: Specialty Fruit Beer | D114: 29 | E114: C | F114: - | G114: - | H114: - | I114: - | J114: - | K114: - | L114: - | M114: - | N114: - | O114: - | P114: - | Q114: - | R114: - | S114: - | T114: - | U114: New Planet Raspberry Ale
A115: 30 | B115: A | C115: Spice, Herb, or Vegetable Beer | D115: 30 | E115: A | F115: - | G115: - | H115: - | I115: - | J115: - | K115: - | L115: - | M115: - | N115: - | O115: - | P115: - | Q115: - | R115: - | S115: - | T115: - | U115: Alesmith Speedway Stout, Bell’s Java Stout, Elysian Avatar Jasmine IPA, Founders Breakfast Stout, Rogue Chipotle Ale, Traquair Jacobite Ale, Young’s Double Chocolate Stout,
A116: 30 | B116: B | C116: Autumn Seasonal Beer | D116: 30 | E116: B | F116: - | G116: - | H116: - | I116: - | J116: - | K116: - | L116: - | M116: - | N116: - | O116: - | P116: - | Q116: - | R116: - | S116: - | T116: - | U116: Dogfish Head Punkin Ale, Schlafly Pumpkin Ale, Southampton Pumpkin Ale
A117: 30 | B117: C | C117: Christmas Beer | D117: 30 | E117: C | F117: - | G117: - | H117: - | I117: - | J117: - | K117: - | L117: - | M117: - | N117: - | O117: - | P117: - | Q117: 2.3 | R117: 1.9 | S117: =(R117+Q117)/2 -> 2.1 | T117: Ale or Lager | U117: Anchor Our Special Ale, Goose Island Christmas Ale, Great Lakes Christmas Ale, Harpoon Winter Warmer, Lakefront Holiday Spice Lager Beer, Weyerbacher Winter Ale
A118: 30 | B118: C | C118: Påskebryg | D118: 30 | E118: C | F118: - | G118: - | H118: - | I118: - | J118: - | K118: - | L118: - | M118: - | N118: - | O118: - | P118: - | Q118: 2.3 | R118: 1.9 | S118: =(R118+Q118)/2 -> 2.1 | T118: Ale or Lager
A119: 30 | B119: C | C119: Winter Seasonal Beer | D119: 30 | E119: C | F119: - | G119: - | H119: - | I119: - | J119: - | K119: - | L119: - | M119: - | N119: - | O119: - | P119: - | Q119: 2.3 | R119: 1.9 | S119: =(R119+Q119)/2 -> 2.1 | T119: Ale or Lager
A120: 31 | B120: A | C120: Alternative Grain Beer | D120: 31 | E120: A | F120: - | G120: - | H120: - | I120: - | J120: - | K120: - | L120: - | M120: - | N120: - | O120: - | P120: - | Q120: - | R120: - | S120: - | T120: - | U120: Green’s Indian Pale Ale, Lakefront New Grist, New Planet Pale Ale
A121: 31 | B121: B | C121: Alternative Sugar Beer | D121: 31 | E121: B | F121: - | G121: - | H121: - | I121: - | J121: - | K121: - | L121: - | M121: - | N121: - | O121: - | P121: - | Q121: - | R121: - | S121: - | T121: - | U121: Bell’s Hopslam, Fullers Honey Dew, Lagunitas Brown Shugga’
A122: 32 | B122: A | C122: Classic Style Smoked Beer | D122: 32 | E122: A | F122: - | G122: - | H122: - | I122: - | J122: - | K122: - | L122: - | M122: - | N122: - | O122: - | P122: - | Q122: - | R122: - | S122: - | T122: - | U122: Alaskan Smoked Porter, Schlenkerla Weizen Rauchbier and Ur-Bock Rauchbier, Spezial Lagerbier, Weissbier and Bockbier, Stone Smoked Porter
A123: 32 | B123: B | C123: Specialty Smoked Beer | D123: 32 | E123: B | F123: - | G123: - | H123: - | I123: - | J123: - | K123: - | L123: - | M123: - | N123: - | O123: - | P123: - | Q123: - | R123: - | S123: - | T123: - | U123: - NONE LISTED -
A124: 33 | B124: A | C124: Wood-Aged Beer | D124: 33 | E124: A | F124: - | G124: - | H124: - | I124: - | J124: - | K124: - | L124: - | M124: - | N124: - | O124: - | P124: - | Q124: 2.57 | R124: 2.16 | S124: 2.365 | T124: Ale | U124: Bush Prestige, Cigar City Humidor India Pale Ale, Faust Holzfassgereifter Eisbock, Firestone Walker Double Barrel Ale, Great Divide Oak Aged Yeti Imperial Stout, Petrus Aged Pale, Samuel Smith Yorkshire Stingo
A125: 33 | B125: B | C125: Specialty Wood-Aged Beer | D125: 33 | E125: B | F125: - | G125: - | H125: - | I125: - | J125: - | K125: - | L125: - | M125: - | N125: - | O125: - | P125: - | Q125: - | R125: - | S125: - | T125: - | U125: Founders Kentucky Breakfast Stout, Goose Island Bourbon County Stout, J.W. Lees Harvest Ale in Port, Sherry, Lagavulin Whisky or Calvados Casks, The Lost Abbey Angel’s Share Ale; Many microbreweries have specialty beers served only on premises often directly from the cask.
A126: 34 | B126: A | C126: Clone Beer | D126: 34 | E126: A | F126: - | G126: - | H126: - | I126: - | J126: - | K126: - | L126: - | M126: - | N126: - | O126: - | P126: - | Q126: - | R126: - | S126: - | T126: - | U126: - NONE LISTED -
A127: 34 | B127: B | C127: Mixed-Style Beer | D127: 34 | E127: B | F127: - | G127: - | H127: - | I127: - | J127: - | K127: - | L127: - | M127: - | N127: - | O127: - | P127: - | Q127: - | R127: - | S127: - | T127: - | U127: - NONE LISTED -
A128: 34 | B128: C | C128: Experimental Beer | D128: 34 | E128: C | F128: - | G128: - | H128: - | I128: - | J128: - | K128: - | L128: - | M128: - | N128: - | O128: - | P128: - | Q128: - | R128: - | S128: - | T128: - | U128: - NONE LISTED -

Sheet Indkøb
A2: Her kopieres varer til indkøb - filtrér tomme felter væk for at samle listen
B3: Indsæt evt. selv bemærkninger og faktiske enhedspriser, ellers regnes med priser på malt- og humlesiderne.
B5: Vare | D5: Vægt | E5: Enhed | F5: à pris | G5: Pris | H5: Bemærkning
B6: =IF(BrewReport!A9="","",BrewReport!A9) ->  | D6: =IF(BrewReport!D9="","",BrewReport!D9*1000) ->  | E6: =IF(D6="","","g") ->  | G6: =IF(F6="",IFERROR(VLOOKUP($B6,Malt!$A$3:$L$85,COLUMN(INDIRECT(CONCATENATE(HLOOKUP(BrewReport!$F$7,Malt!$H$1:$L$2,2,FALSE),2))),FALSE),""),F6*D6) -> 
B7: =IF(BrewReport!A10="","",BrewReport!A10) ->  | D7: =IF(BrewReport!D10="","",BrewReport!D10*1000) ->  | G7: =IF(F7="",IFERROR(VLOOKUP($B7,Malt!$A$3:$L$85,COLUMN(INDIRECT(CONCATENATE(HLOOKUP(BrewReport!$F$7,Malt!$H$1:$L$2,2,FALSE),2))),FALSE),""),F7*D7) -> 
B8: =IF(BrewReport!A11="","",BrewReport!A11) ->  | D8: =IF(BrewReport!D11="","",BrewReport!D11*1000) ->  | G8: =IF(F8="",IFERROR(VLOOKUP($B8,Malt!$A$3:$L$85,COLUMN(INDIRECT(CONCATENATE(HLOOKUP(BrewReport!$F$7,Malt!$H$1:$L$2,2,FALSE),2))),FALSE),""),F8*D8) -> 
B9: =IF(BrewReport!A12="","",BrewReport!A12) ->  | D9: =IF(BrewReport!D12="","",BrewReport!D12*1000) ->  | G9: =IF(F9="",IFERROR(VLOOKUP($B9,Malt!$A$3:$L$85,COLUMN(INDIRECT(CONCATENATE(HLOOKUP(BrewReport!$F$7,Malt!$H$1:$L$2,2,FALSE),2))),FALSE),""),F9*D9) -> 
B10: =IF(BrewReport!A13="","",BrewReport!A13) ->  | D10: =IF(BrewReport!D13="","",BrewReport!D13*1000) ->  | G10: =IF(F10="",IFERROR(VLOOKUP($B10,Malt!$A$3:$L$85,COLUMN(INDIRECT(CONCATENATE(HLOOKUP(BrewReport!$F$7,Malt!$H$1:$L$2,2,FALSE),2))),FALSE),""),F10*D10) -> 
B11: =IF(BrewReport!A14="","",BrewReport!A14) ->  | D11: =IF(BrewReport!D14="","",BrewReport!D14*1000) ->  | G11: =IF(F11="",IFERROR(VLOOKUP($B11,Malt!$A$3:$L$85,COLUMN(INDIRECT(CONCATENATE(HLOOKUP(BrewReport!$F$7,Malt!$H$1:$L$2,2,FALSE),2))),FALSE),""),F11*D11) -> 
B12: =IF(BrewReport!A15="","",BrewReport!A15) ->  | D12: =IF(BrewReport!D15="","",BrewReport!D15*1000) ->  | G12: =IF(F12="",IFERROR(VLOOKUP($B12,Malt!$A$3:$L$85,COLUMN(INDIRECT(CONCATENATE(HLOOKUP(BrewReport!$F$7,Malt!$H$1:$L$2,2,FALSE),2))),FALSE),""),F12*D12) -> 
B13: =IF(BrewReport!A16="","",BrewReport!A16) ->  | D13: =IF(BrewReport!D16="","",BrewReport!D16*1000) ->  | G13: =IF(F13="",IFERROR(VLOOKUP($B13,Malt!$A$3:$L$85,COLUMN(INDIRECT(CONCATENATE(HLOOKUP(BrewReport!$F$7,Malt!$H$1:$L$2,2,FALSE),2))),FALSE),""),F13*D13) -> 
B14: =IF(BrewReport!A17="","",BrewReport!A17) ->  | D14: =IF(BrewReport!D17="","",BrewReport!D17*1000) ->  | G14: =IF(F14="",IFERROR(VLOOKUP($B14,Malt!$A$3:$L$85,COLUMN(INDIRECT(CONCATENATE(HLOOKUP(BrewReport!$F$7,Malt!$H$1:$L$2,2,FALSE),2))),FALSE),""),F14*D14) -> 
B15: =IF(BrewReport!A18="","",BrewReport!A18) -> Torrefied Flaked Oat | D15: =IF(BrewReport!D18="","",BrewReport!D18*1000) -> 300 | E15: g | G15: =IF(F15="",IFERROR(VLOOKUP($B15,Malt!$A$3:$L$85,COLUMN(INDIRECT(CONCATENATE(HLOOKUP(BrewReport!$F$7,Malt!$H$1:$L$2,2,FALSE),2))),FALSE),""),F15*D15) -> 9
B16: =IF(BrewReport!A23="","",BrewReport!A23) ->  | C16: =IF(BrewReport!B23="","",BrewReport!B23) ->  | D16: =IF(BrewReport!D23="","",BrewReport!D23) ->  | E16: =IF(D16="","","g") ->  | G16: =IF(F16="",IF(B16="","",IF(VLOOKUP(B16,Humle!$A$3:$I$73,1,FALSE)="","",VLOOKUP(B16,Humle!$A$3:$I$73,9,FALSE)*D16)),D16*F16) -> 
B17: =IF(BrewReport!A24="","",BrewReport!A24) ->  | C17: =IF(BrewReport!B24="","",BrewReport!B24) ->  | D17: =IF(BrewReport!D24="","",BrewReport!D24) ->  | E17: =IF(D17="","","g") ->  | G17: =IF(F17="",IF(B17="","",IF(VLOOKUP(B17,Humle!$A$3:$I$73,1,FALSE)="","",VLOOKUP(B17,Humle!$A$3:$I$73,9,FALSE)*D17)),D17*F17) -> 
B18: =IF(BrewReport!A25="","",BrewReport!A25) ->  | C18: =IF(BrewReport!B25="","",BrewReport!B25) ->  | D18: =IF(BrewReport!D25="","",BrewReport!D25) ->  | G18: =IF(F18="",IF(B18="","",IF(VLOOKUP(B18,Humle!$A$3:$I$73,1,FALSE)="","",VLOOKUP(B18,Humle!$A$3:$I$73,9,FALSE)*D18)),D18*F18) -> 
B19: =IF(BrewReport!A27="","",BrewReport!A27) ->  | C19: =IF(BrewReport!B27="","",BrewReport!B27) ->  | D19: =IF(BrewReport!D27="","",BrewReport!D27) ->  | G19: =IF(F19="",IF(B19="","",IF(VLOOKUP(B19,Humle!$A$3:$I$73,1,FALSE)="","",VLOOKUP(B19,Humle!$A$3:$I$73,9,FALSE)*D19)),D19*F19) -> 
B20: =IF(BrewReport!A28="","",BrewReport!A28) ->  | C20: =IF(BrewReport!B28="","",BrewReport!B28) ->  | D20: =IF(BrewReport!D28="","",BrewReport!D28) ->  | G20: =IF(F20="",IF(B20="","",IF(VLOOKUP(B20,Humle!$A$3:$I$73,1,FALSE)="","",VLOOKUP(B20,Humle!$A$3:$I$73,9,FALSE)*D20)),D20*F20) -> 
B21: =IF(BrewReport!A29="","",BrewReport!A29) ->  | C21: =IF(BrewReport!B29="","",BrewReport!B29) ->  | D21: =IF(BrewReport!D29="","",BrewReport!D29) ->  | G21: =IF(F21="",IF(B21="","",IF(VLOOKUP(B21,Humle!$A$3:$I$73,1,FALSE)="","",VLOOKUP(B21,Humle!$A$3:$I$73,9,FALSE)*D21)),D21*F21) -> 
B22: =IF(BrewReport!A31="","",BrewReport!A31) ->  | C22: =IF(BrewReport!B31="","",BrewReport!B31) ->  | D22: =IF(BrewReport!D31="","",BrewReport!D31) ->  | G22: =IF(F22="",IF(B22="","",IF(VLOOKUP(B22,Humle!$A$3:$I$73,1,FALSE)="","",VLOOKUP(B22,Humle!$A$3:$I$73,9,FALSE)*D22)),D22*F22) -> 
B23: =IF(BrewReport!A32="","",BrewReport!A32) ->  | C23: =IF(BrewReport!B32="","",BrewReport!B32) ->  | D23: =IF(BrewReport!D32="","",BrewReport!D32) ->  | G23: =IF(F23="",IF(B23="","",IF(VLOOKUP(B23,Humle!$A$3:$I$73,1,FALSE)="","",VLOOKUP(B23,Humle!$A$3:$I$73,9,FALSE)*D23)),D23*F23) -> 
B24: =IF(BrewReport!A33="","",BrewReport!A33) ->  | C24: =IF(BrewReport!B33="","",BrewReport!B33) ->  | D24: =IF(BrewReport!D33="","",BrewReport!D33) ->  | G24: =IF(F24="",IF(B24="","",IF(VLOOKUP(B24,Humle!$A$3:$I$73,1,FALSE)="","",VLOOKUP(B24,Humle!$A$3:$I$73,9,FALSE)*D24)),D24*F24) -> 
B25: =IF(BrewReport!A35="","",BrewReport!A35) ->  | C25: =IF(BrewReport!B35="","",BrewReport!B35) ->  | D25: =IF(BrewReport!D35="","",BrewReport!D35) ->  | E25: =IF(D25="","","g") ->  | G25: =IF(F25="",IF(B25="","",IF(VLOOKUP(B25,Humle!$A$3:$I$73,1,FALSE)="","",VLOOKUP(B25,Humle!$A$3:$I$73,9,FALSE)*D25)),D25*F25) -> 
B26: =IF(BrewReport!A36="","",BrewReport!A36) ->  | C26: =IF(BrewReport!B36="","",BrewReport!B36) ->  | D26: =IF(BrewReport!D36="","",BrewReport!D36) ->  | E26: =IF(D26="","","g") ->  | G26: =IF(F26="",IF(B26="","",IF(VLOOKUP(B26,Humle!$A$3:$I$73,1,FALSE)="","",VLOOKUP(B26,Humle!$A$3:$I$73,9,FALSE)*D26)),D26*F26) -> 
B27: =IF(BrewReport!A37="","",BrewReport!A37) ->  | C27: =IF(BrewReport!B37="","",BrewReport!B37) ->  | D27: =IF(BrewReport!D37="","",BrewReport!D37) ->  | G27: =IF(F27="",IF(B27="","",IF(VLOOKUP(B27,Humle!$A$3:$I$73,1,FALSE)="","",VLOOKUP(B27,Humle!$A$3:$I$73,9,FALSE)*D27)),D27*F27) -> 
B28: =IF(BrewReport!A39="","",BrewReport!A39) ->  | D28: =IF(BrewReport!D39="","",BrewReport!D39) ->  | G28: =IF(D28="","",F28*D28) -> 
B29: =IF(BrewReport!A40="","",BrewReport!A40) ->  | D29: =IF(BrewReport!D40="","",BrewReport!D40) -> 
B30: =IF(BrewReport!A41="","",BrewReport!A41) ->  | D30: =IF(BrewReport!D41="","",BrewReport!D41) -> 
B31: =IF(BrewReport!A42="","",BrewReport!A42) ->  | D31: =IF(BrewReport!D42="","",BrewReport!D42) -> 
B32: =IF(BrewReport!A43="","",BrewReport!A43) ->  | D32: =IF(BrewReport!D43="","",BrewReport!D43) -> 
B33: =IF(BrewReport!A44="","",BrewReport!A44) ->  | D33: =IF(BrewReport!D44="","",BrewReport!D44) -> 
B34: =IF(BrewReport!L54="","",BrewReport!L54) ->  | D34: =IF(B34="","",1) ->  | E34: =IF(D34="","","pakke") ->  | F34: 25
B35: =IF(BrewReport!L55="","",BrewReport!L55) ->  | D35: =IF(B35="","",1) ->  | E35: =IF(D35="","","pakke") -> 
B36: =IF(BrewReport!L63="","",BrewReport!L63) -> 
B37: =IF(BrewReport!L64="","",BrewReport!L64) -> 
B39: I alt | G39: =SUM(G6:G38) -> 9
B41: Fragt
B43: Total | G43: =SUM(G39:G42) -> 9
B45: Pr. flaske ved 40 stk.: | G45: =G43/40 -> 0.225

Sheet Fejlsøgning
A1: Troubleshooting Chart
A3: Key: “X”: For beers made with malt extract, “AG”: For all-grain beers
A5: Problem | B5: Causes
A6: Fermentation does not start | B6: Inadequate amount of yeast pitched
B7: Wort too hot (yeast stunned/killed)
B8: Wort too cold (yeast dormant)
B9: Fermentation fine, but bucket not sealed (so you can’t see bubbles in airlock)
B10: Fermentation already complete (look for ring of “crud” around inside of fermenter)
A12: Stuck fermentation | B12: Not enough yeast pitched
B13: Inadequate aeration
B14: Wort temperature too low
B15: Yeast strain flocculated early (rousing yeast may help)
B16: Fermentation is finished, not stuck (take specific gravity to check)
A18: A puckering, tea-like quality; sometimes confused with bitterness (astringency) | B18: X: steeped grains in too much water (over 3 quarts water per pound of grain)
B19: X: steeping water too hot (over 170 °F)
B20: AG: excessive volume of sparge water (collected wort less than SG 1.008 or above a pH of 5.8)
B21: AG: excessively hot sparge water (over 170 °F)
A23: Sour or tart beer | B23: Contamination
B24: Tart ingredients (like raspberries or cranberries)
B25: AG: mash sat overnight and temperature dropped to 120 °F (or below)
A27: A buttery or butterscotch-like flavor or aroma (diacetyl) | B27: Yeast did not absorb diacetyl (a diacetyl rest is required for some lager yeast strains)
B28: Contamination
B29: Racked beer too early
B30: Yeast strain
A32: Overly fruity aromas, especially banana (estery) | B32: High fermentation temperatures
B33: Inadequate pitching rate
B34: Yeast strain (some British and Belgian ale strains are supposed to be very fruity)
A36: Chloraseptic-like or Band-aid-like aroma or flavor (phenolic) | B36: Contamination
A38: Vinegar flavor or aroma (acetic) | B38: Contamination, especially in conjunction with exposure to oxygen
A40: Wort darker than expected | B40: X: concentrated wort boil
B41: X: scorching of malt extract (stir in thoroughly)
A43: Stuck mash | B43: Running off wort too quickly
B44: Grains crushed too finely
B45: High percentage of wheat or rye
A47: Low extract efficiency | B47: Crush too coarse
B48: Collecting wort too fast
B49: Collecting too little volume of wort per unit of grain
B50: Poor lauter tun design
B51: Water chemistry not conducive to good mash (check calcium levels first)
B52: pH outside of 5.2-5.6 range
A54: Overly high final gravity (FG) | B54: Maybe the beer was supposed to have a high FG
B55: High percentage of specialty malt in recipe
B56: Yeast strain
B57: Any of causes listed under “stuck fermentation” (above)
A59: Chill haze | B59: Use Irish moss (at rate of 1 tsp. per 5 gallons
B60: Boil too short or not vigorous enough
A62: Poor foam | B62: Glassware dirty
B63: Weak fermentation
B64: Too little protein in wort (esp. when high amounts of adjunct are used)
B65: AG: overly-long rest at 122-131 °F
A67: Mold on surface of beer | B67: It may be yeast, not mold (different yeast strains behave differently)
B68: Wort is exposed to oxygen, which encourages surface growths
A70: Bottle-conditioned beer is flat | B70: Move bottles to warmer location for conditioning
B71: Give beer more time to condition
B72: Beer and priming sugar not adequately mixed in bottling bucket
B73: You forgot the priming sugar
B74: Not enough yeast left in beer to bottle condition (rarely happens)
A76: Bottle-conditioned beer is overcarbonated | B76: Contamination
B77: Beer and priming sugar not adequately mixed in bottling bucket
B78: Too much priming sugar
A80: Beer’s original gravity (OG) too low | B80: X: wort and topping up water not mixed thoroughly
B81: AG: poor extract efficiency (see above)
A83: Cheesy aroma or flavor | B83: Hops are old and stale
A85: Corn-like aroma or flavor (DMS) | B85: Wort cooled too slowly when certain very pale malts used
B86: contamination
A88: Solvent-like or nail- polish aromas (higher alcohols, fusel oils) | B88: Fermentation temperature too high
B89: Inadequate aeration
B90: High original gravity
A92: Skunk-like aroma | B92: Beer exposed to light (especially due to bottling in clear or green bottles)
A94: Wet cardboard aromas and flavors (oxidation) | B94: Beer exposed to oxygen during late fermentation or conditioning
A96: Sherry-like aromas or flavor (oxidation) | B96: Beer exposed to oxygen during late fermentation or conditioning
B97: Long aging of high-alcohol beers (appropriate in some cases)
A99: Excessive sediment in bottle conditioned beer | B99: Some sediment is always present
B100: Let beer fall clear before bottling
A102: Water, wort or beer on floor | B102: Be sure all valves are closed before transferring liquid to a vessel
A104: Beer on ceiling | B104: Fermentation lock clogged (use blow-off tube next time)

Sheet Links
A2: Shopping: | B2: http://www.hjemmebryggeren.dk/
B3: http://brygladen.com/
B4: http://www.albryg.dk/
B5: http://www.bryglageret.dk/
B6: https://brygforretningen.dk/
B7: https://brewparts.dk/
A9: Hops | B9: http://beerlegends.com/hops
B10: https://ychhops.com/varieties
B11: http://www.castlemalting.com/CastleMaltingHops.asp?P=105&Language=Danish
B12: https://humlecentralen.dk/humle/
B13: http://maltmanden.dk/humle-guiden/
A15: Hop Plants | B15: http://www.eickelmann.de/Hopfen-Shop/de/
A17: Recipes | B17: http://www.candisyrup.com/recipes.html
B18: http://www.castlemalting.com/CastleMaltingBeerRecipes.asp?P=94&Language=Danish
B19: http://www.brewingwithbriess.com/Recipes/
A21: Ressource Guides: | B21: https://byo.com/resources
A23: How to Brew by John Palmer | B23: http://howtobrew.com/
A25: Malt | B25: http://www.castlemalting.com/CastleMaltingMalts.asp?P=105&Language=Danish
A27: Malt descriptions | B27: http://www.beercolor.com/malt_descriptions.htm
A29: Yeast | B29: https://www.wyeastlab.com/hb_yeaststrain.cfm
B30: http://mangrovejacks.com/collections/craft-series-yeasts
B31: https://www.whitelabs.com/beer/homebrew/listings
B32: http://www.fermentis.com/brewing/homebrewing/product-range/
A34: BU:GU / RBR | B34: http://www.madalchemist.com/chart_bitterness_corrected.html
A36: Glenn Tinseth's Website | B36: http://www.realbeer.com/hops/
A38: Online Converter (mål, vægt m.m.) | B38: https://justcnw.com/
A40: Beer Judge Certification Program | B40: http://bjcp.org/
